Workbook

Sheet Single Data
Q1: Data source:
L2: Bottom right | M2: Top | N2: Bottom left
J3: Sample No. | K3: Sample name | L3: Right | M3: Top | N3: Left
J4: 1 | K4: 1
J5: 2 | K5: 2
J6: 3 | K6: 3
J7: 4 | K7: 4
J8: 5 | K8: 5
J9: 6 | K9: 6
J10: 7 | K10: 7
J11: 8 | K11: 8
J12: 9 | K12: 9
J13: 10 | K13: 10
J14: 11 | K14: 11
J15: 12 | K15: 12
J16: 13 | K16: 13
J17: 14 | K17: 14
J18: 15 | K18: 15
J19: 16 | K19: 16
J20: 17 | K20: 17
J21: 18 | K21: 18
J22: 19 | K22: 19
J23: 20 | K23: 20
J24: 21 | K24: 21
J25: 22 | K25: 22
G26: Insert the apex titles into cells L3 to N3! | J26: 23 | K26: 23
J27: 24 | K27: 24
J28: 25 | K28: 25
J29: 26 | K29: 26
J30: 27 | K30: 27
J31: 28 | K31: 28
J32: 29 | K32: 29
J33: 30 | K33: 30
F38: Note: The apexes have to be changed in the following way: Top: Pumice, Glass ; Bottom left: Crystals, Crystal Fragments; Bottom right: Rock Fragments.

Sheet Serial Data
J2: Series 1 | K2: Bottom right | L2: Top | M2: Bottom left | O2: Series 2 | P2: Bottom right | Q2: Top | R2: Bottom left | T2: Series 3 | U2: Bottom right | V2: Top | W2: Bottom left | Y2: Series 4 | Z2: Bottom right | AA2: Top | AB2: Bottom left | AD2: Series 5 | AE2: Bottom right | AF2: Top | AG2: Bottom left | AI2: Series 6 | AJ2: Bottom right | AK2: Top | AL2: Bottom left | AN2: Series 7 | AO2: Bottom right | AP2: Top | AQ2: Bottom left | AS2: Series 8 | AT2: Bottom right | AU2: Top | AV2: Bottom left | AX2: Series 9 | AY2: Bottom right | AZ2: Top | BA2: Bottom left | BC2: Series 10 | BD2: Bottom right | BE2: Top | BF2: Bottom left
J3: 1 | O3: 1 | T3: 1 | Y3: 1 | AD3: 1 | AI3: 1 | AN3: 1 | AS3: 1 | AX3: 1 | BC3: 1
J4: 2 | O4: 2 | T4: 2 | Y4: 2 | AD4: 2 | AI4: 2 | AN4: 2 | AS4: 2 | AX4: 2 | BC4: 2
J5: 3 | O5: 3 | T5: 3 | Y5: 3 | AD5: 3 | AI5: 3 | AN5: 3 | AS5: 3 | AX5: 3 | BC5: 3
J6: 4 | O6: 4 | T6: 4 | Y6: 4 | AD6: 4 | AI6: 4 | AN6: 4 | AS6: 4 | AX6: 4 | BC6: 4
J7: 5 | O7: 5 | T7: 5 | Y7: 5 | AD7: 5 | AI7: 5 | AN7: 5 | AS7: 5 | AX7: 5 | BC7: 5
J8: 6 | O8: 6 | T8: 6 | Y8: 6 | AD8: 6 | AI8: 6 | AN8: 6 | AS8: 6 | AX8: 6 | BC8: 6
J9: 7 | O9: 7 | T9: 7 | Y9: 7 | AD9: 7 | AI9: 7 | AN9: 7 | AS9: 7 | AX9: 7 | BC9: 7
J10: 8 | O10: 8 | T10: 8 | Y10: 8 | AD10: 8 | AI10: 8 | AN10: 8 | AS10: 8 | AX10: 8 | BC10: 8
J11: 9 | O11: 9 | T11: 9 | Y11: 9 | AD11: 9 | AI11: 9 | AN11: 9 | AS11: 9 | AX11: 9 | BC11: 9
J12: 10 | O12: 10 | T12: 10 | Y12: 10 | AD12: 10 | AI12: 10 | AN12: 10 | AS12: 10 | AX12: 10 | BC12: 10
J13: 11 | O13: 11 | T13: 11 | Y13: 11 | AD13: 11 | AI13: 11 | AN13: 11 | AS13: 11 | AX13: 11 | BC13: 11
J14: 12 | O14: 12 | T14: 12 | Y14: 12 | AD14: 12 | AI14: 12 | AN14: 12 | AS14: 12 | AX14: 12 | BC14: 12
J15: 13 | O15: 13 | T15: 13 | Y15: 13 | AD15: 13 | AI15: 13 | AN15: 13 | AS15: 13 | AX15: 13 | BC15: 13
J16: 14 | O16: 14 | T16: 14 | Y16: 14 | AD16: 14 | AI16: 14 | AN16: 14 | AS16: 14 | AX16: 14 | BC16: 14
J17: 15 | O17: 15 | T17: 15 | Y17: 15 | AD17: 15 | AI17: 15 | AN17: 15 | AS17: 15 | AX17: 15 | BC17: 15
J18: 16 | O18: 16 | T18: 16 | Y18: 16 | AD18: 16 | AI18: 16 | AN18: 16 | AS18: 16 | AX18: 16 | BC18: 16
J19: 17 | O19: 17 | T19: 17 | Y19: 17 | AD19: 17 | AI19: 17 | AN19: 17 | AS19: 17 | AX19: 17 | BC19: 17
J20: 18 | O20: 18 | T20: 18 | Y20: 18 | AD20: 18 | AI20: 18 | AN20: 18 | AS20: 18 | AX20: 18 | BC20: 18
J21: 19 | O21: 19 | T21: 19 | Y21: 19 | AD21: 19 | AI21: 19 | AN21: 19 | AS21: 19 | AX21: 19 | BC21: 19
J22: 20 | O22: 20 | T22: 20 | Y22: 20 | AD22: 20 | AI22: 20 | AN22: 20 | AS22: 20 | AX22: 20 | BC22: 20
J23: 21 | O23: 21 | T23: 21 | Y23: 21 | AD23: 21 | AI23: 21 | AN23: 21 | AS23: 21 | AX23: 21 | BC23: 21
J24: 22 | O24: 22 | T24: 22 | Y24: 22 | AD24: 22 | AI24: 22 | AN24: 22 | AS24: 22 | AX24: 22 | BC24: 22
J25: 23 | O25: 23 | T25: 23 | Y25: 23 | AD25: 23 | AI25: 23 | AN25: 23 | AS25: 23 | AX25: 23 | BC25: 23
G26: Insert the apex titles into cells K2 to M2! | J26: 24 | O26: 24 | T26: 24 | Y26: 24 | AD26: 24 | AI26: 24 | AN26: 24 | AS26: 24 | AX26: 24 | BC26: 24
J27: 25 | O27: 25 | T27: 25 | Y27: 25 | AD27: 25 | AI27: 25 | AN27: 25 | AS27: 25 | AX27: 25 | BC27: 25
J28: 26 | O28: 26 | T28: 26 | Y28: 26 | AD28: 26 | AI28: 26 | AN28: 26 | AS28: 26 | AX28: 26 | BC28: 26
J29: 27 | O29: 27 | T29: 27 | Y29: 27 | AD29: 27 | AI29: 27 | AN29: 27 | AS29: 27 | AX29: 27 | BC29: 27
J30: 28 | O30: 28 | T30: 28 | Y30: 28 | AD30: 28 | AI30: 28 | AN30: 28 | AS30: 28 | AX30: 28 | BC30: 28
J31: 29 | O31: 29 | T31: 29 | Y31: 29 | AD31: 29 | AI31: 29 | AN31: 29 | AS31: 29 | AX31: 29 | BC31: 29
J32: 30 | O32: 30 | T32: 30 | Y32: 30 | AD32: 30 | AI32: 30 | AN32: 30 | AS32: 30 | AX32: 30 | BC32: 30
J33: 31 | O33: 31 | T33: 31 | Y33: 31 | AD33: 31 | AI33: 31 | AN33: 31 | AS33: 31 | AX33: 31 | BC33: 31
J34: 32 | O34: 32 | T34: 32 | Y34: 32 | AD34: 32 | AI34: 32 | AN34: 32 | AS34: 32 | AX34: 32 | BC34: 32
J35: 33 | O35: 33 | T35: 33 | Y35: 33 | AD35: 33 | AI35: 33 | AN35: 33 | AS35: 33 | AX35: 33 | BC35: 33
J36: 34 | O36: 34 | T36: 34 | Y36: 34 | AD36: 34 | AI36: 34 | AN36: 34 | AS36: 34 | AX36: 34 | BC36: 34
J37: 35 | O37: 35 | T37: 35 | Y37: 35 | AD37: 35 | AI37: 35 | AN37: 35 | AS37: 35 | AX37: 35 | BC37: 35
F38: Note: The apexes have to be changed in the following way: Top: Pumice, Glass ; Bottom left: Crystals, Crystal Fragments; Bottom right: Rock Fragments. | J38: 36 | O38: 36 | T38: 36 | Y38: 36 | AD38: 36 | AI38: 36 | AN38: 36 | AS38: 36 | AX38: 36 | BC38: 36
J39: 37 | O39: 37 | T39: 37 | Y39: 37 | AD39: 37 | AI39: 37 | AN39: 37 | AS39: 37 | AX39: 37 | BC39: 37
J40: 38 | O40: 38 | T40: 38 | Y40: 38 | AD40: 38 | AI40: 38 | AN40: 38 | AS40: 38 | AX40: 38 | BC40: 38
J41: 39 | O41: 39 | T41: 39 | Y41: 39 | AD41: 39 | AI41: 39 | AN41: 39 | AS41: 39 | AX41: 39 | BC41: 39
J42: 40 | O42: 40 | T42: 40 | Y42: 40 | AD42: 40 | AI42: 40 | AN42: 40 | AS42: 40 | AX42: 40 | BC42: 40
J43: 41 | O43: 41 | T43: 41 | Y43: 41 | AD43: 41 | AI43: 41 | AN43: 41 | AS43: 41 | AX43: 41 | BC43: 41
J44: 42 | O44: 42 | T44: 42 | Y44: 42 | AD44: 42 | AI44: 42 | AN44: 42 | AS44: 42 | AX44: 42 | BC44: 42
J45: 43 | O45: 43 | T45: 43 | Y45: 43 | AD45: 43 | AI45: 43 | AN45: 43 | AS45: 43 | AX45: 43 | BC45: 43
J46: 44 | O46: 44 | T46: 44 | Y46: 44 | AD46: 44 | AI46: 44 | AN46: 44 | AS46: 44 | AX46: 44 | BC46: 44
J47: 45 | O47: 45 | T47: 45 | Y47: 45 | AD47: 45 | AI47: 45 | AN47: 45 | AS47: 45 | AX47: 45 | BC47: 45
J48: 46 | O48: 46 | T48: 46 | Y48: 46 | AD48: 46 | AI48: 46 | AN48: 46 | AS48: 46 | AX48: 46 | BC48: 46
J49: 47 | O49: 47 | T49: 47 | Y49: 47 | AD49: 47 | AI49: 47 | AN49: 47 | AS49: 47 | AX49: 47 | BC49: 47
J50: 48 | O50: 48 | T50: 48 | Y50: 48 | AD50: 48 | AI50: 48 | AN50: 48 | AS50: 48 | AX50: 48 | BC50: 48
J51: 49 | O51: 49 | T51: 49 | Y51: 49 | AD51: 49 | AI51: 49 | AN51: 49 | AS51: 49 | AX51: 49 | BC51: 49
J52: 50 | O52: 50 | T52: 50 | Y52: 50 | AD52: 50 | AI52: 50 | AN52: 50 | AS52: 50 | AX52: 50 | BC52: 50
J53: 51 | O53: 51 | T53: 51 | Y53: 51 | AD53: 51 | AI53: 51 | AN53: 51 | AS53: 51 | AX53: 51 | BC53: 51
J54: 52 | O54: 52 | T54: 52 | Y54: 52 | AD54: 52 | AI54: 52 | AN54: 52 | AS54: 52 | AX54: 52 | BC54: 52
J55: 53 | O55: 53 | T55: 53 | Y55: 53 | AD55: 53 | AI55: 53 | AN55: 53 | AS55: 53 | AX55: 53 | BC55: 53
J56: 54 | O56: 54 | T56: 54 | Y56: 54 | AD56: 54 | AI56: 54 | AN56: 54 | AS56: 54 | AX56: 54 | BC56: 54
J57: 55 | O57: 55 | T57: 55 | Y57: 55 | AD57: 55 | AI57: 55 | AN57: 55 | AS57: 55 | AX57: 55 | BC57: 55
J58: 56 | O58: 56 | T58: 56 | Y58: 56 | AD58: 56 | AI58: 56 | AN58: 56 | AS58: 56 | AX58: 56 | BC58: 56
J59: 57 | O59: 57 | T59: 57 | Y59: 57 | AD59: 57 | AI59: 57 | AN59: 57 | AS59: 57 | AX59: 57 | BC59: 57
J60: 58 | O60: 58 | T60: 58 | Y60: 58 | AD60: 58 | AI60: 58 | AN60: 58 | AS60: 58 | AX60: 58 | BC60: 58
J61: 59 | O61: 59 | T61: 59 | Y61: 59 | AD61: 59 | AI61: 59 | AN61: 59 | AS61: 59 | AX61: 59 | BC61: 59
J62: 60 | O62: 60 | T62: 60 | Y62: 60 | AD62: 60 | AI62: 60 | AN62: 60 | AS62: 60 | AX62: 60 | BC62: 60
J63: 61 | O63: 61 | T63: 61 | Y63: 61 | AD63: 61 | AI63: 61 | AN63: 61 | AS63: 61 | AX63: 61 | BC63: 61
J64: 62 | O64: 62 | T64: 62 | Y64: 62 | AD64: 62 | AI64: 62 | AN64: 62 | AS64: 62 | AX64: 62 | BC64: 62
J65: 63 | O65: 63 | T65: 63 | Y65: 63 | AD65: 63 | AI65: 63 | AN65: 63 | AS65: 63 | AX65: 63 | BC65: 63
J66: 64 | O66: 64 | T66: 64 | Y66: 64 | AD66: 64 | AI66: 64 | AN66: 64 | AS66: 64 | AX66: 64 | BC66: 64
J67: 65 | O67: 65 | T67: 65 | Y67: 65 | AD67: 65 | AI67: 65 | AN67: 65 | AS67: 65 | AX67: 65 | BC67: 65
J68: 66 | O68: 66 | T68: 66 | Y68: 66 | AD68: 66 | AI68: 66 | AN68: 66 | AS68: 66 | AX68: 66 | BC68: 66
J69: 67 | O69: 67 | T69: 67 | Y69: 67 | AD69: 67 | AI69: 67 | AN69: 67 | AS69: 67 | AX69: 67 | BC69: 67
J70: 68 | O70: 68 | T70: 68 | Y70: 68 | AD70: 68 | AI70: 68 | AN70: 68 | AS70: 68 | AX70: 68 | BC70: 68
J71: 69 | O71: 69 | T71: 69 | Y71: 69 | AD71: 69 | AI71: 69 | AN71: 69 | AS71: 69 | AX71: 69 | BC71: 69
J72: 70 | O72: 70 | T72: 70 | Y72: 70 | AD72: 70 | AI72: 70 | AN72: 70 | AS72: 70 | AX72: 70 | BC72: 70
J73: 71 | O73: 71 | T73: 71 | Y73: 71 | AD73: 71 | AI73: 71 | AN73: 71 | AS73: 71 | AX73: 71 | BC73: 71
J74: 72 | O74: 72 | T74: 72 | Y74: 72 | AD74: 72 | AI74: 72 | AN74: 72 | AS74: 72 | AX74: 72 | BC74: 72
J75: 73 | O75: 73 | T75: 73 | Y75: 73 | AD75: 73 | AI75: 73 | AN75: 73 | AS75: 73 | AX75: 73 | BC75: 73
J76: 74 | O76: 74 | T76: 74 | Y76: 74 | AD76: 74 | AI76: 74 | AN76: 74 | AS76: 74 | AX76: 74 | BC76: 74
J77: 75 | O77: 75 | T77: 75 | Y77: 75 | AD77: 75 | AI77: 75 | AN77: 75 | AS77: 75 | AX77: 75 | BC77: 75
J78: 76 | O78: 76 | T78: 76 | Y78: 76 | AD78: 76 | AI78: 76 | AN78: 76 | AS78: 76 | AX78: 76 | BC78: 76
J79: 77 | O79: 77 | T79: 77 | Y79: 77 | AD79: 77 | AI79: 77 | AN79: 77 | AS79: 77 | AX79: 77 | BC79: 77
J80: 78 | O80: 78 | T80: 78 | Y80: 78 | AD80: 78 | AI80: 78 | AN80: 78 | AS80: 78 | AX80: 78 | BC80: 78
J81: 79 | O81: 79 | T81: 79 | Y81: 79 | AD81: 79 | AI81: 79 | AN81: 79 | AS81: 79 | AX81: 79 | BC81: 79
J82: 80 | O82: 80 | T82: 80 | Y82: 80 | AD82: 80 | AI82: 80 | AN82: 80 | AS82: 80 | AX82: 80 | BC82: 80
J83: 81 | O83: 81 | T83: 81 | Y83: 81 | AD83: 81 | AI83: 81 | AN83: 81 | AS83: 81 | AX83: 81 | BC83: 81
J84: 82 | O84: 82 | T84: 82 | Y84: 82 | AD84: 82 | AI84: 82 | AN84: 82 | AS84: 82 | AX84: 82 | BC84: 82
J85: 83 | O85: 83 | T85: 83 | Y85: 83 | AD85: 83 | AI85: 83 | AN85: 83 | AS85: 83 | AX85: 83 | BC85: 83
J86: 84 | O86: 84 | T86: 84 | Y86: 84 | AD86: 84 | AI86: 84 | AN86: 84 | AS86: 84 | AX86: 84 | BC86: 84
J87: 85 | O87: 85 | T87: 85 | Y87: 85 | AD87: 85 | AI87: 85 | AN87: 85 | AS87: 85 | AX87: 85 | BC87: 85
J88: 86 | O88: 86 | T88: 86 | Y88: 86 | AD88: 86 | AI88: 86 | AN88: 86 | AS88: 86 | AX88: 86 | BC88: 86
J89: 87 | O89: 87 | T89: 87 | Y89: 87 | AD89: 87 | AI89: 87 | AN89: 87 | AS89: 87 | AX89: 87 | BC89: 87
J90: 88 | O90: 88 | T90: 88 | Y90: 88 | AD90: 88 | AI90: 88 | AN90: 88 | AS90: 88 | AX90: 88 | BC90: 88
J91: 89 | O91: 89 | T91: 89 | Y91: 89 | AD91: 89 | AI91: 89 | AN91: 89 | AS91: 89 | AX91: 89 | BC91: 89
J92: 90 | O92: 90 | T92: 90 | Y92: 90 | AD92: 90 | AI92: 90 | AN92: 90 | AS92: 90 | AX92: 90 | BC92: 90
J93: 91 | O93: 91 | T93: 91 | Y93: 91 | AD93: 91 | AI93: 91 | AN93: 91 | AS93: 91 | AX93: 91 | BC93: 91
J94: 92 | O94: 92 | T94: 92 | Y94: 92 | AD94: 92 | AI94: 92 | AN94: 92 | AS94: 92 | AX94: 92 | BC94: 92
J95: 93 | O95: 93 | T95: 93 | Y95: 93 | AD95: 93 | AI95: 93 | AN95: 93 | AS95: 93 | AX95: 93 | BC95: 93
J96: 94 | O96: 94 | T96: 94 | Y96: 94 | AD96: 94 | AI96: 94 | AN96: 94 | AS96: 94 | AX96: 94 | BC96: 94
J97: 95 | O97: 95 | T97: 95 | Y97: 95 | AD97: 95 | AI97: 95 | AN97: 95 | AS97: 95 | AX97: 95 | BC97: 95
J98: 96 | O98: 96 | T98: 96 | Y98: 96 | AD98: 96 | AI98: 96 | AN98: 96 | AS98: 96 | AX98: 96 | BC98: 96
J99: 97 | O99: 97 | T99: 97 | Y99: 97 | AD99: 97 | AI99: 97 | AN99: 97 | AS99: 97 | AX99: 97 | BC99: 97
J100: 98 | O100: 98 | T100: 98 | Y100: 98 | AD100: 98 | AI100: 98 | AN100: 98 | AS100: 98 | AX100: 98 | BC100: 98
J101: 99 | O101: 99 | T101: 99 | Y101: 99 | AD101: 99 | AI101: 99 | AN101: 99 | AS101: 99 | AX101: 99 | BC101: 99
J102: 100 | O102: 100 | T102: 100 | Y102: 100 | AD102: 100 | AI102: 100 | AN102: 100 | AS102: 100 | AX102: 100 | BC102: 100

Sheet Templates
Y1: 20%-labels: | Z1: show?: | AA1: FALSE | AL1: Individual Mask: | AU1: Individual Label:
D2: 10%-Grid | F2: show?: | G2: FALSE | I2: Printer correction: | K2: 1 | N2: Feldspar-template | P2: show?: | Q2: FALSE | S2: Feldspar labels | U2: show?: | V2: FALSE | Y2: 10%-labels: | Z2: schow?: | AA2: FALSE | AF2: show?: | AG2: FALSE | AL2: show?: | AM2: TRUE | AU2: show?: | AV2: TRUE
A3: Triangle border | D3: x | E3: y | F3: x | G3: y | N3: x | O3: y | P3: x | Q3: y | T3: x | U3: y | V3: x | W3: y | Y3: x | Z3: y | AA3: x | AB3: y | AC3: x | AD3: y | AF3: x | AG3: y | AH3: x | AI3: y | AJ3: legend | AL3: Bottom right | AM3: Top | AN3: Bottom left | AO3: Bottom right % | AP3: Top % | AQ3: Bottom left % | AR3: x | AS3: y | AU3: Bottom right | AV3: Top | AW3: Bottom left | AX3: Bottom right % | AY3: Top% | AZ3: Bottom left % | BA3: x | BB3: y | BC3: Label Name:
A4: 1 | B4: =0*K2 -> 0 | D4: 0 | E4: =0*K2 -> 0 | F4: =IF(G2=TRUE,D4,NA()) ->  | G4: =IF(G2=TRUE,E4,NA()) ->  | N4: 0.95 | O4: =0.0866*K2 -> 0.0866 | P4: =IF(Q2=TRUE,N4,NA()) ->  | Q4: =IF(Q2=TRUE,O4,NA()) ->  | S4: Albite | T4: 0.07 | U4: =0.04*K2 -> 0.04 | V4: =IF(V2=TRUE, T4,NA()) ->  | W4: =IF(V2=TRUE, U4,NA()) ->  | Y4: 0.1 | Z4: =0*K2 -> 0 | AA4: =IF(AA2=TRUE, Y4,NA()) ->  | AB4: =IF(AA2=TRUE, Z4,NA()) ->  | AF4: 0.25 | AG4: =0.433*K2 -> 0.433 | AH4: =IF(AG2=TRUE,AF4,NA()) ->  | AI4: =IF(AG2=TRUE,AG4,NA()) ->  | AO4: =AL4/(AL4+AM4+AN4) ->  | AP4: =AM4/(AL4+AM4+AN4) ->  | AQ4: =AN4/(AL4+AM4+AN4) ->  | AR4: =IF(AND(AM2=TRUE,AL4+AM4+AN4<>0),(AO4+(AP4*0.5)),NA()) ->  | AS4: =IF(AND(AM2=TRUE,AL4+AM4+AN4<>0),AP4*0.866*K2,NA()) ->  | AX4: =AU4/(AU4+AV4+AW4) ->  | AY4: =AV4/(AU4+AV4+AW4) ->  | AZ4: =AW4/(AU4+AV4+AW4) ->  | BA4: =IF(AND(AV2=TRUE,AU4+AV4+AW4<>0),(AX4+(AY4*0.5)),NA()) ->  | BB4: =IF(AND(AV2=TRUE,AU4+AV4+AW4<>0),AY4*0.866*K2,NA()) -> 
A5: 0.5 | B5: =0.866*K2 -> 0.866 | D5: 0.1 | E5: =0*K2 -> 0 | F5: =IF(G2=TRUE,D5,NA()) ->  | G5: =IF(G2=TRUE,E5,NA()) ->  | N5: 0.85 | O5: =0.0866*K2 -> 0.0866 | P5: =IF(Q2=TRUE,N5,NA()) ->  | Q5: =IF(Q2=TRUE,O5,NA()) ->  | S5: Oligoclase | T5: 0.2 | U5: =0.04*K2 -> 0.04 | V5: =IF(V2=TRUE, T5,NA()) ->  | W5: =IF(V2=TRUE, U5,NA()) ->  | Y5: 0.2 | Z5: =0*K2 -> 0 | AA5: =IF(AA2=TRUE, Y5,NA()) ->  | AB5: =IF(AA2=TRUE, Z5,NA()) ->  | AC5: =IF(AA1=TRUE, Y5,NA()) ->  | AD5: =IF(AA1=TRUE,Z5,NA()) ->  | AF5: 0.5 | AG5: =0.288666667*K2 -> 0.288666667 | AH5: =IF(AG2=TRUE,AF5,NA()) ->  | AI5: =IF(AG2=TRUE,AG5,NA()) ->  | AO5: =AL5/(AL5+AM5+AN5) ->  | AP5: =AM5/(AL5+AM5+AN5) ->  | AQ5: =AN5/(AL5+AM5+AN5) ->  | AR5: =IF(AND(AM2=TRUE,AL5+AM5+AN5<>0),(AO5+(AP5*0.5)),NA()) ->  | AS5: =IF(AND(AM2=TRUE,AL5+AM5+AN5<>0),AP5*0.866*K2,NA()) ->  | AX5: =AU5/(AU5+AV5+AW5) ->  | AY5: =AV5/(AU5+AV5+AW5) ->  | AZ5: =AW5/(AU5+AV5+AW5) ->  | BA5: =IF(AND(AV2=TRUE,AU5+AV5+AW5<>0),(AX5+(AY5*0.5)),NA()) ->  | BB5: =IF(AND(AV2=TRUE,AU5+AV5+AW5<>0),AY5*0.866*K2,NA()) -> 
A6: 0.003 | B6: =0*K2 -> 0 | D6: 0.55 | E6: =0.7794*K2 -> 0.7794 | F6: =IF(G2=TRUE,D6,NA()) ->  | G6: =IF(G2=TRUE,E6,NA()) ->  | N6: 0.681 | O6: =0.0866*K2 -> 0.0866 | P6: =IF(Q2=TRUE,N6,NA()) ->  | Q6: =IF(Q2=TRUE,O6,NA()) ->  | S6: Andesine | T6: 0.4 | U6: =0.04*K2 -> 0.04 | V6: =IF(V2=TRUE, T6,NA()) ->  | W6: =IF(V2=TRUE, U6,NA()) ->  | Y6: 0.3 | Z6: =0*K2 -> 0 | AA6: =IF(AA2=TRUE, Y6,NA()) ->  | AB6: =IF(AA2=TRUE, Z6,NA()) ->  | AF6: 0.5 | AG6: =0*K2 -> 0 | AH6: =IF(AG2=TRUE,AF6,NA()) ->  | AI6: =IF(AG2=TRUE,AG6,NA()) ->  | AR6: =IF(AND(AM2=TRUE,AL6+AM6+AN6<>0),(AO6+(AP6*0.5)),NA()) ->  | AS6: =IF(AND(AM2=TRUE,AL6+AM6+AN6<>0),AP6*0.866*K2,NA()) ->  | BA6: =IF(AND(AV2=TRUE,AU6+AV6+AW6<>0),(AX6+(AY6*0.5)),NA()) ->  | BB6: =IF(AND(AV2=TRUE,AU6+AV6+AW6<>0),AY6*0.866*K2,NA()) -> 
D7: 0.6 | E7: =0.6928*K2 -> 0.6928 | F7: =IF(G2=TRUE,D7,NA()) ->  | G7: =IF(G2=TRUE,E7,NA()) ->  | N7: 0.5 | O7: =0.0866*K2 -> 0.0866 | P7: =IF(Q2=TRUE,N7,NA()) ->  | Q7: =IF(Q2=TRUE,O7,NA()) ->  | S7: Labradorite | T7: 0.6 | U7: =0.04*K2 -> 0.04 | V7: =IF(V2=TRUE, T7,NA()) ->  | W7: =IF(V2=TRUE, U7,NA()) ->  | Y7: 0.4 | Z7: =0*K2 -> 0 | AA7: =IF(AA2=TRUE, Y7,NA()) ->  | AB7: =IF(AA2=TRUE, Z7,NA()) ->  | AC7: =IF(AA1=TRUE, Y7,NA()) ->  | AD7: =IF(AA1=TRUE,Z7,NA()) ->  | AF7: 0.5 | AG7: =0.288666667*K2 -> 0.288666667 | AH7: =IF(AG2=TRUE,AF7,NA()) ->  | AI7: =IF(AG2=TRUE,AG7,NA()) ->  | AR7: =IF(AND(AM2=TRUE,AL7+AM7+AN7<>0),(AO7+(AP7*0.5)),NA()) ->  | AS7: =IF(AND(AM2=TRUE,AL7+AM7+AN7<>0),AP7*0.866*K2,NA()) ->  | BA7: =IF(AND(AV2=TRUE,AU7+AV7+AW7<>0),(AX7+(AY7*0.5)),NA()) ->  | BB7: =IF(AND(AV2=TRUE,AU7+AV7+AW7<>0),AY7*0.866*K2,NA()) -> 
A8: 0.005 | B8: =0*K2 -> 0 | D8: 0.2 | E8: =0*K2 -> 0 | F8: =IF(G2=TRUE,D8,NA()) ->  | G8: =IF(G2=TRUE,E8,NA()) ->  | N8: 0.5 | O8: =0.0866*K2 -> 0.0866 | P8: =IF(Q2=TRUE,N8,NA()) ->  | Q8: =IF(Q2=TRUE,O8,NA()) ->  | S8: Bytownite | T8: 0.78 | U8: =0.04*K2 -> 0.04 | V8: =IF(V2=TRUE, T8,NA()) ->  | W8: =IF(V2=TRUE, U8,NA()) ->  | Y8: 0.5 | Z8: =0*K2 -> 0 | AA8: =IF(AA2=TRUE, Y8,NA()) ->  | AB8: =IF(AA2=TRUE, Z8,NA()) ->  | AF8: 0.75 | AG8: =0.433*K2 -> 0.433 | AH8: =IF(AG2=TRUE,AF8,NA()) ->  | AI8: =IF(AG2=TRUE,AG8,NA()) ->  | AR8: =IF(AND(AM2=TRUE,AL8+AM8+AN8<>0),(AO8+(AP8*0.5)),NA()) ->  | AS8: =IF(AND(AM2=TRUE,AL8+AM8+AN8<>0),AP8*0.866*K2,NA()) ->  | BA8: =IF(AND(AV2=TRUE,AU8+AV8+AW8<>0),(AX8+(AY8*0.5)),NA()) ->  | BB8: =IF(AND(AV2=TRUE,AU8+AV8+AW8<>0),AY8*0.866*K2,NA()) -> 
A9: 0.995 | B9: =0*K2 -> 0 | D9: 0.3 | E9: =0*K2 -> 0 | F9: =IF(G2=TRUE,D9,NA()) ->  | G9: =IF(G2=TRUE,E9,NA()) ->  | N9: 0.45 | O9: =0.09*K2 -> 0.09 | P9: =IF(Q2=TRUE,N9,NA()) ->  | Q9: =IF(Q2=TRUE,O9,NA()) ->  | S9: Anorthite | T9: 0.93 | U9: =0.04*K2 -> 0.04 | V9: =IF(V2=TRUE, T9,NA()) ->  | W9: =IF(V2=TRUE, U9,NA()) ->  | Y9: 0.6 | Z9: =0*K2 -> 0 | AA9: =IF(AA2=TRUE, Y9,NA()) ->  | AB9: =IF(AA2=TRUE, Z9,NA()) ->  | AC9: =IF(AA1=TRUE, Y9,NA()) ->  | AD9: =IF(AA1=TRUE,Z9,NA()) ->  | AR9: =IF(AND(AM2=TRUE,AL9+AM9+AN9<>0),(AO9+(AP9*0.5)),NA()) ->  | AS9: =IF(AND(AM2=TRUE,AL9+AM9+AN9<>0),AP9*0.866*K2,NA()) ->  | BA9: =IF(AND(AV2=TRUE,AU9+AV9+AW9<>0),(AX9+(AY9*0.5)),NA()) ->  | BB9: =IF(AND(AV2=TRUE,AU9+AV9+AW9<>0),AY9*0.866*K2,NA()) -> 
D10: 0.65 | E10: =0.6062*K2 -> 0.6062 | F10: =IF(G2=TRUE,D10,NA()) ->  | G10: =IF(G2=TRUE,E10,NA()) ->  | N10: 0.39 | O10: =0.095*K2 -> 0.095 | P10: =IF(Q2=TRUE,N10,NA()) ->  | Q10: =IF(Q2=TRUE,O10,NA()) ->  | S10: Anorthoclase | T10: 0.16 | U10: =0.173*K2 -> 0.173 | V10: =IF(V2=TRUE, T10,NA()) ->  | W10: =IF(V2=TRUE, U10,NA()) ->  | Y10: 0.7 | Z10: =0*K2 -> 0 | AA10: =IF(AA2=TRUE, Y10,NA()) ->  | AB10: =IF(AA2=TRUE, Z10,NA()) ->  | AO10: =AL10/(AL10+AM10+AN10) ->  | AP10: =AM10/(AL10+AM10+AN10) ->  | AQ10: =AN10/(AL10+AM10+AN10) ->  | AR10: =IF(AND(AM2=TRUE,AL10+AM10+AN10<>0),(AO10+(AP10*0.5)),NA()) ->  | AS10: =IF(AND(AM2=TRUE,AL10+AM10+AN10<>0),AP10*0.866*K2,NA()) ->  | BA10: =IF(AND(AV2=TRUE,AU10+AV10+AW10<>0),(AX10+(AY10*0.5)),NA()) ->  | BB10: =IF(AND(AV2=TRUE,AU10+AV10+AW10<>0),AY10*0.866*K2,NA()) -> 
D11: 0.7 | E11: =0.5196*K2 -> 0.5196 | F11: =IF(G2=TRUE,D11,NA()) ->  | G11: =IF(G2=TRUE,E11,NA()) ->  | N11: 0.35 | O11: =0.11258*K2 -> 0.11258 | P11: =IF(Q2=TRUE,N11,NA()) ->  | Q11: =IF(Q2=TRUE,O11,NA()) ->  | S11: Sanidine | T11: 0.35 | U11: =0.519*K2 -> 0.519 | V11: =IF(V2=TRUE, T11,NA()) ->  | W11: =IF(V2=TRUE, U11,NA()) ->  | Y11: 0.8 | Z11: =0*K2 -> 0 | AA11: =IF(AA2=TRUE, Y11,NA()) ->  | AB11: =IF(AA2=TRUE, Z11,NA()) ->  | AC11: =IF(AA1=TRUE, Y11,NA()) ->  | AD11: =IF(AA1=TRUE,Z11,NA()) ->  | AR11: =IF(AND(AM2=TRUE,AL11+AM11+AN11<>0),(AO11+(AP11*0.5)),NA()) ->  | AS11: =IF(AND(AM2=TRUE,AL11+AM11+AN11<>0),AP11*0.866*K2,NA()) ->  | BA11: =IF(AND(AV2=TRUE,AU11+AV11+AW11<>0),(AX11+(AY11*0.5)),NA()) ->  | BB11: =IF(AND(AV2=TRUE,AU11+AV11+AW11<>0),AY11*0.866*K2,NA()) -> 
D12: 0.4 | E12: =0*K2 -> 0 | F12: =IF(G2=TRUE,D12,NA()) ->  | G12: =IF(G2=TRUE,E12,NA()) ->  | N12: 0.295 | O12: =0.1732*K2 -> 0.1732 | P12: =IF(Q2=TRUE,N12,NA()) ->  | Q12: =IF(Q2=TRUE,O12,NA()) ->  | Y12: 0.9 | Z12: =0*K2 -> 0 | AA12: =IF(AA2=TRUE, Y12,NA()) ->  | AB12: =IF(AA2=TRUE, Z12,NA()) ->  | AR12: =IF(AND(AM2=TRUE,AL12+AM12+AN12<>0),(AO12+(AP12*0.5)),NA()) ->  | AS12: =IF(AND(AM2=TRUE,AL12+AM12+AN12<>0),AP12*0.866*K2,NA()) ->  | BA12: =IF(AND(AV2=TRUE,AU12+AV12+AW12<>0),(AX12+(AY12*0.5)),NA()) ->  | BB12: =IF(AND(AV2=TRUE,AU12+AV12+AW12<>0),AY12*0.866*K2,NA()) -> 
D13: 0.5 | E13: =0*K2 -> 0 | F13: =IF(G2=TRUE,D13,NA()) ->  | G13: =IF(G2=TRUE,E13,NA()) ->  | N13: 0.28 | O13: =0.2165*K2 -> 0.2165 | P13: =IF(Q2=TRUE,N13,NA()) ->  | Q13: =IF(Q2=TRUE,O13,NA()) ->  | Y13: 0.95 | Z13: =0.0866*K2 -> 0.0866 | AA13: =IF(AA2=TRUE, Y13,NA()) ->  | AB13: =IF(AA2=TRUE, Z13,NA()) ->  | AR13: =IF(AND(AM2=TRUE,AL13+AM13+AN13<>0),(AO13+(AP13*0.5)),NA()) ->  | AS13: =IF(AND(AM2=TRUE,AL13+AM13+AN13<>0),AP13*0.866*K2,NA()) ->  | BA13: =IF(AND(AV2=TRUE,AU13+AV13+AW13<>0),(AX13+(AY13*0.5)),NA()) ->  | BB13: =IF(AND(AV2=TRUE,AU13+AV13+AW13<>0),AY13*0.866*K2,NA()) -> 
D14: 0.75 | E14: =0.433*K2 -> 0.433 | F14: =IF(G2=TRUE,D14,NA()) ->  | G14: =IF(G2=TRUE,E14,NA()) ->  | N14: 0.28 | O14: =0.28712*K2 -> 0.28712 | P14: =IF(Q2=TRUE,N14,NA()) ->  | Q14: =IF(Q2=TRUE,O14,NA()) ->  | Y14: 0.9 | Z14: =0.1732*K2 -> 0.1732 | AA14: =IF(AA2=TRUE, Y14,NA()) ->  | AB14: =IF(AA2=TRUE, Z14,NA()) ->  | AC14: =IF(AA1=TRUE, Y14,NA()) ->  | AD14: =IF(AA1=TRUE,Z14,NA()) ->  | AR14: =IF(AND(AM2=TRUE,AL14+AM14+AN14<>0),(AO14+(AP14*0.5)),NA()) ->  | AS14: =IF(AND(AM2=TRUE,AL14+AM14+AN14<>0),AP14*0.866*K2,NA()) ->  | BA14: =IF(AND(AV2=TRUE,AU14+AV14+AW14<>0),(AX14+(AY14*0.5)),NA()) ->  | BB14: =IF(AND(AV2=TRUE,AU14+AV14+AW14<>0),AY14*0.866*K2,NA()) -> 
D15: 0.8 | E15: =0.3464*K2 -> 0.3464 | F15: =IF(G2=TRUE,D15,NA()) ->  | G15: =IF(G2=TRUE,E15,NA()) ->  | N15: 0.3 | O15: =0.3464*K2 -> 0.3464 | P15: =IF(Q2=TRUE,N15,NA()) ->  | Q15: =IF(Q2=TRUE,O15,NA()) ->  | Y15: 0.85 | Z15: =0.2598*K2 -> 0.2598 | AA15: =IF(AA2=TRUE, Y15,NA()) ->  | AB15: =IF(AA2=TRUE, Z15,NA()) ->  | AR15: =IF(AND(AM2=TRUE,AL15+AM15+AN15<>0),(AO15+(AP15*0.5)),NA()) ->  | AS15: =IF(AND(AM2=TRUE,AL15+AM15+AN15<>0),AP15*0.866*K2,NA()) ->  | BA15: =IF(AND(AV2=TRUE,AU15+AV15+AW15<>0),(AX15+(AY15*0.5)),NA()) ->  | BB15: =IF(AND(AV2=TRUE,AU15+AV15+AW15<>0),AY15*0.866*K2,NA()) -> 
D16: 0.6 | E16: =0*K2 -> 0 | F16: =IF(G2=TRUE,D16,NA()) ->  | G16: =IF(G2=TRUE,E16,NA()) ->  | N16: 0.55 | O16: =0.7794*K2 -> 0.7794 | P16: =IF(Q2=TRUE,N16,NA()) ->  | Q16: =IF(Q2=TRUE,O16,NA()) ->  | Y16: 0.8 | Z16: =0.3464*K2 -> 0.3464 | AA16: =IF(AA2=TRUE, Y16,NA()) ->  | AB16: =IF(AA2=TRUE, Z16,NA()) ->  | AC16: =IF(AA1=TRUE, Y16,NA()) ->  | AD16: =IF(AA1=TRUE,Z16,NA()) ->  | AR16: =IF(AND(AM2=TRUE,AL16+AM16+AN16<>0),(AO16+(AP16*0.5)),NA()) ->  | AS16: =IF(AND(AM2=TRUE,AL16+AM16+AN16<>0),AP16*0.866*K2,NA()) ->  | BA16: =IF(AND(AV2=TRUE,AU16+AV16+AW16<>0),(AX16+(AY16*0.5)),NA()) ->  | BB16: =IF(AND(AV2=TRUE,AU16+AV16+AW16<>0),AY16*0.866*K2,NA()) -> 
D17: 0.7 | E17: =0*K2 -> 0 | F17: =IF(G2=TRUE,D17,NA()) ->  | G17: =IF(G2=TRUE,E17,NA()) ->  | I17: 10%-Ticks | K17: show?: | L17: FALSE | Y17: 0.75 | Z17: =0.433*K2 -> 0.433 | AA17: =IF(AA2=TRUE, Y17,NA()) ->  | AB17: =IF(AA2=TRUE, Z17,NA()) ->  | AR17: =IF(AND(AM2=TRUE,AL17+AM17+AN17<>0),(AO17+(AP17*0.5)),NA()) ->  | AS17: =IF(AND(AM2=TRUE,AL17+AM17+AN17<>0),AP17*0.866*K2,NA()) ->  | BA17: =IF(AND(AV2=TRUE,AU17+AV17+AW17<>0),(AX17+(AY17*0.5)),NA()) ->  | BB17: =IF(AND(AV2=TRUE,AU17+AV17+AW17<>0),AY17*0.866*K2,NA()) -> 
D18: 0.85 | E18: =0.2598*K2 -> 0.2598 | F18: =IF(G2=TRUE,D18,NA()) ->  | G18: =IF(G2=TRUE,E18,NA()) ->  | I18: 10%-ticks: all | N18: 0.9 | O18: =0*K2 -> 0 | P18: =IF(Q2=TRUE,N18,NA()) ->  | Q18: =IF(Q2=TRUE,O18,NA()) ->  | Y18: 0.7 | Z18: =0.5196*K2 -> 0.5196 | AA18: =IF(AA2=TRUE, Y18,NA()) ->  | AB18: =IF(AA2=TRUE, Z18,NA()) ->  | AC18: =IF(AA1=TRUE, Y18,NA()) ->  | AD18: =IF(AA1=TRUE,Z18,NA()) ->  | AR18: =IF(AND(AM2=TRUE,AL18+AM18+AN18<>0),(AO18+(AP18*0.5)),NA()) ->  | AS18: =IF(AND(AM2=TRUE,AL18+AM18+AN18<>0),AP18*0.866*K2,NA()) ->  | BA18: =IF(AND(AV2=TRUE,AU18+AV18+AW18<>0),(AX18+(AY18*0.5)),NA()) ->  | BB18: =IF(AND(AV2=TRUE,AU18+AV18+AW18<>0),AY18*0.866*K2,NA()) -> 
D19: 0.9 | E19: =0.1732*K2 -> 0.1732 | F19: =IF(G2=TRUE,D19,NA()) ->  | G19: =IF(G2=TRUE,E19,NA()) ->  | I19: x | J19: y | K19: x | L19: y | N19: 0.85 | O19: =0.0866*K2 -> 0.0866 | P19: =IF(Q2=TRUE,N19,NA()) ->  | Q19: =IF(Q2=TRUE,O19,NA()) ->  | Y19: 0.65 | Z19: =0.6062*K2 -> 0.6062 | AA19: =IF(AA2=TRUE, Y19,NA()) ->  | AB19: =IF(AA2=TRUE, Z19,NA()) ->  | AR19: =IF(AND(AM2=TRUE,AL19+AM19+AN19<>0),(AO19+(AP19*0.5)),NA()) ->  | AS19: =IF(AND(AM2=TRUE,AL19+AM19+AN19<>0),AP19*0.866*K2,NA()) ->  | BA19: =IF(AND(AV2=TRUE,AU19+AV19+AW19<>0),(AX19+(AY19*0.5)),NA()) ->  | BB19: =IF(AND(AV2=TRUE,AU19+AV19+AW19<>0),AY19*0.866*K2,NA()) -> 
D20: 0.8 | E20: =0*K2 -> 0 | F20: =IF(G2=TRUE,D20,NA()) ->  | G20: =IF(G2=TRUE,E20,NA()) ->  | I20: 0 | J20: =0*K2 -> 0 | K20: =IF(L17=TRUE,I20,NA()) ->  | L20: =IF(L17=TRUE,J20,NA()) ->  | Y20: 0.6 | Z20: =0.6928*K2 -> 0.6928 | AA20: =IF(AA2=TRUE, Y20,NA()) ->  | AB20: =IF(AA2=TRUE, Z20,NA()) ->  | AC20: =IF(AA1=TRUE, Y20,NA()) ->  | AD20: =IF(AA1=TRUE,Z20,NA()) ->  | AR20: =IF(AND(AM2=TRUE,AL20+AM20+AN20<>0),(AO20+(AP20*0.5)),NA()) ->  | AS20: =IF(AND(AM2=TRUE,AL20+AM20+AN20<>0),AP20*0.866*K2,NA()) ->  | BA20: =IF(AND(AV2=TRUE,AU20+AV20+AW20<>0),(AX20+(AY20*0.5)),NA()) ->  | BB20: =IF(AND(AV2=TRUE,AU20+AV20+AW20<>0),AY20*0.866*K2,NA()) -> 
D21: 0.9 | E21: =0*K2 -> 0 | F21: =IF(G2=TRUE,D21,NA()) ->  | G21: =IF(G2=TRUE,E21,NA()) ->  | I21: 0.1 | J21: =0*K2 -> 0 | K21: =IF(L17=TRUE,I21,NA()) ->  | L21: =IF(L17=TRUE,J21,NA()) ->  | N21: 0.7 | O21: =0*K2 -> 0 | P21: =IF(Q2=TRUE,N21,NA()) ->  | Q21: =IF(Q2=TRUE,O21,NA()) ->  | Y21: 0.55 | Z21: =0.7794*K2 -> 0.7794 | AA21: =IF(AA2=TRUE, Y21,NA()) ->  | AB21: =IF(AA2=TRUE, Z21,NA()) ->  | AR21: =IF(AND(AM2=TRUE,AL21+AM21+AN21<>0),(AO21+(AP21*0.5)),NA()) ->  | AS21: =IF(AND(AM2=TRUE,AL21+AM21+AN21<>0),AP21*0.866*K2,NA()) ->  | BA21: =IF(AND(AV2=TRUE,AU21+AV21+AW21<>0),(AX21+(AY21*0.5)),NA()) ->  | BB21: =IF(AND(AV2=TRUE,AU21+AV21+AW21<>0),AY21*0.866*K2,NA()) -> 
D22: 0.95 | E22: =0.0866*K2 -> 0.0866 | F22: =IF(G2=TRUE,D22,NA()) ->  | G22: =IF(G2=TRUE,E22,NA()) ->  | I22: 0.087 | J22: =0.02*K2 -> 0.02 | K22: =IF(L17=TRUE,I22,NA()) ->  | L22: =IF(L17=TRUE,J22,NA()) ->  | N22: 0.681 | O22: =0.0866*K2 -> 0.0866 | P22: =IF(Q2=TRUE,N22,NA()) ->  | Q22: =IF(Q2=TRUE,O22,NA()) ->  | Y22: 0.45 | Z22: =0.7794*K2 -> 0.7794 | AA22: =IF(AA2=TRUE, Y22,NA()) ->  | AB22: =IF(AA2=TRUE, Z22,NA()) ->  | AR22: =IF(AND(AM2=TRUE,AL22+AM22+AN22<>0),(AO22+(AP22*0.5)),NA()) ->  | AS22: =IF(AND(AM2=TRUE,AL22+AM22+AN22<>0),AP22*0.866*K2,NA()) ->  | BA22: =IF(AND(AV2=TRUE,AU22+AV22+AW22<>0),(AX22+(AY22*0.5)),NA()) ->  | BB22: =IF(AND(AV2=TRUE,AU22+AV22+AW22<>0),AY22*0.866*K2,NA()) -> 
D23: 0.05 | E23: =0.0866*K2 -> 0.0866 | F23: =IF(G2=TRUE,D23,NA()) ->  | G23: =IF(G2=TRUE,E23,NA()) ->  | I23: 0.1 | J23: =0*K2 -> 0 | K23: =IF(L17=TRUE,I23,NA()) ->  | L23: =IF(L17=TRUE,J23,NA()) ->  | Y23: 0.4 | Z23: =0.6928*K2 -> 0.6928 | AA23: =IF(AA2=TRUE, Y23,NA()) ->  | AB23: =IF(AA2=TRUE, Z23,NA()) ->  | AC23: =IF(AA1=TRUE, Y23,NA()) ->  | AD23: =IF(AA1=TRUE,Z23,NA()) ->  | AR23: =IF(AND(AM2=TRUE,AL23+AM23+AN23<>0),(AO23+(AP23*0.5)),NA()) ->  | AS23: =IF(AND(AM2=TRUE,AL23+AM23+AN23<>0),AP23*0.866*K2,NA()) ->  | BA23: =IF(AND(AV2=TRUE,AU23+AV23+AW23<>0),(AX23+(AY23*0.5)),NA()) ->  | BB23: =IF(AND(AV2=TRUE,AU23+AV23+AW23<>0),AY23*0.866*K2,NA()) -> 
D24: 0.1 | E24: =0.1732*K2 -> 0.1732 | F24: =IF(G2=TRUE,D24,NA()) ->  | G24: =IF(G2=TRUE,E24,NA()) ->  | I24: 0.113 | J24: =0.02*K2 -> 0.02 | K24: =IF(L17=TRUE,I24,NA()) ->  | L24: =IF(L17=TRUE,J24,NA()) ->  | N24: 0.5 | O24: =0*K2 -> 0 | P24: =IF(Q2=TRUE,N24,NA()) ->  | Q24: =IF(Q2=TRUE,O24,NA()) ->  | Y24: 0.35 | Z24: =0.6062*K2 -> 0.6062 | AA24: =IF(AA2=TRUE, Y24,NA()) ->  | AB24: =IF(AA2=TRUE, Z24,NA()) ->  | AR24: =IF(AND(AM2=TRUE,AL24+AM24+AN24<>0),(AO24+(AP24*0.5)),NA()) ->  | AS24: =IF(AND(AM2=TRUE,AL24+AM24+AN24<>0),AP24*0.866*K2,NA()) ->  | BA24: =IF(AND(AV2=TRUE,AU24+AV24+AW24<>0),(AX24+(AY24*0.5)),NA()) ->  | BB24: =IF(AND(AV2=TRUE,AU24+AV24+AW24<>0),AY24*0.866*K2,NA()) -> 
D25: 0.9 | E25: =0.1732*K2 -> 0.1732 | F25: =IF(G2=TRUE,D25,NA()) ->  | G25: =IF(G2=TRUE,E25,NA()) ->  | I25: 0.1 | J25: =0*K2 -> 0 | K25: =IF(L17=TRUE,I25,NA()) ->  | L25: =IF(L17=TRUE,J25,NA()) ->  | N25: 0.5 | O25: =0.0866*K2 -> 0.0866 | P25: =IF(Q2=TRUE,N25,NA()) ->  | Q25: =IF(Q2=TRUE,O25,NA()) ->  | Y25: 0.3 | Z25: =0.5196*K2 -> 0.5196 | AA25: =IF(AA2=TRUE, Y25,NA()) ->  | AB25: =IF(AA2=TRUE, Z25,NA()) ->  | AC25: =IF(AA1=TRUE, Y25,NA()) ->  | AD25: =IF(AA1=TRUE,Z25,NA()) ->  | AR25: =IF(AND(AM2=TRUE,AL25+AM25+AN25<>0),(AO25+(AP25*0.5)),NA()) ->  | AS25: =IF(AND(AM2=TRUE,AL25+AM25+AN25<>0),AP25*0.866*K2,NA()) ->  | BA25: =IF(AND(AV2=TRUE,AU25+AV25+AW25<>0),(AX25+(AY25*0.5)),NA()) ->  | BB25: =IF(AND(AV2=TRUE,AU25+AV25+AW25<>0),AY25*0.866*K2,NA()) -> 
D26: 0.85 | E26: =0.2598*K2 -> 0.2598 | F26: =IF(G2=TRUE,D26,NA()) ->  | G26: =IF(G2=TRUE,E26,NA()) ->  | I26: 0.2 | J26: =0*K2 -> 0 | K26: =IF(L17=TRUE,I26,NA()) ->  | L26: =IF(L17=TRUE,J26,NA()) ->  | Y26: 0.25 | Z26: =0.433*K2 -> 0.433 | AA26: =IF(AA2=TRUE, Y26,NA()) ->  | AB26: =IF(AA2=TRUE, Z26,NA()) ->  | AR26: =IF(AND(AM2=TRUE,AL26+AM26+AN26<>0),(AO26+(AP26*0.5)),NA()) ->  | AS26: =IF(AND(AM2=TRUE,AL26+AM26+AN26<>0),AP26*0.866*K2,NA()) ->  | BA26: =IF(AND(AV2=TRUE,AU26+AV26+AW26<>0),(AX26+(AY26*0.5)),NA()) ->  | BB26: =IF(AND(AV2=TRUE,AU26+AV26+AW26<>0),AY26*0.866*K2,NA()) -> 
D27: 0.15 | E27: =0.2598*K2 -> 0.2598 | F27: =IF(G2=TRUE,D27,NA()) ->  | G27: =IF(G2=TRUE,E27,NA()) ->  | I27: 0.187 | J27: =0.02*K2 -> 0.02 | K27: =IF(L17=TRUE,I27,NA()) ->  | L27: =IF(L17=TRUE,J27,NA()) ->  | N27: 0.3 | O27: =0*K2 -> 0 | P27: =IF(Q2=TRUE,N27,NA()) ->  | Q27: =IF(Q2=TRUE,O27,NA()) ->  | Y27: 0.2 | Z27: =0.3464*K2 -> 0.3464 | AA27: =IF(AA2=TRUE, Y27,NA()) ->  | AB27: =IF(AA2=TRUE, Z27,NA()) ->  | AC27: =IF(AA1=TRUE, Y27,NA()) ->  | AD27: =IF(AA1=TRUE,Z27,NA()) ->  | AR27: =IF(AND(AM2=TRUE,AL27+AM27+AN27<>0),(AO27+(AP27*0.5)),NA()) ->  | AS27: =IF(AND(AM2=TRUE,AL27+AM27+AN27<>0),AP27*0.866*K2,NA()) ->  | BA27: =IF(AND(AV2=TRUE,AU27+AV27+AW27<>0),(AX27+(AY27*0.5)),NA()) ->  | BB27: =IF(AND(AV2=TRUE,AU27+AV27+AW27<>0),AY27*0.866*K2,NA()) -> 
D28: 0.2 | E28: =0.3464*K2 -> 0.3464 | F28: =IF(G2=TRUE,D28,NA()) ->  | G28: =IF(G2=TRUE,E28,NA()) ->  | I28: 0.2 | J28: =0*K2 -> 0 | K28: =IF(L17=TRUE,I28,NA()) ->  | L28: =IF(L17=TRUE,J28,NA()) ->  | N28: 0.333 | O28: =0.11258*K2 -> 0.11258 | P28: =IF(Q2=TRUE,N28,NA()) ->  | Q28: =IF(Q2=TRUE,O28,NA()) ->  | Y28: 0.15 | Z28: =0.2598*K2 -> 0.2598 | AA28: =IF(AA2=TRUE, Y28,NA()) ->  | AB28: =IF(AA2=TRUE, Z28,NA()) ->  | AR28: =IF(AND(AM2=TRUE,AL28+AM28+AN28<>0),(AO28+(AP28*0.5)),NA()) ->  | AS28: =IF(AND(AM2=TRUE,AL28+AM28+AN28<>0),AP28*0.866*K2,NA()) ->  | BA28: =IF(AND(AV2=TRUE,AU28+AV28+AW28<>0),(AX28+(AY28*0.5)),NA()) ->  | BB28: =IF(AND(AV2=TRUE,AU28+AV28+AW28<>0),AY28*0.866*K2,NA()) -> 
D29: 0.8 | E29: =0.3464*K2 -> 0.3464 | F29: =IF(G2=TRUE,D29,NA()) ->  | G29: =IF(G2=TRUE,E29,NA()) ->  | I29: 0.213 | J29: =0.02*K2 -> 0.02 | K29: =IF(L17=TRUE,I29,NA()) ->  | L29: =IF(L17=TRUE,J29,NA()) ->  | Y29: 0.1 | Z29: =0.1732*K2 -> 0.1732 | AA29: =IF(AA2=TRUE, Y29,NA()) ->  | AB29: =IF(AA2=TRUE, Z29,NA()) ->  | AC29: =IF(AA1=TRUE, Y29,NA()) ->  | AD29: =IF(AA1=TRUE,Z29,NA()) ->  | AR29: =IF(AND(AM2=TRUE,AL29+AM29+AN29<>0),(AO29+(AP29*0.5)),NA()) ->  | AS29: =IF(AND(AM2=TRUE,AL29+AM29+AN29<>0),AP29*0.866*K2,NA()) ->  | BA29: =IF(AND(AV2=TRUE,AU29+AV29+AW29<>0),(AX29+(AY29*0.5)),NA()) ->  | BB29: =IF(AND(AV2=TRUE,AU29+AV29+AW29<>0),AY29*0.866*K2,NA()) -> 
D30: 0.75 | E30: =0.433*K2 -> 0.433 | F30: =IF(G2=TRUE,D30,NA()) ->  | G30: =IF(G2=TRUE,E30,NA()) ->  | I30: 0.2 | J30: =0*K2 -> 0 | K30: =IF(L17=TRUE,I30,NA()) ->  | L30: =IF(L17=TRUE,J30,NA()) ->  | N30: 0.1 | O30: =0*K2 -> 0 | P30: =IF(Q2=TRUE,N30,NA()) ->  | Q30: =IF(Q2=TRUE,O30,NA()) ->  | Y30: 0.05 | Z30: =0.0866*K2 -> 0.0866 | AA30: =IF(AA2=TRUE, Y30,NA()) ->  | AB30: =IF(AA2=TRUE, Z30,NA()) ->  | AR30: =IF(AND(AM2=TRUE,AL30+AM30+AN30<>0),(AO30+(AP30*0.5)),NA()) ->  | AS30: =IF(AND(AM2=TRUE,AL30+AM30+AN30<>0),AP30*0.866*K2,NA()) ->  | BA30: =IF(AND(AV2=TRUE,AU30+AV30+AW30<>0),(AX30+(AY30*0.5)),NA()) ->  | BB30: =IF(AND(AV2=TRUE,AU30+AV30+AW30<>0),AY30*0.866*K2,NA()) -> 
D31: 0.25 | E31: =0.433*K2 -> 0.433 | F31: =IF(G2=TRUE,D31,NA()) ->  | G31: =IF(G2=TRUE,E31,NA()) ->  | I31: 0.3 | J31: =0*K2 -> 0 | K31: =IF(L17=TRUE,I31,NA()) ->  | L31: =IF(L17=TRUE,J31,NA()) ->  | N31: 0.1385 | O31: =0.07794*K2 -> 0.07794 | P31: =IF(Q2=TRUE,N31,NA()) ->  | Q31: =IF(Q2=TRUE,O31,NA()) ->  | AR31: =IF(AND(AM2=TRUE,AL31+AM31+AN31<>0),(AO31+(AP31*0.5)),NA()) ->  | AS31: =IF(AND(AM2=TRUE,AL31+AM31+AN31<>0),AP31*0.866*K2,NA()) ->  | BA31: =IF(AND(AV2=TRUE,AU31+AV31+AW31<>0),(AX31+(AY31*0.5)),NA()) ->  | BB31: =IF(AND(AV2=TRUE,AU31+AV31+AW31<>0),AY31*0.866*K2,NA()) -> 
D32: 0.3 | E32: =0.5196*K2 -> 0.5196 | F32: =IF(G2=TRUE,D32,NA()) ->  | G32: =IF(G2=TRUE,E32,NA()) ->  | I32: 0.287 | J32: =0.02*K2 -> 0.02 | K32: =IF(L17=TRUE,I32,NA()) ->  | L32: =IF(L17=TRUE,J32,NA()) ->  | AR32: =IF(AND(AM2=TRUE,AL32+AM32+AN32<>0),(AO32+(AP32*0.5)),NA()) ->  | AS32: =IF(AND(AM2=TRUE,AL32+AM32+AN32<>0),AP32*0.866*K2,NA()) ->  | BA32: =IF(AND(AV2=TRUE,AU32+AV32+AW32<>0),(AX32+(AY32*0.5)),NA()) ->  | BB32: =IF(AND(AV2=TRUE,AU32+AV32+AW32<>0),AY32*0.866*K2,NA()) -> 
D33: 0.7 | E33: =0.5196*K2 -> 0.5196 | F33: =IF(G2=TRUE,D33,NA()) ->  | G33: =IF(G2=TRUE,E33,NA()) ->  | I33: 0.3 | J33: =0*K2 -> 0 | K33: =IF(L17=TRUE,I33,NA()) ->  | L33: =IF(L17=TRUE,J33,NA()) ->  | N33: 0.19 | O33: =0.32042*K2 -> 0.32042 | P33: =IF(Q2=TRUE,N33,NA()) ->  | Q33: =IF(Q2=TRUE,O33,NA()) ->  | AR33: =IF(AND(AM2=TRUE,AL33+AM33+AN33<>0),(AO33+(AP33*0.5)),NA()) ->  | AS33: =IF(AND(AM2=TRUE,AL33+AM33+AN33<>0),AP33*0.866*K2,NA()) ->  | BA33: =IF(AND(AV2=TRUE,AU33+AV33+AW33<>0),(AX33+(AY33*0.5)),NA()) ->  | BB33: =IF(AND(AV2=TRUE,AU33+AV33+AW33<>0),AY33*0.866*K2,NA()) -> 
D34: 0.65 | E34: =0.6062*K2 -> 0.6062 | F34: =IF(G2=TRUE,D34,NA()) ->  | G34: =IF(G2=TRUE,E34,NA()) ->  | I34: 0.313 | J34: =0.02*K2 -> 0.02 | K34: =IF(L17=TRUE,I34,NA()) ->  | L34: =IF(L17=TRUE,J34,NA()) ->  | N34: 0.28 | O34: =0.28712*K2 -> 0.28712 | P34: =IF(Q2=TRUE,N34,NA()) ->  | Q34: =IF(Q2=TRUE,O34,NA()) ->  | AR34: =IF(AND(AM2=TRUE,AL34+AM34+AN34<>0),(AO34+(AP34*0.5)),NA()) ->  | AS34: =IF(AND(AM2=TRUE,AL34+AM34+AN34<>0),AP34*0.866*K2,NA()) ->  | BA34: =IF(AND(AV2=TRUE,AU34+AV34+AW34<>0),(AX34+(AY34*0.5)),NA()) ->  | BB34: =IF(AND(AV2=TRUE,AU34+AV34+AW34<>0),AY34*0.866*K2,NA()) -> 
D35: 0.35 | E35: =0.6062*K2 -> 0.6062 | F35: =IF(G2=TRUE,D35,NA()) ->  | G35: =IF(G2=TRUE,E35,NA()) ->  | I35: 0.3 | J35: =0*K2 -> 0 | K35: =IF(L17=TRUE,I35,NA()) ->  | L35: =IF(L17=TRUE,J35,NA()) ->  | AR35: =IF(AND(AM2=TRUE,AL35+AM35+AN35<>0),(AO35+(AP35*0.5)),NA()) ->  | AS35: =IF(AND(AM2=TRUE,AL35+AM35+AN35<>0),AP35*0.866*K2,NA()) ->  | BA35: =IF(AND(AV2=TRUE,AU35+AV35+AW35<>0),(AX35+(AY35*0.5)),NA()) ->  | BB35: =IF(AND(AV2=TRUE,AU35+AV35+AW35<>0),AY35*0.866*K2,NA()) -> 
D36: 0.4 | E36: =0.6928*K2 -> 0.6928 | F36: =IF(G2=TRUE,D36,NA()) ->  | G36: =IF(G2=TRUE,E36,NA()) ->  | I36: 0.4 | J36: =0*K2 -> 0 | K36: =IF(L17=TRUE,I36,NA()) ->  | L36: =IF(L17=TRUE,J36,NA()) ->  | N36: 0.05 | O36: =0.0866*K2 -> 0.0866 | P36: =IF(Q2=TRUE,N36,NA()) ->  | Q36: =IF(Q2=TRUE,O36,NA()) ->  | AR36: =IF(AND(AM2=TRUE,AL36+AM36+AN36<>0),(AO36+(AP36*0.5)),NA()) ->  | AS36: =IF(AND(AM2=TRUE,AL36+AM36+AN36<>0),AP36*0.866*K2,NA()) ->  | BA36: =IF(AND(AV2=TRUE,AU36+AV36+AW36<>0),(AX36+(AY36*0.5)),NA()) ->  | BB36: =IF(AND(AV2=TRUE,AU36+AV36+AW36<>0),AY36*0.866*K2,NA()) -> 
D37: 0.6 | E37: =0.6928*K2 -> 0.6928 | F37: =IF(G2=TRUE,D37,NA()) ->  | G37: =IF(G2=TRUE,E37,NA()) ->  | I37: 0.387 | J37: =0.02*K2 -> 0.02 | K37: =IF(L17=TRUE,I37,NA()) ->  | L37: =IF(L17=TRUE,J37,NA()) ->  | N37: 0.1385 | O37: =0.07794*K2 -> 0.07794 | P37: =IF(Q2=TRUE,N37,NA()) ->  | Q37: =IF(Q2=TRUE,O37,NA()) ->  | AR37: =IF(AND(AM2=TRUE,AL37+AM37+AN37<>0),(AO37+(AP37*0.5)),NA()) ->  | AS37: =IF(AND(AM2=TRUE,AL37+AM37+AN37<>0),AP37*0.866*K2,NA()) ->  | BA37: =IF(AND(AV2=TRUE,AU37+AV37+AW37<>0),(AX37+(AY37*0.5)),NA()) ->  | BB37: =IF(AND(AV2=TRUE,AU37+AV37+AW37<>0),AY37*0.866*K2,NA()) -> 
D38: 0.55 | E38: =0.7794*K2 -> 0.7794 | F38: =IF(G2=TRUE,D38,NA()) ->  | G38: =IF(G2=TRUE,E38,NA()) ->  | I38: 0.4 | J38: =0*K2 -> 0 | K38: =IF(L17=TRUE,I38,NA()) ->  | L38: =IF(L17=TRUE,J38,NA()) ->  | AR38: =IF(AND(AM2=TRUE,AL38+AM38+AN38<>0),(AO38+(AP38*0.5)),NA()) ->  | AS38: =IF(AND(AM2=TRUE,AL38+AM38+AN38<>0),AP38*0.866*K2,NA()) ->  | BA38: =IF(AND(AV2=TRUE,AU38+AV38+AW38<>0),(AX38+(AY38*0.5)),NA()) ->  | BB38: =IF(AND(AV2=TRUE,AU38+AV38+AW38<>0),AY38*0.866*K2,NA()) -> 
D39: 0.45 | E39: =0.7794*K2 -> 0.7794 | F39: =IF(G2=TRUE,D39,NA()) ->  | G39: =IF(G2=TRUE,E39,NA()) ->  | I39: 0.413 | J39: =0.02*K2 -> 0.02 | K39: =IF(L17=TRUE,I39,NA()) ->  | L39: =IF(L17=TRUE,J39,NA()) ->  | N39: 0.1385 | O39: =0.07794*K2 -> 0.07794 | P39: =IF(Q2=TRUE,N39,NA()) ->  | Q39: =IF(Q2=TRUE,O39,NA()) ->  | AR39: =IF(AND(AM2=TRUE,AL39+AM39+AN39<>0),(AO39+(AP39*0.5)),NA()) ->  | AS39: =IF(AND(AM2=TRUE,AL39+AM39+AN39<>0),AP39*0.866*K2,NA()) ->  | BA39: =IF(AND(AV2=TRUE,AU39+AV39+AW39<>0),(AX39+(AY39*0.5)),NA()) ->  | BB39: =IF(AND(AV2=TRUE,AU39+AV39+AW39<>0),AY39*0.866*K2,NA()) -> 
D40: 0.9 | E40: =0*K2 -> 0 | F40: =IF(G2=TRUE,D40,NA()) ->  | G40: =IF(G2=TRUE,E40,NA()) ->  | I40: 0.4 | J40: =0*K2 -> 0 | K40: =IF(L17=TRUE,I40,NA()) ->  | L40: =IF(L17=TRUE,J40,NA()) ->  | N40: 0.177 | O40: =0.0866*K2 -> 0.0866 | P40: =IF(Q2=TRUE,N40,NA()) ->  | Q40: =IF(Q2=TRUE,O40,NA()) ->  | AR40: =IF(AND(AM2=TRUE,AL40+AM40+AN40<>0),(AO40+(AP40*0.5)),NA()) ->  | AS40: =IF(AND(AM2=TRUE,AL40+AM40+AN40<>0),AP40*0.866*K2,NA()) ->  | BA40: =IF(AND(AV2=TRUE,AU40+AV40+AW40<>0),(AX40+(AY40*0.5)),NA()) ->  | BB40: =IF(AND(AV2=TRUE,AU40+AV40+AW40<>0),AY40*0.866*K2,NA()) -> 
D41: 0.8 | E41: =0*K2 -> 0 | F41: =IF(G2=TRUE,D41,NA()) ->  | G41: =IF(G2=TRUE,E41,NA()) ->  | I41: 0.5 | J41: =0*K2 -> 0 | K41: =IF(L17=TRUE,I41,NA()) ->  | L41: =IF(L17=TRUE,J41,NA()) ->  | N41: 0.333 | O41: =0.11258*K2 -> 0.11258 | P41: =IF(Q2=TRUE,N41,NA()) ->  | Q41: =IF(Q2=TRUE,O41,NA()) ->  | AR41: =IF(AND(AM2=TRUE,AL41+AM41+AN41<>0),(AO41+(AP41*0.5)),NA()) ->  | AS41: =IF(AND(AM2=TRUE,AL41+AM41+AN41<>0),AP41*0.866*K2,NA()) ->  | BA41: =IF(AND(AV2=TRUE,AU41+AV41+AW41<>0),(AX41+(AY41*0.5)),NA()) ->  | BB41: =IF(AND(AV2=TRUE,AU41+AV41+AW41<>0),AY41*0.866*K2,NA()) -> 
D42: 0.4 | E42: =0.6928*K2 -> 0.6928 | F42: =IF(G2=TRUE,D42,NA()) ->  | G42: =IF(G2=TRUE,E42,NA()) ->  | I42: 0.487 | J42: =0.02*K2 -> 0.02 | K42: =IF(L17=TRUE,I42,NA()) ->  | L42: =IF(L17=TRUE,J42,NA()) ->  | N42: 0.35 | O42: =0.11258*K2 -> 0.11258 | P42: =IF(Q2=TRUE,N42,NA()) ->  | Q42: =IF(Q2=TRUE,O42,NA()) ->  | AR42: =IF(AND(AM2=TRUE,AL42+AM42+AN42<>0),(AO42+(AP42*0.5)),NA()) ->  | AS42: =IF(AND(AM2=TRUE,AL42+AM42+AN42<>0),AP42*0.866*K2,NA()) ->  | BA42: =IF(AND(AV2=TRUE,AU42+AV42+AW42<>0),(AX42+(AY42*0.5)),NA()) ->  | BB42: =IF(AND(AV2=TRUE,AU42+AV42+AW42<>0),AY42*0.866*K2,NA()) -> 
D43: 0.35 | E43: =0.6062*K2 -> 0.6062 | F43: =IF(G2=TRUE,D43,NA()) ->  | G43: =IF(G2=TRUE,E43,NA()) ->  | I43: 0.5 | J43: =0*K2 -> 0 | K43: =IF(L17=TRUE,I43,NA()) ->  | L43: =IF(L17=TRUE,J43,NA()) ->  | AR43: =IF(AND(AM2=TRUE,AL43+AM43+AN43<>0),(AO43+(AP43*0.5)),NA()) ->  | AS43: =IF(AND(AM2=TRUE,AL43+AM43+AN43<>0),AP43*0.866*K2,NA()) ->  | BA43: =IF(AND(AV2=TRUE,AU43+AV43+AW43<>0),(AX43+(AY43*0.5)),NA()) ->  | BB43: =IF(AND(AV2=TRUE,AU43+AV43+AW43<>0),AY43*0.866*K2,NA()) -> 
D44: 0.7 | E44: =0*K2 -> 0 | F44: =IF(G2=TRUE,D44,NA()) ->  | G44: =IF(G2=TRUE,E44,NA()) ->  | I44: 0.513 | J44: =0.02*K2 -> 0.02 | K44: =IF(L17=TRUE,I44,NA()) ->  | L44: =IF(L17=TRUE,J44,NA()) ->  | AR44: =IF(AND(AM2=TRUE,AL44+AM44+AN44<>0),(AO44+(AP44*0.5)),NA()) ->  | AS44: =IF(AND(AM2=TRUE,AL44+AM44+AN44<>0),AP44*0.866*K2,NA()) ->  | BA44: =IF(AND(AV2=TRUE,AU44+AV44+AW44<>0),(AX44+(AY44*0.5)),NA()) ->  | BB44: =IF(AND(AV2=TRUE,AU44+AV44+AW44<>0),AY44*0.866*K2,NA()) -> 
D45: 0.6 | E45: =0*K2 -> 0 | F45: =IF(G2=TRUE,D45,NA()) ->  | G45: =IF(G2=TRUE,E45,NA()) ->  | I45: 0.5 | J45: =0*K2 -> 0 | K45: =IF(L17=TRUE,I45,NA()) ->  | L45: =IF(L17=TRUE,J45,NA()) ->  | AR45: =IF(AND(AM2=TRUE,AL45+AM45+AN45<>0),(AO45+(AP45*0.5)),NA()) ->  | AS45: =IF(AND(AM2=TRUE,AL45+AM45+AN45<>0),AP45*0.866*K2,NA()) ->  | BA45: =IF(AND(AV2=TRUE,AU45+AV45+AW45<>0),(AX45+(AY45*0.5)),NA()) ->  | BB45: =IF(AND(AV2=TRUE,AU45+AV45+AW45<>0),AY45*0.866*K2,NA()) -> 
D46: 0.3 | E46: =0.5196*K2 -> 0.5196 | F46: =IF(G2=TRUE,D46,NA()) ->  | G46: =IF(G2=TRUE,E46,NA()) ->  | I46: 0.6 | J46: =0*K2 -> 0 | K46: =IF(L17=TRUE,I46,NA()) ->  | L46: =IF(L17=TRUE,J46,NA()) ->  | AR46: =IF(AND(AM2=TRUE,AL46+AM46+AN46<>0),(AO46+(AP46*0.5)),NA()) ->  | AS46: =IF(AND(AM2=TRUE,AL46+AM46+AN46<>0),AP46*0.866*K2,NA()) ->  | BA46: =IF(AND(AV2=TRUE,AU46+AV46+AW46<>0),(AX46+(AY46*0.5)),NA()) ->  | BB46: =IF(AND(AV2=TRUE,AU46+AV46+AW46<>0),AY46*0.866*K2,NA()) -> 
D47: 0.25 | E47: =0.433*K2 -> 0.433 | F47: =IF(G2=TRUE,D47,NA()) ->  | G47: =IF(G2=TRUE,E47,NA()) ->  | I47: 0.587 | J47: =0.02*K2 -> 0.02 | K47: =IF(L17=TRUE,I47,NA()) ->  | L47: =IF(L17=TRUE,J47,NA()) ->  | AR47: =IF(AND(AM2=TRUE,AL47+AM47+AN47<>0),(AO47+(AP47*0.5)),NA()) ->  | AS47: =IF(AND(AM2=TRUE,AL47+AM47+AN47<>0),AP47*0.866*K2,NA()) ->  | BA47: =IF(AND(AV2=TRUE,AU47+AV47+AW47<>0),(AX47+(AY47*0.5)),NA()) ->  | BB47: =IF(AND(AV2=TRUE,AU47+AV47+AW47<>0),AY47*0.866*K2,NA()) -> 
D48: 0.5 | E48: =0*K2 -> 0 | F48: =IF(G2=TRUE,D48,NA()) ->  | G48: =IF(G2=TRUE,E48,NA()) ->  | I48: 0.6 | J48: =0*K2 -> 0 | K48: =IF(L17=TRUE,I48,NA()) ->  | L48: =IF(L17=TRUE,J48,NA()) ->  | AR48: =IF(AND(AM2=TRUE,AL48+AM48+AN48<>0),(AO48+(AP48*0.5)),NA()) ->  | AS48: =IF(AND(AM2=TRUE,AL48+AM48+AN48<>0),AP48*0.866*K2,NA()) ->  | BA48: =IF(AND(AV2=TRUE,AU48+AV48+AW48<>0),(AX48+(AY48*0.5)),NA()) ->  | BB48: =IF(AND(AV2=TRUE,AU48+AV48+AW48<>0),AY48*0.866*K2,NA()) -> 
D49: 0.4 | E49: =0*K2 -> 0 | F49: =IF(G2=TRUE,D49,NA()) ->  | G49: =IF(G2=TRUE,E49,NA()) ->  | I49: 0.613 | J49: =0.02*K2 -> 0.02 | K49: =IF(L17=TRUE,I49,NA()) ->  | L49: =IF(L17=TRUE,J49,NA()) ->  | AR49: =IF(AND(AM2=TRUE,AL49+AM49+AN49<>0),(AO49+(AP49*0.5)),NA()) ->  | AS49: =IF(AND(AM2=TRUE,AL49+AM49+AN49<>0),AP49*0.866*K2,NA()) ->  | BA49: =IF(AND(AV2=TRUE,AU49+AV49+AW49<>0),(AX49+(AY49*0.5)),NA()) ->  | BB49: =IF(AND(AV2=TRUE,AU49+AV49+AW49<>0),AY49*0.866*K2,NA()) -> 
D50: 0.2 | E50: =0.3464*K2 -> 0.3464 | F50: =IF(G2=TRUE,D50,NA()) ->  | G50: =IF(G2=TRUE,E50,NA()) ->  | I50: 0.6 | J50: =0*K2 -> 0 | K50: =IF(L17=TRUE,I50,NA()) ->  | L50: =IF(L17=TRUE,J50,NA()) ->  | AQ50: =AN50/(AL50+AM50+AN50) ->  | AR50: =IF(AND(AM2=TRUE,AL50+AM50+AN50<>0),(AO50+(AP50*0.5)),NA()) ->  | AS50: =IF(AND(AM2=TRUE,AL50+AM50+AN50<>0),AP50*0.866*K2,NA()) ->  | BA50: =IF(AND(AV2=TRUE,AU50+AV50+AW50<>0),(AX50+(AY50*0.5)),NA()) ->  | BB50: =IF(AND(AV2=TRUE,AU50+AV50+AW50<>0),AY50*0.866*K2,NA()) -> 
D51: 0.15 | E51: =0.2598*K2 -> 0.2598 | F51: =IF(G2=TRUE,D51,NA()) ->  | G51: =IF(G2=TRUE,E51,NA()) ->  | I51: 0.7 | J51: =0*K2 -> 0 | K51: =IF(L17=TRUE,I51,NA()) ->  | L51: =IF(L17=TRUE,J51,NA()) -> 
D52: 0.3 | E52: =0*K2 -> 0 | F52: =IF(G2=TRUE,D52,NA()) ->  | G52: =IF(G2=TRUE,E52,NA()) ->  | I52: 0.687 | J52: =0.02*K2 -> 0.02 | K52: =IF(L17=TRUE,I52,NA()) ->  | L52: =IF(L17=TRUE,J52,NA()) -> 
D53: 0.2 | E53: =0*K2 -> 0 | F53: =IF(G2=TRUE,D53,NA()) ->  | G53: =IF(G2=TRUE,E53,NA()) ->  | I53: 0.7 | J53: =0*K2 -> 0 | K53: =IF(L17=TRUE,I53,NA()) ->  | L53: =IF(L17=TRUE,J53,NA()) -> 
D54: 0.1 | E54: =0.1732*K2 -> 0.1732 | F54: =IF(G2=TRUE,D54,NA()) ->  | G54: =IF(G2=TRUE,E54,NA()) ->  | I54: 0.713 | J54: =0.02*K2 -> 0.02 | K54: =IF(L17=TRUE,I54,NA()) ->  | L54: =IF(L17=TRUE,J54,NA()) -> 
D55: 0.05 | E55: =0.0866*K2 -> 0.0866 | F55: =IF(G2=TRUE,D55,NA()) ->  | G55: =IF(G2=TRUE,E55,NA()) ->  | I55: 0.7 | J55: =0*K2 -> 0 | K55: =IF(L17=TRUE,I55,NA()) ->  | L55: =IF(L17=TRUE,J55,NA()) -> 
D56: 0.1 | E56: =0*K2 -> 0 | F56: =IF(G2=TRUE,D56,NA()) ->  | G56: =IF(G2=TRUE,E56,NA()) ->  | I56: 0.8 | J56: =0*K2 -> 0 | K56: =IF(L17=TRUE,I56,NA()) ->  | L56: =IF(L17=TRUE,J56,NA()) -> 
I57: 0.787 | J57: =0.02*K2 -> 0.02 | K57: =IF(L17=TRUE,I57,NA()) ->  | L57: =IF(L17=TRUE,J57,NA()) -> 
I58: 0.8 | J58: =0*K2 -> 0 | K58: =IF(L17=TRUE,I58,NA()) ->  | L58: =IF(L17=TRUE,J58,NA()) -> 
I59: 0.813 | J59: =0.02*K2 -> 0.02 | K59: =IF(L17=TRUE,I59,NA()) ->  | L59: =IF(L17=TRUE,J59,NA()) -> 
I60: 0.8 | J60: =0*K2 -> 0 | K60: =IF(L17=TRUE,I60,NA()) ->  | L60: =IF(L17=TRUE,J60,NA()) -> 
I61: 0.9 | J61: =0*K2 -> 0 | K61: =IF(L17=TRUE,I61,NA()) ->  | L61: =IF(L17=TRUE,J61,NA()) -> 
I62: 0.887 | J62: =0.02*K2 -> 0.02 | K62: =IF(L17=TRUE,I62,NA()) ->  | L62: =IF(L17=TRUE,J62,NA()) -> 
I63: 0.9 | J63: =0*K2 -> 0 | K63: =IF(L17=TRUE,I63,NA()) ->  | L63: =IF(L17=TRUE,J63,NA()) -> 
I64: 0.913 | J64: =0.02*K2 -> 0.02 | K64: =IF(L17=TRUE,I64,NA()) ->  | L64: =IF(L17=TRUE,J64,NA()) -> 
I65: 0.9 | J65: =0*K2 -> 0 | K65: =IF(L17=TRUE,I65,NA()) ->  | L65: =IF(L17=TRUE,J65,NA()) -> 
I66: 1 | J66: =0*K2 -> 0 | K66: =IF(L17=TRUE,I66,NA()) ->  | L66: =IF(L17=TRUE,J66,NA()) -> 
I67: 0.95 | J67: =0.0866*K2 -> 0.0866 | K67: =IF(L17=TRUE,I67,NA()) ->  | L67: =IF(L17=TRUE,J67,NA()) -> 
I68: 0.9386 | J68: =0.0666*K2 -> 0.0666 | K68: =IF(L17=TRUE,I68,NA()) ->  | L68: =IF(L17=TRUE,J68,NA()) -> 
I69: 0.95 | J69: =0.0866*K2 -> 0.0866 | K69: =IF(L17=TRUE,I69,NA()) ->  | L69: =IF(L17=TRUE,J69,NA()) -> 
I70: 0.9266 | J70: =0.0866*K2 -> 0.0866 | K70: =IF(L17=TRUE,I70,NA()) ->  | L70: =IF(L17=TRUE,J70,NA()) -> 
I71: 0.95 | J71: =0.0866*K2 -> 0.0866 | K71: =IF(L17=TRUE,I71,NA()) ->  | L71: =IF(L17=TRUE,J71,NA()) -> 
I72: 0.9 | J72: =0.1732*K2 -> 0.1732 | K72: =IF(L17=TRUE,I72,NA()) ->  | L72: =IF(L17=TRUE,J72,NA()) -> 
I73: 0.8886 | J73: =0.1532*K2 -> 0.1532 | K73: =IF(L17=TRUE,I73,NA()) ->  | L73: =IF(L17=TRUE,J73,NA()) -> 
I74: 0.9 | J74: =0.1732*K2 -> 0.1732 | K74: =IF(L17=TRUE,I74,NA()) ->  | L74: =IF(L17=TRUE,J74,NA()) -> 
I75: 0.8766 | J75: =0.1732*K2 -> 0.1732 | K75: =IF(L17=TRUE,I75,NA()) ->  | L75: =IF(L17=TRUE,J75,NA()) -> 
I76: 0.9 | J76: =0.1732*K2 -> 0.1732 | K76: =IF(L17=TRUE,I76,NA()) ->  | L76: =IF(L17=TRUE,J76,NA()) -> 
I77: 0.85 | J77: =0.2598*K2 -> 0.2598 | K77: =IF(L17=TRUE,I77,NA()) ->  | L77: =IF(L17=TRUE,J77,NA()) -> 
I78: 0.8386 | J78: =0.2398*K2 -> 0.2398 | K78: =IF(L17=TRUE,I78,NA()) ->  | L78: =IF(L17=TRUE,J78,NA()) -> 
I79: 0.85 | J79: =0.2598*K2 -> 0.2598 | K79: =IF(L17=TRUE,I79,NA()) ->  | L79: =IF(L17=TRUE,J79,NA()) -> 
I80: 0.8266 | J80: =0.2598*K2 -> 0.2598 | K80: =IF(L17=TRUE,I80,NA()) ->  | L80: =IF(L17=TRUE,J80,NA()) -> 
I81: 0.85 | J81: =0.2598*K2 -> 0.2598 | K81: =IF(L17=TRUE,I81,NA()) ->  | L81: =IF(L17=TRUE,J81,NA()) -> 
I82: 0.8 | J82: =0.3464*K2 -> 0.3464 | K82: =IF(L17=TRUE,I82,NA()) ->  | L82: =IF(L17=TRUE,J82,NA()) -> 
I83: 0.7886 | J83: =0.3264*K2 -> 0.3264 | K83: =IF(L17=TRUE,I83,NA()) ->  | L83: =IF(L17=TRUE,J83,NA()) -> 
I84: 0.8 | J84: =0.3464*K2 -> 0.3464 | K84: =IF(L17=TRUE,I84,NA()) ->  | L84: =IF(L17=TRUE,J84,NA()) -> 
I85: 0.7766 | J85: =0.3464*K2 -> 0.3464 | K85: =IF(L17=TRUE,I85,NA()) ->  | L85: =IF(L17=TRUE,J85,NA()) -> 
I86: 0.8 | J86: =0.3464*K2 -> 0.3464 | K86: =IF(L17=TRUE,I86,NA()) ->  | L86: =IF(L17=TRUE,J86,NA()) -> 
I87: 0.75 | J87: =0.433*K2 -> 0.433 | K87: =IF(L17=TRUE,I87,NA()) ->  | L87: =IF(L17=TRUE,J87,NA()) -> 
I88: 0.7386 | J88: =0.413*K2 -> 0.413 | K88: =IF(L17=TRUE,I88,NA()) ->  | L88: =IF(L17=TRUE,J88,NA()) -> 
I89: 0.75 | J89: =0.433*K2 -> 0.433 | K89: =IF(L17=TRUE,I89,NA()) ->  | L89: =IF(L17=TRUE,J89,NA()) -> 
I90: 0.7266 | J90: =0.433*K2 -> 0.433 | K90: =IF(L17=TRUE,I90,NA()) ->  | L90: =IF(L17=TRUE,J90,NA()) -> 
I91: 0.75 | J91: =0.433*K2 -> 0.433 | K91: =IF(L17=TRUE,I91,NA()) ->  | L91: =IF(L17=TRUE,J91,NA()) -> 
I92: 0.7 | J92: =0.5196*K2 -> 0.5196 | K92: =IF(L17=TRUE,I92,NA()) ->  | L92: =IF(L17=TRUE,J92,NA()) -> 
I93: 0.6886 | J93: =0.4996*K2 -> 0.4996 | K93: =IF(L17=TRUE,I93,NA()) ->  | L93: =IF(L17=TRUE,J93,NA()) -> 
I94: 0.7 | J94: =0.5196*K2 -> 0.5196 | K94: =IF(L17=TRUE,I94,NA()) ->  | L94: =IF(L17=TRUE,J94,NA()) -> 
I95: 0.6766 | J95: =0.5196*K2 -> 0.5196 | K95: =IF(L17=TRUE,I95,NA()) ->  | L95: =IF(L17=TRUE,J95,NA()) -> 
I96: 0.7 | J96: =0.5196*K2 -> 0.5196 | K96: =IF(L17=TRUE,I96,NA()) ->  | L96: =IF(L17=TRUE,J96,NA()) -> 
I97: 0.65 | J97: =0.6062*K2 -> 0.6062 | K97: =IF(L17=TRUE,I97,NA()) ->  | L97: =IF(L17=TRUE,J97,NA()) -> 
I98: 0.6386 | J98: =0.5862*K2 -> 0.5862 | K98: =IF(L17=TRUE,I98,NA()) ->  | L98: =IF(L17=TRUE,J98,NA()) -> 
I99: 0.65 | J99: =0.6062*K2 -> 0.6062 | K99: =IF(L17=TRUE,I99,NA()) ->  | L99: =IF(L17=TRUE,J99,NA()) -> 
I100: 0.6266 | J100: =0.6062*K2 -> 0.6062 | K100: =IF(L17=TRUE,I100,NA()) ->  | L100: =IF(L17=TRUE,J100,NA()) -> 
I101: 0.65 | J101: =0.6062*K2 -> 0.6062 | K101: =IF(L17=TRUE,I101,NA()) ->  | L101: =IF(L17=TRUE,J101,NA()) -> 
I102: 0.6 | J102: =0.6928*K2 -> 0.6928 | K102: =IF(L17=TRUE,I102,NA()) ->  | L102: =IF(L17=TRUE,J102,NA()) -> 
I103: 0.5886 | J103: =0.6728*K2 -> 0.6728 | K103: =IF(L17=TRUE,I103,NA()) ->  | L103: =IF(L17=TRUE,J103,NA()) -> 
I104: 0.6 | J104: =0.6928*K2 -> 0.6928 | K104: =IF(L17=TRUE,I104,NA()) ->  | L104: =IF(L17=TRUE,J104,NA()) -> 
I105: 0.5766 | J105: =0.6928*K2 -> 0.6928 | K105: =IF(L17=TRUE,I105,NA()) ->  | L105: =IF(L17=TRUE,J105,NA()) -> 
I106: 0.6 | J106: =0.6928*K2 -> 0.6928 | K106: =IF(L17=TRUE,I106,NA()) ->  | L106: =IF(L17=TRUE,J106,NA()) -> 
I107: 0.55 | J107: =0.7794*K2 -> 0.7794 | K107: =IF(L17=TRUE,I107,NA()) ->  | L107: =IF(L17=TRUE,J107,NA()) -> 
I108: 0.5386 | J108: =0.7594*K2 -> 0.7594 | K108: =IF(L17=TRUE,I108,NA()) ->  | L108: =IF(L17=TRUE,J108,NA()) -> 
I109: 0.55 | J109: =0.7794*K2 -> 0.7794 | K109: =IF(L17=TRUE,I109,NA()) ->  | L109: =IF(L17=TRUE,J109,NA()) -> 
I110: 0.5266 | J110: =0.7794*K2 -> 0.7794 | K110: =IF(L17=TRUE,I110,NA()) ->  | L110: =IF(L17=TRUE,J110,NA()) -> 
I111: 0.55 | J111: =0.7794*K2 -> 0.7794 | K111: =IF(L17=TRUE,I111,NA()) ->  | L111: =IF(L17=TRUE,J111,NA()) -> 
I112: 0.5 | J112: =0.866*K2 -> 0.866 | K112: =IF(L17=TRUE,I112,NA()) ->  | L112: =IF(L17=TRUE,J112,NA()) -> 
I113: 0.45 | J113: =0.7794*K2 -> 0.7794 | K113: =IF(L17=TRUE,I113,NA()) ->  | L113: =IF(L17=TRUE,J113,NA()) -> 
I114: 0.4734 | J114: =0.7794*K2 -> 0.7794 | K114: =IF(L17=TRUE,I114,NA()) ->  | L114: =IF(L17=TRUE,J114,NA()) -> 
I115: 0.45 | J115: =0.7794*K2 -> 0.7794 | K115: =IF(L17=TRUE,I115,NA()) ->  | L115: =IF(L17=TRUE,J115,NA()) -> 
I116: 0.4614 | J116: =0.7594*K2 -> 0.7594 | K116: =IF(L17=TRUE,I116,NA()) ->  | L116: =IF(L17=TRUE,J116,NA()) -> 
I117: 0.45 | J117: =0.7794*K2 -> 0.7794 | K117: =IF(L17=TRUE,I117,NA()) ->  | L117: =IF(L17=TRUE,J117,NA()) -> 
I118: 0.4 | J118: =0.6928*K2 -> 0.6928 | K118: =IF(L17=TRUE,I118,NA()) ->  | L118: =IF(L17=TRUE,J118,NA()) -> 
I119: 0.4234 | J119: =0.6928*K2 -> 0.6928 | K119: =IF(L17=TRUE,I119,NA()) ->  | L119: =IF(L17=TRUE,J119,NA()) -> 
I120: 0.4 | J120: =0.6928*K2 -> 0.6928 | K120: =IF(L17=TRUE,I120,NA()) ->  | L120: =IF(L17=TRUE,J120,NA()) -> 
I121: 0.4114 | J121: =0.6728*K2 -> 0.6728 | K121: =IF(L17=TRUE,I121,NA()) ->  | L121: =IF(L17=TRUE,J121,NA()) -> 
I122: 0.4 | J122: =0.6928*K2 -> 0.6928 | K122: =IF(L17=TRUE,I122,NA()) ->  | L122: =IF(L17=TRUE,J122,NA()) -> 
I123: 0.35 | J123: =0.6062*K2 -> 0.6062 | K123: =IF(L17=TRUE,I123,NA()) ->  | L123: =IF(L17=TRUE,J123,NA()) -> 
I124: 0.3734 | J124: =0.6062*K2 -> 0.6062 | K124: =IF(L17=TRUE,I124,NA()) ->  | L124: =IF(L17=TRUE,J124,NA()) -> 
I125: 0.35 | J125: =0.6062*K2 -> 0.6062 | K125: =IF(L17=TRUE,I125,NA()) ->  | L125: =IF(L17=TRUE,J125,NA()) -> 
I126: 0.3614 | J126: =0.5862*K2 -> 0.5862 | K126: =IF(L17=TRUE,I126,NA()) ->  | L126: =IF(L17=TRUE,J126,NA()) -> 
I127: 0.35 | J127: =0.6062*K2 -> 0.6062 | K127: =IF(L17=TRUE,I127,NA()) ->  | L127: =IF(L17=TRUE,J127,NA()) -> 
I128: 0.3 | J128: =0.5196*K2 -> 0.5196 | K128: =IF(L17=TRUE,I128,NA()) ->  | L128: =IF(L17=TRUE,J128,NA()) -> 
I129: 0.3234 | J129: =0.5196*K2 -> 0.5196 | K129: =IF(L17=TRUE,I129,NA()) ->  | L129: =IF(L17=TRUE,J129,NA()) -> 
I130: 0.3 | J130: =0.5196*K2 -> 0.5196 | K130: =IF(L17=TRUE,I130,NA()) ->  | L130: =IF(L17=TRUE,J130,NA()) -> 
I131: 0.3114 | J131: =0.4996*K2 -> 0.4996 | K131: =IF(L17=TRUE,I131,NA()) ->  | L131: =IF(L17=TRUE,J131,NA()) -> 
I132: 0.3 | J132: =0.5196*K2 -> 0.5196 | K132: =IF(L17=TRUE,I132,NA()) ->  | L132: =IF(L17=TRUE,J132,NA()) -> 
I133: 0.25 | J133: =0.433*K2 -> 0.433 | K133: =IF(L17=TRUE,I133,NA()) ->  | L133: =IF(L17=TRUE,J133,NA()) -> 
I134: 0.2734 | J134: =0.433*K2 -> 0.433 | K134: =IF(L17=TRUE,I134,NA()) ->  | L134: =IF(L17=TRUE,J134,NA()) -> 
I135: 0.25 | J135: =0.433*K2 -> 0.433 | K135: =IF(L17=TRUE,I135,NA()) ->  | L135: =IF(L17=TRUE,J135,NA()) -> 
I136: 0.2614 | J136: =0.413*K2 -> 0.413 | K136: =IF(L17=TRUE,I136,NA()) ->  | L136: =IF(L17=TRUE,J136,NA()) -> 
I137: 0.25 | J137: =0.433*K2 -> 0.433 | K137: =IF(L17=TRUE,I137,NA()) ->  | L137: =IF(L17=TRUE,J137,NA()) -> 
I138: 0.2 | J138: =0.3464*K2 -> 0.3464 | K138: =IF(L17=TRUE,I138,NA()) ->  | L138: =IF(L17=TRUE,J138,NA()) -> 
I139: 0.2234 | J139: =0.3464*K2 -> 0.3464 | K139: =IF(L17=TRUE,I139,NA()) ->  | L139: =IF(L17=TRUE,J139,NA()) -> 
I140: 0.2 | J140: =0.3464*K2 -> 0.3464 | K140: =IF(L17=TRUE,I140,NA()) ->  | L140: =IF(L17=TRUE,J140,NA()) -> 
I141: 0.2114 | J141: =0.3264*K2 -> 0.3264 | K141: =IF(L17=TRUE,I141,NA()) ->  | L141: =IF(L17=TRUE,J141,NA()) -> 
I142: 0.2 | J142: =0.3464*K2 -> 0.3464 | K142: =IF(L17=TRUE,I142,NA()) ->  | L142: =IF(L17=TRUE,J142,NA()) -> 
I143: 0.15 | J143: =0.2598*K2 -> 0.2598 | K143: =IF(L17=TRUE,I143,NA()) ->  | L143: =IF(L17=TRUE,J143,NA()) -> 
I144: 0.1734 | J144: =0.2598*K2 -> 0.2598 | K144: =IF(L17=TRUE,I144,NA()) ->  | L144: =IF(L17=TRUE,J144,NA()) -> 
I145: 0.15 | J145: =0.2598*K2 -> 0.2598 | K145: =IF(L17=TRUE,I145,NA()) ->  | L145: =IF(L17=TRUE,J145,NA()) -> 
I146: 0.1614 | J146: =0.2398*K2 -> 0.2398 | K146: =IF(L17=TRUE,I146,NA()) ->  | L146: =IF(L17=TRUE,J146,NA()) -> 
I147: 0.15 | J147: =0.2598*K2 -> 0.2598 | K147: =IF(L17=TRUE,I147,NA()) ->  | L147: =IF(L17=TRUE,J147,NA()) -> 
I148: 0.1 | J148: =0.1732*K2 -> 0.1732 | K148: =IF(L17=TRUE,I148,NA()) ->  | L148: =IF(L17=TRUE,J148,NA()) -> 
I149: 0.1234 | J149: =0.1732*K2 -> 0.1732 | K149: =IF(L17=TRUE,I149,NA()) ->  | L149: =IF(L17=TRUE,J149,NA()) -> 
I150: 0.1 | J150: =0.1732*K2 -> 0.1732 | K150: =IF(L17=TRUE,I150,NA()) ->  | L150: =IF(L17=TRUE,J150,NA()) -> 
I151: 0.1114 | J151: =0.1532*K2 -> 0.1532 | K151: =IF(L17=TRUE,I151,NA()) ->  | L151: =IF(L17=TRUE,J151,NA()) -> 
I152: 0.1 | J152: =0.1732*K2 -> 0.1732 | K152: =IF(L17=TRUE,I152,NA()) ->  | L152: =IF(L17=TRUE,J152,NA()) -> 
I153: 0.05 | J153: =0.0866*K2 -> 0.0866 | K153: =IF(L17=TRUE,I153,NA()) ->  | L153: =IF(L17=TRUE,J153,NA()) -> 
I154: 0.0734 | J154: =0.0866*K2 -> 0.0866 | K154: =IF(L17=TRUE,I154,NA()) ->  | L154: =IF(L17=TRUE,J154,NA()) -> 
I155: 0.05 | J155: =0.0866*K2 -> 0.0866 | K155: =IF(L17=TRUE,I155,NA()) ->  | L155: =IF(L17=TRUE,J155,NA()) -> 
I156: 0.0614 | J156: =0.0666*K2 -> 0.0666 | K156: =IF(L17=TRUE,I156,NA()) ->  | L156: =IF(L17=TRUE,J156,NA()) -> 
I157: 0.05 | J157: =0.0866*K2 -> 0.0866 | K157: =IF(L17=TRUE,I157,NA()) ->  | L157: =IF(L17=TRUE,J157,NA()) -> 
I158: 0 | J158: =0*K2 -> 0 | K158: =IF(L17=TRUE,I158,NA()) ->  | L158: =IF(L17=TRUE,J158,NA()) -> 

Sheet Calculations
A1: Single data: | G1: Serie 1: | M1: Serie 2: | S1: Serie 3: | Y1: Serie 4: | AE1: Serie 5: | AK1: Serie 6: | AQ1: Serie 7: | AW1: Serie 8: | BC1: Serie 9: | BI1: Serie 10:
A2: Bottom left % | B2: Bottom right % | C2: Top % | D2: x value | E2: y value | G2: Bottom left % | H2: Bottom right % | I2: Top % | J2: x value | K2: y value | M2: Bottom left % | N2: Bottom right % | O2: Top % | P2: x value | Q2: y value | S2: Bottom left % | T2: Bottom right % | U2: Top % | V2: x value | W2: y value | Y2: Bottom left % | Z2: Bottom right % | AA2: Top % | AB2: x value | AC2: y value | AE2: Bottom left % | AF2: Bottom right % | AG2: Top % | AH2: x value | AI2: y value | AK2: Bottom left % | AL2: Bottom right % | AM2: Top % | AN2: x value | AO2: y value | AQ2: Bottom left % | AR2: Bottom right % | AS2: Top % | AT2: x value | AU2: y value | AW2: Bottom left % | AX2: Bottom right % | AY2: Top % | AZ2: x value | BA2: y value | BC2: Bottom left % | BD2: Bottom right % | BE2: Top % | BF2: x value | BG2: y value | BI2: Bottom left % | BJ2: Bottom right % | BK2: Top % | BL2: x value | BM2: y value
A3: ='Single Data'!N4/('Single Data'!L4+'Single Data'!M4+'Single Data'!N4) ->  | B3: ='Single Data'!L4/('Single Data'!L4+'Single Data'!M4+'Single Data'!N4) ->  | C3: ='Single Data'!M4/('Single Data'!L4+'Single Data'!M4+'Single Data'!N4) ->  | D3: =IF('Single Data'!L4+'Single Data'!M4+'Single Data'!N4<>0,(B3+(C3*0.5)),NA()) ->  | E3: =IF('Single Data'!L4+'Single Data'!M4+'Single Data'!N4<>0,(C3*0.866*Templates!K2),NA()) ->  | G3: ='Serial Data'!M3/('Serial Data'!K3+'Serial Data'!L3+'Serial Data'!M3) ->  | H3: ='Serial Data'!K3/('Serial Data'!K3+'Serial Data'!L3+'Serial Data'!M3) ->  | I3: ='Serial Data'!L3/('Serial Data'!K3+'Serial Data'!L3+'Serial Data'!M3) ->  | J3: =IF('Serial Data'!K3+'Serial Data'!L3+'Serial Data'!M3<>0,(H3+(I3*0.5)),NA()) ->  | K3: =IF('Serial Data'!K3+'Serial Data'!L3+'Serial Data'!M3<>0,(I3*0.866*Templates!K2),NA()) ->  | M3: ='Serial Data'!R3/('Serial Data'!P3+'Serial Data'!Q3+'Serial Data'!R3) ->  | N3: ='Serial Data'!P3/('Serial Data'!P3+'Serial Data'!Q3+'Serial Data'!R3) ->  | O3: ='Serial Data'!Q3/('Serial Data'!P3+'Serial Data'!Q3+'Serial Data'!R3) ->  | P3: =IF('Serial Data'!P3+'Serial Data'!Q3+'Serial Data'!R3<>0,(N3+(O3*0.5)),NA()) ->  | Q3: =IF('Serial Data'!P3+'Serial Data'!Q3+'Serial Data'!R3<>0,(O3*0.866*Templates!K2),NA()) ->  | S3: ='Serial Data'!W3/('Serial Data'!U3+'Serial Data'!V3+'Serial Data'!W3) ->  | T3: ='Serial Data'!U3/('Serial Data'!U3+'Serial Data'!V3+'Serial Data'!W3) ->  | U3: ='Serial Data'!V3/('Serial Data'!U3+'Serial Data'!V3+'Serial Data'!W3) ->  | V3: =IF('Serial Data'!V3+'Serial Data'!W3+'Serial Data'!U3<>0,(T3+(U3*0.5)),NA()) ->  | W3: =IF('Serial Data'!V3+'Serial Data'!W3+'Serial Data'!U3<>0,(U3*0.866*Templates!K2),NA()) ->  | Y3: ='Serial Data'!AB3/('Serial Data'!AA3+'Serial Data'!AB3+'Serial Data'!Z3) ->  | Z3: ='Serial Data'!Z3/('Serial Data'!AA3+'Serial Data'!AB3+'Serial Data'!Z3) ->  | AA3: ='Serial Data'!AA3/('Serial Data'!AA3+'Serial Data'!AB3+'Serial Data'!Z3) ->  | AB3: =IF('Serial Data'!AB3+'Serial Data'!AA3+'Serial Data'!Z3<>0,(Z3+(AA3*0.5)),NA()) ->  | AC3: =IF('Serial Data'!AB3+'Serial Data'!AA3+'Serial Data'!Z3<>0,(AA3*0.866*Templates!K2),NA()) ->  | AE3: ='Serial Data'!AG3/('Serial Data'!AG3+'Serial Data'!AE3+'Serial Data'!AF3) ->  | AF3: ='Serial Data'!AE3/('Serial Data'!AG3+'Serial Data'!AE3+'Serial Data'!AF3) ->  | AG3: ='Serial Data'!AF3/('Serial Data'!AG3+'Serial Data'!AE3+'Serial Data'!AF3) ->  | AH3: =IF('Serial Data'!AE3+'Serial Data'!AF3+'Serial Data'!AG3<>0,(AF3+(AG3*0.5)),NA()) ->  | AI3: =IF('Serial Data'!AE3+'Serial Data'!AF3+'Serial Data'!AG3<>0,(AG3*0.866*Templates!K2),NA()) ->  | AK3: ='Serial Data'!AL3/('Serial Data'!AJ3+'Serial Data'!AK3+'Serial Data'!AL3) ->  | AL3: ='Serial Data'!AJ3/('Serial Data'!AJ3+'Serial Data'!AK3+'Serial Data'!AL3) ->  | AM3: ='Serial Data'!AK3/('Serial Data'!AJ3+'Serial Data'!AK3+'Serial Data'!AL3) ->  | AN3: =IF('Serial Data'!AJ3+'Serial Data'!AK3+'Serial Data'!AL3<>0,(AL3+(AM3*0.5)),NA()) ->  | AO3: =IF('Serial Data'!AJ3+'Serial Data'!AK3+'Serial Data'!AL3<>0,(AM3*0.866*Templates!K2),NA()) ->  | AQ3: ='Serial Data'!AQ3/('Serial Data'!AO3+'Serial Data'!AP3+'Serial Data'!AQ3) ->  | AR3: ='Serial Data'!AO3/('Serial Data'!AO3+'Serial Data'!AP3+'Serial Data'!AQ3) ->  | AS3: ='Serial Data'!AP3/('Serial Data'!AO3+'Serial Data'!AP3+'Serial Data'!AQ3) ->  | AT3: =IF('Serial Data'!AO3+'Serial Data'!AP3+'Serial Data'!AQ3<>0,(AR3+(AS3*0.5)),NA()) ->  | AU3: =IF('Serial Data'!AO3+'Serial Data'!AP3+'Serial Data'!AQ3<>0,(AS3*0.866*Templates!K2),NA()) ->  | AW3: ='Serial Data'!AV3/('Serial Data'!AT3+'Serial Data'!AU3+'Serial Data'!AV3) ->  | AX3: ='Serial Data'!AT3/('Serial Data'!AT3+'Serial Data'!AU3+'Serial Data'!AV3) ->  | AY3: ='Serial Data'!AU3/('Serial Data'!AT3+'Serial Data'!AU3+'Serial Data'!AV3) ->  | AZ3: =IF('Serial Data'!AT3+'Serial Data'!AU3+'Serial Data'!AV3<>0,(AX3+(AY3*0.5)),NA()) ->  | BA3: =IF('Serial Data'!AT3+'Serial Data'!AU3+'Serial Data'!AV3<>0,(AY3*0.866*Templates!K2),NA()) ->  | BC3: ='Serial Data'!BA3/('Serial Data'!AY3+'Serial Data'!AZ3+'Serial Data'!BA3) ->  | BD3: ='Serial Data'!AY3/('Serial Data'!AY3+'Serial Data'!AZ3+'Serial Data'!BA3) ->  | BE3: ='Serial Data'!AZ3/('Serial Data'!AY3+'Serial Data'!AZ3+'Serial Data'!BA3) ->  | BF3: =IF('Serial Data'!AY3+'Serial Data'!AZ3+'Serial Data'!BA3<>0,(BD3+(BE3*0.5)),NA()) ->  | BG3: =IF('Serial Data'!AY3+'Serial Data'!AZ3+'Serial Data'!BA3<>0,(BE3*0.866*Templates!K2),NA()) ->  | BI3: ='Serial Data'!BF3/('Serial Data'!BD3+'Serial Data'!BE3+'Serial Data'!BF3) ->  | BJ3: ='Serial Data'!BD3/('Serial Data'!BD3+'Serial Data'!BE3+'Serial Data'!BF3) ->  | BK3: ='Serial Data'!BE3/('Serial Data'!BD3+'Serial Data'!BE3+'Serial Data'!BF3) ->  | BL3: =IF('Serial Data'!BD3+'Serial Data'!BE3+'Serial Data'!BF3<>0,(BJ3+(BK3*0.5)),NA()) ->  | BM3: =IF('Serial Data'!BD3+'Serial Data'!BE3+'Serial Data'!BF3<>0,(BK3*0.866*Templates!K2),NA()) -> 
A4: ='Single Data'!N5/('Single Data'!L5+'Single Data'!M5+'Single Data'!N5) ->  | B4: ='Single Data'!L5/('Single Data'!L5+'Single Data'!M5+'Single Data'!N5) ->  | C4: ='Single Data'!M5/('Single Data'!L5+'Single Data'!M5+'Single Data'!N5) ->  | D4: =IF('Single Data'!L5+'Single Data'!M5+'Single Data'!N5<>0,(B4+(C4*0.5)),NA()) ->  | E4: =IF('Single Data'!L5+'Single Data'!M5+'Single Data'!N5<>0,(C4*0.866*Templates!K2),NA()) ->  | G4: ='Serial Data'!M4/('Serial Data'!K4+'Serial Data'!L4+'Serial Data'!M4) ->  | H4: ='Serial Data'!K4/('Serial Data'!K4+'Serial Data'!L4+'Serial Data'!M4) ->  | I4: ='Serial Data'!L4/('Serial Data'!K4+'Serial Data'!L4+'Serial Data'!M4) ->  | J4: =IF('Serial Data'!K4+'Serial Data'!L4+'Serial Data'!M4<>0,(H4+(I4*0.5)),NA()) ->  | K4: =IF('Serial Data'!K4+'Serial Data'!L4+'Serial Data'!M4<>0,(I4*0.866*Templates!K2),NA()) ->  | M4: ='Serial Data'!R4/('Serial Data'!P4+'Serial Data'!Q4+'Serial Data'!R4) ->  | N4: ='Serial Data'!P4/('Serial Data'!P4+'Serial Data'!Q4+'Serial Data'!R4) ->  | O4: ='Serial Data'!Q4/('Serial Data'!P4+'Serial Data'!Q4+'Serial Data'!R4) ->  | P4: =IF('Serial Data'!P4+'Serial Data'!Q4+'Serial Data'!R4<>0,(N4+(O4*0.5)),NA()) ->  | Q4: =IF('Serial Data'!P4+'Serial Data'!Q4+'Serial Data'!R4<>0,(O4*0.866*Templates!K2),NA()) ->  | S4: ='Serial Data'!W4/('Serial Data'!U4+'Serial Data'!V4+'Serial Data'!W4) ->  | T4: ='Serial Data'!U4/('Serial Data'!U4+'Serial Data'!V4+'Serial Data'!W4) ->  | U4: ='Serial Data'!V4/('Serial Data'!U4+'Serial Data'!V4+'Serial Data'!W4) ->  | V4: =IF('Serial Data'!V4+'Serial Data'!W4+'Serial Data'!U4<>0,(T4+(U4*0.5)),NA()) ->  | W4: =IF('Serial Data'!V4+'Serial Data'!W4+'Serial Data'!U4<>0,(U4*0.866*Templates!K2),NA()) ->  | Y4: ='Serial Data'!AB4/('Serial Data'!AA4+'Serial Data'!AB4+'Serial Data'!Z4) ->  | Z4: ='Serial Data'!Z4/('Serial Data'!AA4+'Serial Data'!AB4+'Serial Data'!Z4) ->  | AA4: ='Serial Data'!AA4/('Serial Data'!AA4+'Serial Data'!AB4+'Serial Data'!Z4) ->  | AB4: =IF('Serial Data'!AB4+'Serial Data'!AA4+'Serial Data'!Z4<>0,(Z4+(AA4*0.5)),NA()) ->  | AC4: =IF('Serial Data'!AB4+'Serial Data'!AA4+'Serial Data'!Z4<>0,(AA4*0.866*Templates!K2),NA()) ->  | AE4: ='Serial Data'!AG4/('Serial Data'!AG4+'Serial Data'!AE4+'Serial Data'!AF4) ->  | AF4: ='Serial Data'!AE4/('Serial Data'!AG4+'Serial Data'!AE4+'Serial Data'!AF4) ->  | AG4: ='Serial Data'!AF4/('Serial Data'!AG4+'Serial Data'!AE4+'Serial Data'!AF4) ->  | AH4: =IF('Serial Data'!AE4+'Serial Data'!AF4+'Serial Data'!AG4<>0,(AF4+(AG4*0.5)),NA()) ->  | AI4: =IF('Serial Data'!AE4+'Serial Data'!AF4+'Serial Data'!AG4<>0,(AG4*0.866*Templates!K2),NA()) ->  | AK4: ='Serial Data'!AL4/('Serial Data'!AJ4+'Serial Data'!AK4+'Serial Data'!AL4) ->  | AL4: ='Serial Data'!AJ4/('Serial Data'!AJ4+'Serial Data'!AK4+'Serial Data'!AL4) ->  | AM4: ='Serial Data'!AK4/('Serial Data'!AJ4+'Serial Data'!AK4+'Serial Data'!AL4) ->  | AN4: =IF('Serial Data'!AJ4+'Serial Data'!AK4+'Serial Data'!AL4<>0,(AL4+(AM4*0.5)),NA()) ->  | AO4: =IF('Serial Data'!AJ4+'Serial Data'!AK4+'Serial Data'!AL4<>0,(AM4*0.866*Templates!K2),NA()) ->  | AQ4: ='Serial Data'!AQ4/('Serial Data'!AO4+'Serial Data'!AP4+'Serial Data'!AQ4) ->  | AR4: ='Serial Data'!AO4/('Serial Data'!AO4+'Serial Data'!AP4+'Serial Data'!AQ4) ->  | AS4: ='Serial Data'!AP4/('Serial Data'!AO4+'Serial Data'!AP4+'Serial Data'!AQ4) ->  | AT4: =IF('Serial Data'!AO4+'Serial Data'!AP4+'Serial Data'!AQ4<>0,(AR4+(AS4*0.5)),NA()) ->  | AU4: =IF('Serial Data'!AO4+'Serial Data'!AP4+'Serial Data'!AQ4<>0,(AS4*0.866*Templates!K2),NA()) ->  | AW4: ='Serial Data'!AV4/('Serial Data'!AT4+'Serial Data'!AU4+'Serial Data'!AV4) ->  | AX4: ='Serial Data'!AT4/('Serial Data'!AT4+'Serial Data'!AU4+'Serial Data'!AV4) ->  | AY4: ='Serial Data'!AU4/('Serial Data'!AT4+'Serial Data'!AU4+'Serial Data'!AV4) ->  | AZ4: =IF('Serial Data'!AT4+'Serial Data'!AU4+'Serial Data'!AV4<>0,(AX4+(AY4*0.5)),NA()) ->  | BA4: =IF('Serial Data'!AT4+'Serial Data'!AU4+'Serial Data'!AV4<>0,(AY4*0.866*Templates!K2),NA()) ->  | BC4: ='Serial Data'!BA4/('Serial Data'!AY4+'Serial Data'!AZ4+'Serial Data'!BA4) ->  | BD4: ='Serial Data'!AY4/('Serial Data'!AY4+'Serial Data'!AZ4+'Serial Data'!BA4) ->  | BE4: ='Serial Data'!AZ4/('Serial Data'!AY4+'Serial Data'!AZ4+'Serial Data'!BA4) ->  | BF4: =IF('Serial Data'!AY4+'Serial Data'!AZ4+'Serial Data'!BA4<>0,(BD4+(BE4*0.5)),NA()) ->  | BG4: =IF('Serial Data'!AY4+'Serial Data'!AZ4+'Serial Data'!BA4<>0,(BE4*0.866*Templates!K2),NA()) ->  | BI4: ='Serial Data'!BF4/('Serial Data'!BD4+'Serial Data'!BE4+'Serial Data'!BF4) ->  | BJ4: ='Serial Data'!BD4/('Serial Data'!BD4+'Serial Data'!BE4+'Serial Data'!BF4) ->  | BK4: ='Serial Data'!BE4/('Serial Data'!BD4+'Serial Data'!BE4+'Serial Data'!BF4) ->  | BL4: =IF('Serial Data'!BD4+'Serial Data'!BE4+'Serial Data'!BF4<>0,(BJ4+(BK4*0.5)),NA()) ->  | BM4: =IF('Serial Data'!BD4+'Serial Data'!BE4+'Serial Data'!BF4<>0,(BK4*0.866*Templates!K2),NA()) -> 
A5: ='Single Data'!N6/('Single Data'!L6+'Single Data'!M6+'Single Data'!N6) ->  | B5: ='Single Data'!L6/('Single Data'!L6+'Single Data'!M6+'Single Data'!N6) ->  | C5: ='Single Data'!M6/('Single Data'!L6+'Single Data'!M6+'Single Data'!N6) ->  | D5: =IF('Single Data'!L6+'Single Data'!M6+'Single Data'!N6<>0,(B5+(C5*0.5)),NA()) ->  | E5: =IF('Single Data'!L6+'Single Data'!M6+'Single Data'!N6<>0,(C5*0.866*Templates!K2),NA()) ->  | G5: ='Serial Data'!M5/('Serial Data'!K5+'Serial Data'!L5+'Serial Data'!M5) ->  | H5: ='Serial Data'!K5/('Serial Data'!K5+'Serial Data'!L5+'Serial Data'!M5) ->  | I5: ='Serial Data'!L5/('Serial Data'!K5+'Serial Data'!L5+'Serial Data'!M5) ->  | J5: =IF('Serial Data'!K5+'Serial Data'!L5+'Serial Data'!M5<>0,(H5+(I5*0.5)),NA()) ->  | K5: =IF('Serial Data'!K5+'Serial Data'!L5+'Serial Data'!M5<>0,(I5*0.866*Templates!K2),NA()) ->  | M5: ='Serial Data'!R5/('Serial Data'!P5+'Serial Data'!Q5+'Serial Data'!R5) ->  | N5: ='Serial Data'!P5/('Serial Data'!P5+'Serial Data'!Q5+'Serial Data'!R5) ->  | O5: ='Serial Data'!Q5/('Serial Data'!P5+'Serial Data'!Q5+'Serial Data'!R5) ->  | P5: =IF('Serial Data'!P5+'Serial Data'!Q5+'Serial Data'!R5<>0,(N5+(O5*0.5)),NA()) ->  | Q5: =IF('Serial Data'!P5+'Serial Data'!Q5+'Serial Data'!R5<>0,(O5*0.866*Templates!K2),NA()) ->  | S5: ='Serial Data'!W5/('Serial Data'!U5+'Serial Data'!V5+'Serial Data'!W5) ->  | T5: ='Serial Data'!U5/('Serial Data'!U5+'Serial Data'!V5+'Serial Data'!W5) ->  | U5: ='Serial Data'!V5/('Serial Data'!U5+'Serial Data'!V5+'Serial Data'!W5) ->  | V5: =IF('Serial Data'!V5+'Serial Data'!W5+'Serial Data'!U5<>0,(T5+(U5*0.5)),NA()) ->  | W5: =IF('Serial Data'!V5+'Serial Data'!W5+'Serial Data'!U5<>0,(U5*0.866*Templates!K2),NA()) ->  | Y5: ='Serial Data'!AB5/('Serial Data'!AA5+'Serial Data'!AB5+'Serial Data'!Z5) ->  | Z5: ='Serial Data'!Z5/('Serial Data'!AA5+'Serial Data'!AB5+'Serial Data'!Z5) ->  | AA5: ='Serial Data'!AA5/('Serial Data'!AA5+'Serial Data'!AB5+'Serial Data'!Z5) ->  | AB5: =IF('Serial Data'!AB5+'Serial Data'!AA5+'Serial Data'!Z5<>0,(Z5+(AA5*0.5)),NA()) ->  | AC5: =IF('Serial Data'!AB5+'Serial Data'!AA5+'Serial Data'!Z5<>0,(AA5*0.866*Templates!K2),NA()) ->  | AE5: ='Serial Data'!AG5/('Serial Data'!AG5+'Serial Data'!AE5+'Serial Data'!AF5) ->  | AF5: ='Serial Data'!AE5/('Serial Data'!AG5+'Serial Data'!AE5+'Serial Data'!AF5) ->  | AG5: ='Serial Data'!AF5/('Serial Data'!AG5+'Serial Data'!AE5+'Serial Data'!AF5) ->  | AH5: =IF('Serial Data'!AE5+'Serial Data'!AF5+'Serial Data'!AG5<>0,(AF5+(AG5*0.5)),NA()) ->  | AI5: =IF('Serial Data'!AE5+'Serial Data'!AF5+'Serial Data'!AG5<>0,(AG5*0.866*Templates!K2),NA()) ->  | AK5: ='Serial Data'!AL5/('Serial Data'!AJ5+'Serial Data'!AK5+'Serial Data'!AL5) ->  | AL5: ='Serial Data'!AJ5/('Serial Data'!AJ5+'Serial Data'!AK5+'Serial Data'!AL5) ->  | AM5: ='Serial Data'!AK5/('Serial Data'!AJ5+'Serial Data'!AK5+'Serial Data'!AL5) ->  | AN5: =IF('Serial Data'!AJ5+'Serial Data'!AK5+'Serial Data'!AL5<>0,(AL5+(AM5*0.5)),NA()) ->  | AO5: =IF('Serial Data'!AJ5+'Serial Data'!AK5+'Serial Data'!AL5<>0,(AM5*0.866*Templates!K2),NA()) ->  | AQ5: ='Serial Data'!AQ5/('Serial Data'!AO5+'Serial Data'!AP5+'Serial Data'!AQ5) ->  | AR5: ='Serial Data'!AO5/('Serial Data'!AO5+'Serial Data'!AP5+'Serial Data'!AQ5) ->  | AS5: ='Serial Data'!AP5/('Serial Data'!AO5+'Serial Data'!AP5+'Serial Data'!AQ5) ->  | AT5: =IF('Serial Data'!AO5+'Serial Data'!AP5+'Serial Data'!AQ5<>0,(AR5+(AS5*0.5)),NA()) ->  | AU5: =IF('Serial Data'!AO5+'Serial Data'!AP5+'Serial Data'!AQ5<>0,(AS5*0.866*Templates!K2),NA()) ->  | AW5: ='Serial Data'!AV5/('Serial Data'!AT5+'Serial Data'!AU5+'Serial Data'!AV5) ->  | AX5: ='Serial Data'!AT5/('Serial Data'!AT5+'Serial Data'!AU5+'Serial Data'!AV5) ->  | AY5: ='Serial Data'!AU5/('Serial Data'!AT5+'Serial Data'!AU5+'Serial Data'!AV5) ->  | AZ5: =IF('Serial Data'!AT5+'Serial Data'!AU5+'Serial Data'!AV5<>0,(AX5+(AY5*0.5)),NA()) ->  | BA5: =IF('Serial Data'!AT5+'Serial Data'!AU5+'Serial Data'!AV5<>0,(AY5*0.866*Templates!K2),NA()) ->  | BC5: ='Serial Data'!BA5/('Serial Data'!AY5+'Serial Data'!AZ5+'Serial Data'!BA5) ->  | BD5: ='Serial Data'!AY5/('Serial Data'!AY5+'Serial Data'!AZ5+'Serial Data'!BA5) ->  | BE5: ='Serial Data'!AZ5/('Serial Data'!AY5+'Serial Data'!AZ5+'Serial Data'!BA5) ->  | BF5: =IF('Serial Data'!AY5+'Serial Data'!AZ5+'Serial Data'!BA5<>0,(BD5+(BE5*0.5)),NA()) ->  | BG5: =IF('Serial Data'!AY5+'Serial Data'!AZ5+'Serial Data'!BA5<>0,(BE5*0.866*Templates!K2),NA()) ->  | BI5: ='Serial Data'!BF5/('Serial Data'!BD5+'Serial Data'!BE5+'Serial Data'!BF5) ->  | BJ5: ='Serial Data'!BD5/('Serial Data'!BD5+'Serial Data'!BE5+'Serial Data'!BF5) ->  | BK5: ='Serial Data'!BE5/('Serial Data'!BD5+'Serial Data'!BE5+'Serial Data'!BF5) ->  | BL5: =IF('Serial Data'!BD5+'Serial Data'!BE5+'Serial Data'!BF5<>0,(BJ5+(BK5*0.5)),NA()) ->  | BM5: =IF('Serial Data'!BD5+'Serial Data'!BE5+'Serial Data'!BF5<>0,(BK5*0.866*Templates!K2),NA()) -> 
A6: ='Single Data'!N7/('Single Data'!L7+'Single Data'!M7+'Single Data'!N7) ->  | B6: ='Single Data'!L7/('Single Data'!L7+'Single Data'!M7+'Single Data'!N7) ->  | C6: ='Single Data'!M7/('Single Data'!L7+'Single Data'!M7+'Single Data'!N7) ->  | D6: =IF('Single Data'!L7+'Single Data'!M7+'Single Data'!N7<>0,(B6+(C6*0.5)),NA()) ->  | E6: =IF('Single Data'!L7+'Single Data'!M7+'Single Data'!N7<>0,(C6*0.866*Templates!K2),NA()) ->  | G6: ='Serial Data'!M6/('Serial Data'!K6+'Serial Data'!L6+'Serial Data'!M6) ->  | H6: ='Serial Data'!K6/('Serial Data'!K6+'Serial Data'!L6+'Serial Data'!M6) ->  | I6: ='Serial Data'!L6/('Serial Data'!K6+'Serial Data'!L6+'Serial Data'!M6) ->  | J6: =IF('Serial Data'!K6+'Serial Data'!L6+'Serial Data'!M6<>0,(H6+(I6*0.5)),NA()) ->  | K6: =IF('Serial Data'!K6+'Serial Data'!L6+'Serial Data'!M6<>0,(I6*0.866*Templates!K2),NA()) ->  | M6: ='Serial Data'!R6/('Serial Data'!P6+'Serial Data'!Q6+'Serial Data'!R6) ->  | N6: ='Serial Data'!P6/('Serial Data'!P6+'Serial Data'!Q6+'Serial Data'!R6) ->  | O6: ='Serial Data'!Q6/('Serial Data'!P6+'Serial Data'!Q6+'Serial Data'!R6) ->  | P6: =IF('Serial Data'!P6+'Serial Data'!Q6+'Serial Data'!R6<>0,(N6+(O6*0.5)),NA()) ->  | Q6: =IF('Serial Data'!P6+'Serial Data'!Q6+'Serial Data'!R6<>0,(O6*0.866*Templates!K2),NA()) ->  | S6: ='Serial Data'!W6/('Serial Data'!U6+'Serial Data'!V6+'Serial Data'!W6) ->  | T6: ='Serial Data'!U6/('Serial Data'!U6+'Serial Data'!V6+'Serial Data'!W6) ->  | U6: ='Serial Data'!V6/('Serial Data'!U6+'Serial Data'!V6+'Serial Data'!W6) ->  | V6: =IF('Serial Data'!V6+'Serial Data'!W6+'Serial Data'!U6<>0,(T6+(U6*0.5)),NA()) ->  | W6: =IF('Serial Data'!V6+'Serial Data'!W6+'Serial Data'!U6<>0,(U6*0.866*Templates!K2),NA()) ->  | Y6: ='Serial Data'!AB6/('Serial Data'!AA6+'Serial Data'!AB6+'Serial Data'!Z6) ->  | Z6: ='Serial Data'!Z6/('Serial Data'!AA6+'Serial Data'!AB6+'Serial Data'!Z6) ->  | AA6: ='Serial Data'!AA6/('Serial Data'!AA6+'Serial Data'!AB6+'Serial Data'!Z6) ->  | AB6: =IF('Serial Data'!AB6+'Serial Data'!AA6+'Serial Data'!Z6<>0,(Z6+(AA6*0.5)),NA()) ->  | AC6: =IF('Serial Data'!AB6+'Serial Data'!AA6+'Serial Data'!Z6<>0,(AA6*0.866*Templates!K2),NA()) ->  | AE6: ='Serial Data'!AG6/('Serial Data'!AG6+'Serial Data'!AE6+'Serial Data'!AF6) ->  | AF6: ='Serial Data'!AE6/('Serial Data'!AG6+'Serial Data'!AE6+'Serial Data'!AF6) ->  | AG6: ='Serial Data'!AF6/('Serial Data'!AG6+'Serial Data'!AE6+'Serial Data'!AF6) ->  | AH6: =IF('Serial Data'!AE6+'Serial Data'!AF6+'Serial Data'!AG6<>0,(AF6+(AG6*0.5)),NA()) ->  | AI6: =IF('Serial Data'!AE6+'Serial Data'!AF6+'Serial Data'!AG6<>0,(AG6*0.866*Templates!K2),NA()) ->  | AK6: ='Serial Data'!AL6/('Serial Data'!AJ6+'Serial Data'!AK6+'Serial Data'!AL6) ->  | AL6: ='Serial Data'!AJ6/('Serial Data'!AJ6+'Serial Data'!AK6+'Serial Data'!AL6) ->  | AM6: ='Serial Data'!AK6/('Serial Data'!AJ6+'Serial Data'!AK6+'Serial Data'!AL6) ->  | AN6: =IF('Serial Data'!AJ6+'Serial Data'!AK6+'Serial Data'!AL6<>0,(AL6+(AM6*0.5)),NA()) ->  | AO6: =IF('Serial Data'!AJ6+'Serial Data'!AK6+'Serial Data'!AL6<>0,(AM6*0.866*Templates!K2),NA()) ->  | AQ6: ='Serial Data'!AQ6/('Serial Data'!AO6+'Serial Data'!AP6+'Serial Data'!AQ6) ->  | AR6: ='Serial Data'!AO6/('Serial Data'!AO6+'Serial Data'!AP6+'Serial Data'!AQ6) ->  | AS6: ='Serial Data'!AP6/('Serial Data'!AO6+'Serial Data'!AP6+'Serial Data'!AQ6) ->  | AT6: =IF('Serial Data'!AO6+'Serial Data'!AP6+'Serial Data'!AQ6<>0,(AR6+(AS6*0.5)),NA()) ->  | AU6: =IF('Serial Data'!AO6+'Serial Data'!AP6+'Serial Data'!AQ6<>0,(AS6*0.866*Templates!K2),NA()) ->  | AW6: ='Serial Data'!AV6/('Serial Data'!AT6+'Serial Data'!AU6+'Serial Data'!AV6) ->  | AX6: ='Serial Data'!AT6/('Serial Data'!AT6+'Serial Data'!AU6+'Serial Data'!AV6) ->  | AY6: ='Serial Data'!AU6/('Serial Data'!AT6+'Serial Data'!AU6+'Serial Data'!AV6) ->  | AZ6: =IF('Serial Data'!AT6+'Serial Data'!AU6+'Serial Data'!AV6<>0,(AX6+(AY6*0.5)),NA()) ->  | BA6: =IF('Serial Data'!AT6+'Serial Data'!AU6+'Serial Data'!AV6<>0,(AY6*0.866*Templates!K2),NA()) ->  | BC6: ='Serial Data'!BA6/('Serial Data'!AY6+'Serial Data'!AZ6+'Serial Data'!BA6) ->  | BD6: ='Serial Data'!AY6/('Serial Data'!AY6+'Serial Data'!AZ6+'Serial Data'!BA6) ->  | BE6: ='Serial Data'!AZ6/('Serial Data'!AY6+'Serial Data'!AZ6+'Serial Data'!BA6) ->  | BF6: =IF('Serial Data'!AY6+'Serial Data'!AZ6+'Serial Data'!BA6<>0,(BD6+(BE6*0.5)),NA()) ->  | BG6: =IF('Serial Data'!AY6+'Serial Data'!AZ6+'Serial Data'!BA6<>0,(BE6*0.866*Templates!K2),NA()) ->  | BI6: ='Serial Data'!BF6/('Serial Data'!BD6+'Serial Data'!BE6+'Serial Data'!BF6) ->  | BJ6: ='Serial Data'!BD6/('Serial Data'!BD6+'Serial Data'!BE6+'Serial Data'!BF6) ->  | BK6: ='Serial Data'!BE6/('Serial Data'!BD6+'Serial Data'!BE6+'Serial Data'!BF6) ->  | BL6: =IF('Serial Data'!BD6+'Serial Data'!BE6+'Serial Data'!BF6<>0,(BJ6+(BK6*0.5)),NA()) ->  | BM6: =IF('Serial Data'!BD6+'Serial Data'!BE6+'Serial Data'!BF6<>0,(BK6*0.866*Templates!K2),NA()) -> 
A7: ='Single Data'!N8/('Single Data'!L8+'Single Data'!M8+'Single Data'!N8) ->  | B7: ='Single Data'!L8/('Single Data'!L8+'Single Data'!M8+'Single Data'!N8) ->  | C7: ='Single Data'!M8/('Single Data'!L8+'Single Data'!M8+'Single Data'!N8) ->  | D7: =IF('Single Data'!L8+'Single Data'!M8+'Single Data'!N8<>0,(B7+(C7*0.5)),NA()) ->  | E7: =IF('Single Data'!L8+'Single Data'!M8+'Single Data'!N8<>0,(C7*0.866*Templates!K2),NA()) ->  | G7: ='Serial Data'!M7/('Serial Data'!K7+'Serial Data'!L7+'Serial Data'!M7) ->  | H7: ='Serial Data'!K7/('Serial Data'!K7+'Serial Data'!L7+'Serial Data'!M7) ->  | I7: ='Serial Data'!L7/('Serial Data'!K7+'Serial Data'!L7+'Serial Data'!M7) ->  | J7: =IF('Serial Data'!K7+'Serial Data'!L7+'Serial Data'!M7<>0,(H7+(I7*0.5)),NA()) ->  | K7: =IF('Serial Data'!K7+'Serial Data'!L7+'Serial Data'!M7<>0,(I7*0.866*Templates!K2),NA()) ->  | M7: ='Serial Data'!R7/('Serial Data'!P7+'Serial Data'!Q7+'Serial Data'!R7) ->  | N7: ='Serial Data'!P7/('Serial Data'!P7+'Serial Data'!Q7+'Serial Data'!R7) ->  | O7: ='Serial Data'!Q7/('Serial Data'!P7+'Serial Data'!Q7+'Serial Data'!R7) ->  | P7: =IF('Serial Data'!P7+'Serial Data'!Q7+'Serial Data'!R7<>0,(N7+(O7*0.5)),NA()) ->  | Q7: =IF('Serial Data'!P7+'Serial Data'!Q7+'Serial Data'!R7<>0,(O7*0.866*Templates!K2),NA()) ->  | S7: ='Serial Data'!W7/('Serial Data'!U7+'Serial Data'!V7+'Serial Data'!W7) ->  | T7: ='Serial Data'!U7/('Serial Data'!U7+'Serial Data'!V7+'Serial Data'!W7) ->  | U7: ='Serial Data'!V7/('Serial Data'!U7+'Serial Data'!V7+'Serial Data'!W7) ->  | V7: =IF('Serial Data'!V7+'Serial Data'!W7+'Serial Data'!U7<>0,(T7+(U7*0.5)),NA()) ->  | W7: =IF('Serial Data'!V7+'Serial Data'!W7+'Serial Data'!U7<>0,(U7*0.866*Templates!K2),NA()) ->  | Y7: ='Serial Data'!AB7/('Serial Data'!AA7+'Serial Data'!AB7+'Serial Data'!Z7) ->  | Z7: ='Serial Data'!Z7/('Serial Data'!AA7+'Serial Data'!AB7+'Serial Data'!Z7) ->  | AA7: ='Serial Data'!AA7/('Serial Data'!AA7+'Serial Data'!AB7+'Serial Data'!Z7) ->  | AB7: =IF('Serial Data'!AB7+'Serial Data'!AA7+'Serial Data'!Z7<>0,(Z7+(AA7*0.5)),NA()) ->  | AC7: =IF('Serial Data'!AB7+'Serial Data'!AA7+'Serial Data'!Z7<>0,(AA7*0.866*Templates!K2),NA()) ->  | AE7: ='Serial Data'!AG7/('Serial Data'!AG7+'Serial Data'!AE7+'Serial Data'!AF7) ->  | AF7: ='Serial Data'!AE7/('Serial Data'!AG7+'Serial Data'!AE7+'Serial Data'!AF7) ->  | AG7: ='Serial Data'!AF7/('Serial Data'!AG7+'Serial Data'!AE7+'Serial Data'!AF7) ->  | AH7: =IF('Serial Data'!AE7+'Serial Data'!AF7+'Serial Data'!AG7<>0,(AF7+(AG7*0.5)),NA()) ->  | AI7: =IF('Serial Data'!AE7+'Serial Data'!AF7+'Serial Data'!AG7<>0,(AG7*0.866*Templates!K2),NA()) ->  | AK7: ='Serial Data'!AL7/('Serial Data'!AJ7+'Serial Data'!AK7+'Serial Data'!AL7) ->  | AL7: ='Serial Data'!AJ7/('Serial Data'!AJ7+'Serial Data'!AK7+'Serial Data'!AL7) ->  | AM7: ='Serial Data'!AK7/('Serial Data'!AJ7+'Serial Data'!AK7+'Serial Data'!AL7) ->  | AN7: =IF('Serial Data'!AJ7+'Serial Data'!AK7+'Serial Data'!AL7<>0,(AL7+(AM7*0.5)),NA()) ->  | AO7: =IF('Serial Data'!AJ7+'Serial Data'!AK7+'Serial Data'!AL7<>0,(AM7*0.866*Templates!K2),NA()) ->  | AQ7: ='Serial Data'!AQ7/('Serial Data'!AO7+'Serial Data'!AP7+'Serial Data'!AQ7) ->  | AR7: ='Serial Data'!AO7/('Serial Data'!AO7+'Serial Data'!AP7+'Serial Data'!AQ7) ->  | AS7: ='Serial Data'!AP7/('Serial Data'!AO7+'Serial Data'!AP7+'Serial Data'!AQ7) ->  | AT7: =IF('Serial Data'!AO7+'Serial Data'!AP7+'Serial Data'!AQ7<>0,(AR7+(AS7*0.5)),NA()) ->  | AU7: =IF('Serial Data'!AO7+'Serial Data'!AP7+'Serial Data'!AQ7<>0,(AS7*0.866*Templates!K2),NA()) ->  | AW7: ='Serial Data'!AV7/('Serial Data'!AT7+'Serial Data'!AU7+'Serial Data'!AV7) ->  | AX7: ='Serial Data'!AT7/('Serial Data'!AT7+'Serial Data'!AU7+'Serial Data'!AV7) ->  | AY7: ='Serial Data'!AU7/('Serial Data'!AT7+'Serial Data'!AU7+'Serial Data'!AV7) ->  | AZ7: =IF('Serial Data'!AT7+'Serial Data'!AU7+'Serial Data'!AV7<>0,(AX7+(AY7*0.5)),NA()) ->  | BA7: =IF('Serial Data'!AT7+'Serial Data'!AU7+'Serial Data'!AV7<>0,(AY7*0.866*Templates!K2),NA()) ->  | BC7: ='Serial Data'!BA7/('Serial Data'!AY7+'Serial Data'!AZ7+'Serial Data'!BA7) ->  | BD7: ='Serial Data'!AY7/('Serial Data'!AY7+'Serial Data'!AZ7+'Serial Data'!BA7) ->  | BE7: ='Serial Data'!AZ7/('Serial Data'!AY7+'Serial Data'!AZ7+'Serial Data'!BA7) ->  | BF7: =IF('Serial Data'!AY7+'Serial Data'!AZ7+'Serial Data'!BA7<>0,(BD7+(BE7*0.5)),NA()) ->  | BG7: =IF('Serial Data'!AY7+'Serial Data'!AZ7+'Serial Data'!BA7<>0,(BE7*0.866*Templates!K2),NA()) ->  | BI7: ='Serial Data'!BF7/('Serial Data'!BD7+'Serial Data'!BE7+'Serial Data'!BF7) ->  | BJ7: ='Serial Data'!BD7/('Serial Data'!BD7+'Serial Data'!BE7+'Serial Data'!BF7) ->  | BK7: ='Serial Data'!BE7/('Serial Data'!BD7+'Serial Data'!BE7+'Serial Data'!BF7) ->  | BL7: =IF('Serial Data'!BD7+'Serial Data'!BE7+'Serial Data'!BF7<>0,(BJ7+(BK7*0.5)),NA()) ->  | BM7: =IF('Serial Data'!BD7+'Serial Data'!BE7+'Serial Data'!BF7<>0,(BK7*0.866*Templates!K2),NA()) -> 
A8: ='Single Data'!N9/('Single Data'!L9+'Single Data'!M9+'Single Data'!N9) ->  | B8: ='Single Data'!L9/('Single Data'!L9+'Single Data'!M9+'Single Data'!N9) ->  | C8: ='Single Data'!M9/('Single Data'!L9+'Single Data'!M9+'Single Data'!N9) ->  | D8: =IF('Single Data'!L9+'Single Data'!M9+'Single Data'!N9<>0,(B8+(C8*0.5)),NA()) ->  | E8: =IF('Single Data'!L9+'Single Data'!M9+'Single Data'!N9<>0,(C8*0.866*Templates!K2),NA()) ->  | G8: ='Serial Data'!M8/('Serial Data'!K8+'Serial Data'!L8+'Serial Data'!M8) ->  | H8: ='Serial Data'!K8/('Serial Data'!K8+'Serial Data'!L8+'Serial Data'!M8) ->  | I8: ='Serial Data'!L8/('Serial Data'!K8+'Serial Data'!L8+'Serial Data'!M8) ->  | J8: =IF('Serial Data'!K8+'Serial Data'!L8+'Serial Data'!M8<>0,(H8+(I8*0.5)),NA()) ->  | K8: =IF('Serial Data'!K8+'Serial Data'!L8+'Serial Data'!M8<>0,(I8*0.866*Templates!K2),NA()) ->  | M8: ='Serial Data'!R8/('Serial Data'!P8+'Serial Data'!Q8+'Serial Data'!R8) ->  | N8: ='Serial Data'!P8/('Serial Data'!P8+'Serial Data'!Q8+'Serial Data'!R8) ->  | O8: ='Serial Data'!Q8/('Serial Data'!P8+'Serial Data'!Q8+'Serial Data'!R8) ->  | P8: =IF('Serial Data'!P8+'Serial Data'!Q8+'Serial Data'!R8<>0,(N8+(O8*0.5)),NA()) ->  | Q8: =IF('Serial Data'!P8+'Serial Data'!Q8+'Serial Data'!R8<>0,(O8*0.866*Templates!K2),NA()) ->  | S8: ='Serial Data'!W8/('Serial Data'!U8+'Serial Data'!V8+'Serial Data'!W8) ->  | T8: ='Serial Data'!U8/('Serial Data'!U8+'Serial Data'!V8+'Serial Data'!W8) ->  | U8: ='Serial Data'!V8/('Serial Data'!U8+'Serial Data'!V8+'Serial Data'!W8) ->  | V8: =IF('Serial Data'!V8+'Serial Data'!W8+'Serial Data'!U8<>0,(T8+(U8*0.5)),NA()) ->  | W8: =IF('Serial Data'!V8+'Serial Data'!W8+'Serial Data'!U8<>0,(U8*0.866*Templates!K2),NA()) ->  | Y8: ='Serial Data'!AB8/('Serial Data'!AA8+'Serial Data'!AB8+'Serial Data'!Z8) ->  | Z8: ='Serial Data'!Z8/('Serial Data'!AA8+'Serial Data'!AB8+'Serial Data'!Z8) ->  | AA8: ='Serial Data'!AA8/('Serial Data'!AA8+'Serial Data'!AB8+'Serial Data'!Z8) ->  | AB8: =IF('Serial Data'!AB8+'Serial Data'!AA8+'Serial Data'!Z8<>0,(Z8+(AA8*0.5)),NA()) ->  | AC8: =IF('Serial Data'!AB8+'Serial Data'!AA8+'Serial Data'!Z8<>0,(AA8*0.866*Templates!K2),NA()) ->  | AE8: ='Serial Data'!AG8/('Serial Data'!AG8+'Serial Data'!AE8+'Serial Data'!AF8) ->  | AF8: ='Serial Data'!AE8/('Serial Data'!AG8+'Serial Data'!AE8+'Serial Data'!AF8) ->  | AG8: ='Serial Data'!AF8/('Serial Data'!AG8+'Serial Data'!AE8+'Serial Data'!AF8) ->  | AH8: =IF('Serial Data'!AE8+'Serial Data'!AF8+'Serial Data'!AG8<>0,(AF8+(AG8*0.5)),NA()) ->  | AI8: =IF('Serial Data'!AE8+'Serial Data'!AF8+'Serial Data'!AG8<>0,(AG8*0.866*Templates!K2),NA()) ->  | AK8: ='Serial Data'!AL8/('Serial Data'!AJ8+'Serial Data'!AK8+'Serial Data'!AL8) ->  | AL8: ='Serial Data'!AJ8/('Serial Data'!AJ8+'Serial Data'!AK8+'Serial Data'!AL8) ->  | AM8: ='Serial Data'!AK8/('Serial Data'!AJ8+'Serial Data'!AK8+'Serial Data'!AL8) ->  | AN8: =IF('Serial Data'!AJ8+'Serial Data'!AK8+'Serial Data'!AL8<>0,(AL8+(AM8*0.5)),NA()) ->  | AO8: =IF('Serial Data'!AJ8+'Serial Data'!AK8+'Serial Data'!AL8<>0,(AM8*0.866*Templates!K2),NA()) ->  | AQ8: ='Serial Data'!AQ8/('Serial Data'!AO8+'Serial Data'!AP8+'Serial Data'!AQ8) ->  | AR8: ='Serial Data'!AO8/('Serial Data'!AO8+'Serial Data'!AP8+'Serial Data'!AQ8) ->  | AS8: ='Serial Data'!AP8/('Serial Data'!AO8+'Serial Data'!AP8+'Serial Data'!AQ8) ->  | AT8: =IF('Serial Data'!AO8+'Serial Data'!AP8+'Serial Data'!AQ8<>0,(AR8+(AS8*0.5)),NA()) ->  | AU8: =IF('Serial Data'!AO8+'Serial Data'!AP8+'Serial Data'!AQ8<>0,(AS8*0.866*Templates!K2),NA()) ->  | AW8: ='Serial Data'!AV8/('Serial Data'!AT8+'Serial Data'!AU8+'Serial Data'!AV8) ->  | AX8: ='Serial Data'!AT8/('Serial Data'!AT8+'Serial Data'!AU8+'Serial Data'!AV8) ->  | AY8: ='Serial Data'!AU8/('Serial Data'!AT8+'Serial Data'!AU8+'Serial Data'!AV8) ->  | AZ8: =IF('Serial Data'!AT8+'Serial Data'!AU8+'Serial Data'!AV8<>0,(AX8+(AY8*0.5)),NA()) ->  | BA8: =IF('Serial Data'!AT8+'Serial Data'!AU8+'Serial Data'!AV8<>0,(AY8*0.866*Templates!K2),NA()) ->  | BC8: ='Serial Data'!BA8/('Serial Data'!AY8+'Serial Data'!AZ8+'Serial Data'!BA8) ->  | BD8: ='Serial Data'!AY8/('Serial Data'!AY8+'Serial Data'!AZ8+'Serial Data'!BA8) ->  | BE8: ='Serial Data'!AZ8/('Serial Data'!AY8+'Serial Data'!AZ8+'Serial Data'!BA8) ->  | BF8: =IF('Serial Data'!AY8+'Serial Data'!AZ8+'Serial Data'!BA8<>0,(BD8+(BE8*0.5)),NA()) ->  | BG8: =IF('Serial Data'!AY8+'Serial Data'!AZ8+'Serial Data'!BA8<>0,(BE8*0.866*Templates!K2),NA()) ->  | BI8: ='Serial Data'!BF8/('Serial Data'!BD8+'Serial Data'!BE8+'Serial Data'!BF8) ->  | BJ8: ='Serial Data'!BD8/('Serial Data'!BD8+'Serial Data'!BE8+'Serial Data'!BF8) ->  | BK8: ='Serial Data'!BE8/('Serial Data'!BD8+'Serial Data'!BE8+'Serial Data'!BF8) ->  | BL8: =IF('Serial Data'!BD8+'Serial Data'!BE8+'Serial Data'!BF8<>0,(BJ8+(BK8*0.5)),NA()) ->  | BM8: =IF('Serial Data'!BD8+'Serial Data'!BE8+'Serial Data'!BF8<>0,(BK8*0.866*Templates!K2),NA()) -> 
A9: ='Single Data'!N10/('Single Data'!L10+'Single Data'!M10+'Single Data'!N10) ->  | B9: ='Single Data'!L10/('Single Data'!L10+'Single Data'!M10+'Single Data'!N10) ->  | C9: ='Single Data'!M10/('Single Data'!L10+'Single Data'!M10+'Single Data'!N10) ->  | D9: =IF('Single Data'!L10+'Single Data'!M10+'Single Data'!N10<>0,(B9+(C9*0.5)),NA()) ->  | E9: =IF('Single Data'!L10+'Single Data'!M10+'Single Data'!N10<>0,(C9*0.866*Templates!K2),NA()) ->  | G9: ='Serial Data'!M9/('Serial Data'!K9+'Serial Data'!L9+'Serial Data'!M9) ->  | H9: ='Serial Data'!K9/('Serial Data'!K9+'Serial Data'!L9+'Serial Data'!M9) ->  | I9: ='Serial Data'!L9/('Serial Data'!K9+'Serial Data'!L9+'Serial Data'!M9) ->  | J9: =IF('Serial Data'!K9+'Serial Data'!L9+'Serial Data'!M9<>0,(H9+(I9*0.5)),NA()) ->  | K9: =IF('Serial Data'!K9+'Serial Data'!L9+'Serial Data'!M9<>0,(I9*0.866*Templates!K2),NA()) ->  | M9: ='Serial Data'!R9/('Serial Data'!P9+'Serial Data'!Q9+'Serial Data'!R9) ->  | N9: ='Serial Data'!P9/('Serial Data'!P9+'Serial Data'!Q9+'Serial Data'!R9) ->  | O9: ='Serial Data'!Q9/('Serial Data'!P9+'Serial Data'!Q9+'Serial Data'!R9) ->  | P9: =IF('Serial Data'!P9+'Serial Data'!Q9+'Serial Data'!R9<>0,(N9+(O9*0.5)),NA()) ->  | Q9: =IF('Serial Data'!P9+'Serial Data'!Q9+'Serial Data'!R9<>0,(O9*0.866*Templates!K2),NA()) ->  | S9: ='Serial Data'!W9/('Serial Data'!U9+'Serial Data'!V9+'Serial Data'!W9) ->  | T9: ='Serial Data'!U9/('Serial Data'!U9+'Serial Data'!V9+'Serial Data'!W9) ->  | U9: ='Serial Data'!V9/('Serial Data'!U9+'Serial Data'!V9+'Serial Data'!W9) ->  | V9: =IF('Serial Data'!V9+'Serial Data'!W9+'Serial Data'!U9<>0,(T9+(U9*0.5)),NA()) ->  | W9: =IF('Serial Data'!V9+'Serial Data'!W9+'Serial Data'!U9<>0,(U9*0.866*Templates!K2),NA()) ->  | Y9: ='Serial Data'!AB9/('Serial Data'!AA9+'Serial Data'!AB9+'Serial Data'!Z9) ->  | Z9: ='Serial Data'!Z9/('Serial Data'!AA9+'Serial Data'!AB9+'Serial Data'!Z9) ->  | AA9: ='Serial Data'!AA9/('Serial Data'!AA9+'Serial Data'!AB9+'Serial Data'!Z9) ->  | AB9: =IF('Serial Data'!AB9+'Serial Data'!AA9+'Serial Data'!Z9<>0,(Z9+(AA9*0.5)),NA()) ->  | AC9: =IF('Serial Data'!AB9+'Serial Data'!AA9+'Serial Data'!Z9<>0,(AA9*0.866*Templates!K2),NA()) ->  | AE9: ='Serial Data'!AG9/('Serial Data'!AG9+'Serial Data'!AE9+'Serial Data'!AF9) ->  | AF9: ='Serial Data'!AE9/('Serial Data'!AG9+'Serial Data'!AE9+'Serial Data'!AF9) ->  | AG9: ='Serial Data'!AF9/('Serial Data'!AG9+'Serial Data'!AE9+'Serial Data'!AF9) ->  | AH9: =IF('Serial Data'!AE9+'Serial Data'!AF9+'Serial Data'!AG9<>0,(AF9+(AG9*0.5)),NA()) ->  | AI9: =IF('Serial Data'!AE9+'Serial Data'!AF9+'Serial Data'!AG9<>0,(AG9*0.866*Templates!K2),NA()) ->  | AK9: ='Serial Data'!AL9/('Serial Data'!AJ9+'Serial Data'!AK9+'Serial Data'!AL9) ->  | AL9: ='Serial Data'!AJ9/('Serial Data'!AJ9+'Serial Data'!AK9+'Serial Data'!AL9) ->  | AM9: ='Serial Data'!AK9/('Serial Data'!AJ9+'Serial Data'!AK9+'Serial Data'!AL9) ->  | AN9: =IF('Serial Data'!AJ9+'Serial Data'!AK9+'Serial Data'!AL9<>0,(AL9+(AM9*0.5)),NA()) ->  | AO9: =IF('Serial Data'!AJ9+'Serial Data'!AK9+'Serial Data'!AL9<>0,(AM9*0.866*Templates!K2),NA()) ->  | AQ9: ='Serial Data'!AQ9/('Serial Data'!AO9+'Serial Data'!AP9+'Serial Data'!AQ9) ->  | AR9: ='Serial Data'!AO9/('Serial Data'!AO9+'Serial Data'!AP9+'Serial Data'!AQ9) ->  | AS9: ='Serial Data'!AP9/('Serial Data'!AO9+'Serial Data'!AP9+'Serial Data'!AQ9) ->  | AT9: =IF('Serial Data'!AO9+'Serial Data'!AP9+'Serial Data'!AQ9<>0,(AR9+(AS9*0.5)),NA()) ->  | AU9: =IF('Serial Data'!AO9+'Serial Data'!AP9+'Serial Data'!AQ9<>0,(AS9*0.866*Templates!K2),NA()) ->  | AW9: ='Serial Data'!AV9/('Serial Data'!AT9+'Serial Data'!AU9+'Serial Data'!AV9) ->  | AX9: ='Serial Data'!AT9/('Serial Data'!AT9+'Serial Data'!AU9+'Serial Data'!AV9) ->  | AY9: ='Serial Data'!AU9/('Serial Data'!AT9+'Serial Data'!AU9+'Serial Data'!AV9) ->  | AZ9: =IF('Serial Data'!AT9+'Serial Data'!AU9+'Serial Data'!AV9<>0,(AX9+(AY9*0.5)),NA()) ->  | BA9: =IF('Serial Data'!AT9+'Serial Data'!AU9+'Serial Data'!AV9<>0,(AY9*0.866*Templates!K2),NA()) ->  | BC9: ='Serial Data'!BA9/('Serial Data'!AY9+'Serial Data'!AZ9+'Serial Data'!BA9) ->  | BD9: ='Serial Data'!AY9/('Serial Data'!AY9+'Serial Data'!AZ9+'Serial Data'!BA9) ->  | BE9: ='Serial Data'!AZ9/('Serial Data'!AY9+'Serial Data'!AZ9+'Serial Data'!BA9) ->  | BF9: =IF('Serial Data'!AY9+'Serial Data'!AZ9+'Serial Data'!BA9<>0,(BD9+(BE9*0.5)),NA()) ->  | BG9: =IF('Serial Data'!AY9+'Serial Data'!AZ9+'Serial Data'!BA9<>0,(BE9*0.866*Templates!K2),NA()) ->  | BI9: ='Serial Data'!BF9/('Serial Data'!BD9+'Serial Data'!BE9+'Serial Data'!BF9) ->  | BJ9: ='Serial Data'!BD9/('Serial Data'!BD9+'Serial Data'!BE9+'Serial Data'!BF9) ->  | BK9: ='Serial Data'!BE9/('Serial Data'!BD9+'Serial Data'!BE9+'Serial Data'!BF9) ->  | BL9: =IF('Serial Data'!BD9+'Serial Data'!BE9+'Serial Data'!BF9<>0,(BJ9+(BK9*0.5)),NA()) ->  | BM9: =IF('Serial Data'!BD9+'Serial Data'!BE9+'Serial Data'!BF9<>0,(BK9*0.866*Templates!K2),NA()) -> 
A10: ='Single Data'!N11/('Single Data'!L11+'Single Data'!M11+'Single Data'!N11) ->  | B10: ='Single Data'!L11/('Single Data'!L11+'Single Data'!M11+'Single Data'!N11) ->  | C10: ='Single Data'!M11/('Single Data'!L11+'Single Data'!M11+'Single Data'!N11) ->  | D10: =IF('Single Data'!L11+'Single Data'!M11+'Single Data'!N11<>0,(B10+(C10*0.5)),NA()) ->  | E10: =IF('Single Data'!L11+'Single Data'!M11+'Single Data'!N11<>0,(C10*0.866*Templates!K2),NA()) ->  | G10: ='Serial Data'!M10/('Serial Data'!K10+'Serial Data'!L10+'Serial Data'!M10) ->  | H10: ='Serial Data'!K10/('Serial Data'!K10+'Serial Data'!L10+'Serial Data'!M10) ->  | I10: ='Serial Data'!L10/('Serial Data'!K10+'Serial Data'!L10+'Serial Data'!M10) ->  | J10: =IF('Serial Data'!K10+'Serial Data'!L10+'Serial Data'!M10<>0,(H10+(I10*0.5)),NA()) ->  | K10: =IF('Serial Data'!K10+'Serial Data'!L10+'Serial Data'!M10<>0,(I10*0.866*Templates!K2),NA()) ->  | M10: ='Serial Data'!R10/('Serial Data'!P10+'Serial Data'!Q10+'Serial Data'!R10) ->  | N10: ='Serial Data'!P10/('Serial Data'!P10+'Serial Data'!Q10+'Serial Data'!R10) ->  | O10: ='Serial Data'!Q10/('Serial Data'!P10+'Serial Data'!Q10+'Serial Data'!R10) ->  | P10: =IF('Serial Data'!P10+'Serial Data'!Q10+'Serial Data'!R10<>0,(N10+(O10*0.5)),NA()) ->  | Q10: =IF('Serial Data'!P10+'Serial Data'!Q10+'Serial Data'!R10<>0,(O10*0.866*Templates!K2),NA()) ->  | S10: ='Serial Data'!W10/('Serial Data'!U10+'Serial Data'!V10+'Serial Data'!W10) ->  | T10: ='Serial Data'!U10/('Serial Data'!U10+'Serial Data'!V10+'Serial Data'!W10) ->  | U10: ='Serial Data'!V10/('Serial Data'!U10+'Serial Data'!V10+'Serial Data'!W10) ->  | V10: =IF('Serial Data'!V10+'Serial Data'!W10+'Serial Data'!U10<>0,(T10+(U10*0.5)),NA()) ->  | W10: =IF('Serial Data'!V10+'Serial Data'!W10+'Serial Data'!U10<>0,(U10*0.866*Templates!K2),NA()) ->  | Y10: ='Serial Data'!AB10/('Serial Data'!AA10+'Serial Data'!AB10+'Serial Data'!Z10) ->  | Z10: ='Serial Data'!Z10/('Serial Data'!AA10+'Serial Data'!AB10+'Serial Data'!Z10) ->  | AA10: ='Serial Data'!AA10/('Serial Data'!AA10+'Serial Data'!AB10+'Serial Data'!Z10) ->  | AB10: =IF('Serial Data'!AB10+'Serial Data'!AA10+'Serial Data'!Z10<>0,(Z10+(AA10*0.5)),NA()) ->  | AC10: =IF('Serial Data'!AB10+'Serial Data'!AA10+'Serial Data'!Z10<>0,(AA10*0.866*Templates!K2),NA()) ->  | AE10: ='Serial Data'!AG10/('Serial Data'!AG10+'Serial Data'!AE10+'Serial Data'!AF10) ->  | AF10: ='Serial Data'!AE10/('Serial Data'!AG10+'Serial Data'!AE10+'Serial Data'!AF10) ->  | AG10: ='Serial Data'!AF10/('Serial Data'!AG10+'Serial Data'!AE10+'Serial Data'!AF10) ->  | AH10: =IF('Serial Data'!AE10+'Serial Data'!AF10+'Serial Data'!AG10<>0,(AF10+(AG10*0.5)),NA()) ->  | AI10: =IF('Serial Data'!AE10+'Serial Data'!AF10+'Serial Data'!AG10<>0,(AG10*0.866*Templates!K2),NA()) ->  | AK10: ='Serial Data'!AL10/('Serial Data'!AJ10+'Serial Data'!AK10+'Serial Data'!AL10) ->  | AL10: ='Serial Data'!AJ10/('Serial Data'!AJ10+'Serial Data'!AK10+'Serial Data'!AL10) ->  | AM10: ='Serial Data'!AK10/('Serial Data'!AJ10+'Serial Data'!AK10+'Serial Data'!AL10) ->  | AN10: =IF('Serial Data'!AJ10+'Serial Data'!AK10+'Serial Data'!AL10<>0,(AL10+(AM10*0.5)),NA()) ->  | AO10: =IF('Serial Data'!AJ10+'Serial Data'!AK10+'Serial Data'!AL10<>0,(AM10*0.866*Templates!K2),NA()) ->  | AQ10: ='Serial Data'!AQ10/('Serial Data'!AO10+'Serial Data'!AP10+'Serial Data'!AQ10) ->  | AR10: ='Serial Data'!AO10/('Serial Data'!AO10+'Serial Data'!AP10+'Serial Data'!AQ10) ->  | AS10: ='Serial Data'!AP10/('Serial Data'!AO10+'Serial Data'!AP10+'Serial Data'!AQ10) ->  | AT10: =IF('Serial Data'!AO10+'Serial Data'!AP10+'Serial Data'!AQ10<>0,(AR10+(AS10*0.5)),NA()) ->  | AU10: =IF('Serial Data'!AO10+'Serial Data'!AP10+'Serial Data'!AQ10<>0,(AS10*0.866*Templates!K2),NA()) ->  | AW10: ='Serial Data'!AV10/('Serial Data'!AT10+'Serial Data'!AU10+'Serial Data'!AV10) ->  | AX10: ='Serial Data'!AT10/('Serial Data'!AT10+'Serial Data'!AU10+'Serial Data'!AV10) ->  | AY10: ='Serial Data'!AU10/('Serial Data'!AT10+'Serial Data'!AU10+'Serial Data'!AV10) ->  | AZ10: =IF('Serial Data'!AT10+'Serial Data'!AU10+'Serial Data'!AV10<>0,(AX10+(AY10*0.5)),NA()) ->  | BA10: =IF('Serial Data'!AT10+'Serial Data'!AU10+'Serial Data'!AV10<>0,(AY10*0.866*Templates!K2),NA()) ->  | BC10: ='Serial Data'!BA10/('Serial Data'!AY10+'Serial Data'!AZ10+'Serial Data'!BA10) ->  | BD10: ='Serial Data'!AY10/('Serial Data'!AY10+'Serial Data'!AZ10+'Serial Data'!BA10) ->  | BE10: ='Serial Data'!AZ10/('Serial Data'!AY10+'Serial Data'!AZ10+'Serial Data'!BA10) ->  | BF10: =IF('Serial Data'!AY10+'Serial Data'!AZ10+'Serial Data'!BA10<>0,(BD10+(BE10*0.5)),NA()) ->  | BG10: =IF('Serial Data'!AY10+'Serial Data'!AZ10+'Serial Data'!BA10<>0,(BE10*0.866*Templates!K2),NA()) ->  | BI10: ='Serial Data'!BF10/('Serial Data'!BD10+'Serial Data'!BE10+'Serial Data'!BF10) ->  | BJ10: ='Serial Data'!BD10/('Serial Data'!BD10+'Serial Data'!BE10+'Serial Data'!BF10) ->  | BK10: ='Serial Data'!BE10/('Serial Data'!BD10+'Serial Data'!BE10+'Serial Data'!BF10) ->  | BL10: =IF('Serial Data'!BD10+'Serial Data'!BE10+'Serial Data'!BF10<>0,(BJ10+(BK10*0.5)),NA()) ->  | BM10: =IF('Serial Data'!BD10+'Serial Data'!BE10+'Serial Data'!BF10<>0,(BK10*0.866*Templates!K2),NA()) -> 
A11: ='Single Data'!N12/('Single Data'!L12+'Single Data'!M12+'Single Data'!N12) ->  | B11: ='Single Data'!L12/('Single Data'!L12+'Single Data'!M12+'Single Data'!N12) ->  | C11: ='Single Data'!M12/('Single Data'!L12+'Single Data'!M12+'Single Data'!N12) ->  | D11: =IF('Single Data'!L12+'Single Data'!M12+'Single Data'!N12<>0,(B11+(C11*0.5)),NA()) ->  | E11: =IF('Single Data'!L12+'Single Data'!M12+'Single Data'!N12<>0,(C11*0.866*Templates!K2),NA()) ->  | G11: ='Serial Data'!M11/('Serial Data'!K11+'Serial Data'!L11+'Serial Data'!M11) ->  | H11: ='Serial Data'!K11/('Serial Data'!K11+'Serial Data'!L11+'Serial Data'!M11) ->  | I11: ='Serial Data'!L11/('Serial Data'!K11+'Serial Data'!L11+'Serial Data'!M11) ->  | J11: =IF('Serial Data'!K11+'Serial Data'!L11+'Serial Data'!M11<>0,(H11+(I11*0.5)),NA()) ->  | K11: =IF('Serial Data'!K11+'Serial Data'!L11+'Serial Data'!M11<>0,(I11*0.866*Templates!K2),NA()) ->  | M11: ='Serial Data'!R11/('Serial Data'!P11+'Serial Data'!Q11+'Serial Data'!R11) ->  | N11: ='Serial Data'!P11/('Serial Data'!P11+'Serial Data'!Q11+'Serial Data'!R11) ->  | O11: ='Serial Data'!Q11/('Serial Data'!P11+'Serial Data'!Q11+'Serial Data'!R11) ->  | P11: =IF('Serial Data'!P11+'Serial Data'!Q11+'Serial Data'!R11<>0,(N11+(O11*0.5)),NA()) ->  | Q11: =IF('Serial Data'!P11+'Serial Data'!Q11+'Serial Data'!R11<>0,(O11*0.866*Templates!K2),NA()) ->  | S11: ='Serial Data'!W11/('Serial Data'!U11+'Serial Data'!V11+'Serial Data'!W11) ->  | T11: ='Serial Data'!U11/('Serial Data'!U11+'Serial Data'!V11+'Serial Data'!W11) ->  | U11: ='Serial Data'!V11/('Serial Data'!U11+'Serial Data'!V11+'Serial Data'!W11) ->  | V11: =IF('Serial Data'!V11+'Serial Data'!W11+'Serial Data'!U11<>0,(T11+(U11*0.5)),NA()) ->  | W11: =IF('Serial Data'!V11+'Serial Data'!W11+'Serial Data'!U11<>0,(U11*0.866*Templates!K2),NA()) ->  | Y11: ='Serial Data'!AB11/('Serial Data'!AA11+'Serial Data'!AB11+'Serial Data'!Z11) ->  | Z11: ='Serial Data'!Z11/('Serial Data'!AA11+'Serial Data'!AB11+'Serial Data'!Z11) ->  | AA11: ='Serial Data'!AA11/('Serial Data'!AA11+'Serial Data'!AB11+'Serial Data'!Z11) ->  | AB11: =IF('Serial Data'!AB11+'Serial Data'!AA11+'Serial Data'!Z11<>0,(Z11+(AA11*0.5)),NA()) ->  | AC11: =IF('Serial Data'!AB11+'Serial Data'!AA11+'Serial Data'!Z11<>0,(AA11*0.866*Templates!K2),NA()) ->  | AE11: ='Serial Data'!AG11/('Serial Data'!AG11+'Serial Data'!AE11+'Serial Data'!AF11) ->  | AF11: ='Serial Data'!AE11/('Serial Data'!AG11+'Serial Data'!AE11+'Serial Data'!AF11) ->  | AG11: ='Serial Data'!AF11/('Serial Data'!AG11+'Serial Data'!AE11+'Serial Data'!AF11) ->  | AH11: =IF('Serial Data'!AE11+'Serial Data'!AF11+'Serial Data'!AG11<>0,(AF11+(AG11*0.5)),NA()) ->  | AI11: =IF('Serial Data'!AE11+'Serial Data'!AF11+'Serial Data'!AG11<>0,(AG11*0.866*Templates!K2),NA()) ->  | AK11: ='Serial Data'!AL11/('Serial Data'!AJ11+'Serial Data'!AK11+'Serial Data'!AL11) ->  | AL11: ='Serial Data'!AJ11/('Serial Data'!AJ11+'Serial Data'!AK11+'Serial Data'!AL11) ->  | AM11: ='Serial Data'!AK11/('Serial Data'!AJ11+'Serial Data'!AK11+'Serial Data'!AL11) ->  | AN11: =IF('Serial Data'!AJ11+'Serial Data'!AK11+'Serial Data'!AL11<>0,(AL11+(AM11*0.5)),NA()) ->  | AO11: =IF('Serial Data'!AJ11+'Serial Data'!AK11+'Serial Data'!AL11<>0,(AM11*0.866*Templates!K2),NA()) ->  | AQ11: ='Serial Data'!AQ11/('Serial Data'!AO11+'Serial Data'!AP11+'Serial Data'!AQ11) ->  | AR11: ='Serial Data'!AO11/('Serial Data'!AO11+'Serial Data'!AP11+'Serial Data'!AQ11) ->  | AS11: ='Serial Data'!AP11/('Serial Data'!AO11+'Serial Data'!AP11+'Serial Data'!AQ11) ->  | AT11: =IF('Serial Data'!AO11+'Serial Data'!AP11+'Serial Data'!AQ11<>0,(AR11+(AS11*0.5)),NA()) ->  | AU11: =IF('Serial Data'!AO11+'Serial Data'!AP11+'Serial Data'!AQ11<>0,(AS11*0.866*Templates!K2),NA()) ->  | AW11: ='Serial Data'!AV11/('Serial Data'!AT11+'Serial Data'!AU11+'Serial Data'!AV11) ->  | AX11: ='Serial Data'!AT11/('Serial Data'!AT11+'Serial Data'!AU11+'Serial Data'!AV11) ->  | AY11: ='Serial Data'!AU11/('Serial Data'!AT11+'Serial Data'!AU11+'Serial Data'!AV11) ->  | AZ11: =IF('Serial Data'!AT11+'Serial Data'!AU11+'Serial Data'!AV11<>0,(AX11+(AY11*0.5)),NA()) ->  | BA11: =IF('Serial Data'!AT11+'Serial Data'!AU11+'Serial Data'!AV11<>0,(AY11*0.866*Templates!K2),NA()) ->  | BC11: ='Serial Data'!BA11/('Serial Data'!AY11+'Serial Data'!AZ11+'Serial Data'!BA11) ->  | BD11: ='Serial Data'!AY11/('Serial Data'!AY11+'Serial Data'!AZ11+'Serial Data'!BA11) ->  | BE11: ='Serial Data'!AZ11/('Serial Data'!AY11+'Serial Data'!AZ11+'Serial Data'!BA11) ->  | BF11: =IF('Serial Data'!AY11+'Serial Data'!AZ11+'Serial Data'!BA11<>0,(BD11+(BE11*0.5)),NA()) ->  | BG11: =IF('Serial Data'!AY11+'Serial Data'!AZ11+'Serial Data'!BA11<>0,(BE11*0.866*Templates!K2),NA()) ->  | BI11: ='Serial Data'!BF11/('Serial Data'!BD11+'Serial Data'!BE11+'Serial Data'!BF11) ->  | BJ11: ='Serial Data'!BD11/('Serial Data'!BD11+'Serial Data'!BE11+'Serial Data'!BF11) ->  | BK11: ='Serial Data'!BE11/('Serial Data'!BD11+'Serial Data'!BE11+'Serial Data'!BF11) ->  | BL11: =IF('Serial Data'!BD11+'Serial Data'!BE11+'Serial Data'!BF11<>0,(BJ11+(BK11*0.5)),NA()) ->  | BM11: =IF('Serial Data'!BD11+'Serial Data'!BE11+'Serial Data'!BF11<>0,(BK11*0.866*Templates!K2),NA()) -> 
A12: ='Single Data'!N13/('Single Data'!L13+'Single Data'!M13+'Single Data'!N13) ->  | B12: ='Single Data'!L13/('Single Data'!L13+'Single Data'!M13+'Single Data'!N13) ->  | C12: ='Single Data'!M13/('Single Data'!L13+'Single Data'!M13+'Single Data'!N13) ->  | D12: =IF('Single Data'!L13+'Single Data'!M13+'Single Data'!N13<>0,(B12+(C12*0.5)),NA()) ->  | E12: =IF('Single Data'!L13+'Single Data'!M13+'Single Data'!N13<>0,(C12*0.866*Templates!K2),NA()) ->  | G12: ='Serial Data'!M12/('Serial Data'!K12+'Serial Data'!L12+'Serial Data'!M12) ->  | H12: ='Serial Data'!K12/('Serial Data'!K12+'Serial Data'!L12+'Serial Data'!M12) ->  | I12: ='Serial Data'!L12/('Serial Data'!K12+'Serial Data'!L12+'Serial Data'!M12) ->  | J12: =IF('Serial Data'!K12+'Serial Data'!L12+'Serial Data'!M12<>0,(H12+(I12*0.5)),NA()) ->  | K12: =IF('Serial Data'!K12+'Serial Data'!L12+'Serial Data'!M12<>0,(I12*0.866*Templates!K2),NA()) ->  | M12: ='Serial Data'!R12/('Serial Data'!P12+'Serial Data'!Q12+'Serial Data'!R12) ->  | N12: ='Serial Data'!P12/('Serial Data'!P12+'Serial Data'!Q12+'Serial Data'!R12) ->  | O12: ='Serial Data'!Q12/('Serial Data'!P12+'Serial Data'!Q12+'Serial Data'!R12) ->  | P12: =IF('Serial Data'!P12+'Serial Data'!Q12+'Serial Data'!R12<>0,(N12+(O12*0.5)),NA()) ->  | Q12: =IF('Serial Data'!P12+'Serial Data'!Q12+'Serial Data'!R12<>0,(O12*0.866*Templates!K2),NA()) ->  | S12: ='Serial Data'!W12/('Serial Data'!U12+'Serial Data'!V12+'Serial Data'!W12) ->  | T12: ='Serial Data'!U12/('Serial Data'!U12+'Serial Data'!V12+'Serial Data'!W12) ->  | U12: ='Serial Data'!V12/('Serial Data'!U12+'Serial Data'!V12+'Serial Data'!W12) ->  | V12: =IF('Serial Data'!V12+'Serial Data'!W12+'Serial Data'!U12<>0,(T12+(U12*0.5)),NA()) ->  | W12: =IF('Serial Data'!V12+'Serial Data'!W12+'Serial Data'!U12<>0,(U12*0.866*Templates!K2),NA()) ->  | Y12: ='Serial Data'!AB12/('Serial Data'!AA12+'Serial Data'!AB12+'Serial Data'!Z12) ->  | Z12: ='Serial Data'!Z12/('Serial Data'!AA12+'Serial Data'!AB12+'Serial Data'!Z12) ->  | AA12: ='Serial Data'!AA12/('Serial Data'!AA12+'Serial Data'!AB12+'Serial Data'!Z12) ->  | AB12: =IF('Serial Data'!AB12+'Serial Data'!AA12+'Serial Data'!Z12<>0,(Z12+(AA12*0.5)),NA()) ->  | AC12: =IF('Serial Data'!AB12+'Serial Data'!AA12+'Serial Data'!Z12<>0,(AA12*0.866*Templates!K2),NA()) ->  | AE12: ='Serial Data'!AG12/('Serial Data'!AG12+'Serial Data'!AE12+'Serial Data'!AF12) ->  | AF12: ='Serial Data'!AE12/('Serial Data'!AG12+'Serial Data'!AE12+'Serial Data'!AF12) ->  | AG12: ='Serial Data'!AF12/('Serial Data'!AG12+'Serial Data'!AE12+'Serial Data'!AF12) ->  | AH12: =IF('Serial Data'!AE12+'Serial Data'!AF12+'Serial Data'!AG12<>0,(AF12+(AG12*0.5)),NA()) ->  | AI12: =IF('Serial Data'!AE12+'Serial Data'!AF12+'Serial Data'!AG12<>0,(AG12*0.866*Templates!K2),NA()) ->  | AK12: ='Serial Data'!AL12/('Serial Data'!AJ12+'Serial Data'!AK12+'Serial Data'!AL12) ->  | AL12: ='Serial Data'!AJ12/('Serial Data'!AJ12+'Serial Data'!AK12+'Serial Data'!AL12) ->  | AM12: ='Serial Data'!AK12/('Serial Data'!AJ12+'Serial Data'!AK12+'Serial Data'!AL12) ->  | AN12: =IF('Serial Data'!AJ12+'Serial Data'!AK12+'Serial Data'!AL12<>0,(AL12+(AM12*0.5)),NA()) ->  | AO12: =IF('Serial Data'!AJ12+'Serial Data'!AK12+'Serial Data'!AL12<>0,(AM12*0.866*Templates!K2),NA()) ->  | AQ12: ='Serial Data'!AQ12/('Serial Data'!AO12+'Serial Data'!AP12+'Serial Data'!AQ12) ->  | AR12: ='Serial Data'!AO12/('Serial Data'!AO12+'Serial Data'!AP12+'Serial Data'!AQ12) ->  | AS12: ='Serial Data'!AP12/('Serial Data'!AO12+'Serial Data'!AP12+'Serial Data'!AQ12) ->  | AT12: =IF('Serial Data'!AO12+'Serial Data'!AP12+'Serial Data'!AQ12<>0,(AR12+(AS12*0.5)),NA()) ->  | AU12: =IF('Serial Data'!AO12+'Serial Data'!AP12+'Serial Data'!AQ12<>0,(AS12*0.866*Templates!K2),NA()) ->  | AW12: ='Serial Data'!AV12/('Serial Data'!AT12+'Serial Data'!AU12+'Serial Data'!AV12) ->  | AX12: ='Serial Data'!AT12/('Serial Data'!AT12+'Serial Data'!AU12+'Serial Data'!AV12) ->  | AY12: ='Serial Data'!AU12/('Serial Data'!AT12+'Serial Data'!AU12+'Serial Data'!AV12) ->  | AZ12: =IF('Serial Data'!AT12+'Serial Data'!AU12+'Serial Data'!AV12<>0,(AX12+(AY12*0.5)),NA()) ->  | BA12: =IF('Serial Data'!AT12+'Serial Data'!AU12+'Serial Data'!AV12<>0,(AY12*0.866*Templates!K2),NA()) ->  | BC12: ='Serial Data'!BA12/('Serial Data'!AY12+'Serial Data'!AZ12+'Serial Data'!BA12) ->  | BD12: ='Serial Data'!AY12/('Serial Data'!AY12+'Serial Data'!AZ12+'Serial Data'!BA12) ->  | BE12: ='Serial Data'!AZ12/('Serial Data'!AY12+'Serial Data'!AZ12+'Serial Data'!BA12) ->  | BF12: =IF('Serial Data'!AY12+'Serial Data'!AZ12+'Serial Data'!BA12<>0,(BD12+(BE12*0.5)),NA()) ->  | BG12: =IF('Serial Data'!AY12+'Serial Data'!AZ12+'Serial Data'!BA12<>0,(BE12*0.866*Templates!K2),NA()) ->  | BI12: ='Serial Data'!BF12/('Serial Data'!BD12+'Serial Data'!BE12+'Serial Data'!BF12) ->  | BJ12: ='Serial Data'!BD12/('Serial Data'!BD12+'Serial Data'!BE12+'Serial Data'!BF12) ->  | BK12: ='Serial Data'!BE12/('Serial Data'!BD12+'Serial Data'!BE12+'Serial Data'!BF12) ->  | BL12: =IF('Serial Data'!BD12+'Serial Data'!BE12+'Serial Data'!BF12<>0,(BJ12+(BK12*0.5)),NA()) ->  | BM12: =IF('Serial Data'!BD12+'Serial Data'!BE12+'Serial Data'!BF12<>0,(BK12*0.866*Templates!K2),NA()) -> 
A13: ='Single Data'!N14/('Single Data'!L14+'Single Data'!M14+'Single Data'!N14) ->  | B13: ='Single Data'!L14/('Single Data'!L14+'Single Data'!M14+'Single Data'!N14) ->  | C13: ='Single Data'!M14/('Single Data'!L14+'Single Data'!M14+'Single Data'!N14) ->  | D13: =IF('Single Data'!L14+'Single Data'!M14+'Single Data'!N14<>0,(B13+(C13*0.5)),NA()) ->  | E13: =IF('Single Data'!L14+'Single Data'!M14+'Single Data'!N14<>0,(C13*0.866*Templates!K2),NA()) ->  | G13: ='Serial Data'!M13/('Serial Data'!K13+'Serial Data'!L13+'Serial Data'!M13) ->  | H13: ='Serial Data'!K13/('Serial Data'!K13+'Serial Data'!L13+'Serial Data'!M13) ->  | I13: ='Serial Data'!L13/('Serial Data'!K13+'Serial Data'!L13+'Serial Data'!M13) ->  | J13: =IF('Serial Data'!K13+'Serial Data'!L13+'Serial Data'!M13<>0,(H13+(I13*0.5)),NA()) ->  | K13: =IF('Serial Data'!K13+'Serial Data'!L13+'Serial Data'!M13<>0,(I13*0.866*Templates!K2),NA()) ->  | M13: ='Serial Data'!R13/('Serial Data'!P13+'Serial Data'!Q13+'Serial Data'!R13) ->  | N13: ='Serial Data'!P13/('Serial Data'!P13+'Serial Data'!Q13+'Serial Data'!R13) ->  | O13: ='Serial Data'!Q13/('Serial Data'!P13+'Serial Data'!Q13+'Serial Data'!R13) ->  | P13: =IF('Serial Data'!P13+'Serial Data'!Q13+'Serial Data'!R13<>0,(N13+(O13*0.5)),NA()) ->  | Q13: =IF('Serial Data'!P13+'Serial Data'!Q13+'Serial Data'!R13<>0,(O13*0.866*Templates!K2),NA()) ->  | S13: ='Serial Data'!W13/('Serial Data'!U13+'Serial Data'!V13+'Serial Data'!W13) ->  | T13: ='Serial Data'!U13/('Serial Data'!U13+'Serial Data'!V13+'Serial Data'!W13) ->  | U13: ='Serial Data'!V13/('Serial Data'!U13+'Serial Data'!V13+'Serial Data'!W13) ->  | V13: =IF('Serial Data'!V13+'Serial Data'!W13+'Serial Data'!U13<>0,(T13+(U13*0.5)),NA()) ->  | W13: =IF('Serial Data'!V13+'Serial Data'!W13+'Serial Data'!U13<>0,(U13*0.866*Templates!K2),NA()) ->  | Y13: ='Serial Data'!AB13/('Serial Data'!AA13+'Serial Data'!AB13+'Serial Data'!Z13) ->  | Z13: ='Serial Data'!Z13/('Serial Data'!AA13+'Serial Data'!AB13+'Serial Data'!Z13) ->  | AA13: ='Serial Data'!AA13/('Serial Data'!AA13+'Serial Data'!AB13+'Serial Data'!Z13) ->  | AB13: =IF('Serial Data'!AB13+'Serial Data'!AA13+'Serial Data'!Z13<>0,(Z13+(AA13*0.5)),NA()) ->  | AC13: =IF('Serial Data'!AB13+'Serial Data'!AA13+'Serial Data'!Z13<>0,(AA13*0.866*Templates!K2),NA()) ->  | AE13: ='Serial Data'!AG13/('Serial Data'!AG13+'Serial Data'!AE13+'Serial Data'!AF13) ->  | AF13: ='Serial Data'!AE13/('Serial Data'!AG13+'Serial Data'!AE13+'Serial Data'!AF13) ->  | AG13: ='Serial Data'!AF13/('Serial Data'!AG13+'Serial Data'!AE13+'Serial Data'!AF13) ->  | AH13: =IF('Serial Data'!AE13+'Serial Data'!AF13+'Serial Data'!AG13<>0,(AF13+(AG13*0.5)),NA()) ->  | AI13: =IF('Serial Data'!AE13+'Serial Data'!AF13+'Serial Data'!AG13<>0,(AG13*0.866*Templates!K2),NA()) ->  | AK13: ='Serial Data'!AL13/('Serial Data'!AJ13+'Serial Data'!AK13+'Serial Data'!AL13) ->  | AL13: ='Serial Data'!AJ13/('Serial Data'!AJ13+'Serial Data'!AK13+'Serial Data'!AL13) ->  | AM13: ='Serial Data'!AK13/('Serial Data'!AJ13+'Serial Data'!AK13+'Serial Data'!AL13) ->  | AN13: =IF('Serial Data'!AJ13+'Serial Data'!AK13+'Serial Data'!AL13<>0,(AL13+(AM13*0.5)),NA()) ->  | AO13: =IF('Serial Data'!AJ13+'Serial Data'!AK13+'Serial Data'!AL13<>0,(AM13*0.866*Templates!K2),NA()) ->  | AQ13: ='Serial Data'!AQ13/('Serial Data'!AO13+'Serial Data'!AP13+'Serial Data'!AQ13) ->  | AR13: ='Serial Data'!AO13/('Serial Data'!AO13+'Serial Data'!AP13+'Serial Data'!AQ13) ->  | AS13: ='Serial Data'!AP13/('Serial Data'!AO13+'Serial Data'!AP13+'Serial Data'!AQ13) ->  | AT13: =IF('Serial Data'!AO13+'Serial Data'!AP13+'Serial Data'!AQ13<>0,(AR13+(AS13*0.5)),NA()) ->  | AU13: =IF('Serial Data'!AO13+'Serial Data'!AP13+'Serial Data'!AQ13<>0,(AS13*0.866*Templates!K2),NA()) ->  | AW13: ='Serial Data'!AV13/('Serial Data'!AT13+'Serial Data'!AU13+'Serial Data'!AV13) ->  | AX13: ='Serial Data'!AT13/('Serial Data'!AT13+'Serial Data'!AU13+'Serial Data'!AV13) ->  | AY13: ='Serial Data'!AU13/('Serial Data'!AT13+'Serial Data'!AU13+'Serial Data'!AV13) ->  | AZ13: =IF('Serial Data'!AT13+'Serial Data'!AU13+'Serial Data'!AV13<>0,(AX13+(AY13*0.5)),NA()) ->  | BA13: =IF('Serial Data'!AT13+'Serial Data'!AU13+'Serial Data'!AV13<>0,(AY13*0.866*Templates!K2),NA()) ->  | BC13: ='Serial Data'!BA13/('Serial Data'!AY13+'Serial Data'!AZ13+'Serial Data'!BA13) ->  | BD13: ='Serial Data'!AY13/('Serial Data'!AY13+'Serial Data'!AZ13+'Serial Data'!BA13) ->  | BE13: ='Serial Data'!AZ13/('Serial Data'!AY13+'Serial Data'!AZ13+'Serial Data'!BA13) ->  | BF13: =IF('Serial Data'!AY13+'Serial Data'!AZ13+'Serial Data'!BA13<>0,(BD13+(BE13*0.5)),NA()) ->  | BG13: =IF('Serial Data'!AY13+'Serial Data'!AZ13+'Serial Data'!BA13<>0,(BE13*0.866*Templates!K2),NA()) ->  | BI13: ='Serial Data'!BF13/('Serial Data'!BD13+'Serial Data'!BE13+'Serial Data'!BF13) ->  | BJ13: ='Serial Data'!BD13/('Serial Data'!BD13+'Serial Data'!BE13+'Serial Data'!BF13) ->  | BK13: ='Serial Data'!BE13/('Serial Data'!BD13+'Serial Data'!BE13+'Serial Data'!BF13) ->  | BL13: =IF('Serial Data'!BD13+'Serial Data'!BE13+'Serial Data'!BF13<>0,(BJ13+(BK13*0.5)),NA()) ->  | BM13: =IF('Serial Data'!BD13+'Serial Data'!BE13+'Serial Data'!BF13<>0,(BK13*0.866*Templates!K2),NA()) -> 
A14: ='Single Data'!N15/('Single Data'!L15+'Single Data'!M15+'Single Data'!N15) ->  | B14: ='Single Data'!L15/('Single Data'!L15+'Single Data'!M15+'Single Data'!N15) ->  | C14: ='Single Data'!M15/('Single Data'!L15+'Single Data'!M15+'Single Data'!N15) ->  | D14: =IF('Single Data'!L15+'Single Data'!M15+'Single Data'!N15<>0,(B14+(C14*0.5)),NA()) ->  | E14: =IF('Single Data'!L15+'Single Data'!M15+'Single Data'!N15<>0,(C14*0.866*Templates!K2),NA()) ->  | G14: ='Serial Data'!M14/('Serial Data'!K14+'Serial Data'!L14+'Serial Data'!M14) ->  | H14: ='Serial Data'!K14/('Serial Data'!K14+'Serial Data'!L14+'Serial Data'!M14) ->  | I14: ='Serial Data'!L14/('Serial Data'!K14+'Serial Data'!L14+'Serial Data'!M14) ->  | J14: =IF('Serial Data'!K14+'Serial Data'!L14+'Serial Data'!M14<>0,(H14+(I14*0.5)),NA()) ->  | K14: =IF('Serial Data'!K14+'Serial Data'!L14+'Serial Data'!M14<>0,(I14*0.866*Templates!K2),NA()) ->  | M14: ='Serial Data'!R14/('Serial Data'!P14+'Serial Data'!Q14+'Serial Data'!R14) ->  | N14: ='Serial Data'!P14/('Serial Data'!P14+'Serial Data'!Q14+'Serial Data'!R14) ->  | O14: ='Serial Data'!Q14/('Serial Data'!P14+'Serial Data'!Q14+'Serial Data'!R14) ->  | P14: =IF('Serial Data'!P14+'Serial Data'!Q14+'Serial Data'!R14<>0,(N14+(O14*0.5)),NA()) ->  | Q14: =IF('Serial Data'!P14+'Serial Data'!Q14+'Serial Data'!R14<>0,(O14*0.866*Templates!K2),NA()) ->  | S14: ='Serial Data'!W14/('Serial Data'!U14+'Serial Data'!V14+'Serial Data'!W14) ->  | T14: ='Serial Data'!U14/('Serial Data'!U14+'Serial Data'!V14+'Serial Data'!W14) ->  | U14: ='Serial Data'!V14/('Serial Data'!U14+'Serial Data'!V14+'Serial Data'!W14) ->  | V14: =IF('Serial Data'!V14+'Serial Data'!W14+'Serial Data'!U14<>0,(T14+(U14*0.5)),NA()) ->  | W14: =IF('Serial Data'!V14+'Serial Data'!W14+'Serial Data'!U14<>0,(U14*0.866*Templates!K2),NA()) ->  | Y14: ='Serial Data'!AB14/('Serial Data'!AA14+'Serial Data'!AB14+'Serial Data'!Z14) ->  | Z14: ='Serial Data'!Z14/('Serial Data'!AA14+'Serial Data'!AB14+'Serial Data'!Z14) ->  | AA14: ='Serial Data'!AA14/('Serial Data'!AA14+'Serial Data'!AB14+'Serial Data'!Z14) ->  | AB14: =IF('Serial Data'!AB14+'Serial Data'!AA14+'Serial Data'!Z14<>0,(Z14+(AA14*0.5)),NA()) ->  | AC14: =IF('Serial Data'!AB14+'Serial Data'!AA14+'Serial Data'!Z14<>0,(AA14*0.866*Templates!K2),NA()) ->  | AE14: ='Serial Data'!AG14/('Serial Data'!AG14+'Serial Data'!AE14+'Serial Data'!AF14) ->  | AF14: ='Serial Data'!AE14/('Serial Data'!AG14+'Serial Data'!AE14+'Serial Data'!AF14) ->  | AG14: ='Serial Data'!AF14/('Serial Data'!AG14+'Serial Data'!AE14+'Serial Data'!AF14) ->  | AH14: =IF('Serial Data'!AE14+'Serial Data'!AF14+'Serial Data'!AG14<>0,(AF14+(AG14*0.5)),NA()) ->  | AI14: =IF('Serial Data'!AE14+'Serial Data'!AF14+'Serial Data'!AG14<>0,(AG14*0.866*Templates!K2),NA()) ->  | AK14: ='Serial Data'!AL14/('Serial Data'!AJ14+'Serial Data'!AK14+'Serial Data'!AL14) ->  | AL14: ='Serial Data'!AJ14/('Serial Data'!AJ14+'Serial Data'!AK14+'Serial Data'!AL14) ->  | AM14: ='Serial Data'!AK14/('Serial Data'!AJ14+'Serial Data'!AK14+'Serial Data'!AL14) ->  | AN14: =IF('Serial Data'!AJ14+'Serial Data'!AK14+'Serial Data'!AL14<>0,(AL14+(AM14*0.5)),NA()) ->  | AO14: =IF('Serial Data'!AJ14+'Serial Data'!AK14+'Serial Data'!AL14<>0,(AM14*0.866*Templates!K2),NA()) ->  | AQ14: ='Serial Data'!AQ14/('Serial Data'!AO14+'Serial Data'!AP14+'Serial Data'!AQ14) ->  | AR14: ='Serial Data'!AO14/('Serial Data'!AO14+'Serial Data'!AP14+'Serial Data'!AQ14) ->  | AS14: ='Serial Data'!AP14/('Serial Data'!AO14+'Serial Data'!AP14+'Serial Data'!AQ14) ->  | AT14: =IF('Serial Data'!AO14+'Serial Data'!AP14+'Serial Data'!AQ14<>0,(AR14+(AS14*0.5)),NA()) ->  | AU14: =IF('Serial Data'!AO14+'Serial Data'!AP14+'Serial Data'!AQ14<>0,(AS14*0.866*Templates!K2),NA()) ->  | AW14: ='Serial Data'!AV14/('Serial Data'!AT14+'Serial Data'!AU14+'Serial Data'!AV14) ->  | AX14: ='Serial Data'!AT14/('Serial Data'!AT14+'Serial Data'!AU14+'Serial Data'!AV14) ->  | AY14: ='Serial Data'!AU14/('Serial Data'!AT14+'Serial Data'!AU14+'Serial Data'!AV14) ->  | AZ14: =IF('Serial Data'!AT14+'Serial Data'!AU14+'Serial Data'!AV14<>0,(AX14+(AY14*0.5)),NA()) ->  | BA14: =IF('Serial Data'!AT14+'Serial Data'!AU14+'Serial Data'!AV14<>0,(AY14*0.866*Templates!K2),NA()) ->  | BC14: ='Serial Data'!BA14/('Serial Data'!AY14+'Serial Data'!AZ14+'Serial Data'!BA14) ->  | BD14: ='Serial Data'!AY14/('Serial Data'!AY14+'Serial Data'!AZ14+'Serial Data'!BA14) ->  | BE14: ='Serial Data'!AZ14/('Serial Data'!AY14+'Serial Data'!AZ14+'Serial Data'!BA14) ->  | BF14: =IF('Serial Data'!AY14+'Serial Data'!AZ14+'Serial Data'!BA14<>0,(BD14+(BE14*0.5)),NA()) ->  | BG14: =IF('Serial Data'!AY14+'Serial Data'!AZ14+'Serial Data'!BA14<>0,(BE14*0.866*Templates!K2),NA()) ->  | BI14: ='Serial Data'!BF14/('Serial Data'!BD14+'Serial Data'!BE14+'Serial Data'!BF14) ->  | BJ14: ='Serial Data'!BD14/('Serial Data'!BD14+'Serial Data'!BE14+'Serial Data'!BF14) ->  | BK14: ='Serial Data'!BE14/('Serial Data'!BD14+'Serial Data'!BE14+'Serial Data'!BF14) ->  | BL14: =IF('Serial Data'!BD14+'Serial Data'!BE14+'Serial Data'!BF14<>0,(BJ14+(BK14*0.5)),NA()) ->  | BM14: =IF('Serial Data'!BD14+'Serial Data'!BE14+'Serial Data'!BF14<>0,(BK14*0.866*Templates!K2),NA()) -> 
A15: ='Single Data'!N16/('Single Data'!L16+'Single Data'!M16+'Single Data'!N16) ->  | B15: ='Single Data'!L16/('Single Data'!L16+'Single Data'!M16+'Single Data'!N16) ->  | C15: ='Single Data'!M16/('Single Data'!L16+'Single Data'!M16+'Single Data'!N16) ->  | D15: =IF('Single Data'!L16+'Single Data'!M16+'Single Data'!N16<>0,(B15+(C15*0.5)),NA()) ->  | E15: =IF('Single Data'!L16+'Single Data'!M16+'Single Data'!N16<>0,(C15*0.866*Templates!K2),NA()) ->  | G15: ='Serial Data'!M15/('Serial Data'!K15+'Serial Data'!L15+'Serial Data'!M15) ->  | H15: ='Serial Data'!K15/('Serial Data'!K15+'Serial Data'!L15+'Serial Data'!M15) ->  | I15: ='Serial Data'!L15/('Serial Data'!K15+'Serial Data'!L15+'Serial Data'!M15) ->  | J15: =IF('Serial Data'!K15+'Serial Data'!L15+'Serial Data'!M15<>0,(H15+(I15*0.5)),NA()) ->  | K15: =IF('Serial Data'!K15+'Serial Data'!L15+'Serial Data'!M15<>0,(I15*0.866*Templates!K2),NA()) ->  | M15: ='Serial Data'!R15/('Serial Data'!P15+'Serial Data'!Q15+'Serial Data'!R15) ->  | N15: ='Serial Data'!P15/('Serial Data'!P15+'Serial Data'!Q15+'Serial Data'!R15) ->  | O15: ='Serial Data'!Q15/('Serial Data'!P15+'Serial Data'!Q15+'Serial Data'!R15) ->  | P15: =IF('Serial Data'!P15+'Serial Data'!Q15+'Serial Data'!R15<>0,(N15+(O15*0.5)),NA()) ->  | Q15: =IF('Serial Data'!P15+'Serial Data'!Q15+'Serial Data'!R15<>0,(O15*0.866*Templates!K2),NA()) ->  | S15: ='Serial Data'!W15/('Serial Data'!U15+'Serial Data'!V15+'Serial Data'!W15) ->  | T15: ='Serial Data'!U15/('Serial Data'!U15+'Serial Data'!V15+'Serial Data'!W15) ->  | U15: ='Serial Data'!V15/('Serial Data'!U15+'Serial Data'!V15+'Serial Data'!W15) ->  | V15: =IF('Serial Data'!V15+'Serial Data'!W15+'Serial Data'!U15<>0,(T15+(U15*0.5)),NA()) ->  | W15: =IF('Serial Data'!V15+'Serial Data'!W15+'Serial Data'!U15<>0,(U15*0.866*Templates!K2),NA()) ->  | Y15: ='Serial Data'!AB15/('Serial Data'!AA15+'Serial Data'!AB15+'Serial Data'!Z15) ->  | Z15: ='Serial Data'!Z15/('Serial Data'!AA15+'Serial Data'!AB15+'Serial Data'!Z15) ->  | AA15: ='Serial Data'!AA15/('Serial Data'!AA15+'Serial Data'!AB15+'Serial Data'!Z15) ->  | AB15: =IF('Serial Data'!AB15+'Serial Data'!AA15+'Serial Data'!Z15<>0,(Z15+(AA15*0.5)),NA()) ->  | AC15: =IF('Serial Data'!AB15+'Serial Data'!AA15+'Serial Data'!Z15<>0,(AA15*0.866*Templates!K2),NA()) ->  | AE15: ='Serial Data'!AG15/('Serial Data'!AG15+'Serial Data'!AE15+'Serial Data'!AF15) ->  | AF15: ='Serial Data'!AE15/('Serial Data'!AG15+'Serial Data'!AE15+'Serial Data'!AF15) ->  | AG15: ='Serial Data'!AF15/('Serial Data'!AG15+'Serial Data'!AE15+'Serial Data'!AF15) ->  | AH15: =IF('Serial Data'!AE15+'Serial Data'!AF15+'Serial Data'!AG15<>0,(AF15+(AG15*0.5)),NA()) ->  | AI15: =IF('Serial Data'!AE15+'Serial Data'!AF15+'Serial Data'!AG15<>0,(AG15*0.866*Templates!K2),NA()) ->  | AK15: ='Serial Data'!AL15/('Serial Data'!AJ15+'Serial Data'!AK15+'Serial Data'!AL15) ->  | AL15: ='Serial Data'!AJ15/('Serial Data'!AJ15+'Serial Data'!AK15+'Serial Data'!AL15) ->  | AM15: ='Serial Data'!AK15/('Serial Data'!AJ15+'Serial Data'!AK15+'Serial Data'!AL15) ->  | AN15: =IF('Serial Data'!AJ15+'Serial Data'!AK15+'Serial Data'!AL15<>0,(AL15+(AM15*0.5)),NA()) ->  | AO15: =IF('Serial Data'!AJ15+'Serial Data'!AK15+'Serial Data'!AL15<>0,(AM15*0.866*Templates!K2),NA()) ->  | AQ15: ='Serial Data'!AQ15/('Serial Data'!AO15+'Serial Data'!AP15+'Serial Data'!AQ15) ->  | AR15: ='Serial Data'!AO15/('Serial Data'!AO15+'Serial Data'!AP15+'Serial Data'!AQ15) ->  | AS15: ='Serial Data'!AP15/('Serial Data'!AO15+'Serial Data'!AP15+'Serial Data'!AQ15) ->  | AT15: =IF('Serial Data'!AO15+'Serial Data'!AP15+'Serial Data'!AQ15<>0,(AR15+(AS15*0.5)),NA()) ->  | AU15: =IF('Serial Data'!AO15+'Serial Data'!AP15+'Serial Data'!AQ15<>0,(AS15*0.866*Templates!K2),NA()) ->  | AW15: ='Serial Data'!AV15/('Serial Data'!AT15+'Serial Data'!AU15+'Serial Data'!AV15) ->  | AX15: ='Serial Data'!AT15/('Serial Data'!AT15+'Serial Data'!AU15+'Serial Data'!AV15) ->  | AY15: ='Serial Data'!AU15/('Serial Data'!AT15+'Serial Data'!AU15+'Serial Data'!AV15) ->  | AZ15: =IF('Serial Data'!AT15+'Serial Data'!AU15+'Serial Data'!AV15<>0,(AX15+(AY15*0.5)),NA()) ->  | BA15: =IF('Serial Data'!AT15+'Serial Data'!AU15+'Serial Data'!AV15<>0,(AY15*0.866*Templates!K2),NA()) ->  | BC15: ='Serial Data'!BA15/('Serial Data'!AY15+'Serial Data'!AZ15+'Serial Data'!BA15) ->  | BD15: ='Serial Data'!AY15/('Serial Data'!AY15+'Serial Data'!AZ15+'Serial Data'!BA15) ->  | BE15: ='Serial Data'!AZ15/('Serial Data'!AY15+'Serial Data'!AZ15+'Serial Data'!BA15) ->  | BF15: =IF('Serial Data'!AY15+'Serial Data'!AZ15+'Serial Data'!BA15<>0,(BD15+(BE15*0.5)),NA()) ->  | BG15: =IF('Serial Data'!AY15+'Serial Data'!AZ15+'Serial Data'!BA15<>0,(BE15*0.866*Templates!K2),NA()) ->  | BI15: ='Serial Data'!BF15/('Serial Data'!BD15+'Serial Data'!BE15+'Serial Data'!BF15) ->  | BJ15: ='Serial Data'!BD15/('Serial Data'!BD15+'Serial Data'!BE15+'Serial Data'!BF15) ->  | BK15: ='Serial Data'!BE15/('Serial Data'!BD15+'Serial Data'!BE15+'Serial Data'!BF15) ->  | BL15: =IF('Serial Data'!BD15+'Serial Data'!BE15+'Serial Data'!BF15<>0,(BJ15+(BK15*0.5)),NA()) ->  | BM15: =IF('Serial Data'!BD15+'Serial Data'!BE15+'Serial Data'!BF15<>0,(BK15*0.866*Templates!K2),NA()) -> 
A16: ='Single Data'!N17/('Single Data'!L17+'Single Data'!M17+'Single Data'!N17) ->  | B16: ='Single Data'!L17/('Single Data'!L17+'Single Data'!M17+'Single Data'!N17) ->  | C16: ='Single Data'!M17/('Single Data'!L17+'Single Data'!M17+'Single Data'!N17) ->  | D16: =IF('Single Data'!L17+'Single Data'!M17+'Single Data'!N17<>0,(B16+(C16*0.5)),NA()) ->  | E16: =IF('Single Data'!L17+'Single Data'!M17+'Single Data'!N17<>0,(C16*0.866*Templates!K2),NA()) ->  | G16: ='Serial Data'!M16/('Serial Data'!K16+'Serial Data'!L16+'Serial Data'!M16) ->  | H16: ='Serial Data'!K16/('Serial Data'!K16+'Serial Data'!L16+'Serial Data'!M16) ->  | I16: ='Serial Data'!L16/('Serial Data'!K16+'Serial Data'!L16+'Serial Data'!M16) ->  | J16: =IF('Serial Data'!K16+'Serial Data'!L16+'Serial Data'!M16<>0,(H16+(I16*0.5)),NA()) ->  | K16: =IF('Serial Data'!K16+'Serial Data'!L16+'Serial Data'!M16<>0,(I16*0.866*Templates!K2),NA()) ->  | M16: ='Serial Data'!R16/('Serial Data'!P16+'Serial Data'!Q16+'Serial Data'!R16) ->  | N16: ='Serial Data'!P16/('Serial Data'!P16+'Serial Data'!Q16+'Serial Data'!R16) ->  | O16: ='Serial Data'!Q16/('Serial Data'!P16+'Serial Data'!Q16+'Serial Data'!R16) ->  | P16: =IF('Serial Data'!P16+'Serial Data'!Q16+'Serial Data'!R16<>0,(N16+(O16*0.5)),NA()) ->  | Q16: =IF('Serial Data'!P16+'Serial Data'!Q16+'Serial Data'!R16<>0,(O16*0.866*Templates!K2),NA()) ->  | S16: ='Serial Data'!W16/('Serial Data'!U16+'Serial Data'!V16+'Serial Data'!W16) ->  | T16: ='Serial Data'!U16/('Serial Data'!U16+'Serial Data'!V16+'Serial Data'!W16) ->  | U16: ='Serial Data'!V16/('Serial Data'!U16+'Serial Data'!V16+'Serial Data'!W16) ->  | V16: =IF('Serial Data'!V16+'Serial Data'!W16+'Serial Data'!U16<>0,(T16+(U16*0.5)),NA()) ->  | W16: =IF('Serial Data'!V16+'Serial Data'!W16+'Serial Data'!U16<>0,(U16*0.866*Templates!K2),NA()) ->  | Y16: ='Serial Data'!AB16/('Serial Data'!AA16+'Serial Data'!AB16+'Serial Data'!Z16) ->  | Z16: ='Serial Data'!Z16/('Serial Data'!AA16+'Serial Data'!AB16+'Serial Data'!Z16) ->  | AA16: ='Serial Data'!AA16/('Serial Data'!AA16+'Serial Data'!AB16+'Serial Data'!Z16) ->  | AB16: =IF('Serial Data'!AB16+'Serial Data'!AA16+'Serial Data'!Z16<>0,(Z16+(AA16*0.5)),NA()) ->  | AC16: =IF('Serial Data'!AB16+'Serial Data'!AA16+'Serial Data'!Z16<>0,(AA16*0.866*Templates!K2),NA()) ->  | AE16: ='Serial Data'!AG16/('Serial Data'!AG16+'Serial Data'!AE16+'Serial Data'!AF16) ->  | AF16: ='Serial Data'!AE16/('Serial Data'!AG16+'Serial Data'!AE16+'Serial Data'!AF16) ->  | AG16: ='Serial Data'!AF16/('Serial Data'!AG16+'Serial Data'!AE16+'Serial Data'!AF16) ->  | AH16: =IF('Serial Data'!AE16+'Serial Data'!AF16+'Serial Data'!AG16<>0,(AF16+(AG16*0.5)),NA()) ->  | AI16: =IF('Serial Data'!AE16+'Serial Data'!AF16+'Serial Data'!AG16<>0,(AG16*0.866*Templates!K2),NA()) ->  | AK16: ='Serial Data'!AL16/('Serial Data'!AJ16+'Serial Data'!AK16+'Serial Data'!AL16) ->  | AL16: ='Serial Data'!AJ16/('Serial Data'!AJ16+'Serial Data'!AK16+'Serial Data'!AL16) ->  | AM16: ='Serial Data'!AK16/('Serial Data'!AJ16+'Serial Data'!AK16+'Serial Data'!AL16) ->  | AN16: =IF('Serial Data'!AJ16+'Serial Data'!AK16+'Serial Data'!AL16<>0,(AL16+(AM16*0.5)),NA()) ->  | AO16: =IF('Serial Data'!AJ16+'Serial Data'!AK16+'Serial Data'!AL16<>0,(AM16*0.866*Templates!K2),NA()) ->  | AQ16: ='Serial Data'!AQ16/('Serial Data'!AO16+'Serial Data'!AP16+'Serial Data'!AQ16) ->  | AR16: ='Serial Data'!AO16/('Serial Data'!AO16+'Serial Data'!AP16+'Serial Data'!AQ16) ->  | AS16: ='Serial Data'!AP16/('Serial Data'!AO16+'Serial Data'!AP16+'Serial Data'!AQ16) ->  | AT16: =IF('Serial Data'!AO16+'Serial Data'!AP16+'Serial Data'!AQ16<>0,(AR16+(AS16*0.5)),NA()) ->  | AU16: =IF('Serial Data'!AO16+'Serial Data'!AP16+'Serial Data'!AQ16<>0,(AS16*0.866*Templates!K2),NA()) ->  | AW16: ='Serial Data'!AV16/('Serial Data'!AT16+'Serial Data'!AU16+'Serial Data'!AV16) ->  | AX16: ='Serial Data'!AT16/('Serial Data'!AT16+'Serial Data'!AU16+'Serial Data'!AV16) ->  | AY16: ='Serial Data'!AU16/('Serial Data'!AT16+'Serial Data'!AU16+'Serial Data'!AV16) ->  | AZ16: =IF('Serial Data'!AT16+'Serial Data'!AU16+'Serial Data'!AV16<>0,(AX16+(AY16*0.5)),NA()) ->  | BA16: =IF('Serial Data'!AT16+'Serial Data'!AU16+'Serial Data'!AV16<>0,(AY16*0.866*Templates!K2),NA()) ->  | BC16: ='Serial Data'!BA16/('Serial Data'!AY16+'Serial Data'!AZ16+'Serial Data'!BA16) ->  | BD16: ='Serial Data'!AY16/('Serial Data'!AY16+'Serial Data'!AZ16+'Serial Data'!BA16) ->  | BE16: ='Serial Data'!AZ16/('Serial Data'!AY16+'Serial Data'!AZ16+'Serial Data'!BA16) ->  | BF16: =IF('Serial Data'!AY16+'Serial Data'!AZ16+'Serial Data'!BA16<>0,(BD16+(BE16*0.5)),NA()) ->  | BG16: =IF('Serial Data'!AY16+'Serial Data'!AZ16+'Serial Data'!BA16<>0,(BE16*0.866*Templates!K2),NA()) ->  | BI16: ='Serial Data'!BF16/('Serial Data'!BD16+'Serial Data'!BE16+'Serial Data'!BF16) ->  | BJ16: ='Serial Data'!BD16/('Serial Data'!BD16+'Serial Data'!BE16+'Serial Data'!BF16) ->  | BK16: ='Serial Data'!BE16/('Serial Data'!BD16+'Serial Data'!BE16+'Serial Data'!BF16) ->  | BL16: =IF('Serial Data'!BD16+'Serial Data'!BE16+'Serial Data'!BF16<>0,(BJ16+(BK16*0.5)),NA()) ->  | BM16: =IF('Serial Data'!BD16+'Serial Data'!BE16+'Serial Data'!BF16<>0,(BK16*0.866*Templates!K2),NA()) -> 
A17: ='Single Data'!N18/('Single Data'!L18+'Single Data'!M18+'Single Data'!N18) ->  | B17: ='Single Data'!L18/('Single Data'!L18+'Single Data'!M18+'Single Data'!N18) ->  | C17: ='Single Data'!M18/('Single Data'!L18+'Single Data'!M18+'Single Data'!N18) ->  | D17: =IF('Single Data'!L18+'Single Data'!M18+'Single Data'!N18<>0,(B17+(C17*0.5)),NA()) ->  | E17: =IF('Single Data'!L18+'Single Data'!M18+'Single Data'!N18<>0,(C17*0.866*Templates!K2),NA()) ->  | G17: ='Serial Data'!M17/('Serial Data'!K17+'Serial Data'!L17+'Serial Data'!M17) ->  | H17: ='Serial Data'!K17/('Serial Data'!K17+'Serial Data'!L17+'Serial Data'!M17) ->  | I17: ='Serial Data'!L17/('Serial Data'!K17+'Serial Data'!L17+'Serial Data'!M17) ->  | J17: =IF('Serial Data'!K17+'Serial Data'!L17+'Serial Data'!M17<>0,(H17+(I17*0.5)),NA()) ->  | K17: =IF('Serial Data'!K17+'Serial Data'!L17+'Serial Data'!M17<>0,(I17*0.866*Templates!K2),NA()) ->  | M17: ='Serial Data'!R17/('Serial Data'!P17+'Serial Data'!Q17+'Serial Data'!R17) ->  | N17: ='Serial Data'!P17/('Serial Data'!P17+'Serial Data'!Q17+'Serial Data'!R17) ->  | O17: ='Serial Data'!Q17/('Serial Data'!P17+'Serial Data'!Q17+'Serial Data'!R17) ->  | P17: =IF('Serial Data'!P17+'Serial Data'!Q17+'Serial Data'!R17<>0,(N17+(O17*0.5)),NA()) ->  | Q17: =IF('Serial Data'!P17+'Serial Data'!Q17+'Serial Data'!R17<>0,(O17*0.866*Templates!K2),NA()) ->  | S17: ='Serial Data'!W17/('Serial Data'!U17+'Serial Data'!V17+'Serial Data'!W17) ->  | T17: ='Serial Data'!U17/('Serial Data'!U17+'Serial Data'!V17+'Serial Data'!W17) ->  | U17: ='Serial Data'!V17/('Serial Data'!U17+'Serial Data'!V17+'Serial Data'!W17) ->  | V17: =IF('Serial Data'!V17+'Serial Data'!W17+'Serial Data'!U17<>0,(T17+(U17*0.5)),NA()) ->  | W17: =IF('Serial Data'!V17+'Serial Data'!W17+'Serial Data'!U17<>0,(U17*0.866*Templates!K2),NA()) ->  | Y17: ='Serial Data'!AB17/('Serial Data'!AA17+'Serial Data'!AB17+'Serial Data'!Z17) ->  | Z17: ='Serial Data'!Z17/('Serial Data'!AA17+'Serial Data'!AB17+'Serial Data'!Z17) ->  | AA17: ='Serial Data'!AA17/('Serial Data'!AA17+'Serial Data'!AB17+'Serial Data'!Z17) ->  | AB17: =IF('Serial Data'!AB17+'Serial Data'!AA17+'Serial Data'!Z17<>0,(Z17+(AA17*0.5)),NA()) ->  | AC17: =IF('Serial Data'!AB17+'Serial Data'!AA17+'Serial Data'!Z17<>0,(AA17*0.866*Templates!K2),NA()) ->  | AE17: ='Serial Data'!AG17/('Serial Data'!AG17+'Serial Data'!AE17+'Serial Data'!AF17) ->  | AF17: ='Serial Data'!AE17/('Serial Data'!AG17+'Serial Data'!AE17+'Serial Data'!AF17) ->  | AG17: ='Serial Data'!AF17/('Serial Data'!AG17+'Serial Data'!AE17+'Serial Data'!AF17) ->  | AH17: =IF('Serial Data'!AE17+'Serial Data'!AF17+'Serial Data'!AG17<>0,(AF17+(AG17*0.5)),NA()) ->  | AI17: =IF('Serial Data'!AE17+'Serial Data'!AF17+'Serial Data'!AG17<>0,(AG17*0.866*Templates!K2),NA()) ->  | AK17: ='Serial Data'!AL17/('Serial Data'!AJ17+'Serial Data'!AK17+'Serial Data'!AL17) ->  | AL17: ='Serial Data'!AJ17/('Serial Data'!AJ17+'Serial Data'!AK17+'Serial Data'!AL17) ->  | AM17: ='Serial Data'!AK17/('Serial Data'!AJ17+'Serial Data'!AK17+'Serial Data'!AL17) ->  | AN17: =IF('Serial Data'!AJ17+'Serial Data'!AK17+'Serial Data'!AL17<>0,(AL17+(AM17*0.5)),NA()) ->  | AO17: =IF('Serial Data'!AJ17+'Serial Data'!AK17+'Serial Data'!AL17<>0,(AM17*0.866*Templates!K2),NA()) ->  | AQ17: ='Serial Data'!AQ17/('Serial Data'!AO17+'Serial Data'!AP17+'Serial Data'!AQ17) ->  | AR17: ='Serial Data'!AO17/('Serial Data'!AO17+'Serial Data'!AP17+'Serial Data'!AQ17) ->  | AS17: ='Serial Data'!AP17/('Serial Data'!AO17+'Serial Data'!AP17+'Serial Data'!AQ17) ->  | AT17: =IF('Serial Data'!AO17+'Serial Data'!AP17+'Serial Data'!AQ17<>0,(AR17+(AS17*0.5)),NA()) ->  | AU17: =IF('Serial Data'!AO17+'Serial Data'!AP17+'Serial Data'!AQ17<>0,(AS17*0.866*Templates!K2),NA()) ->  | AW17: ='Serial Data'!AV17/('Serial Data'!AT17+'Serial Data'!AU17+'Serial Data'!AV17) ->  | AX17: ='Serial Data'!AT17/('Serial Data'!AT17+'Serial Data'!AU17+'Serial Data'!AV17) ->  | AY17: ='Serial Data'!AU17/('Serial Data'!AT17+'Serial Data'!AU17+'Serial Data'!AV17) ->  | AZ17: =IF('Serial Data'!AT17+'Serial Data'!AU17+'Serial Data'!AV17<>0,(AX17+(AY17*0.5)),NA()) ->  | BA17: =IF('Serial Data'!AT17+'Serial Data'!AU17+'Serial Data'!AV17<>0,(AY17*0.866*Templates!K2),NA()) ->  | BC17: ='Serial Data'!BA17/('Serial Data'!AY17+'Serial Data'!AZ17+'Serial Data'!BA17) ->  | BD17: ='Serial Data'!AY17/('Serial Data'!AY17+'Serial Data'!AZ17+'Serial Data'!BA17) ->  | BE17: ='Serial Data'!AZ17/('Serial Data'!AY17+'Serial Data'!AZ17+'Serial Data'!BA17) ->  | BF17: =IF('Serial Data'!AY17+'Serial Data'!AZ17+'Serial Data'!BA17<>0,(BD17+(BE17*0.5)),NA()) ->  | BG17: =IF('Serial Data'!AY17+'Serial Data'!AZ17+'Serial Data'!BA17<>0,(BE17*0.866*Templates!K2),NA()) ->  | BI17: ='Serial Data'!BF17/('Serial Data'!BD17+'Serial Data'!BE17+'Serial Data'!BF17) ->  | BJ17: ='Serial Data'!BD17/('Serial Data'!BD17+'Serial Data'!BE17+'Serial Data'!BF17) ->  | BK17: ='Serial Data'!BE17/('Serial Data'!BD17+'Serial Data'!BE17+'Serial Data'!BF17) ->  | BL17: =IF('Serial Data'!BD17+'Serial Data'!BE17+'Serial Data'!BF17<>0,(BJ17+(BK17*0.5)),NA()) ->  | BM17: =IF('Serial Data'!BD17+'Serial Data'!BE17+'Serial Data'!BF17<>0,(BK17*0.866*Templates!K2),NA()) -> 
A18: ='Single Data'!N19/('Single Data'!L19+'Single Data'!M19+'Single Data'!N19) ->  | B18: ='Single Data'!L19/('Single Data'!L19+'Single Data'!M19+'Single Data'!N19) ->  | C18: ='Single Data'!M19/('Single Data'!L19+'Single Data'!M19+'Single Data'!N19) ->  | D18: =IF('Single Data'!L19+'Single Data'!M19+'Single Data'!N19<>0,(B18+(C18*0.5)),NA()) ->  | E18: =IF('Single Data'!L19+'Single Data'!M19+'Single Data'!N19<>0,(C18*0.866*Templates!K2),NA()) ->  | G18: ='Serial Data'!M18/('Serial Data'!K18+'Serial Data'!L18+'Serial Data'!M18) ->  | H18: ='Serial Data'!K18/('Serial Data'!K18+'Serial Data'!L18+'Serial Data'!M18) ->  | I18: ='Serial Data'!L18/('Serial Data'!K18+'Serial Data'!L18+'Serial Data'!M18) ->  | J18: =IF('Serial Data'!K18+'Serial Data'!L18+'Serial Data'!M18<>0,(H18+(I18*0.5)),NA()) ->  | K18: =IF('Serial Data'!K18+'Serial Data'!L18+'Serial Data'!M18<>0,(I18*0.866*Templates!K2),NA()) ->  | M18: ='Serial Data'!R18/('Serial Data'!P18+'Serial Data'!Q18+'Serial Data'!R18) ->  | N18: ='Serial Data'!P18/('Serial Data'!P18+'Serial Data'!Q18+'Serial Data'!R18) ->  | O18: ='Serial Data'!Q18/('Serial Data'!P18+'Serial Data'!Q18+'Serial Data'!R18) ->  | P18: =IF('Serial Data'!P18+'Serial Data'!Q18+'Serial Data'!R18<>0,(N18+(O18*0.5)),NA()) ->  | Q18: =IF('Serial Data'!P18+'Serial Data'!Q18+'Serial Data'!R18<>0,(O18*0.866*Templates!K2),NA()) ->  | S18: ='Serial Data'!W18/('Serial Data'!U18+'Serial Data'!V18+'Serial Data'!W18) ->  | T18: ='Serial Data'!U18/('Serial Data'!U18+'Serial Data'!V18+'Serial Data'!W18) ->  | U18: ='Serial Data'!V18/('Serial Data'!U18+'Serial Data'!V18+'Serial Data'!W18) ->  | V18: =IF('Serial Data'!V18+'Serial Data'!W18+'Serial Data'!U18<>0,(T18+(U18*0.5)),NA()) ->  | W18: =IF('Serial Data'!V18+'Serial Data'!W18+'Serial Data'!U18<>0,(U18*0.866*Templates!K2),NA()) ->  | Y18: ='Serial Data'!AB18/('Serial Data'!AA18+'Serial Data'!AB18+'Serial Data'!Z18) ->  | Z18: ='Serial Data'!Z18/('Serial Data'!AA18+'Serial Data'!AB18+'Serial Data'!Z18) ->  | AA18: ='Serial Data'!AA18/('Serial Data'!AA18+'Serial Data'!AB18+'Serial Data'!Z18) ->  | AB18: =IF('Serial Data'!AB18+'Serial Data'!AA18+'Serial Data'!Z18<>0,(Z18+(AA18*0.5)),NA()) ->  | AC18: =IF('Serial Data'!AB18+'Serial Data'!AA18+'Serial Data'!Z18<>0,(AA18*0.866*Templates!K2),NA()) ->  | AE18: ='Serial Data'!AG18/('Serial Data'!AG18+'Serial Data'!AE18+'Serial Data'!AF18) ->  | AF18: ='Serial Data'!AE18/('Serial Data'!AG18+'Serial Data'!AE18+'Serial Data'!AF18) ->  | AG18: ='Serial Data'!AF18/('Serial Data'!AG18+'Serial Data'!AE18+'Serial Data'!AF18) ->  | AH18: =IF('Serial Data'!AE18+'Serial Data'!AF18+'Serial Data'!AG18<>0,(AF18+(AG18*0.5)),NA()) ->  | AI18: =IF('Serial Data'!AE18+'Serial Data'!AF18+'Serial Data'!AG18<>0,(AG18*0.866*Templates!K2),NA()) ->  | AK18: ='Serial Data'!AL18/('Serial Data'!AJ18+'Serial Data'!AK18+'Serial Data'!AL18) ->  | AL18: ='Serial Data'!AJ18/('Serial Data'!AJ18+'Serial Data'!AK18+'Serial Data'!AL18) ->  | AM18: ='Serial Data'!AK18/('Serial Data'!AJ18+'Serial Data'!AK18+'Serial Data'!AL18) ->  | AN18: =IF('Serial Data'!AJ18+'Serial Data'!AK18+'Serial Data'!AL18<>0,(AL18+(AM18*0.5)),NA()) ->  | AO18: =IF('Serial Data'!AJ18+'Serial Data'!AK18+'Serial Data'!AL18<>0,(AM18*0.866*Templates!K2),NA()) ->  | AQ18: ='Serial Data'!AQ18/('Serial Data'!AO18+'Serial Data'!AP18+'Serial Data'!AQ18) ->  | AR18: ='Serial Data'!AO18/('Serial Data'!AO18+'Serial Data'!AP18+'Serial Data'!AQ18) ->  | AS18: ='Serial Data'!AP18/('Serial Data'!AO18+'Serial Data'!AP18+'Serial Data'!AQ18) ->  | AT18: =IF('Serial Data'!AO18+'Serial Data'!AP18+'Serial Data'!AQ18<>0,(AR18+(AS18*0.5)),NA()) ->  | AU18: =IF('Serial Data'!AO18+'Serial Data'!AP18+'Serial Data'!AQ18<>0,(AS18*0.866*Templates!K2),NA()) ->  | AW18: ='Serial Data'!AV18/('Serial Data'!AT18+'Serial Data'!AU18+'Serial Data'!AV18) ->  | AX18: ='Serial Data'!AT18/('Serial Data'!AT18+'Serial Data'!AU18+'Serial Data'!AV18) ->  | AY18: ='Serial Data'!AU18/('Serial Data'!AT18+'Serial Data'!AU18+'Serial Data'!AV18) ->  | AZ18: =IF('Serial Data'!AT18+'Serial Data'!AU18+'Serial Data'!AV18<>0,(AX18+(AY18*0.5)),NA()) ->  | BA18: =IF('Serial Data'!AT18+'Serial Data'!AU18+'Serial Data'!AV18<>0,(AY18*0.866*Templates!K2),NA()) ->  | BC18: ='Serial Data'!BA18/('Serial Data'!AY18+'Serial Data'!AZ18+'Serial Data'!BA18) ->  | BD18: ='Serial Data'!AY18/('Serial Data'!AY18+'Serial Data'!AZ18+'Serial Data'!BA18) ->  | BE18: ='Serial Data'!AZ18/('Serial Data'!AY18+'Serial Data'!AZ18+'Serial Data'!BA18) ->  | BF18: =IF('Serial Data'!AY18+'Serial Data'!AZ18+'Serial Data'!BA18<>0,(BD18+(BE18*0.5)),NA()) ->  | BG18: =IF('Serial Data'!AY18+'Serial Data'!AZ18+'Serial Data'!BA18<>0,(BE18*0.866*Templates!K2),NA()) ->  | BI18: ='Serial Data'!BF18/('Serial Data'!BD18+'Serial Data'!BE18+'Serial Data'!BF18) ->  | BJ18: ='Serial Data'!BD18/('Serial Data'!BD18+'Serial Data'!BE18+'Serial Data'!BF18) ->  | BK18: ='Serial Data'!BE18/('Serial Data'!BD18+'Serial Data'!BE18+'Serial Data'!BF18) ->  | BL18: =IF('Serial Data'!BD18+'Serial Data'!BE18+'Serial Data'!BF18<>0,(BJ18+(BK18*0.5)),NA()) ->  | BM18: =IF('Serial Data'!BD18+'Serial Data'!BE18+'Serial Data'!BF18<>0,(BK18*0.866*Templates!K2),NA()) -> 
A19: ='Single Data'!N20/('Single Data'!L20+'Single Data'!M20+'Single Data'!N20) ->  | B19: ='Single Data'!L20/('Single Data'!L20+'Single Data'!M20+'Single Data'!N20) ->  | C19: ='Single Data'!M20/('Single Data'!L20+'Single Data'!M20+'Single Data'!N20) ->  | D19: =IF('Single Data'!L20+'Single Data'!M20+'Single Data'!N20<>0,(B19+(C19*0.5)),NA()) ->  | E19: =IF('Single Data'!L20+'Single Data'!M20+'Single Data'!N20<>0,(C19*0.866*Templates!K2),NA()) ->  | G19: ='Serial Data'!M19/('Serial Data'!K19+'Serial Data'!L19+'Serial Data'!M19) ->  | H19: ='Serial Data'!K19/('Serial Data'!K19+'Serial Data'!L19+'Serial Data'!M19) ->  | I19: ='Serial Data'!L19/('Serial Data'!K19+'Serial Data'!L19+'Serial Data'!M19) ->  | J19: =IF('Serial Data'!K19+'Serial Data'!L19+'Serial Data'!M19<>0,(H19+(I19*0.5)),NA()) ->  | K19: =IF('Serial Data'!K19+'Serial Data'!L19+'Serial Data'!M19<>0,(I19*0.866*Templates!K2),NA()) ->  | M19: ='Serial Data'!R19/('Serial Data'!P19+'Serial Data'!Q19+'Serial Data'!R19) ->  | N19: ='Serial Data'!P19/('Serial Data'!P19+'Serial Data'!Q19+'Serial Data'!R19) ->  | O19: ='Serial Data'!Q19/('Serial Data'!P19+'Serial Data'!Q19+'Serial Data'!R19) ->  | P19: =IF('Serial Data'!P19+'Serial Data'!Q19+'Serial Data'!R19<>0,(N19+(O19*0.5)),NA()) ->  | Q19: =IF('Serial Data'!P19+'Serial Data'!Q19+'Serial Data'!R19<>0,(O19*0.866*Templates!K2),NA()) ->  | S19: ='Serial Data'!W19/('Serial Data'!U19+'Serial Data'!V19+'Serial Data'!W19) ->  | T19: ='Serial Data'!U19/('Serial Data'!U19+'Serial Data'!V19+'Serial Data'!W19) ->  | U19: ='Serial Data'!V19/('Serial Data'!U19+'Serial Data'!V19+'Serial Data'!W19) ->  | V19: =IF('Serial Data'!V19+'Serial Data'!W19+'Serial Data'!U19<>0,(T19+(U19*0.5)),NA()) ->  | W19: =IF('Serial Data'!V19+'Serial Data'!W19+'Serial Data'!U19<>0,(U19*0.866*Templates!K2),NA()) ->  | Y19: ='Serial Data'!AB19/('Serial Data'!AA19+'Serial Data'!AB19+'Serial Data'!Z19) ->  | Z19: ='Serial Data'!Z19/('Serial Data'!AA19+'Serial Data'!AB19+'Serial Data'!Z19) ->  | AA19: ='Serial Data'!AA19/('Serial Data'!AA19+'Serial Data'!AB19+'Serial Data'!Z19) ->  | AB19: =IF('Serial Data'!AB19+'Serial Data'!AA19+'Serial Data'!Z19<>0,(Z19+(AA19*0.5)),NA()) ->  | AC19: =IF('Serial Data'!AB19+'Serial Data'!AA19+'Serial Data'!Z19<>0,(AA19*0.866*Templates!K2),NA()) ->  | AE19: ='Serial Data'!AG19/('Serial Data'!AG19+'Serial Data'!AE19+'Serial Data'!AF19) ->  | AF19: ='Serial Data'!AE19/('Serial Data'!AG19+'Serial Data'!AE19+'Serial Data'!AF19) ->  | AG19: ='Serial Data'!AF19/('Serial Data'!AG19+'Serial Data'!AE19+'Serial Data'!AF19) ->  | AH19: =IF('Serial Data'!AE19+'Serial Data'!AF19+'Serial Data'!AG19<>0,(AF19+(AG19*0.5)),NA()) ->  | AI19: =IF('Serial Data'!AE19+'Serial Data'!AF19+'Serial Data'!AG19<>0,(AG19*0.866*Templates!K2),NA()) ->  | AK19: ='Serial Data'!AL19/('Serial Data'!AJ19+'Serial Data'!AK19+'Serial Data'!AL19) ->  | AL19: ='Serial Data'!AJ19/('Serial Data'!AJ19+'Serial Data'!AK19+'Serial Data'!AL19) ->  | AM19: ='Serial Data'!AK19/('Serial Data'!AJ19+'Serial Data'!AK19+'Serial Data'!AL19) ->  | AN19: =IF('Serial Data'!AJ19+'Serial Data'!AK19+'Serial Data'!AL19<>0,(AL19+(AM19*0.5)),NA()) ->  | AO19: =IF('Serial Data'!AJ19+'Serial Data'!AK19+'Serial Data'!AL19<>0,(AM19*0.866*Templates!K2),NA()) ->  | AQ19: ='Serial Data'!AQ19/('Serial Data'!AO19+'Serial Data'!AP19+'Serial Data'!AQ19) ->  | AR19: ='Serial Data'!AO19/('Serial Data'!AO19+'Serial Data'!AP19+'Serial Data'!AQ19) ->  | AS19: ='Serial Data'!AP19/('Serial Data'!AO19+'Serial Data'!AP19+'Serial Data'!AQ19) ->  | AT19: =IF('Serial Data'!AO19+'Serial Data'!AP19+'Serial Data'!AQ19<>0,(AR19+(AS19*0.5)),NA()) ->  | AU19: =IF('Serial Data'!AO19+'Serial Data'!AP19+'Serial Data'!AQ19<>0,(AS19*0.866*Templates!K2),NA()) ->  | AW19: ='Serial Data'!AV19/('Serial Data'!AT19+'Serial Data'!AU19+'Serial Data'!AV19) ->  | AX19: ='Serial Data'!AT19/('Serial Data'!AT19+'Serial Data'!AU19+'Serial Data'!AV19) ->  | AY19: ='Serial Data'!AU19/('Serial Data'!AT19+'Serial Data'!AU19+'Serial Data'!AV19) ->  | AZ19: =IF('Serial Data'!AT19+'Serial Data'!AU19+'Serial Data'!AV19<>0,(AX19+(AY19*0.5)),NA()) ->  | BA19: =IF('Serial Data'!AT19+'Serial Data'!AU19+'Serial Data'!AV19<>0,(AY19*0.866*Templates!K2),NA()) ->  | BC19: ='Serial Data'!BA19/('Serial Data'!AY19+'Serial Data'!AZ19+'Serial Data'!BA19) ->  | BD19: ='Serial Data'!AY19/('Serial Data'!AY19+'Serial Data'!AZ19+'Serial Data'!BA19) ->  | BE19: ='Serial Data'!AZ19/('Serial Data'!AY19+'Serial Data'!AZ19+'Serial Data'!BA19) ->  | BF19: =IF('Serial Data'!AY19+'Serial Data'!AZ19+'Serial Data'!BA19<>0,(BD19+(BE19*0.5)),NA()) ->  | BG19: =IF('Serial Data'!AY19+'Serial Data'!AZ19+'Serial Data'!BA19<>0,(BE19*0.866*Templates!K2),NA()) ->  | BI19: ='Serial Data'!BF19/('Serial Data'!BD19+'Serial Data'!BE19+'Serial Data'!BF19) ->  | BJ19: ='Serial Data'!BD19/('Serial Data'!BD19+'Serial Data'!BE19+'Serial Data'!BF19) ->  | BK19: ='Serial Data'!BE19/('Serial Data'!BD19+'Serial Data'!BE19+'Serial Data'!BF19) ->  | BL19: =IF('Serial Data'!BD19+'Serial Data'!BE19+'Serial Data'!BF19<>0,(BJ19+(BK19*0.5)),NA()) ->  | BM19: =IF('Serial Data'!BD19+'Serial Data'!BE19+'Serial Data'!BF19<>0,(BK19*0.866*Templates!K2),NA()) -> 
A20: ='Single Data'!N21/('Single Data'!L21+'Single Data'!M21+'Single Data'!N21) ->  | B20: ='Single Data'!L21/('Single Data'!L21+'Single Data'!M21+'Single Data'!N21) ->  | C20: ='Single Data'!M21/('Single Data'!L21+'Single Data'!M21+'Single Data'!N21) ->  | D20: =IF('Single Data'!L21+'Single Data'!M21+'Single Data'!N21<>0,(B20+(C20*0.5)),NA()) ->  | E20: =IF('Single Data'!L21+'Single Data'!M21+'Single Data'!N21<>0,(C20*0.866*Templates!K2),NA()) ->  | G20: ='Serial Data'!M20/('Serial Data'!K20+'Serial Data'!L20+'Serial Data'!M20) ->  | H20: ='Serial Data'!K20/('Serial Data'!K20+'Serial Data'!L20+'Serial Data'!M20) ->  | I20: ='Serial Data'!L20/('Serial Data'!K20+'Serial Data'!L20+'Serial Data'!M20) ->  | J20: =IF('Serial Data'!K20+'Serial Data'!L20+'Serial Data'!M20<>0,(H20+(I20*0.5)),NA()) ->  | K20: =IF('Serial Data'!K20+'Serial Data'!L20+'Serial Data'!M20<>0,(I20*0.866*Templates!K2),NA()) ->  | M20: ='Serial Data'!R20/('Serial Data'!P20+'Serial Data'!Q20+'Serial Data'!R20) ->  | N20: ='Serial Data'!P20/('Serial Data'!P20+'Serial Data'!Q20+'Serial Data'!R20) ->  | O20: ='Serial Data'!Q20/('Serial Data'!P20+'Serial Data'!Q20+'Serial Data'!R20) ->  | P20: =IF('Serial Data'!P20+'Serial Data'!Q20+'Serial Data'!R20<>0,(N20+(O20*0.5)),NA()) ->  | Q20: =IF('Serial Data'!P20+'Serial Data'!Q20+'Serial Data'!R20<>0,(O20*0.866*Templates!K2),NA()) ->  | S20: ='Serial Data'!W20/('Serial Data'!U20+'Serial Data'!V20+'Serial Data'!W20) ->  | T20: ='Serial Data'!U20/('Serial Data'!U20+'Serial Data'!V20+'Serial Data'!W20) ->  | U20: ='Serial Data'!V20/('Serial Data'!U20+'Serial Data'!V20+'Serial Data'!W20) ->  | V20: =IF('Serial Data'!V20+'Serial Data'!W20+'Serial Data'!U20<>0,(T20+(U20*0.5)),NA()) ->  | W20: =IF('Serial Data'!V20+'Serial Data'!W20+'Serial Data'!U20<>0,(U20*0.866*Templates!K2),NA()) ->  | Y20: ='Serial Data'!AB20/('Serial Data'!AA20+'Serial Data'!AB20+'Serial Data'!Z20) ->  | Z20: ='Serial Data'!Z20/('Serial Data'!AA20+'Serial Data'!AB20+'Serial Data'!Z20) ->  | AA20: ='Serial Data'!AA20/('Serial Data'!AA20+'Serial Data'!AB20+'Serial Data'!Z20) ->  | AB20: =IF('Serial Data'!AB20+'Serial Data'!AA20+'Serial Data'!Z20<>0,(Z20+(AA20*0.5)),NA()) ->  | AC20: =IF('Serial Data'!AB20+'Serial Data'!AA20+'Serial Data'!Z20<>0,(AA20*0.866*Templates!K2),NA()) ->  | AE20: ='Serial Data'!AG20/('Serial Data'!AG20+'Serial Data'!AE20+'Serial Data'!AF20) ->  | AF20: ='Serial Data'!AE20/('Serial Data'!AG20+'Serial Data'!AE20+'Serial Data'!AF20) ->  | AG20: ='Serial Data'!AF20/('Serial Data'!AG20+'Serial Data'!AE20+'Serial Data'!AF20) ->  | AH20: =IF('Serial Data'!AE20+'Serial Data'!AF20+'Serial Data'!AG20<>0,(AF20+(AG20*0.5)),NA()) ->  | AI20: =IF('Serial Data'!AE20+'Serial Data'!AF20+'Serial Data'!AG20<>0,(AG20*0.866*Templates!K2),NA()) ->  | AK20: ='Serial Data'!AL20/('Serial Data'!AJ20+'Serial Data'!AK20+'Serial Data'!AL20) ->  | AL20: ='Serial Data'!AJ20/('Serial Data'!AJ20+'Serial Data'!AK20+'Serial Data'!AL20) ->  | AM20: ='Serial Data'!AK20/('Serial Data'!AJ20+'Serial Data'!AK20+'Serial Data'!AL20) ->  | AN20: =IF('Serial Data'!AJ20+'Serial Data'!AK20+'Serial Data'!AL20<>0,(AL20+(AM20*0.5)),NA()) ->  | AO20: =IF('Serial Data'!AJ20+'Serial Data'!AK20+'Serial Data'!AL20<>0,(AM20*0.866*Templates!K2),NA()) ->  | AQ20: ='Serial Data'!AQ20/('Serial Data'!AO20+'Serial Data'!AP20+'Serial Data'!AQ20) ->  | AR20: ='Serial Data'!AO20/('Serial Data'!AO20+'Serial Data'!AP20+'Serial Data'!AQ20) ->  | AS20: ='Serial Data'!AP20/('Serial Data'!AO20+'Serial Data'!AP20+'Serial Data'!AQ20) ->  | AT20: =IF('Serial Data'!AO20+'Serial Data'!AP20+'Serial Data'!AQ20<>0,(AR20+(AS20*0.5)),NA()) ->  | AU20: =IF('Serial Data'!AO20+'Serial Data'!AP20+'Serial Data'!AQ20<>0,(AS20*0.866*Templates!K2),NA()) ->  | AW20: ='Serial Data'!AV20/('Serial Data'!AT20+'Serial Data'!AU20+'Serial Data'!AV20) ->  | AX20: ='Serial Data'!AT20/('Serial Data'!AT20+'Serial Data'!AU20+'Serial Data'!AV20) ->  | AY20: ='Serial Data'!AU20/('Serial Data'!AT20+'Serial Data'!AU20+'Serial Data'!AV20) ->  | AZ20: =IF('Serial Data'!AT20+'Serial Data'!AU20+'Serial Data'!AV20<>0,(AX20+(AY20*0.5)),NA()) ->  | BA20: =IF('Serial Data'!AT20+'Serial Data'!AU20+'Serial Data'!AV20<>0,(AY20*0.866*Templates!K2),NA()) ->  | BC20: ='Serial Data'!BA20/('Serial Data'!AY20+'Serial Data'!AZ20+'Serial Data'!BA20) ->  | BD20: ='Serial Data'!AY20/('Serial Data'!AY20+'Serial Data'!AZ20+'Serial Data'!BA20) ->  | BE20: ='Serial Data'!AZ20/('Serial Data'!AY20+'Serial Data'!AZ20+'Serial Data'!BA20) ->  | BF20: =IF('Serial Data'!AY20+'Serial Data'!AZ20+'Serial Data'!BA20<>0,(BD20+(BE20*0.5)),NA()) ->  | BG20: =IF('Serial Data'!AY20+'Serial Data'!AZ20+'Serial Data'!BA20<>0,(BE20*0.866*Templates!K2),NA()) ->  | BI20: ='Serial Data'!BF20/('Serial Data'!BD20+'Serial Data'!BE20+'Serial Data'!BF20) ->  | BJ20: ='Serial Data'!BD20/('Serial Data'!BD20+'Serial Data'!BE20+'Serial Data'!BF20) ->  | BK20: ='Serial Data'!BE20/('Serial Data'!BD20+'Serial Data'!BE20+'Serial Data'!BF20) ->  | BL20: =IF('Serial Data'!BD20+'Serial Data'!BE20+'Serial Data'!BF20<>0,(BJ20+(BK20*0.5)),NA()) ->  | BM20: =IF('Serial Data'!BD20+'Serial Data'!BE20+'Serial Data'!BF20<>0,(BK20*0.866*Templates!K2),NA()) -> 
A21: ='Single Data'!N22/('Single Data'!L22+'Single Data'!M22+'Single Data'!N22) ->  | B21: ='Single Data'!L22/('Single Data'!L22+'Single Data'!M22+'Single Data'!N22) ->  | C21: ='Single Data'!M22/('Single Data'!L22+'Single Data'!M22+'Single Data'!N22) ->  | D21: =IF('Single Data'!L22+'Single Data'!M22+'Single Data'!N22<>0,(B21+(C21*0.5)),NA()) ->  | E21: =IF('Single Data'!L22+'Single Data'!M22+'Single Data'!N22<>0,(C21*0.866*Templates!K2),NA()) ->  | G21: ='Serial Data'!M21/('Serial Data'!K21+'Serial Data'!L21+'Serial Data'!M21) ->  | H21: ='Serial Data'!K21/('Serial Data'!K21+'Serial Data'!L21+'Serial Data'!M21) ->  | I21: ='Serial Data'!L21/('Serial Data'!K21+'Serial Data'!L21+'Serial Data'!M21) ->  | J21: =IF('Serial Data'!K21+'Serial Data'!L21+'Serial Data'!M21<>0,(H21+(I21*0.5)),NA()) ->  | K21: =IF('Serial Data'!K21+'Serial Data'!L21+'Serial Data'!M21<>0,(I21*0.866*Templates!K2),NA()) ->  | M21: ='Serial Data'!R21/('Serial Data'!P21+'Serial Data'!Q21+'Serial Data'!R21) ->  | N21: ='Serial Data'!P21/('Serial Data'!P21+'Serial Data'!Q21+'Serial Data'!R21) ->  | O21: ='Serial Data'!Q21/('Serial Data'!P21+'Serial Data'!Q21+'Serial Data'!R21) ->  | P21: =IF('Serial Data'!P21+'Serial Data'!Q21+'Serial Data'!R21<>0,(N21+(O21*0.5)),NA()) ->  | Q21: =IF('Serial Data'!P21+'Serial Data'!Q21+'Serial Data'!R21<>0,(O21*0.866*Templates!K2),NA()) ->  | S21: ='Serial Data'!W21/('Serial Data'!U21+'Serial Data'!V21+'Serial Data'!W21) ->  | T21: ='Serial Data'!U21/('Serial Data'!U21+'Serial Data'!V21+'Serial Data'!W21) ->  | U21: ='Serial Data'!V21/('Serial Data'!U21+'Serial Data'!V21+'Serial Data'!W21) ->  | V21: =IF('Serial Data'!V21+'Serial Data'!W21+'Serial Data'!U21<>0,(T21+(U21*0.5)),NA()) ->  | W21: =IF('Serial Data'!V21+'Serial Data'!W21+'Serial Data'!U21<>0,(U21*0.866*Templates!K2),NA()) ->  | Y21: ='Serial Data'!AB21/('Serial Data'!AA21+'Serial Data'!AB21+'Serial Data'!Z21) ->  | Z21: ='Serial Data'!Z21/('Serial Data'!AA21+'Serial Data'!AB21+'Serial Data'!Z21) ->  | AA21: ='Serial Data'!AA21/('Serial Data'!AA21+'Serial Data'!AB21+'Serial Data'!Z21) ->  | AB21: =IF('Serial Data'!AB21+'Serial Data'!AA21+'Serial Data'!Z21<>0,(Z21+(AA21*0.5)),NA()) ->  | AC21: =IF('Serial Data'!AB21+'Serial Data'!AA21+'Serial Data'!Z21<>0,(AA21*0.866*Templates!K2),NA()) ->  | AE21: ='Serial Data'!AG21/('Serial Data'!AG21+'Serial Data'!AE21+'Serial Data'!AF21) ->  | AF21: ='Serial Data'!AE21/('Serial Data'!AG21+'Serial Data'!AE21+'Serial Data'!AF21) ->  | AG21: ='Serial Data'!AF21/('Serial Data'!AG21+'Serial Data'!AE21+'Serial Data'!AF21) ->  | AH21: =IF('Serial Data'!AE21+'Serial Data'!AF21+'Serial Data'!AG21<>0,(AF21+(AG21*0.5)),NA()) ->  | AI21: =IF('Serial Data'!AE21+'Serial Data'!AF21+'Serial Data'!AG21<>0,(AG21*0.866*Templates!K2),NA()) ->  | AK21: ='Serial Data'!AL21/('Serial Data'!AJ21+'Serial Data'!AK21+'Serial Data'!AL21) ->  | AL21: ='Serial Data'!AJ21/('Serial Data'!AJ21+'Serial Data'!AK21+'Serial Data'!AL21) ->  | AM21: ='Serial Data'!AK21/('Serial Data'!AJ21+'Serial Data'!AK21+'Serial Data'!AL21) ->  | AN21: =IF('Serial Data'!AJ21+'Serial Data'!AK21+'Serial Data'!AL21<>0,(AL21+(AM21*0.5)),NA()) ->  | AO21: =IF('Serial Data'!AJ21+'Serial Data'!AK21+'Serial Data'!AL21<>0,(AM21*0.866*Templates!K2),NA()) ->  | AQ21: ='Serial Data'!AQ21/('Serial Data'!AO21+'Serial Data'!AP21+'Serial Data'!AQ21) ->  | AR21: ='Serial Data'!AO21/('Serial Data'!AO21+'Serial Data'!AP21+'Serial Data'!AQ21) ->  | AS21: ='Serial Data'!AP21/('Serial Data'!AO21+'Serial Data'!AP21+'Serial Data'!AQ21) ->  | AT21: =IF('Serial Data'!AO21+'Serial Data'!AP21+'Serial Data'!AQ21<>0,(AR21+(AS21*0.5)),NA()) ->  | AU21: =IF('Serial Data'!AO21+'Serial Data'!AP21+'Serial Data'!AQ21<>0,(AS21*0.866*Templates!K2),NA()) ->  | AW21: ='Serial Data'!AV21/('Serial Data'!AT21+'Serial Data'!AU21+'Serial Data'!AV21) ->  | AX21: ='Serial Data'!AT21/('Serial Data'!AT21+'Serial Data'!AU21+'Serial Data'!AV21) ->  | AY21: ='Serial Data'!AU21/('Serial Data'!AT21+'Serial Data'!AU21+'Serial Data'!AV21) ->  | AZ21: =IF('Serial Data'!AT21+'Serial Data'!AU21+'Serial Data'!AV21<>0,(AX21+(AY21*0.5)),NA()) ->  | BA21: =IF('Serial Data'!AT21+'Serial Data'!AU21+'Serial Data'!AV21<>0,(AY21*0.866*Templates!K2),NA()) ->  | BC21: ='Serial Data'!BA21/('Serial Data'!AY21+'Serial Data'!AZ21+'Serial Data'!BA21) ->  | BD21: ='Serial Data'!AY21/('Serial Data'!AY21+'Serial Data'!AZ21+'Serial Data'!BA21) ->  | BE21: ='Serial Data'!AZ21/('Serial Data'!AY21+'Serial Data'!AZ21+'Serial Data'!BA21) ->  | BF21: =IF('Serial Data'!AY21+'Serial Data'!AZ21+'Serial Data'!BA21<>0,(BD21+(BE21*0.5)),NA()) ->  | BG21: =IF('Serial Data'!AY21+'Serial Data'!AZ21+'Serial Data'!BA21<>0,(BE21*0.866*Templates!K2),NA()) ->  | BI21: ='Serial Data'!BF21/('Serial Data'!BD21+'Serial Data'!BE21+'Serial Data'!BF21) ->  | BJ21: ='Serial Data'!BD21/('Serial Data'!BD21+'Serial Data'!BE21+'Serial Data'!BF21) ->  | BK21: ='Serial Data'!BE21/('Serial Data'!BD21+'Serial Data'!BE21+'Serial Data'!BF21) ->  | BL21: =IF('Serial Data'!BD21+'Serial Data'!BE21+'Serial Data'!BF21<>0,(BJ21+(BK21*0.5)),NA()) ->  | BM21: =IF('Serial Data'!BD21+'Serial Data'!BE21+'Serial Data'!BF21<>0,(BK21*0.866*Templates!K2),NA()) -> 
A22: ='Single Data'!N23/('Single Data'!L23+'Single Data'!M23+'Single Data'!N23) ->  | B22: ='Single Data'!L23/('Single Data'!L23+'Single Data'!M23+'Single Data'!N23) ->  | C22: ='Single Data'!M23/('Single Data'!L23+'Single Data'!M23+'Single Data'!N23) ->  | D22: =IF('Single Data'!L23+'Single Data'!M23+'Single Data'!N23<>0,(B22+(C22*0.5)),NA()) ->  | E22: =IF('Single Data'!L23+'Single Data'!M23+'Single Data'!N23<>0,(C22*0.866*Templates!K2),NA()) ->  | G22: ='Serial Data'!M22/('Serial Data'!K22+'Serial Data'!L22+'Serial Data'!M22) ->  | H22: ='Serial Data'!K22/('Serial Data'!K22+'Serial Data'!L22+'Serial Data'!M22) ->  | I22: ='Serial Data'!L22/('Serial Data'!K22+'Serial Data'!L22+'Serial Data'!M22) ->  | J22: =IF('Serial Data'!K22+'Serial Data'!L22+'Serial Data'!M22<>0,(H22+(I22*0.5)),NA()) ->  | K22: =IF('Serial Data'!K22+'Serial Data'!L22+'Serial Data'!M22<>0,(I22*0.866*Templates!K2),NA()) ->  | M22: ='Serial Data'!R22/('Serial Data'!P22+'Serial Data'!Q22+'Serial Data'!R22) ->  | N22: ='Serial Data'!P22/('Serial Data'!P22+'Serial Data'!Q22+'Serial Data'!R22) ->  | O22: ='Serial Data'!Q22/('Serial Data'!P22+'Serial Data'!Q22+'Serial Data'!R22) ->  | P22: =IF('Serial Data'!P22+'Serial Data'!Q22+'Serial Data'!R22<>0,(N22+(O22*0.5)),NA()) ->  | Q22: =IF('Serial Data'!P22+'Serial Data'!Q22+'Serial Data'!R22<>0,(O22*0.866*Templates!K2),NA()) ->  | S22: ='Serial Data'!W22/('Serial Data'!U22+'Serial Data'!V22+'Serial Data'!W22) ->  | T22: ='Serial Data'!U22/('Serial Data'!U22+'Serial Data'!V22+'Serial Data'!W22) ->  | U22: ='Serial Data'!V22/('Serial Data'!U22+'Serial Data'!V22+'Serial Data'!W22) ->  | V22: =IF('Serial Data'!V22+'Serial Data'!W22+'Serial Data'!U22<>0,(T22+(U22*0.5)),NA()) ->  | W22: =IF('Serial Data'!V22+'Serial Data'!W22+'Serial Data'!U22<>0,(U22*0.866*Templates!K2),NA()) ->  | Y22: ='Serial Data'!AB22/('Serial Data'!AA22+'Serial Data'!AB22+'Serial Data'!Z22) ->  | Z22: ='Serial Data'!Z22/('Serial Data'!AA22+'Serial Data'!AB22+'Serial Data'!Z22) ->  | AA22: ='Serial Data'!AA22/('Serial Data'!AA22+'Serial Data'!AB22+'Serial Data'!Z22) ->  | AB22: =IF('Serial Data'!AB22+'Serial Data'!AA22+'Serial Data'!Z22<>0,(Z22+(AA22*0.5)),NA()) ->  | AC22: =IF('Serial Data'!AB22+'Serial Data'!AA22+'Serial Data'!Z22<>0,(AA22*0.866*Templates!K2),NA()) ->  | AE22: ='Serial Data'!AG22/('Serial Data'!AG22+'Serial Data'!AE22+'Serial Data'!AF22) ->  | AF22: ='Serial Data'!AE22/('Serial Data'!AG22+'Serial Data'!AE22+'Serial Data'!AF22) ->  | AG22: ='Serial Data'!AF22/('Serial Data'!AG22+'Serial Data'!AE22+'Serial Data'!AF22) ->  | AH22: =IF('Serial Data'!AE22+'Serial Data'!AF22+'Serial Data'!AG22<>0,(AF22+(AG22*0.5)),NA()) ->  | AI22: =IF('Serial Data'!AE22+'Serial Data'!AF22+'Serial Data'!AG22<>0,(AG22*0.866*Templates!K2),NA()) ->  | AK22: ='Serial Data'!AL22/('Serial Data'!AJ22+'Serial Data'!AK22+'Serial Data'!AL22) ->  | AL22: ='Serial Data'!AJ22/('Serial Data'!AJ22+'Serial Data'!AK22+'Serial Data'!AL22) ->  | AM22: ='Serial Data'!AK22/('Serial Data'!AJ22+'Serial Data'!AK22+'Serial Data'!AL22) ->  | AN22: =IF('Serial Data'!AJ22+'Serial Data'!AK22+'Serial Data'!AL22<>0,(AL22+(AM22*0.5)),NA()) ->  | AO22: =IF('Serial Data'!AJ22+'Serial Data'!AK22+'Serial Data'!AL22<>0,(AM22*0.866*Templates!K2),NA()) ->  | AQ22: ='Serial Data'!AQ22/('Serial Data'!AO22+'Serial Data'!AP22+'Serial Data'!AQ22) ->  | AR22: ='Serial Data'!AO22/('Serial Data'!AO22+'Serial Data'!AP22+'Serial Data'!AQ22) ->  | AS22: ='Serial Data'!AP22/('Serial Data'!AO22+'Serial Data'!AP22+'Serial Data'!AQ22) ->  | AT22: =IF('Serial Data'!AO22+'Serial Data'!AP22+'Serial Data'!AQ22<>0,(AR22+(AS22*0.5)),NA()) ->  | AU22: =IF('Serial Data'!AO22+'Serial Data'!AP22+'Serial Data'!AQ22<>0,(AS22*0.866*Templates!K2),NA()) ->  | AW22: ='Serial Data'!AV22/('Serial Data'!AT22+'Serial Data'!AU22+'Serial Data'!AV22) ->  | AX22: ='Serial Data'!AT22/('Serial Data'!AT22+'Serial Data'!AU22+'Serial Data'!AV22) ->  | AY22: ='Serial Data'!AU22/('Serial Data'!AT22+'Serial Data'!AU22+'Serial Data'!AV22) ->  | AZ22: =IF('Serial Data'!AT22+'Serial Data'!AU22+'Serial Data'!AV22<>0,(AX22+(AY22*0.5)),NA()) ->  | BA22: =IF('Serial Data'!AT22+'Serial Data'!AU22+'Serial Data'!AV22<>0,(AY22*0.866*Templates!K2),NA()) ->  | BC22: ='Serial Data'!BA22/('Serial Data'!AY22+'Serial Data'!AZ22+'Serial Data'!BA22) ->  | BD22: ='Serial Data'!AY22/('Serial Data'!AY22+'Serial Data'!AZ22+'Serial Data'!BA22) ->  | BE22: ='Serial Data'!AZ22/('Serial Data'!AY22+'Serial Data'!AZ22+'Serial Data'!BA22) ->  | BF22: =IF('Serial Data'!AY22+'Serial Data'!AZ22+'Serial Data'!BA22<>0,(BD22+(BE22*0.5)),NA()) ->  | BG22: =IF('Serial Data'!AY22+'Serial Data'!AZ22+'Serial Data'!BA22<>0,(BE22*0.866*Templates!K2),NA()) ->  | BI22: ='Serial Data'!BF22/('Serial Data'!BD22+'Serial Data'!BE22+'Serial Data'!BF22) ->  | BJ22: ='Serial Data'!BD22/('Serial Data'!BD22+'Serial Data'!BE22+'Serial Data'!BF22) ->  | BK22: ='Serial Data'!BE22/('Serial Data'!BD22+'Serial Data'!BE22+'Serial Data'!BF22) ->  | BL22: =IF('Serial Data'!BD22+'Serial Data'!BE22+'Serial Data'!BF22<>0,(BJ22+(BK22*0.5)),NA()) ->  | BM22: =IF('Serial Data'!BD22+'Serial Data'!BE22+'Serial Data'!BF22<>0,(BK22*0.866*Templates!K2),NA()) -> 
A23: ='Single Data'!N24/('Single Data'!L24+'Single Data'!M24+'Single Data'!N24) ->  | B23: ='Single Data'!L24/('Single Data'!L24+'Single Data'!M24+'Single Data'!N24) ->  | C23: ='Single Data'!M24/('Single Data'!L24+'Single Data'!M24+'Single Data'!N24) ->  | D23: =IF('Single Data'!L24+'Single Data'!M24+'Single Data'!N24<>0,(B23+(C23*0.5)),NA()) ->  | E23: =IF('Single Data'!L24+'Single Data'!M24+'Single Data'!N24<>0,(C23*0.866*Templates!K2),NA()) ->  | G23: ='Serial Data'!M23/('Serial Data'!K23+'Serial Data'!L23+'Serial Data'!M23) ->  | H23: ='Serial Data'!K23/('Serial Data'!K23+'Serial Data'!L23+'Serial Data'!M23) ->  | I23: ='Serial Data'!L23/('Serial Data'!K23+'Serial Data'!L23+'Serial Data'!M23) ->  | J23: =IF('Serial Data'!K23+'Serial Data'!L23+'Serial Data'!M23<>0,(H23+(I23*0.5)),NA()) ->  | K23: =IF('Serial Data'!K23+'Serial Data'!L23+'Serial Data'!M23<>0,(I23*0.866*Templates!K2),NA()) ->  | M23: ='Serial Data'!R23/('Serial Data'!P23+'Serial Data'!Q23+'Serial Data'!R23) ->  | N23: ='Serial Data'!P23/('Serial Data'!P23+'Serial Data'!Q23+'Serial Data'!R23) ->  | O23: ='Serial Data'!Q23/('Serial Data'!P23+'Serial Data'!Q23+'Serial Data'!R23) ->  | P23: =IF('Serial Data'!P23+'Serial Data'!Q23+'Serial Data'!R23<>0,(N23+(O23*0.5)),NA()) ->  | Q23: =IF('Serial Data'!P23+'Serial Data'!Q23+'Serial Data'!R23<>0,(O23*0.866*Templates!K2),NA()) ->  | S23: ='Serial Data'!W23/('Serial Data'!U23+'Serial Data'!V23+'Serial Data'!W23) ->  | T23: ='Serial Data'!U23/('Serial Data'!U23+'Serial Data'!V23+'Serial Data'!W23) ->  | U23: ='Serial Data'!V23/('Serial Data'!U23+'Serial Data'!V23+'Serial Data'!W23) ->  | V23: =IF('Serial Data'!V23+'Serial Data'!W23+'Serial Data'!U23<>0,(T23+(U23*0.5)),NA()) ->  | W23: =IF('Serial Data'!V23+'Serial Data'!W23+'Serial Data'!U23<>0,(U23*0.866*Templates!K2),NA()) ->  | Y23: ='Serial Data'!AB23/('Serial Data'!AA23+'Serial Data'!AB23+'Serial Data'!Z23) ->  | Z23: ='Serial Data'!Z23/('Serial Data'!AA23+'Serial Data'!AB23+'Serial Data'!Z23) ->  | AA23: ='Serial Data'!AA23/('Serial Data'!AA23+'Serial Data'!AB23+'Serial Data'!Z23) ->  | AB23: =IF('Serial Data'!AB23+'Serial Data'!AA23+'Serial Data'!Z23<>0,(Z23+(AA23*0.5)),NA()) ->  | AC23: =IF('Serial Data'!AB23+'Serial Data'!AA23+'Serial Data'!Z23<>0,(AA23*0.866*Templates!K2),NA()) ->  | AE23: ='Serial Data'!AG23/('Serial Data'!AG23+'Serial Data'!AE23+'Serial Data'!AF23) ->  | AF23: ='Serial Data'!AE23/('Serial Data'!AG23+'Serial Data'!AE23+'Serial Data'!AF23) ->  | AG23: ='Serial Data'!AF23/('Serial Data'!AG23+'Serial Data'!AE23+'Serial Data'!AF23) ->  | AH23: =IF('Serial Data'!AE23+'Serial Data'!AF23+'Serial Data'!AG23<>0,(AF23+(AG23*0.5)),NA()) ->  | AI23: =IF('Serial Data'!AE23+'Serial Data'!AF23+'Serial Data'!AG23<>0,(AG23*0.866*Templates!K2),NA()) ->  | AK23: ='Serial Data'!AL23/('Serial Data'!AJ23+'Serial Data'!AK23+'Serial Data'!AL23) ->  | AL23: ='Serial Data'!AJ23/('Serial Data'!AJ23+'Serial Data'!AK23+'Serial Data'!AL23) ->  | AM23: ='Serial Data'!AK23/('Serial Data'!AJ23+'Serial Data'!AK23+'Serial Data'!AL23) ->  | AN23: =IF('Serial Data'!AJ23+'Serial Data'!AK23+'Serial Data'!AL23<>0,(AL23+(AM23*0.5)),NA()) ->  | AO23: =IF('Serial Data'!AJ23+'Serial Data'!AK23+'Serial Data'!AL23<>0,(AM23*0.866*Templates!K2),NA()) ->  | AQ23: ='Serial Data'!AQ23/('Serial Data'!AO23+'Serial Data'!AP23+'Serial Data'!AQ23) ->  | AR23: ='Serial Data'!AO23/('Serial Data'!AO23+'Serial Data'!AP23+'Serial Data'!AQ23) ->  | AS23: ='Serial Data'!AP23/('Serial Data'!AO23+'Serial Data'!AP23+'Serial Data'!AQ23) ->  | AT23: =IF('Serial Data'!AO23+'Serial Data'!AP23+'Serial Data'!AQ23<>0,(AR23+(AS23*0.5)),NA()) ->  | AU23: =IF('Serial Data'!AO23+'Serial Data'!AP23+'Serial Data'!AQ23<>0,(AS23*0.866*Templates!K2),NA()) ->  | AW23: ='Serial Data'!AV23/('Serial Data'!AT23+'Serial Data'!AU23+'Serial Data'!AV23) ->  | AX23: ='Serial Data'!AT23/('Serial Data'!AT23+'Serial Data'!AU23+'Serial Data'!AV23) ->  | AY23: ='Serial Data'!AU23/('Serial Data'!AT23+'Serial Data'!AU23+'Serial Data'!AV23) ->  | AZ23: =IF('Serial Data'!AT23+'Serial Data'!AU23+'Serial Data'!AV23<>0,(AX23+(AY23*0.5)),NA()) ->  | BA23: =IF('Serial Data'!AT23+'Serial Data'!AU23+'Serial Data'!AV23<>0,(AY23*0.866*Templates!K2),NA()) ->  | BC23: ='Serial Data'!BA23/('Serial Data'!AY23+'Serial Data'!AZ23+'Serial Data'!BA23) ->  | BD23: ='Serial Data'!AY23/('Serial Data'!AY23+'Serial Data'!AZ23+'Serial Data'!BA23) ->  | BE23: ='Serial Data'!AZ23/('Serial Data'!AY23+'Serial Data'!AZ23+'Serial Data'!BA23) ->  | BF23: =IF('Serial Data'!AY23+'Serial Data'!AZ23+'Serial Data'!BA23<>0,(BD23+(BE23*0.5)),NA()) ->  | BG23: =IF('Serial Data'!AY23+'Serial Data'!AZ23+'Serial Data'!BA23<>0,(BE23*0.866*Templates!K2),NA()) ->  | BI23: ='Serial Data'!BF23/('Serial Data'!BD23+'Serial Data'!BE23+'Serial Data'!BF23) ->  | BJ23: ='Serial Data'!BD23/('Serial Data'!BD23+'Serial Data'!BE23+'Serial Data'!BF23) ->  | BK23: ='Serial Data'!BE23/('Serial Data'!BD23+'Serial Data'!BE23+'Serial Data'!BF23) ->  | BL23: =IF('Serial Data'!BD23+'Serial Data'!BE23+'Serial Data'!BF23<>0,(BJ23+(BK23*0.5)),NA()) ->  | BM23: =IF('Serial Data'!BD23+'Serial Data'!BE23+'Serial Data'!BF23<>0,(BK23*0.866*Templates!K2),NA()) -> 
A24: ='Single Data'!N25/('Single Data'!L25+'Single Data'!M25+'Single Data'!N25) ->  | B24: ='Single Data'!L25/('Single Data'!L25+'Single Data'!M25+'Single Data'!N25) ->  | C24: ='Single Data'!M25/('Single Data'!L25+'Single Data'!M25+'Single Data'!N25) ->  | D24: =IF('Single Data'!L25+'Single Data'!M25+'Single Data'!N25<>0,(B24+(C24*0.5)),NA()) ->  | E24: =IF('Single Data'!L25+'Single Data'!M25+'Single Data'!N25<>0,(C24*0.866*Templates!K2),NA()) ->  | G24: ='Serial Data'!M24/('Serial Data'!K24+'Serial Data'!L24+'Serial Data'!M24) ->  | H24: ='Serial Data'!K24/('Serial Data'!K24+'Serial Data'!L24+'Serial Data'!M24) ->  | I24: ='Serial Data'!L24/('Serial Data'!K24+'Serial Data'!L24+'Serial Data'!M24) ->  | J24: =IF('Serial Data'!K24+'Serial Data'!L24+'Serial Data'!M24<>0,(H24+(I24*0.5)),NA()) ->  | K24: =IF('Serial Data'!K24+'Serial Data'!L24+'Serial Data'!M24<>0,(I24*0.866*Templates!K2),NA()) ->  | M24: ='Serial Data'!R24/('Serial Data'!P24+'Serial Data'!Q24+'Serial Data'!R24) ->  | N24: ='Serial Data'!P24/('Serial Data'!P24+'Serial Data'!Q24+'Serial Data'!R24) ->  | O24: ='Serial Data'!Q24/('Serial Data'!P24+'Serial Data'!Q24+'Serial Data'!R24) ->  | P24: =IF('Serial Data'!P24+'Serial Data'!Q24+'Serial Data'!R24<>0,(N24+(O24*0.5)),NA()) ->  | Q24: =IF('Serial Data'!P24+'Serial Data'!Q24+'Serial Data'!R24<>0,(O24*0.866*Templates!K2),NA()) ->  | S24: ='Serial Data'!W24/('Serial Data'!U24+'Serial Data'!V24+'Serial Data'!W24) ->  | T24: ='Serial Data'!U24/('Serial Data'!U24+'Serial Data'!V24+'Serial Data'!W24) ->  | U24: ='Serial Data'!V24/('Serial Data'!U24+'Serial Data'!V24+'Serial Data'!W24) ->  | V24: =IF('Serial Data'!V24+'Serial Data'!W24+'Serial Data'!U24<>0,(T24+(U24*0.5)),NA()) ->  | W24: =IF('Serial Data'!V24+'Serial Data'!W24+'Serial Data'!U24<>0,(U24*0.866*Templates!K2),NA()) ->  | Y24: ='Serial Data'!AB24/('Serial Data'!AA24+'Serial Data'!AB24+'Serial Data'!Z24) ->  | Z24: ='Serial Data'!Z24/('Serial Data'!AA24+'Serial Data'!AB24+'Serial Data'!Z24) ->  | AA24: ='Serial Data'!AA24/('Serial Data'!AA24+'Serial Data'!AB24+'Serial Data'!Z24) ->  | AB24: =IF('Serial Data'!AB24+'Serial Data'!AA24+'Serial Data'!Z24<>0,(Z24+(AA24*0.5)),NA()) ->  | AC24: =IF('Serial Data'!AB24+'Serial Data'!AA24+'Serial Data'!Z24<>0,(AA24*0.866*Templates!K2),NA()) ->  | AE24: ='Serial Data'!AG24/('Serial Data'!AG24+'Serial Data'!AE24+'Serial Data'!AF24) ->  | AF24: ='Serial Data'!AE24/('Serial Data'!AG24+'Serial Data'!AE24+'Serial Data'!AF24) ->  | AG24: ='Serial Data'!AF24/('Serial Data'!AG24+'Serial Data'!AE24+'Serial Data'!AF24) ->  | AH24: =IF('Serial Data'!AE24+'Serial Data'!AF24+'Serial Data'!AG24<>0,(AF24+(AG24*0.5)),NA()) ->  | AI24: =IF('Serial Data'!AE24+'Serial Data'!AF24+'Serial Data'!AG24<>0,(AG24*0.866*Templates!K2),NA()) ->  | AK24: ='Serial Data'!AL24/('Serial Data'!AJ24+'Serial Data'!AK24+'Serial Data'!AL24) ->  | AL24: ='Serial Data'!AJ24/('Serial Data'!AJ24+'Serial Data'!AK24+'Serial Data'!AL24) ->  | AM24: ='Serial Data'!AK24/('Serial Data'!AJ24+'Serial Data'!AK24+'Serial Data'!AL24) ->  | AN24: =IF('Serial Data'!AJ24+'Serial Data'!AK24+'Serial Data'!AL24<>0,(AL24+(AM24*0.5)),NA()) ->  | AO24: =IF('Serial Data'!AJ24+'Serial Data'!AK24+'Serial Data'!AL24<>0,(AM24*0.866*Templates!K2),NA()) ->  | AQ24: ='Serial Data'!AQ24/('Serial Data'!AO24+'Serial Data'!AP24+'Serial Data'!AQ24) ->  | AR24: ='Serial Data'!AO24/('Serial Data'!AO24+'Serial Data'!AP24+'Serial Data'!AQ24) ->  | AS24: ='Serial Data'!AP24/('Serial Data'!AO24+'Serial Data'!AP24+'Serial Data'!AQ24) ->  | AT24: =IF('Serial Data'!AO24+'Serial Data'!AP24+'Serial Data'!AQ24<>0,(AR24+(AS24*0.5)),NA()) ->  | AU24: =IF('Serial Data'!AO24+'Serial Data'!AP24+'Serial Data'!AQ24<>0,(AS24*0.866*Templates!K2),NA()) ->  | AW24: ='Serial Data'!AV24/('Serial Data'!AT24+'Serial Data'!AU24+'Serial Data'!AV24) ->  | AX24: ='Serial Data'!AT24/('Serial Data'!AT24+'Serial Data'!AU24+'Serial Data'!AV24) ->  | AY24: ='Serial Data'!AU24/('Serial Data'!AT24+'Serial Data'!AU24+'Serial Data'!AV24) ->  | AZ24: =IF('Serial Data'!AT24+'Serial Data'!AU24+'Serial Data'!AV24<>0,(AX24+(AY24*0.5)),NA()) ->  | BA24: =IF('Serial Data'!AT24+'Serial Data'!AU24+'Serial Data'!AV24<>0,(AY24*0.866*Templates!K2),NA()) ->  | BC24: ='Serial Data'!BA24/('Serial Data'!AY24+'Serial Data'!AZ24+'Serial Data'!BA24) ->  | BD24: ='Serial Data'!AY24/('Serial Data'!AY24+'Serial Data'!AZ24+'Serial Data'!BA24) ->  | BE24: ='Serial Data'!AZ24/('Serial Data'!AY24+'Serial Data'!AZ24+'Serial Data'!BA24) ->  | BF24: =IF('Serial Data'!AY24+'Serial Data'!AZ24+'Serial Data'!BA24<>0,(BD24+(BE24*0.5)),NA()) ->  | BG24: =IF('Serial Data'!AY24+'Serial Data'!AZ24+'Serial Data'!BA24<>0,(BE24*0.866*Templates!K2),NA()) ->  | BI24: ='Serial Data'!BF24/('Serial Data'!BD24+'Serial Data'!BE24+'Serial Data'!BF24) ->  | BJ24: ='Serial Data'!BD24/('Serial Data'!BD24+'Serial Data'!BE24+'Serial Data'!BF24) ->  | BK24: ='Serial Data'!BE24/('Serial Data'!BD24+'Serial Data'!BE24+'Serial Data'!BF24) ->  | BL24: =IF('Serial Data'!BD24+'Serial Data'!BE24+'Serial Data'!BF24<>0,(BJ24+(BK24*0.5)),NA()) ->  | BM24: =IF('Serial Data'!BD24+'Serial Data'!BE24+'Serial Data'!BF24<>0,(BK24*0.866*Templates!K2),NA()) -> 
A25: ='Single Data'!N26/('Single Data'!L26+'Single Data'!M26+'Single Data'!N26) ->  | B25: ='Single Data'!L26/('Single Data'!L26+'Single Data'!M26+'Single Data'!N26) ->  | C25: ='Single Data'!M26/('Single Data'!L26+'Single Data'!M26+'Single Data'!N26) ->  | D25: =IF('Single Data'!L26+'Single Data'!M26+'Single Data'!N26<>0,(B25+(C25*0.5)),NA()) ->  | E25: =IF('Single Data'!L26+'Single Data'!M26+'Single Data'!N26<>0,(C25*0.866*Templates!K2),NA()) ->  | G25: ='Serial Data'!M25/('Serial Data'!K25+'Serial Data'!L25+'Serial Data'!M25) ->  | H25: ='Serial Data'!K25/('Serial Data'!K25+'Serial Data'!L25+'Serial Data'!M25) ->  | I25: ='Serial Data'!L25/('Serial Data'!K25+'Serial Data'!L25+'Serial Data'!M25) ->  | J25: =IF('Serial Data'!K25+'Serial Data'!L25+'Serial Data'!M25<>0,(H25+(I25*0.5)),NA()) ->  | K25: =IF('Serial Data'!K25+'Serial Data'!L25+'Serial Data'!M25<>0,(I25*0.866*Templates!K2),NA()) ->  | M25: ='Serial Data'!R25/('Serial Data'!P25+'Serial Data'!Q25+'Serial Data'!R25) ->  | N25: ='Serial Data'!P25/('Serial Data'!P25+'Serial Data'!Q25+'Serial Data'!R25) ->  | O25: ='Serial Data'!Q25/('Serial Data'!P25+'Serial Data'!Q25+'Serial Data'!R25) ->  | P25: =IF('Serial Data'!P25+'Serial Data'!Q25+'Serial Data'!R25<>0,(N25+(O25*0.5)),NA()) ->  | Q25: =IF('Serial Data'!P25+'Serial Data'!Q25+'Serial Data'!R25<>0,(O25*0.866*Templates!K2),NA()) ->  | S25: ='Serial Data'!W25/('Serial Data'!U25+'Serial Data'!V25+'Serial Data'!W25) ->  | T25: ='Serial Data'!U25/('Serial Data'!U25+'Serial Data'!V25+'Serial Data'!W25) ->  | U25: ='Serial Data'!V25/('Serial Data'!U25+'Serial Data'!V25+'Serial Data'!W25) ->  | V25: =IF('Serial Data'!V25+'Serial Data'!W25+'Serial Data'!U25<>0,(T25+(U25*0.5)),NA()) ->  | W25: =IF('Serial Data'!V25+'Serial Data'!W25+'Serial Data'!U25<>0,(U25*0.866*Templates!K2),NA()) ->  | Y25: ='Serial Data'!AB25/('Serial Data'!AA25+'Serial Data'!AB25+'Serial Data'!Z25) ->  | Z25: ='Serial Data'!Z25/('Serial Data'!AA25+'Serial Data'!AB25+'Serial Data'!Z25) ->  | AA25: ='Serial Data'!AA25/('Serial Data'!AA25+'Serial Data'!AB25+'Serial Data'!Z25) ->  | AB25: =IF('Serial Data'!AB25+'Serial Data'!AA25+'Serial Data'!Z25<>0,(Z25+(AA25*0.5)),NA()) ->  | AC25: =IF('Serial Data'!AB25+'Serial Data'!AA25+'Serial Data'!Z25<>0,(AA25*0.866*Templates!K2),NA()) ->  | AE25: ='Serial Data'!AG25/('Serial Data'!AG25+'Serial Data'!AE25+'Serial Data'!AF25) ->  | AF25: ='Serial Data'!AE25/('Serial Data'!AG25+'Serial Data'!AE25+'Serial Data'!AF25) ->  | AG25: ='Serial Data'!AF25/('Serial Data'!AG25+'Serial Data'!AE25+'Serial Data'!AF25) ->  | AH25: =IF('Serial Data'!AE25+'Serial Data'!AF25+'Serial Data'!AG25<>0,(AF25+(AG25*0.5)),NA()) ->  | AI25: =IF('Serial Data'!AE25+'Serial Data'!AF25+'Serial Data'!AG25<>0,(AG25*0.866*Templates!K2),NA()) ->  | AK25: ='Serial Data'!AL25/('Serial Data'!AJ25+'Serial Data'!AK25+'Serial Data'!AL25) ->  | AL25: ='Serial Data'!AJ25/('Serial Data'!AJ25+'Serial Data'!AK25+'Serial Data'!AL25) ->  | AM25: ='Serial Data'!AK25/('Serial Data'!AJ25+'Serial Data'!AK25+'Serial Data'!AL25) ->  | AN25: =IF('Serial Data'!AJ25+'Serial Data'!AK25+'Serial Data'!AL25<>0,(AL25+(AM25*0.5)),NA()) ->  | AO25: =IF('Serial Data'!AJ25+'Serial Data'!AK25+'Serial Data'!AL25<>0,(AM25*0.866*Templates!K2),NA()) ->  | AQ25: ='Serial Data'!AQ25/('Serial Data'!AO25+'Serial Data'!AP25+'Serial Data'!AQ25) ->  | AR25: ='Serial Data'!AO25/('Serial Data'!AO25+'Serial Data'!AP25+'Serial Data'!AQ25) ->  | AS25: ='Serial Data'!AP25/('Serial Data'!AO25+'Serial Data'!AP25+'Serial Data'!AQ25) ->  | AT25: =IF('Serial Data'!AO25+'Serial Data'!AP25+'Serial Data'!AQ25<>0,(AR25+(AS25*0.5)),NA()) ->  | AU25: =IF('Serial Data'!AO25+'Serial Data'!AP25+'Serial Data'!AQ25<>0,(AS25*0.866*Templates!K2),NA()) ->  | AW25: ='Serial Data'!AV25/('Serial Data'!AT25+'Serial Data'!AU25+'Serial Data'!AV25) ->  | AX25: ='Serial Data'!AT25/('Serial Data'!AT25+'Serial Data'!AU25+'Serial Data'!AV25) ->  | AY25: ='Serial Data'!AU25/('Serial Data'!AT25+'Serial Data'!AU25+'Serial Data'!AV25) ->  | AZ25: =IF('Serial Data'!AT25+'Serial Data'!AU25+'Serial Data'!AV25<>0,(AX25+(AY25*0.5)),NA()) ->  | BA25: =IF('Serial Data'!AT25+'Serial Data'!AU25+'Serial Data'!AV25<>0,(AY25*0.866*Templates!K2),NA()) ->  | BC25: ='Serial Data'!BA25/('Serial Data'!AY25+'Serial Data'!AZ25+'Serial Data'!BA25) ->  | BD25: ='Serial Data'!AY25/('Serial Data'!AY25+'Serial Data'!AZ25+'Serial Data'!BA25) ->  | BE25: ='Serial Data'!AZ25/('Serial Data'!AY25+'Serial Data'!AZ25+'Serial Data'!BA25) ->  | BF25: =IF('Serial Data'!AY25+'Serial Data'!AZ25+'Serial Data'!BA25<>0,(BD25+(BE25*0.5)),NA()) ->  | BG25: =IF('Serial Data'!AY25+'Serial Data'!AZ25+'Serial Data'!BA25<>0,(BE25*0.866*Templates!K2),NA()) ->  | BI25: ='Serial Data'!BF25/('Serial Data'!BD25+'Serial Data'!BE25+'Serial Data'!BF25) ->  | BJ25: ='Serial Data'!BD25/('Serial Data'!BD25+'Serial Data'!BE25+'Serial Data'!BF25) ->  | BK25: ='Serial Data'!BE25/('Serial Data'!BD25+'Serial Data'!BE25+'Serial Data'!BF25) ->  | BL25: =IF('Serial Data'!BD25+'Serial Data'!BE25+'Serial Data'!BF25<>0,(BJ25+(BK25*0.5)),NA()) ->  | BM25: =IF('Serial Data'!BD25+'Serial Data'!BE25+'Serial Data'!BF25<>0,(BK25*0.866*Templates!K2),NA()) -> 
A26: ='Single Data'!N27/('Single Data'!L27+'Single Data'!M27+'Single Data'!N27) ->  | B26: ='Single Data'!L27/('Single Data'!L27+'Single Data'!M27+'Single Data'!N27) ->  | C26: ='Single Data'!M27/('Single Data'!L27+'Single Data'!M27+'Single Data'!N27) ->  | D26: =IF('Single Data'!L27+'Single Data'!M27+'Single Data'!N27<>0,(B26+(C26*0.5)),NA()) ->  | E26: =IF('Single Data'!L27+'Single Data'!M27+'Single Data'!N27<>0,(C26*0.866*Templates!K2),NA()) ->  | G26: ='Serial Data'!M26/('Serial Data'!K26+'Serial Data'!L26+'Serial Data'!M26) ->  | H26: ='Serial Data'!K26/('Serial Data'!K26+'Serial Data'!L26+'Serial Data'!M26) ->  | I26: ='Serial Data'!L26/('Serial Data'!K26+'Serial Data'!L26+'Serial Data'!M26) ->  | J26: =IF('Serial Data'!K26+'Serial Data'!L26+'Serial Data'!M26<>0,(H26+(I26*0.5)),NA()) ->  | K26: =IF('Serial Data'!K26+'Serial Data'!L26+'Serial Data'!M26<>0,(I26*0.866*Templates!K2),NA()) ->  | M26: ='Serial Data'!R26/('Serial Data'!P26+'Serial Data'!Q26+'Serial Data'!R26) ->  | N26: ='Serial Data'!P26/('Serial Data'!P26+'Serial Data'!Q26+'Serial Data'!R26) ->  | O26: ='Serial Data'!Q26/('Serial Data'!P26+'Serial Data'!Q26+'Serial Data'!R26) ->  | P26: =IF('Serial Data'!P26+'Serial Data'!Q26+'Serial Data'!R26<>0,(N26+(O26*0.5)),NA()) ->  | Q26: =IF('Serial Data'!P26+'Serial Data'!Q26+'Serial Data'!R26<>0,(O26*0.866*Templates!K2),NA()) ->  | S26: ='Serial Data'!W26/('Serial Data'!U26+'Serial Data'!V26+'Serial Data'!W26) ->  | T26: ='Serial Data'!U26/('Serial Data'!U26+'Serial Data'!V26+'Serial Data'!W26) ->  | U26: ='Serial Data'!V26/('Serial Data'!U26+'Serial Data'!V26+'Serial Data'!W26) ->  | V26: =IF('Serial Data'!V26+'Serial Data'!W26+'Serial Data'!U26<>0,(T26+(U26*0.5)),NA()) ->  | W26: =IF('Serial Data'!V26+'Serial Data'!W26+'Serial Data'!U26<>0,(U26*0.866*Templates!K2),NA()) ->  | Y26: ='Serial Data'!AB26/('Serial Data'!AA26+'Serial Data'!AB26+'Serial Data'!Z26) ->  | Z26: ='Serial Data'!Z26/('Serial Data'!AA26+'Serial Data'!AB26+'Serial Data'!Z26) ->  | AA26: ='Serial Data'!AA26/('Serial Data'!AA26+'Serial Data'!AB26+'Serial Data'!Z26) ->  | AB26: =IF('Serial Data'!AB26+'Serial Data'!AA26+'Serial Data'!Z26<>0,(Z26+(AA26*0.5)),NA()) ->  | AC26: =IF('Serial Data'!AB26+'Serial Data'!AA26+'Serial Data'!Z26<>0,(AA26*0.866*Templates!K2),NA()) ->  | AE26: ='Serial Data'!AG26/('Serial Data'!AG26+'Serial Data'!AE26+'Serial Data'!AF26) ->  | AF26: ='Serial Data'!AE26/('Serial Data'!AG26+'Serial Data'!AE26+'Serial Data'!AF26) ->  | AG26: ='Serial Data'!AF26/('Serial Data'!AG26+'Serial Data'!AE26+'Serial Data'!AF26) ->  | AH26: =IF('Serial Data'!AE26+'Serial Data'!AF26+'Serial Data'!AG26<>0,(AF26+(AG26*0.5)),NA()) ->  | AI26: =IF('Serial Data'!AE26+'Serial Data'!AF26+'Serial Data'!AG26<>0,(AG26*0.866*Templates!K2),NA()) ->  | AK26: ='Serial Data'!AL26/('Serial Data'!AJ26+'Serial Data'!AK26+'Serial Data'!AL26) ->  | AL26: ='Serial Data'!AJ26/('Serial Data'!AJ26+'Serial Data'!AK26+'Serial Data'!AL26) ->  | AM26: ='Serial Data'!AK26/('Serial Data'!AJ26+'Serial Data'!AK26+'Serial Data'!AL26) ->  | AN26: =IF('Serial Data'!AJ26+'Serial Data'!AK26+'Serial Data'!AL26<>0,(AL26+(AM26*0.5)),NA()) ->  | AO26: =IF('Serial Data'!AJ26+'Serial Data'!AK26+'Serial Data'!AL26<>0,(AM26*0.866*Templates!K2),NA()) ->  | AQ26: ='Serial Data'!AQ26/('Serial Data'!AO26+'Serial Data'!AP26+'Serial Data'!AQ26) ->  | AR26: ='Serial Data'!AO26/('Serial Data'!AO26+'Serial Data'!AP26+'Serial Data'!AQ26) ->  | AS26: ='Serial Data'!AP26/('Serial Data'!AO26+'Serial Data'!AP26+'Serial Data'!AQ26) ->  | AT26: =IF('Serial Data'!AO26+'Serial Data'!AP26+'Serial Data'!AQ26<>0,(AR26+(AS26*0.5)),NA()) ->  | AU26: =IF('Serial Data'!AO26+'Serial Data'!AP26+'Serial Data'!AQ26<>0,(AS26*0.866*Templates!K2),NA()) ->  | AW26: ='Serial Data'!AV26/('Serial Data'!AT26+'Serial Data'!AU26+'Serial Data'!AV26) ->  | AX26: ='Serial Data'!AT26/('Serial Data'!AT26+'Serial Data'!AU26+'Serial Data'!AV26) ->  | AY26: ='Serial Data'!AU26/('Serial Data'!AT26+'Serial Data'!AU26+'Serial Data'!AV26) ->  | AZ26: =IF('Serial Data'!AT26+'Serial Data'!AU26+'Serial Data'!AV26<>0,(AX26+(AY26*0.5)),NA()) ->  | BA26: =IF('Serial Data'!AT26+'Serial Data'!AU26+'Serial Data'!AV26<>0,(AY26*0.866*Templates!K2),NA()) ->  | BC26: ='Serial Data'!BA26/('Serial Data'!AY26+'Serial Data'!AZ26+'Serial Data'!BA26) ->  | BD26: ='Serial Data'!AY26/('Serial Data'!AY26+'Serial Data'!AZ26+'Serial Data'!BA26) ->  | BE26: ='Serial Data'!AZ26/('Serial Data'!AY26+'Serial Data'!AZ26+'Serial Data'!BA26) ->  | BF26: =IF('Serial Data'!AY26+'Serial Data'!AZ26+'Serial Data'!BA26<>0,(BD26+(BE26*0.5)),NA()) ->  | BG26: =IF('Serial Data'!AY26+'Serial Data'!AZ26+'Serial Data'!BA26<>0,(BE26*0.866*Templates!K2),NA()) ->  | BI26: ='Serial Data'!BF26/('Serial Data'!BD26+'Serial Data'!BE26+'Serial Data'!BF26) ->  | BJ26: ='Serial Data'!BD26/('Serial Data'!BD26+'Serial Data'!BE26+'Serial Data'!BF26) ->  | BK26: ='Serial Data'!BE26/('Serial Data'!BD26+'Serial Data'!BE26+'Serial Data'!BF26) ->  | BL26: =IF('Serial Data'!BD26+'Serial Data'!BE26+'Serial Data'!BF26<>0,(BJ26+(BK26*0.5)),NA()) ->  | BM26: =IF('Serial Data'!BD26+'Serial Data'!BE26+'Serial Data'!BF26<>0,(BK26*0.866*Templates!K2),NA()) -> 
A27: ='Single Data'!N28/('Single Data'!L28+'Single Data'!M28+'Single Data'!N28) ->  | B27: ='Single Data'!L28/('Single Data'!L28+'Single Data'!M28+'Single Data'!N28) ->  | C27: ='Single Data'!M28/('Single Data'!L28+'Single Data'!M28+'Single Data'!N28) ->  | D27: =IF('Single Data'!L28+'Single Data'!M28+'Single Data'!N28<>0,(B27+(C27*0.5)),NA()) ->  | E27: =IF('Single Data'!L28+'Single Data'!M28+'Single Data'!N28<>0,(C27*0.866*Templates!K2),NA()) ->  | G27: ='Serial Data'!M27/('Serial Data'!K27+'Serial Data'!L27+'Serial Data'!M27) ->  | H27: ='Serial Data'!K27/('Serial Data'!K27+'Serial Data'!L27+'Serial Data'!M27) ->  | I27: ='Serial Data'!L27/('Serial Data'!K27+'Serial Data'!L27+'Serial Data'!M27) ->  | J27: =IF('Serial Data'!K27+'Serial Data'!L27+'Serial Data'!M27<>0,(H27+(I27*0.5)),NA()) ->  | K27: =IF('Serial Data'!K27+'Serial Data'!L27+'Serial Data'!M27<>0,(I27*0.866*Templates!K2),NA()) ->  | M27: ='Serial Data'!R27/('Serial Data'!P27+'Serial Data'!Q27+'Serial Data'!R27) ->  | N27: ='Serial Data'!P27/('Serial Data'!P27+'Serial Data'!Q27+'Serial Data'!R27) ->  | O27: ='Serial Data'!Q27/('Serial Data'!P27+'Serial Data'!Q27+'Serial Data'!R27) ->  | P27: =IF('Serial Data'!P27+'Serial Data'!Q27+'Serial Data'!R27<>0,(N27+(O27*0.5)),NA()) ->  | Q27: =IF('Serial Data'!P27+'Serial Data'!Q27+'Serial Data'!R27<>0,(O27*0.866*Templates!K2),NA()) ->  | S27: ='Serial Data'!W27/('Serial Data'!U27+'Serial Data'!V27+'Serial Data'!W27) ->  | T27: ='Serial Data'!U27/('Serial Data'!U27+'Serial Data'!V27+'Serial Data'!W27) ->  | U27: ='Serial Data'!V27/('Serial Data'!U27+'Serial Data'!V27+'Serial Data'!W27) ->  | V27: =IF('Serial Data'!V27+'Serial Data'!W27+'Serial Data'!U27<>0,(T27+(U27*0.5)),NA()) ->  | W27: =IF('Serial Data'!V27+'Serial Data'!W27+'Serial Data'!U27<>0,(U27*0.866*Templates!K2),NA()) ->  | Y27: ='Serial Data'!AB27/('Serial Data'!AA27+'Serial Data'!AB27+'Serial Data'!Z27) ->  | Z27: ='Serial Data'!Z27/('Serial Data'!AA27+'Serial Data'!AB27+'Serial Data'!Z27) ->  | AA27: ='Serial Data'!AA27/('Serial Data'!AA27+'Serial Data'!AB27+'Serial Data'!Z27) ->  | AB27: =IF('Serial Data'!AB27+'Serial Data'!AA27+'Serial Data'!Z27<>0,(Z27+(AA27*0.5)),NA()) ->  | AC27: =IF('Serial Data'!AB27+'Serial Data'!AA27+'Serial Data'!Z27<>0,(AA27*0.866*Templates!K2),NA()) ->  | AE27: ='Serial Data'!AG27/('Serial Data'!AG27+'Serial Data'!AE27+'Serial Data'!AF27) ->  | AF27: ='Serial Data'!AE27/('Serial Data'!AG27+'Serial Data'!AE27+'Serial Data'!AF27) ->  | AG27: ='Serial Data'!AF27/('Serial Data'!AG27+'Serial Data'!AE27+'Serial Data'!AF27) ->  | AH27: =IF('Serial Data'!AE27+'Serial Data'!AF27+'Serial Data'!AG27<>0,(AF27+(AG27*0.5)),NA()) ->  | AI27: =IF('Serial Data'!AE27+'Serial Data'!AF27+'Serial Data'!AG27<>0,(AG27*0.866*Templates!K2),NA()) ->  | AK27: ='Serial Data'!AL27/('Serial Data'!AJ27+'Serial Data'!AK27+'Serial Data'!AL27) ->  | AL27: ='Serial Data'!AJ27/('Serial Data'!AJ27+'Serial Data'!AK27+'Serial Data'!AL27) ->  | AM27: ='Serial Data'!AK27/('Serial Data'!AJ27+'Serial Data'!AK27+'Serial Data'!AL27) ->  | AN27: =IF('Serial Data'!AJ27+'Serial Data'!AK27+'Serial Data'!AL27<>0,(AL27+(AM27*0.5)),NA()) ->  | AO27: =IF('Serial Data'!AJ27+'Serial Data'!AK27+'Serial Data'!AL27<>0,(AM27*0.866*Templates!K2),NA()) ->  | AQ27: ='Serial Data'!AQ27/('Serial Data'!AO27+'Serial Data'!AP27+'Serial Data'!AQ27) ->  | AR27: ='Serial Data'!AO27/('Serial Data'!AO27+'Serial Data'!AP27+'Serial Data'!AQ27) ->  | AS27: ='Serial Data'!AP27/('Serial Data'!AO27+'Serial Data'!AP27+'Serial Data'!AQ27) ->  | AT27: =IF('Serial Data'!AO27+'Serial Data'!AP27+'Serial Data'!AQ27<>0,(AR27+(AS27*0.5)),NA()) ->  | AU27: =IF('Serial Data'!AO27+'Serial Data'!AP27+'Serial Data'!AQ27<>0,(AS27*0.866*Templates!K2),NA()) ->  | AW27: ='Serial Data'!AV27/('Serial Data'!AT27+'Serial Data'!AU27+'Serial Data'!AV27) ->  | AX27: ='Serial Data'!AT27/('Serial Data'!AT27+'Serial Data'!AU27+'Serial Data'!AV27) ->  | AY27: ='Serial Data'!AU27/('Serial Data'!AT27+'Serial Data'!AU27+'Serial Data'!AV27) ->  | AZ27: =IF('Serial Data'!AT27+'Serial Data'!AU27+'Serial Data'!AV27<>0,(AX27+(AY27*0.5)),NA()) ->  | BA27: =IF('Serial Data'!AT27+'Serial Data'!AU27+'Serial Data'!AV27<>0,(AY27*0.866*Templates!K2),NA()) ->  | BC27: ='Serial Data'!BA27/('Serial Data'!AY27+'Serial Data'!AZ27+'Serial Data'!BA27) ->  | BD27: ='Serial Data'!AY27/('Serial Data'!AY27+'Serial Data'!AZ27+'Serial Data'!BA27) ->  | BE27: ='Serial Data'!AZ27/('Serial Data'!AY27+'Serial Data'!AZ27+'Serial Data'!BA27) ->  | BF27: =IF('Serial Data'!AY27+'Serial Data'!AZ27+'Serial Data'!BA27<>0,(BD27+(BE27*0.5)),NA()) ->  | BG27: =IF('Serial Data'!AY27+'Serial Data'!AZ27+'Serial Data'!BA27<>0,(BE27*0.866*Templates!K2),NA()) ->  | BI27: ='Serial Data'!BF27/('Serial Data'!BD27+'Serial Data'!BE27+'Serial Data'!BF27) ->  | BJ27: ='Serial Data'!BD27/('Serial Data'!BD27+'Serial Data'!BE27+'Serial Data'!BF27) ->  | BK27: ='Serial Data'!BE27/('Serial Data'!BD27+'Serial Data'!BE27+'Serial Data'!BF27) ->  | BL27: =IF('Serial Data'!BD27+'Serial Data'!BE27+'Serial Data'!BF27<>0,(BJ27+(BK27*0.5)),NA()) ->  | BM27: =IF('Serial Data'!BD27+'Serial Data'!BE27+'Serial Data'!BF27<>0,(BK27*0.866*Templates!K2),NA()) -> 
A28: ='Single Data'!N29/('Single Data'!L29+'Single Data'!M29+'Single Data'!N29) ->  | B28: ='Single Data'!L29/('Single Data'!L29+'Single Data'!M29+'Single Data'!N29) ->  | C28: ='Single Data'!M29/('Single Data'!L29+'Single Data'!M29+'Single Data'!N29) ->  | D28: =IF('Single Data'!L29+'Single Data'!M29+'Single Data'!N29<>0,(B28+(C28*0.5)),NA()) ->  | E28: =IF('Single Data'!L29+'Single Data'!M29+'Single Data'!N29<>0,(C28*0.866*Templates!K2),NA()) ->  | G28: ='Serial Data'!M28/('Serial Data'!K28+'Serial Data'!L28+'Serial Data'!M28) ->  | H28: ='Serial Data'!K28/('Serial Data'!K28+'Serial Data'!L28+'Serial Data'!M28) ->  | I28: ='Serial Data'!L28/('Serial Data'!K28+'Serial Data'!L28+'Serial Data'!M28) ->  | J28: =IF('Serial Data'!K28+'Serial Data'!L28+'Serial Data'!M28<>0,(H28+(I28*0.5)),NA()) ->  | K28: =IF('Serial Data'!K28+'Serial Data'!L28+'Serial Data'!M28<>0,(I28*0.866*Templates!K2),NA()) ->  | M28: ='Serial Data'!R28/('Serial Data'!P28+'Serial Data'!Q28+'Serial Data'!R28) ->  | N28: ='Serial Data'!P28/('Serial Data'!P28+'Serial Data'!Q28+'Serial Data'!R28) ->  | O28: ='Serial Data'!Q28/('Serial Data'!P28+'Serial Data'!Q28+'Serial Data'!R28) ->  | P28: =IF('Serial Data'!P28+'Serial Data'!Q28+'Serial Data'!R28<>0,(N28+(O28*0.5)),NA()) ->  | Q28: =IF('Serial Data'!P28+'Serial Data'!Q28+'Serial Data'!R28<>0,(O28*0.866*Templates!K2),NA()) ->  | S28: ='Serial Data'!W28/('Serial Data'!U28+'Serial Data'!V28+'Serial Data'!W28) ->  | T28: ='Serial Data'!U28/('Serial Data'!U28+'Serial Data'!V28+'Serial Data'!W28) ->  | U28: ='Serial Data'!V28/('Serial Data'!U28+'Serial Data'!V28+'Serial Data'!W28) ->  | V28: =IF('Serial Data'!V28+'Serial Data'!W28+'Serial Data'!U28<>0,(T28+(U28*0.5)),NA()) ->  | W28: =IF('Serial Data'!V28+'Serial Data'!W28+'Serial Data'!U28<>0,(U28*0.866*Templates!K2),NA()) ->  | Y28: ='Serial Data'!AB28/('Serial Data'!AA28+'Serial Data'!AB28+'Serial Data'!Z28) ->  | Z28: ='Serial Data'!Z28/('Serial Data'!AA28+'Serial Data'!AB28+'Serial Data'!Z28) ->  | AA28: ='Serial Data'!AA28/('Serial Data'!AA28+'Serial Data'!AB28+'Serial Data'!Z28) ->  | AB28: =IF('Serial Data'!AB28+'Serial Data'!AA28+'Serial Data'!Z28<>0,(Z28+(AA28*0.5)),NA()) ->  | AC28: =IF('Serial Data'!AB28+'Serial Data'!AA28+'Serial Data'!Z28<>0,(AA28*0.866*Templates!K2),NA()) ->  | AE28: ='Serial Data'!AG28/('Serial Data'!AG28+'Serial Data'!AE28+'Serial Data'!AF28) ->  | AF28: ='Serial Data'!AE28/('Serial Data'!AG28+'Serial Data'!AE28+'Serial Data'!AF28) ->  | AG28: ='Serial Data'!AF28/('Serial Data'!AG28+'Serial Data'!AE28+'Serial Data'!AF28) ->  | AH28: =IF('Serial Data'!AE28+'Serial Data'!AF28+'Serial Data'!AG28<>0,(AF28+(AG28*0.5)),NA()) ->  | AI28: =IF('Serial Data'!AE28+'Serial Data'!AF28+'Serial Data'!AG28<>0,(AG28*0.866*Templates!K2),NA()) ->  | AK28: ='Serial Data'!AL28/('Serial Data'!AJ28+'Serial Data'!AK28+'Serial Data'!AL28) ->  | AL28: ='Serial Data'!AJ28/('Serial Data'!AJ28+'Serial Data'!AK28+'Serial Data'!AL28) ->  | AM28: ='Serial Data'!AK28/('Serial Data'!AJ28+'Serial Data'!AK28+'Serial Data'!AL28) ->  | AN28: =IF('Serial Data'!AJ28+'Serial Data'!AK28+'Serial Data'!AL28<>0,(AL28+(AM28*0.5)),NA()) ->  | AO28: =IF('Serial Data'!AJ28+'Serial Data'!AK28+'Serial Data'!AL28<>0,(AM28*0.866*Templates!K2),NA()) ->  | AQ28: ='Serial Data'!AQ28/('Serial Data'!AO28+'Serial Data'!AP28+'Serial Data'!AQ28) ->  | AR28: ='Serial Data'!AO28/('Serial Data'!AO28+'Serial Data'!AP28+'Serial Data'!AQ28) ->  | AS28: ='Serial Data'!AP28/('Serial Data'!AO28+'Serial Data'!AP28+'Serial Data'!AQ28) ->  | AT28: =IF('Serial Data'!AO28+'Serial Data'!AP28+'Serial Data'!AQ28<>0,(AR28+(AS28*0.5)),NA()) ->  | AU28: =IF('Serial Data'!AO28+'Serial Data'!AP28+'Serial Data'!AQ28<>0,(AS28*0.866*Templates!K2),NA()) ->  | AW28: ='Serial Data'!AV28/('Serial Data'!AT28+'Serial Data'!AU28+'Serial Data'!AV28) ->  | AX28: ='Serial Data'!AT28/('Serial Data'!AT28+'Serial Data'!AU28+'Serial Data'!AV28) ->  | AY28: ='Serial Data'!AU28/('Serial Data'!AT28+'Serial Data'!AU28+'Serial Data'!AV28) ->  | AZ28: =IF('Serial Data'!AT28+'Serial Data'!AU28+'Serial Data'!AV28<>0,(AX28+(AY28*0.5)),NA()) ->  | BA28: =IF('Serial Data'!AT28+'Serial Data'!AU28+'Serial Data'!AV28<>0,(AY28*0.866*Templates!K2),NA()) ->  | BC28: ='Serial Data'!BA28/('Serial Data'!AY28+'Serial Data'!AZ28+'Serial Data'!BA28) ->  | BD28: ='Serial Data'!AY28/('Serial Data'!AY28+'Serial Data'!AZ28+'Serial Data'!BA28) ->  | BE28: ='Serial Data'!AZ28/('Serial Data'!AY28+'Serial Data'!AZ28+'Serial Data'!BA28) ->  | BF28: =IF('Serial Data'!AY28+'Serial Data'!AZ28+'Serial Data'!BA28<>0,(BD28+(BE28*0.5)),NA()) ->  | BG28: =IF('Serial Data'!AY28+'Serial Data'!AZ28+'Serial Data'!BA28<>0,(BE28*0.866*Templates!K2),NA()) ->  | BI28: ='Serial Data'!BF28/('Serial Data'!BD28+'Serial Data'!BE28+'Serial Data'!BF28) ->  | BJ28: ='Serial Data'!BD28/('Serial Data'!BD28+'Serial Data'!BE28+'Serial Data'!BF28) ->  | BK28: ='Serial Data'!BE28/('Serial Data'!BD28+'Serial Data'!BE28+'Serial Data'!BF28) ->  | BL28: =IF('Serial Data'!BD28+'Serial Data'!BE28+'Serial Data'!BF28<>0,(BJ28+(BK28*0.5)),NA()) ->  | BM28: =IF('Serial Data'!BD28+'Serial Data'!BE28+'Serial Data'!BF28<>0,(BK28*0.866*Templates!K2),NA()) -> 
A29: ='Single Data'!N30/('Single Data'!L30+'Single Data'!M30+'Single Data'!N30) ->  | B29: ='Single Data'!L30/('Single Data'!L30+'Single Data'!M30+'Single Data'!N30) ->  | C29: ='Single Data'!M30/('Single Data'!L30+'Single Data'!M30+'Single Data'!N30) ->  | D29: =IF('Single Data'!L30+'Single Data'!M30+'Single Data'!N30<>0,(B29+(C29*0.5)),NA()) ->  | E29: =IF('Single Data'!L30+'Single Data'!M30+'Single Data'!N30<>0,(C29*0.866*Templates!K2),NA()) ->  | G29: ='Serial Data'!M29/('Serial Data'!K29+'Serial Data'!L29+'Serial Data'!M29) ->  | H29: ='Serial Data'!K29/('Serial Data'!K29+'Serial Data'!L29+'Serial Data'!M29) ->  | I29: ='Serial Data'!L29/('Serial Data'!K29+'Serial Data'!L29+'Serial Data'!M29) ->  | J29: =IF('Serial Data'!K29+'Serial Data'!L29+'Serial Data'!M29<>0,(H29+(I29*0.5)),NA()) ->  | K29: =IF('Serial Data'!K29+'Serial Data'!L29+'Serial Data'!M29<>0,(I29*0.866*Templates!K2),NA()) ->  | M29: ='Serial Data'!R29/('Serial Data'!P29+'Serial Data'!Q29+'Serial Data'!R29) ->  | N29: ='Serial Data'!P29/('Serial Data'!P29+'Serial Data'!Q29+'Serial Data'!R29) ->  | O29: ='Serial Data'!Q29/('Serial Data'!P29+'Serial Data'!Q29+'Serial Data'!R29) ->  | P29: =IF('Serial Data'!P29+'Serial Data'!Q29+'Serial Data'!R29<>0,(N29+(O29*0.5)),NA()) ->  | Q29: =IF('Serial Data'!P29+'Serial Data'!Q29+'Serial Data'!R29<>0,(O29*0.866*Templates!K2),NA()) ->  | S29: ='Serial Data'!W29/('Serial Data'!U29+'Serial Data'!V29+'Serial Data'!W29) ->  | T29: ='Serial Data'!U29/('Serial Data'!U29+'Serial Data'!V29+'Serial Data'!W29) ->  | U29: ='Serial Data'!V29/('Serial Data'!U29+'Serial Data'!V29+'Serial Data'!W29) ->  | V29: =IF('Serial Data'!V29+'Serial Data'!W29+'Serial Data'!U29<>0,(T29+(U29*0.5)),NA()) ->  | W29: =IF('Serial Data'!V29+'Serial Data'!W29+'Serial Data'!U29<>0,(U29*0.866*Templates!K2),NA()) ->  | Y29: ='Serial Data'!AB29/('Serial Data'!AA29+'Serial Data'!AB29+'Serial Data'!Z29) ->  | Z29: ='Serial Data'!Z29/('Serial Data'!AA29+'Serial Data'!AB29+'Serial Data'!Z29) ->  | AA29: ='Serial Data'!AA29/('Serial Data'!AA29+'Serial Data'!AB29+'Serial Data'!Z29) ->  | AB29: =IF('Serial Data'!AB29+'Serial Data'!AA29+'Serial Data'!Z29<>0,(Z29+(AA29*0.5)),NA()) ->  | AC29: =IF('Serial Data'!AB29+'Serial Data'!AA29+'Serial Data'!Z29<>0,(AA29*0.866*Templates!K2),NA()) ->  | AE29: ='Serial Data'!AG29/('Serial Data'!AG29+'Serial Data'!AE29+'Serial Data'!AF29) ->  | AF29: ='Serial Data'!AE29/('Serial Data'!AG29+'Serial Data'!AE29+'Serial Data'!AF29) ->  | AG29: ='Serial Data'!AF29/('Serial Data'!AG29+'Serial Data'!AE29+'Serial Data'!AF29) ->  | AH29: =IF('Serial Data'!AE29+'Serial Data'!AF29+'Serial Data'!AG29<>0,(AF29+(AG29*0.5)),NA()) ->  | AI29: =IF('Serial Data'!AE29+'Serial Data'!AF29+'Serial Data'!AG29<>0,(AG29*0.866*Templates!K2),NA()) ->  | AK29: ='Serial Data'!AL29/('Serial Data'!AJ29+'Serial Data'!AK29+'Serial Data'!AL29) ->  | AL29: ='Serial Data'!AJ29/('Serial Data'!AJ29+'Serial Data'!AK29+'Serial Data'!AL29) ->  | AM29: ='Serial Data'!AK29/('Serial Data'!AJ29+'Serial Data'!AK29+'Serial Data'!AL29) ->  | AN29: =IF('Serial Data'!AJ29+'Serial Data'!AK29+'Serial Data'!AL29<>0,(AL29+(AM29*0.5)),NA()) ->  | AO29: =IF('Serial Data'!AJ29+'Serial Data'!AK29+'Serial Data'!AL29<>0,(AM29*0.866*Templates!K2),NA()) ->  | AQ29: ='Serial Data'!AQ29/('Serial Data'!AO29+'Serial Data'!AP29+'Serial Data'!AQ29) ->  | AR29: ='Serial Data'!AO29/('Serial Data'!AO29+'Serial Data'!AP29+'Serial Data'!AQ29) ->  | AS29: ='Serial Data'!AP29/('Serial Data'!AO29+'Serial Data'!AP29+'Serial Data'!AQ29) ->  | AT29: =IF('Serial Data'!AO29+'Serial Data'!AP29+'Serial Data'!AQ29<>0,(AR29+(AS29*0.5)),NA()) ->  | AU29: =IF('Serial Data'!AO29+'Serial Data'!AP29+'Serial Data'!AQ29<>0,(AS29*0.866*Templates!K2),NA()) ->  | AW29: ='Serial Data'!AV29/('Serial Data'!AT29+'Serial Data'!AU29+'Serial Data'!AV29) ->  | AX29: ='Serial Data'!AT29/('Serial Data'!AT29+'Serial Data'!AU29+'Serial Data'!AV29) ->  | AY29: ='Serial Data'!AU29/('Serial Data'!AT29+'Serial Data'!AU29+'Serial Data'!AV29) ->  | AZ29: =IF('Serial Data'!AT29+'Serial Data'!AU29+'Serial Data'!AV29<>0,(AX29+(AY29*0.5)),NA()) ->  | BA29: =IF('Serial Data'!AT29+'Serial Data'!AU29+'Serial Data'!AV29<>0,(AY29*0.866*Templates!K2),NA()) ->  | BC29: ='Serial Data'!BA29/('Serial Data'!AY29+'Serial Data'!AZ29+'Serial Data'!BA29) ->  | BD29: ='Serial Data'!AY29/('Serial Data'!AY29+'Serial Data'!AZ29+'Serial Data'!BA29) ->  | BE29: ='Serial Data'!AZ29/('Serial Data'!AY29+'Serial Data'!AZ29+'Serial Data'!BA29) ->  | BF29: =IF('Serial Data'!AY29+'Serial Data'!AZ29+'Serial Data'!BA29<>0,(BD29+(BE29*0.5)),NA()) ->  | BG29: =IF('Serial Data'!AY29+'Serial Data'!AZ29+'Serial Data'!BA29<>0,(BE29*0.866*Templates!K2),NA()) ->  | BI29: ='Serial Data'!BF29/('Serial Data'!BD29+'Serial Data'!BE29+'Serial Data'!BF29) ->  | BJ29: ='Serial Data'!BD29/('Serial Data'!BD29+'Serial Data'!BE29+'Serial Data'!BF29) ->  | BK29: ='Serial Data'!BE29/('Serial Data'!BD29+'Serial Data'!BE29+'Serial Data'!BF29) ->  | BL29: =IF('Serial Data'!BD29+'Serial Data'!BE29+'Serial Data'!BF29<>0,(BJ29+(BK29*0.5)),NA()) ->  | BM29: =IF('Serial Data'!BD29+'Serial Data'!BE29+'Serial Data'!BF29<>0,(BK29*0.866*Templates!K2),NA()) -> 
A30: ='Single Data'!N31/('Single Data'!L31+'Single Data'!M31+'Single Data'!N31) ->  | B30: ='Single Data'!L31/('Single Data'!L31+'Single Data'!M31+'Single Data'!N31) ->  | C30: ='Single Data'!M31/('Single Data'!L31+'Single Data'!M31+'Single Data'!N31) ->  | D30: =IF('Single Data'!L31+'Single Data'!M31+'Single Data'!N31<>0,(B30+(C30*0.5)),NA()) ->  | E30: =IF('Single Data'!L31+'Single Data'!M31+'Single Data'!N31<>0,(C30*0.866*Templates!K2),NA()) ->  | G30: ='Serial Data'!M30/('Serial Data'!K30+'Serial Data'!L30+'Serial Data'!M30) ->  | H30: ='Serial Data'!K30/('Serial Data'!K30+'Serial Data'!L30+'Serial Data'!M30) ->  | I30: ='Serial Data'!L30/('Serial Data'!K30+'Serial Data'!L30+'Serial Data'!M30) ->  | J30: =IF('Serial Data'!K30+'Serial Data'!L30+'Serial Data'!M30<>0,(H30+(I30*0.5)),NA()) ->  | K30: =IF('Serial Data'!K30+'Serial Data'!L30+'Serial Data'!M30<>0,(I30*0.866*Templates!K2),NA()) ->  | M30: ='Serial Data'!R30/('Serial Data'!P30+'Serial Data'!Q30+'Serial Data'!R30) ->  | N30: ='Serial Data'!P30/('Serial Data'!P30+'Serial Data'!Q30+'Serial Data'!R30) ->  | O30: ='Serial Data'!Q30/('Serial Data'!P30+'Serial Data'!Q30+'Serial Data'!R30) ->  | P30: =IF('Serial Data'!P30+'Serial Data'!Q30+'Serial Data'!R30<>0,(N30+(O30*0.5)),NA()) ->  | Q30: =IF('Serial Data'!P30+'Serial Data'!Q30+'Serial Data'!R30<>0,(O30*0.866*Templates!K2),NA()) ->  | S30: ='Serial Data'!W30/('Serial Data'!U30+'Serial Data'!V30+'Serial Data'!W30) ->  | T30: ='Serial Data'!U30/('Serial Data'!U30+'Serial Data'!V30+'Serial Data'!W30) ->  | U30: ='Serial Data'!V30/('Serial Data'!U30+'Serial Data'!V30+'Serial Data'!W30) ->  | V30: =IF('Serial Data'!V30+'Serial Data'!W30+'Serial Data'!U30<>0,(T30+(U30*0.5)),NA()) ->  | W30: =IF('Serial Data'!V30+'Serial Data'!W30+'Serial Data'!U30<>0,(U30*0.866*Templates!K2),NA()) ->  | Y30: ='Serial Data'!AB30/('Serial Data'!AA30+'Serial Data'!AB30+'Serial Data'!Z30) ->  | Z30: ='Serial Data'!Z30/('Serial Data'!AA30+'Serial Data'!AB30+'Serial Data'!Z30) ->  | AA30: ='Serial Data'!AA30/('Serial Data'!AA30+'Serial Data'!AB30+'Serial Data'!Z30) ->  | AB30: =IF('Serial Data'!AB30+'Serial Data'!AA30+'Serial Data'!Z30<>0,(Z30+(AA30*0.5)),NA()) ->  | AC30: =IF('Serial Data'!AB30+'Serial Data'!AA30+'Serial Data'!Z30<>0,(AA30*0.866*Templates!K2),NA()) ->  | AE30: ='Serial Data'!AG30/('Serial Data'!AG30+'Serial Data'!AE30+'Serial Data'!AF30) ->  | AF30: ='Serial Data'!AE30/('Serial Data'!AG30+'Serial Data'!AE30+'Serial Data'!AF30) ->  | AG30: ='Serial Data'!AF30/('Serial Data'!AG30+'Serial Data'!AE30+'Serial Data'!AF30) ->  | AH30: =IF('Serial Data'!AE30+'Serial Data'!AF30+'Serial Data'!AG30<>0,(AF30+(AG30*0.5)),NA()) ->  | AI30: =IF('Serial Data'!AE30+'Serial Data'!AF30+'Serial Data'!AG30<>0,(AG30*0.866*Templates!K2),NA()) ->  | AK30: ='Serial Data'!AL30/('Serial Data'!AJ30+'Serial Data'!AK30+'Serial Data'!AL30) ->  | AL30: ='Serial Data'!AJ30/('Serial Data'!AJ30+'Serial Data'!AK30+'Serial Data'!AL30) ->  | AM30: ='Serial Data'!AK30/('Serial Data'!AJ30+'Serial Data'!AK30+'Serial Data'!AL30) ->  | AN30: =IF('Serial Data'!AJ30+'Serial Data'!AK30+'Serial Data'!AL30<>0,(AL30+(AM30*0.5)),NA()) ->  | AO30: =IF('Serial Data'!AJ30+'Serial Data'!AK30+'Serial Data'!AL30<>0,(AM30*0.866*Templates!K2),NA()) ->  | AQ30: ='Serial Data'!AQ30/('Serial Data'!AO30+'Serial Data'!AP30+'Serial Data'!AQ30) ->  | AR30: ='Serial Data'!AO30/('Serial Data'!AO30+'Serial Data'!AP30+'Serial Data'!AQ30) ->  | AS30: ='Serial Data'!AP30/('Serial Data'!AO30+'Serial Data'!AP30+'Serial Data'!AQ30) ->  | AT30: =IF('Serial Data'!AO30+'Serial Data'!AP30+'Serial Data'!AQ30<>0,(AR30+(AS30*0.5)),NA()) ->  | AU30: =IF('Serial Data'!AO30+'Serial Data'!AP30+'Serial Data'!AQ30<>0,(AS30*0.866*Templates!K2),NA()) ->  | AW30: ='Serial Data'!AV30/('Serial Data'!AT30+'Serial Data'!AU30+'Serial Data'!AV30) ->  | AX30: ='Serial Data'!AT30/('Serial Data'!AT30+'Serial Data'!AU30+'Serial Data'!AV30) ->  | AY30: ='Serial Data'!AU30/('Serial Data'!AT30+'Serial Data'!AU30+'Serial Data'!AV30) ->  | AZ30: =IF('Serial Data'!AT30+'Serial Data'!AU30+'Serial Data'!AV30<>0,(AX30+(AY30*0.5)),NA()) ->  | BA30: =IF('Serial Data'!AT30+'Serial Data'!AU30+'Serial Data'!AV30<>0,(AY30*0.866*Templates!K2),NA()) ->  | BC30: ='Serial Data'!BA30/('Serial Data'!AY30+'Serial Data'!AZ30+'Serial Data'!BA30) ->  | BD30: ='Serial Data'!AY30/('Serial Data'!AY30+'Serial Data'!AZ30+'Serial Data'!BA30) ->  | BE30: ='Serial Data'!AZ30/('Serial Data'!AY30+'Serial Data'!AZ30+'Serial Data'!BA30) ->  | BF30: =IF('Serial Data'!AY30+'Serial Data'!AZ30+'Serial Data'!BA30<>0,(BD30+(BE30*0.5)),NA()) ->  | BG30: =IF('Serial Data'!AY30+'Serial Data'!AZ30+'Serial Data'!BA30<>0,(BE30*0.866*Templates!K2),NA()) ->  | BI30: ='Serial Data'!BF30/('Serial Data'!BD30+'Serial Data'!BE30+'Serial Data'!BF30) ->  | BJ30: ='Serial Data'!BD30/('Serial Data'!BD30+'Serial Data'!BE30+'Serial Data'!BF30) ->  | BK30: ='Serial Data'!BE30/('Serial Data'!BD30+'Serial Data'!BE30+'Serial Data'!BF30) ->  | BL30: =IF('Serial Data'!BD30+'Serial Data'!BE30+'Serial Data'!BF30<>0,(BJ30+(BK30*0.5)),NA()) ->  | BM30: =IF('Serial Data'!BD30+'Serial Data'!BE30+'Serial Data'!BF30<>0,(BK30*0.866*Templates!K2),NA()) -> 
A31: ='Single Data'!N32/('Single Data'!L32+'Single Data'!M32+'Single Data'!N32) ->  | B31: ='Single Data'!L32/('Single Data'!L32+'Single Data'!M32+'Single Data'!N32) ->  | C31: ='Single Data'!M32/('Single Data'!L32+'Single Data'!M32+'Single Data'!N32) ->  | D31: =IF('Single Data'!L32+'Single Data'!M32+'Single Data'!N32<>0,(B31+(C31*0.5)),NA()) ->  | E31: =IF('Single Data'!L32+'Single Data'!M32+'Single Data'!N32<>0,(C31*0.866*Templates!K2),NA()) ->  | G31: ='Serial Data'!M31/('Serial Data'!K31+'Serial Data'!L31+'Serial Data'!M31) ->  | H31: ='Serial Data'!K31/('Serial Data'!K31+'Serial Data'!L31+'Serial Data'!M31) ->  | I31: ='Serial Data'!L31/('Serial Data'!K31+'Serial Data'!L31+'Serial Data'!M31) ->  | J31: =IF('Serial Data'!K31+'Serial Data'!L31+'Serial Data'!M31<>0,(H31+(I31*0.5)),NA()) ->  | K31: =IF('Serial Data'!K31+'Serial Data'!L31+'Serial Data'!M31<>0,(I31*0.866*Templates!K2),NA()) ->  | M31: ='Serial Data'!R31/('Serial Data'!P31+'Serial Data'!Q31+'Serial Data'!R31) ->  | N31: ='Serial Data'!P31/('Serial Data'!P31+'Serial Data'!Q31+'Serial Data'!R31) ->  | O31: ='Serial Data'!Q31/('Serial Data'!P31+'Serial Data'!Q31+'Serial Data'!R31) ->  | P31: =IF('Serial Data'!P31+'Serial Data'!Q31+'Serial Data'!R31<>0,(N31+(O31*0.5)),NA()) ->  | Q31: =IF('Serial Data'!P31+'Serial Data'!Q31+'Serial Data'!R31<>0,(O31*0.866*Templates!K2),NA()) ->  | S31: ='Serial Data'!W31/('Serial Data'!U31+'Serial Data'!V31+'Serial Data'!W31) ->  | T31: ='Serial Data'!U31/('Serial Data'!U31+'Serial Data'!V31+'Serial Data'!W31) ->  | U31: ='Serial Data'!V31/('Serial Data'!U31+'Serial Data'!V31+'Serial Data'!W31) ->  | V31: =IF('Serial Data'!V31+'Serial Data'!W31+'Serial Data'!U31<>0,(T31+(U31*0.5)),NA()) ->  | W31: =IF('Serial Data'!V31+'Serial Data'!W31+'Serial Data'!U31<>0,(U31*0.866*Templates!K2),NA()) ->  | Y31: ='Serial Data'!AB31/('Serial Data'!AA31+'Serial Data'!AB31+'Serial Data'!Z31) ->  | Z31: ='Serial Data'!Z31/('Serial Data'!AA31+'Serial Data'!AB31+'Serial Data'!Z31) ->  | AA31: ='Serial Data'!AA31/('Serial Data'!AA31+'Serial Data'!AB31+'Serial Data'!Z31) ->  | AB31: =IF('Serial Data'!AB31+'Serial Data'!AA31+'Serial Data'!Z31<>0,(Z31+(AA31*0.5)),NA()) ->  | AC31: =IF('Serial Data'!AB31+'Serial Data'!AA31+'Serial Data'!Z31<>0,(AA31*0.866*Templates!K2),NA()) ->  | AE31: ='Serial Data'!AG31/('Serial Data'!AG31+'Serial Data'!AE31+'Serial Data'!AF31) ->  | AF31: ='Serial Data'!AE31/('Serial Data'!AG31+'Serial Data'!AE31+'Serial Data'!AF31) ->  | AG31: ='Serial Data'!AF31/('Serial Data'!AG31+'Serial Data'!AE31+'Serial Data'!AF31) ->  | AH31: =IF('Serial Data'!AE31+'Serial Data'!AF31+'Serial Data'!AG31<>0,(AF31+(AG31*0.5)),NA()) ->  | AI31: =IF('Serial Data'!AE31+'Serial Data'!AF31+'Serial Data'!AG31<>0,(AG31*0.866*Templates!K2),NA()) ->  | AK31: ='Serial Data'!AL31/('Serial Data'!AJ31+'Serial Data'!AK31+'Serial Data'!AL31) ->  | AL31: ='Serial Data'!AJ31/('Serial Data'!AJ31+'Serial Data'!AK31+'Serial Data'!AL31) ->  | AM31: ='Serial Data'!AK31/('Serial Data'!AJ31+'Serial Data'!AK31+'Serial Data'!AL31) ->  | AN31: =IF('Serial Data'!AJ31+'Serial Data'!AK31+'Serial Data'!AL31<>0,(AL31+(AM31*0.5)),NA()) ->  | AO31: =IF('Serial Data'!AJ31+'Serial Data'!AK31+'Serial Data'!AL31<>0,(AM31*0.866*Templates!K2),NA()) ->  | AQ31: ='Serial Data'!AQ31/('Serial Data'!AO31+'Serial Data'!AP31+'Serial Data'!AQ31) ->  | AR31: ='Serial Data'!AO31/('Serial Data'!AO31+'Serial Data'!AP31+'Serial Data'!AQ31) ->  | AS31: ='Serial Data'!AP31/('Serial Data'!AO31+'Serial Data'!AP31+'Serial Data'!AQ31) ->  | AT31: =IF('Serial Data'!AO31+'Serial Data'!AP31+'Serial Data'!AQ31<>0,(AR31+(AS31*0.5)),NA()) ->  | AU31: =IF('Serial Data'!AO31+'Serial Data'!AP31+'Serial Data'!AQ31<>0,(AS31*0.866*Templates!K2),NA()) ->  | AW31: ='Serial Data'!AV31/('Serial Data'!AT31+'Serial Data'!AU31+'Serial Data'!AV31) ->  | AX31: ='Serial Data'!AT31/('Serial Data'!AT31+'Serial Data'!AU31+'Serial Data'!AV31) ->  | AY31: ='Serial Data'!AU31/('Serial Data'!AT31+'Serial Data'!AU31+'Serial Data'!AV31) ->  | AZ31: =IF('Serial Data'!AT31+'Serial Data'!AU31+'Serial Data'!AV31<>0,(AX31+(AY31*0.5)),NA()) ->  | BA31: =IF('Serial Data'!AT31+'Serial Data'!AU31+'Serial Data'!AV31<>0,(AY31*0.866*Templates!K2),NA()) ->  | BC31: ='Serial Data'!BA31/('Serial Data'!AY31+'Serial Data'!AZ31+'Serial Data'!BA31) ->  | BD31: ='Serial Data'!AY31/('Serial Data'!AY31+'Serial Data'!AZ31+'Serial Data'!BA31) ->  | BE31: ='Serial Data'!AZ31/('Serial Data'!AY31+'Serial Data'!AZ31+'Serial Data'!BA31) ->  | BF31: =IF('Serial Data'!AY31+'Serial Data'!AZ31+'Serial Data'!BA31<>0,(BD31+(BE31*0.5)),NA()) ->  | BG31: =IF('Serial Data'!AY31+'Serial Data'!AZ31+'Serial Data'!BA31<>0,(BE31*0.866*Templates!K2),NA()) ->  | BI31: ='Serial Data'!BF31/('Serial Data'!BD31+'Serial Data'!BE31+'Serial Data'!BF31) ->  | BJ31: ='Serial Data'!BD31/('Serial Data'!BD31+'Serial Data'!BE31+'Serial Data'!BF31) ->  | BK31: ='Serial Data'!BE31/('Serial Data'!BD31+'Serial Data'!BE31+'Serial Data'!BF31) ->  | BL31: =IF('Serial Data'!BD31+'Serial Data'!BE31+'Serial Data'!BF31<>0,(BJ31+(BK31*0.5)),NA()) ->  | BM31: =IF('Serial Data'!BD31+'Serial Data'!BE31+'Serial Data'!BF31<>0,(BK31*0.866*Templates!K2),NA()) -> 
A32: ='Single Data'!N33/('Single Data'!L33+'Single Data'!M33+'Single Data'!N33) ->  | B32: ='Single Data'!L33/('Single Data'!L33+'Single Data'!M33+'Single Data'!N33) ->  | C32: ='Single Data'!M33/('Single Data'!L33+'Single Data'!M33+'Single Data'!N33) ->  | D32: =IF('Single Data'!L33+'Single Data'!M33+'Single Data'!N33<>0,(B32+(C32*0.5)),NA()) ->  | E32: =IF('Single Data'!L33+'Single Data'!M33+'Single Data'!N33<>0,(C32*0.866*Templates!K2),NA()) ->  | G32: ='Serial Data'!M32/('Serial Data'!K32+'Serial Data'!L32+'Serial Data'!M32) ->  | H32: ='Serial Data'!K32/('Serial Data'!K32+'Serial Data'!L32+'Serial Data'!M32) ->  | I32: ='Serial Data'!L32/('Serial Data'!K32+'Serial Data'!L32+'Serial Data'!M32) ->  | J32: =IF('Serial Data'!K32+'Serial Data'!L32+'Serial Data'!M32<>0,(H32+(I32*0.5)),NA()) ->  | K32: =IF('Serial Data'!K32+'Serial Data'!L32+'Serial Data'!M32<>0,(I32*0.866*Templates!K2),NA()) ->  | M32: ='Serial Data'!R32/('Serial Data'!P32+'Serial Data'!Q32+'Serial Data'!R32) ->  | N32: ='Serial Data'!P32/('Serial Data'!P32+'Serial Data'!Q32+'Serial Data'!R32) ->  | O32: ='Serial Data'!Q32/('Serial Data'!P32+'Serial Data'!Q32+'Serial Data'!R32) ->  | P32: =IF('Serial Data'!P32+'Serial Data'!Q32+'Serial Data'!R32<>0,(N32+(O32*0.5)),NA()) ->  | Q32: =IF('Serial Data'!P32+'Serial Data'!Q32+'Serial Data'!R32<>0,(O32*0.866*Templates!K2),NA()) ->  | S32: ='Serial Data'!W32/('Serial Data'!U32+'Serial Data'!V32+'Serial Data'!W32) ->  | T32: ='Serial Data'!U32/('Serial Data'!U32+'Serial Data'!V32+'Serial Data'!W32) ->  | U32: ='Serial Data'!V32/('Serial Data'!U32+'Serial Data'!V32+'Serial Data'!W32) ->  | V32: =IF('Serial Data'!V32+'Serial Data'!W32+'Serial Data'!U32<>0,(T32+(U32*0.5)),NA()) ->  | W32: =IF('Serial Data'!V32+'Serial Data'!W32+'Serial Data'!U32<>0,(U32*0.866*Templates!K2),NA()) ->  | Y32: ='Serial Data'!AB32/('Serial Data'!AA32+'Serial Data'!AB32+'Serial Data'!Z32) ->  | Z32: ='Serial Data'!Z32/('Serial Data'!AA32+'Serial Data'!AB32+'Serial Data'!Z32) ->  | AA32: ='Serial Data'!AA32/('Serial Data'!AA32+'Serial Data'!AB32+'Serial Data'!Z32) ->  | AB32: =IF('Serial Data'!AB32+'Serial Data'!AA32+'Serial Data'!Z32<>0,(Z32+(AA32*0.5)),NA()) ->  | AC32: =IF('Serial Data'!AB32+'Serial Data'!AA32+'Serial Data'!Z32<>0,(AA32*0.866*Templates!K2),NA()) ->  | AE32: ='Serial Data'!AG32/('Serial Data'!AG32+'Serial Data'!AE32+'Serial Data'!AF32) ->  | AF32: ='Serial Data'!AE32/('Serial Data'!AG32+'Serial Data'!AE32+'Serial Data'!AF32) ->  | AG32: ='Serial Data'!AF32/('Serial Data'!AG32+'Serial Data'!AE32+'Serial Data'!AF32) ->  | AH32: =IF('Serial Data'!AE32+'Serial Data'!AF32+'Serial Data'!AG32<>0,(AF32+(AG32*0.5)),NA()) ->  | AI32: =IF('Serial Data'!AE32+'Serial Data'!AF32+'Serial Data'!AG32<>0,(AG32*0.866*Templates!K2),NA()) ->  | AK32: ='Serial Data'!AL32/('Serial Data'!AJ32+'Serial Data'!AK32+'Serial Data'!AL32) ->  | AL32: ='Serial Data'!AJ32/('Serial Data'!AJ32+'Serial Data'!AK32+'Serial Data'!AL32) ->  | AM32: ='Serial Data'!AK32/('Serial Data'!AJ32+'Serial Data'!AK32+'Serial Data'!AL32) ->  | AN32: =IF('Serial Data'!AJ32+'Serial Data'!AK32+'Serial Data'!AL32<>0,(AL32+(AM32*0.5)),NA()) ->  | AO32: =IF('Serial Data'!AJ32+'Serial Data'!AK32+'Serial Data'!AL32<>0,(AM32*0.866*Templates!K2),NA()) ->  | AQ32: ='Serial Data'!AQ32/('Serial Data'!AO32+'Serial Data'!AP32+'Serial Data'!AQ32) ->  | AR32: ='Serial Data'!AO32/('Serial Data'!AO32+'Serial Data'!AP32+'Serial Data'!AQ32) ->  | AS32: ='Serial Data'!AP32/('Serial Data'!AO32+'Serial Data'!AP32+'Serial Data'!AQ32) ->  | AT32: =IF('Serial Data'!AO32+'Serial Data'!AP32+'Serial Data'!AQ32<>0,(AR32+(AS32*0.5)),NA()) ->  | AU32: =IF('Serial Data'!AO32+'Serial Data'!AP32+'Serial Data'!AQ32<>0,(AS32*0.866*Templates!K2),NA()) ->  | AW32: ='Serial Data'!AV32/('Serial Data'!AT32+'Serial Data'!AU32+'Serial Data'!AV32) ->  | AX32: ='Serial Data'!AT32/('Serial Data'!AT32+'Serial Data'!AU32+'Serial Data'!AV32) ->  | AY32: ='Serial Data'!AU32/('Serial Data'!AT32+'Serial Data'!AU32+'Serial Data'!AV32) ->  | AZ32: =IF('Serial Data'!AT32+'Serial Data'!AU32+'Serial Data'!AV32<>0,(AX32+(AY32*0.5)),NA()) ->  | BA32: =IF('Serial Data'!AT32+'Serial Data'!AU32+'Serial Data'!AV32<>0,(AY32*0.866*Templates!K2),NA()) ->  | BC32: ='Serial Data'!BA32/('Serial Data'!AY32+'Serial Data'!AZ32+'Serial Data'!BA32) ->  | BD32: ='Serial Data'!AY32/('Serial Data'!AY32+'Serial Data'!AZ32+'Serial Data'!BA32) ->  | BE32: ='Serial Data'!AZ32/('Serial Data'!AY32+'Serial Data'!AZ32+'Serial Data'!BA32) ->  | BF32: =IF('Serial Data'!AY32+'Serial Data'!AZ32+'Serial Data'!BA32<>0,(BD32+(BE32*0.5)),NA()) ->  | BG32: =IF('Serial Data'!AY32+'Serial Data'!AZ32+'Serial Data'!BA32<>0,(BE32*0.866*Templates!K2),NA()) ->  | BI32: ='Serial Data'!BF32/('Serial Data'!BD32+'Serial Data'!BE32+'Serial Data'!BF32) ->  | BJ32: ='Serial Data'!BD32/('Serial Data'!BD32+'Serial Data'!BE32+'Serial Data'!BF32) ->  | BK32: ='Serial Data'!BE32/('Serial Data'!BD32+'Serial Data'!BE32+'Serial Data'!BF32) ->  | BL32: =IF('Serial Data'!BD32+'Serial Data'!BE32+'Serial Data'!BF32<>0,(BJ32+(BK32*0.5)),NA()) ->  | BM32: =IF('Serial Data'!BD32+'Serial Data'!BE32+'Serial Data'!BF32<>0,(BK32*0.866*Templates!K2),NA()) -> 
A33: ='Single Data'!N34/('Single Data'!L34+'Single Data'!M34+'Single Data'!N34) ->  | B33: ='Single Data'!L34/('Single Data'!L34+'Single Data'!M34+'Single Data'!N34) ->  | C33: ='Single Data'!M34/('Single Data'!L34+'Single Data'!M34+'Single Data'!N34) ->  | D33: =IF('Single Data'!L34+'Single Data'!M34+'Single Data'!N34<>0,(B33+(C33*0.5)),NA()) ->  | E33: =IF('Single Data'!L34+'Single Data'!M34+'Single Data'!N34<>0,(C33*0.866*Templates!K2),NA()) ->  | G33: ='Serial Data'!M33/('Serial Data'!K33+'Serial Data'!L33+'Serial Data'!M33) ->  | H33: ='Serial Data'!K33/('Serial Data'!K33+'Serial Data'!L33+'Serial Data'!M33) ->  | I33: ='Serial Data'!L33/('Serial Data'!K33+'Serial Data'!L33+'Serial Data'!M33) ->  | J33: =IF('Serial Data'!K33+'Serial Data'!L33+'Serial Data'!M33<>0,(H33+(I33*0.5)),NA()) ->  | K33: =IF('Serial Data'!K33+'Serial Data'!L33+'Serial Data'!M33<>0,(I33*0.866*Templates!K2),NA()) ->  | M33: ='Serial Data'!R33/('Serial Data'!P33+'Serial Data'!Q33+'Serial Data'!R33) ->  | N33: ='Serial Data'!P33/('Serial Data'!P33+'Serial Data'!Q33+'Serial Data'!R33) ->  | O33: ='Serial Data'!Q33/('Serial Data'!P33+'Serial Data'!Q33+'Serial Data'!R33) ->  | P33: =IF('Serial Data'!P33+'Serial Data'!Q33+'Serial Data'!R33<>0,(N33+(O33*0.5)),NA()) ->  | Q33: =IF('Serial Data'!P33+'Serial Data'!Q33+'Serial Data'!R33<>0,(O33*0.866*Templates!K2),NA()) ->  | S33: ='Serial Data'!W33/('Serial Data'!U33+'Serial Data'!V33+'Serial Data'!W33) ->  | T33: ='Serial Data'!U33/('Serial Data'!U33+'Serial Data'!V33+'Serial Data'!W33) ->  | U33: ='Serial Data'!V33/('Serial Data'!U33+'Serial Data'!V33+'Serial Data'!W33) ->  | V33: =IF('Serial Data'!V33+'Serial Data'!W33+'Serial Data'!U33<>0,(T33+(U33*0.5)),NA()) ->  | W33: =IF('Serial Data'!V33+'Serial Data'!W33+'Serial Data'!U33<>0,(U33*0.866*Templates!K2),NA()) ->  | Y33: ='Serial Data'!AB33/('Serial Data'!AA33+'Serial Data'!AB33+'Serial Data'!Z33) ->  | Z33: ='Serial Data'!Z33/('Serial Data'!AA33+'Serial Data'!AB33+'Serial Data'!Z33) ->  | AA33: ='Serial Data'!AA33/('Serial Data'!AA33+'Serial Data'!AB33+'Serial Data'!Z33) ->  | AB33: =IF('Serial Data'!AB33+'Serial Data'!AA33+'Serial Data'!Z33<>0,(Z33+(AA33*0.5)),NA()) ->  | AC33: =IF('Serial Data'!AB33+'Serial Data'!AA33+'Serial Data'!Z33<>0,(AA33*0.866*Templates!K2),NA()) ->  | AE33: ='Serial Data'!AG33/('Serial Data'!AG33+'Serial Data'!AE33+'Serial Data'!AF33) ->  | AF33: ='Serial Data'!AE33/('Serial Data'!AG33+'Serial Data'!AE33+'Serial Data'!AF33) ->  | AG33: ='Serial Data'!AF33/('Serial Data'!AG33+'Serial Data'!AE33+'Serial Data'!AF33) ->  | AH33: =IF('Serial Data'!AE33+'Serial Data'!AF33+'Serial Data'!AG33<>0,(AF33+(AG33*0.5)),NA()) ->  | AI33: =IF('Serial Data'!AE33+'Serial Data'!AF33+'Serial Data'!AG33<>0,(AG33*0.866*Templates!K2),NA()) ->  | AK33: ='Serial Data'!AL33/('Serial Data'!AJ33+'Serial Data'!AK33+'Serial Data'!AL33) ->  | AL33: ='Serial Data'!AJ33/('Serial Data'!AJ33+'Serial Data'!AK33+'Serial Data'!AL33) ->  | AM33: ='Serial Data'!AK33/('Serial Data'!AJ33+'Serial Data'!AK33+'Serial Data'!AL33) ->  | AN33: =IF('Serial Data'!AJ33+'Serial Data'!AK33+'Serial Data'!AL33<>0,(AL33+(AM33*0.5)),NA()) ->  | AO33: =IF('Serial Data'!AJ33+'Serial Data'!AK33+'Serial Data'!AL33<>0,(AM33*0.866*Templates!K2),NA()) ->  | AQ33: ='Serial Data'!AQ33/('Serial Data'!AO33+'Serial Data'!AP33+'Serial Data'!AQ33) ->  | AR33: ='Serial Data'!AO33/('Serial Data'!AO33+'Serial Data'!AP33+'Serial Data'!AQ33) ->  | AS33: ='Serial Data'!AP33/('Serial Data'!AO33+'Serial Data'!AP33+'Serial Data'!AQ33) ->  | AT33: =IF('Serial Data'!AO33+'Serial Data'!AP33+'Serial Data'!AQ33<>0,(AR33+(AS33*0.5)),NA()) ->  | AU33: =IF('Serial Data'!AO33+'Serial Data'!AP33+'Serial Data'!AQ33<>0,(AS33*0.866*Templates!K2),NA()) ->  | AW33: ='Serial Data'!AV33/('Serial Data'!AT33+'Serial Data'!AU33+'Serial Data'!AV33) ->  | AX33: ='Serial Data'!AT33/('Serial Data'!AT33+'Serial Data'!AU33+'Serial Data'!AV33) ->  | AY33: ='Serial Data'!AU33/('Serial Data'!AT33+'Serial Data'!AU33+'Serial Data'!AV33) ->  | AZ33: =IF('Serial Data'!AT33+'Serial Data'!AU33+'Serial Data'!AV33<>0,(AX33+(AY33*0.5)),NA()) ->  | BA33: =IF('Serial Data'!AT33+'Serial Data'!AU33+'Serial Data'!AV33<>0,(AY33*0.866*Templates!K2),NA()) ->  | BC33: ='Serial Data'!BA33/('Serial Data'!AY33+'Serial Data'!AZ33+'Serial Data'!BA33) ->  | BD33: ='Serial Data'!AY33/('Serial Data'!AY33+'Serial Data'!AZ33+'Serial Data'!BA33) ->  | BE33: ='Serial Data'!AZ33/('Serial Data'!AY33+'Serial Data'!AZ33+'Serial Data'!BA33) ->  | BF33: =IF('Serial Data'!AY33+'Serial Data'!AZ33+'Serial Data'!BA33<>0,(BD33+(BE33*0.5)),NA()) ->  | BG33: =IF('Serial Data'!AY33+'Serial Data'!AZ33+'Serial Data'!BA33<>0,(BE33*0.866*Templates!K2),NA()) ->  | BI33: ='Serial Data'!BF33/('Serial Data'!BD33+'Serial Data'!BE33+'Serial Data'!BF33) ->  | BJ33: ='Serial Data'!BD33/('Serial Data'!BD33+'Serial Data'!BE33+'Serial Data'!BF33) ->  | BK33: ='Serial Data'!BE33/('Serial Data'!BD33+'Serial Data'!BE33+'Serial Data'!BF33) ->  | BL33: =IF('Serial Data'!BD33+'Serial Data'!BE33+'Serial Data'!BF33<>0,(BJ33+(BK33*0.5)),NA()) ->  | BM33: =IF('Serial Data'!BD33+'Serial Data'!BE33+'Serial Data'!BF33<>0,(BK33*0.866*Templates!K2),NA()) -> 
A34: ='Single Data'!N35/('Single Data'!L35+'Single Data'!M35+'Single Data'!N35) ->  | B34: ='Single Data'!L35/('Single Data'!L35+'Single Data'!M35+'Single Data'!N35) ->  | C34: ='Single Data'!M35/('Single Data'!L35+'Single Data'!M35+'Single Data'!N35) ->  | D34: =IF('Single Data'!L35+'Single Data'!M35+'Single Data'!N35<>0,(B34+(C34*0.5)),NA()) ->  | E34: =IF('Single Data'!L35+'Single Data'!M35+'Single Data'!N35<>0,(C34*0.866*Templates!K2),NA()) ->  | G34: ='Serial Data'!M34/('Serial Data'!K34+'Serial Data'!L34+'Serial Data'!M34) ->  | H34: ='Serial Data'!K34/('Serial Data'!K34+'Serial Data'!L34+'Serial Data'!M34) ->  | I34: ='Serial Data'!L34/('Serial Data'!K34+'Serial Data'!L34+'Serial Data'!M34) ->  | J34: =IF('Serial Data'!K34+'Serial Data'!L34+'Serial Data'!M34<>0,(H34+(I34*0.5)),NA()) ->  | K34: =IF('Serial Data'!K34+'Serial Data'!L34+'Serial Data'!M34<>0,(I34*0.866*Templates!K2),NA()) ->  | M34: ='Serial Data'!R34/('Serial Data'!P34+'Serial Data'!Q34+'Serial Data'!R34) ->  | N34: ='Serial Data'!P34/('Serial Data'!P34+'Serial Data'!Q34+'Serial Data'!R34) ->  | O34: ='Serial Data'!Q34/('Serial Data'!P34+'Serial Data'!Q34+'Serial Data'!R34) ->  | P34: =IF('Serial Data'!P34+'Serial Data'!Q34+'Serial Data'!R34<>0,(N34+(O34*0.5)),NA()) ->  | Q34: =IF('Serial Data'!P34+'Serial Data'!Q34+'Serial Data'!R34<>0,(O34*0.866*Templates!K2),NA()) ->  | S34: ='Serial Data'!W34/('Serial Data'!U34+'Serial Data'!V34+'Serial Data'!W34) ->  | T34: ='Serial Data'!U34/('Serial Data'!U34+'Serial Data'!V34+'Serial Data'!W34) ->  | U34: ='Serial Data'!V34/('Serial Data'!U34+'Serial Data'!V34+'Serial Data'!W34) ->  | V34: =IF('Serial Data'!V34+'Serial Data'!W34+'Serial Data'!U34<>0,(T34+(U34*0.5)),NA()) ->  | W34: =IF('Serial Data'!V34+'Serial Data'!W34+'Serial Data'!U34<>0,(U34*0.866*Templates!K2),NA()) ->  | Y34: ='Serial Data'!AB34/('Serial Data'!AA34+'Serial Data'!AB34+'Serial Data'!Z34) ->  | Z34: ='Serial Data'!Z34/('Serial Data'!AA34+'Serial Data'!AB34+'Serial Data'!Z34) ->  | AA34: ='Serial Data'!AA34/('Serial Data'!AA34+'Serial Data'!AB34+'Serial Data'!Z34) ->  | AB34: =IF('Serial Data'!AB34+'Serial Data'!AA34+'Serial Data'!Z34<>0,(Z34+(AA34*0.5)),NA()) ->  | AC34: =IF('Serial Data'!AB34+'Serial Data'!AA34+'Serial Data'!Z34<>0,(AA34*0.866*Templates!K2),NA()) ->  | AE34: ='Serial Data'!AG34/('Serial Data'!AG34+'Serial Data'!AE34+'Serial Data'!AF34) ->  | AF34: ='Serial Data'!AE34/('Serial Data'!AG34+'Serial Data'!AE34+'Serial Data'!AF34) ->  | AG34: ='Serial Data'!AF34/('Serial Data'!AG34+'Serial Data'!AE34+'Serial Data'!AF34) ->  | AH34: =IF('Serial Data'!AE34+'Serial Data'!AF34+'Serial Data'!AG34<>0,(AF34+(AG34*0.5)),NA()) ->  | AI34: =IF('Serial Data'!AE34+'Serial Data'!AF34+'Serial Data'!AG34<>0,(AG34*0.866*Templates!K2),NA()) ->  | AK34: ='Serial Data'!AL34/('Serial Data'!AJ34+'Serial Data'!AK34+'Serial Data'!AL34) ->  | AL34: ='Serial Data'!AJ34/('Serial Data'!AJ34+'Serial Data'!AK34+'Serial Data'!AL34) ->  | AM34: ='Serial Data'!AK34/('Serial Data'!AJ34+'Serial Data'!AK34+'Serial Data'!AL34) ->  | AN34: =IF('Serial Data'!AJ34+'Serial Data'!AK34+'Serial Data'!AL34<>0,(AL34+(AM34*0.5)),NA()) ->  | AO34: =IF('Serial Data'!AJ34+'Serial Data'!AK34+'Serial Data'!AL34<>0,(AM34*0.866*Templates!K2),NA()) ->  | AQ34: ='Serial Data'!AQ34/('Serial Data'!AO34+'Serial Data'!AP34+'Serial Data'!AQ34) ->  | AR34: ='Serial Data'!AO34/('Serial Data'!AO34+'Serial Data'!AP34+'Serial Data'!AQ34) ->  | AS34: ='Serial Data'!AP34/('Serial Data'!AO34+'Serial Data'!AP34+'Serial Data'!AQ34) ->  | AT34: =IF('Serial Data'!AO34+'Serial Data'!AP34+'Serial Data'!AQ34<>0,(AR34+(AS34*0.5)),NA()) ->  | AU34: =IF('Serial Data'!AO34+'Serial Data'!AP34+'Serial Data'!AQ34<>0,(AS34*0.866*Templates!K2),NA()) ->  | AW34: ='Serial Data'!AV34/('Serial Data'!AT34+'Serial Data'!AU34+'Serial Data'!AV34) ->  | AX34: ='Serial Data'!AT34/('Serial Data'!AT34+'Serial Data'!AU34+'Serial Data'!AV34) ->  | AY34: ='Serial Data'!AU34/('Serial Data'!AT34+'Serial Data'!AU34+'Serial Data'!AV34) ->  | AZ34: =IF('Serial Data'!AT34+'Serial Data'!AU34+'Serial Data'!AV34<>0,(AX34+(AY34*0.5)),NA()) ->  | BA34: =IF('Serial Data'!AT34+'Serial Data'!AU34+'Serial Data'!AV34<>0,(AY34*0.866*Templates!K2),NA()) ->  | BC34: ='Serial Data'!BA34/('Serial Data'!AY34+'Serial Data'!AZ34+'Serial Data'!BA34) ->  | BD34: ='Serial Data'!AY34/('Serial Data'!AY34+'Serial Data'!AZ34+'Serial Data'!BA34) ->  | BE34: ='Serial Data'!AZ34/('Serial Data'!AY34+'Serial Data'!AZ34+'Serial Data'!BA34) ->  | BF34: =IF('Serial Data'!AY34+'Serial Data'!AZ34+'Serial Data'!BA34<>0,(BD34+(BE34*0.5)),NA()) ->  | BG34: =IF('Serial Data'!AY34+'Serial Data'!AZ34+'Serial Data'!BA34<>0,(BE34*0.866*Templates!K2),NA()) ->  | BI34: ='Serial Data'!BF34/('Serial Data'!BD34+'Serial Data'!BE34+'Serial Data'!BF34) ->  | BJ34: ='Serial Data'!BD34/('Serial Data'!BD34+'Serial Data'!BE34+'Serial Data'!BF34) ->  | BK34: ='Serial Data'!BE34/('Serial Data'!BD34+'Serial Data'!BE34+'Serial Data'!BF34) ->  | BL34: =IF('Serial Data'!BD34+'Serial Data'!BE34+'Serial Data'!BF34<>0,(BJ34+(BK34*0.5)),NA()) ->  | BM34: =IF('Serial Data'!BD34+'Serial Data'!BE34+'Serial Data'!BF34<>0,(BK34*0.866*Templates!K2),NA()) -> 
A35: ='Single Data'!N36/('Single Data'!L36+'Single Data'!M36+'Single Data'!N36) ->  | B35: ='Single Data'!L36/('Single Data'!L36+'Single Data'!M36+'Single Data'!N36) ->  | C35: ='Single Data'!M36/('Single Data'!L36+'Single Data'!M36+'Single Data'!N36) ->  | D35: =IF('Single Data'!L36+'Single Data'!M36+'Single Data'!N36<>0,(B35+(C35*0.5)),NA()) ->  | E35: =IF('Single Data'!L36+'Single Data'!M36+'Single Data'!N36<>0,(C35*0.866*Templates!K2),NA()) ->  | G35: ='Serial Data'!M35/('Serial Data'!K35+'Serial Data'!L35+'Serial Data'!M35) ->  | H35: ='Serial Data'!K35/('Serial Data'!K35+'Serial Data'!L35+'Serial Data'!M35) ->  | I35: ='Serial Data'!L35/('Serial Data'!K35+'Serial Data'!L35+'Serial Data'!M35) ->  | J35: =IF('Serial Data'!K35+'Serial Data'!L35+'Serial Data'!M35<>0,(H35+(I35*0.5)),NA()) ->  | K35: =IF('Serial Data'!K35+'Serial Data'!L35+'Serial Data'!M35<>0,(I35*0.866*Templates!K2),NA()) ->  | M35: ='Serial Data'!R35/('Serial Data'!P35+'Serial Data'!Q35+'Serial Data'!R35) ->  | N35: ='Serial Data'!P35/('Serial Data'!P35+'Serial Data'!Q35+'Serial Data'!R35) ->  | O35: ='Serial Data'!Q35/('Serial Data'!P35+'Serial Data'!Q35+'Serial Data'!R35) ->  | P35: =IF('Serial Data'!P35+'Serial Data'!Q35+'Serial Data'!R35<>0,(N35+(O35*0.5)),NA()) ->  | Q35: =IF('Serial Data'!P35+'Serial Data'!Q35+'Serial Data'!R35<>0,(O35*0.866*Templates!K2),NA()) ->  | S35: ='Serial Data'!W35/('Serial Data'!U35+'Serial Data'!V35+'Serial Data'!W35) ->  | T35: ='Serial Data'!U35/('Serial Data'!U35+'Serial Data'!V35+'Serial Data'!W35) ->  | U35: ='Serial Data'!V35/('Serial Data'!U35+'Serial Data'!V35+'Serial Data'!W35) ->  | V35: =IF('Serial Data'!V35+'Serial Data'!W35+'Serial Data'!U35<>0,(T35+(U35*0.5)),NA()) ->  | W35: =IF('Serial Data'!V35+'Serial Data'!W35+'Serial Data'!U35<>0,(U35*0.866*Templates!K2),NA()) ->  | Y35: ='Serial Data'!AB35/('Serial Data'!AA35+'Serial Data'!AB35+'Serial Data'!Z35) ->  | Z35: ='Serial Data'!Z35/('Serial Data'!AA35+'Serial Data'!AB35+'Serial Data'!Z35) ->  | AA35: ='Serial Data'!AA35/('Serial Data'!AA35+'Serial Data'!AB35+'Serial Data'!Z35) ->  | AB35: =IF('Serial Data'!AB35+'Serial Data'!AA35+'Serial Data'!Z35<>0,(Z35+(AA35*0.5)),NA()) ->  | AC35: =IF('Serial Data'!AB35+'Serial Data'!AA35+'Serial Data'!Z35<>0,(AA35*0.866*Templates!K2),NA()) ->  | AE35: ='Serial Data'!AG35/('Serial Data'!AG35+'Serial Data'!AE35+'Serial Data'!AF35) ->  | AF35: ='Serial Data'!AE35/('Serial Data'!AG35+'Serial Data'!AE35+'Serial Data'!AF35) ->  | AG35: ='Serial Data'!AF35/('Serial Data'!AG35+'Serial Data'!AE35+'Serial Data'!AF35) ->  | AH35: =IF('Serial Data'!AE35+'Serial Data'!AF35+'Serial Data'!AG35<>0,(AF35+(AG35*0.5)),NA()) ->  | AI35: =IF('Serial Data'!AE35+'Serial Data'!AF35+'Serial Data'!AG35<>0,(AG35*0.866*Templates!K2),NA()) ->  | AK35: ='Serial Data'!AL35/('Serial Data'!AJ35+'Serial Data'!AK35+'Serial Data'!AL35) ->  | AL35: ='Serial Data'!AJ35/('Serial Data'!AJ35+'Serial Data'!AK35+'Serial Data'!AL35) ->  | AM35: ='Serial Data'!AK35/('Serial Data'!AJ35+'Serial Data'!AK35+'Serial Data'!AL35) ->  | AN35: =IF('Serial Data'!AJ35+'Serial Data'!AK35+'Serial Data'!AL35<>0,(AL35+(AM35*0.5)),NA()) ->  | AO35: =IF('Serial Data'!AJ35+'Serial Data'!AK35+'Serial Data'!AL35<>0,(AM35*0.866*Templates!K2),NA()) ->  | AQ35: ='Serial Data'!AQ35/('Serial Data'!AO35+'Serial Data'!AP35+'Serial Data'!AQ35) ->  | AR35: ='Serial Data'!AO35/('Serial Data'!AO35+'Serial Data'!AP35+'Serial Data'!AQ35) ->  | AS35: ='Serial Data'!AP35/('Serial Data'!AO35+'Serial Data'!AP35+'Serial Data'!AQ35) ->  | AT35: =IF('Serial Data'!AO35+'Serial Data'!AP35+'Serial Data'!AQ35<>0,(AR35+(AS35*0.5)),NA()) ->  | AU35: =IF('Serial Data'!AO35+'Serial Data'!AP35+'Serial Data'!AQ35<>0,(AS35*0.866*Templates!K2),NA()) ->  | AW35: ='Serial Data'!AV35/('Serial Data'!AT35+'Serial Data'!AU35+'Serial Data'!AV35) ->  | AX35: ='Serial Data'!AT35/('Serial Data'!AT35+'Serial Data'!AU35+'Serial Data'!AV35) ->  | AY35: ='Serial Data'!AU35/('Serial Data'!AT35+'Serial Data'!AU35+'Serial Data'!AV35) ->  | AZ35: =IF('Serial Data'!AT35+'Serial Data'!AU35+'Serial Data'!AV35<>0,(AX35+(AY35*0.5)),NA()) ->  | BA35: =IF('Serial Data'!AT35+'Serial Data'!AU35+'Serial Data'!AV35<>0,(AY35*0.866*Templates!K2),NA()) ->  | BC35: ='Serial Data'!BA35/('Serial Data'!AY35+'Serial Data'!AZ35+'Serial Data'!BA35) ->  | BD35: ='Serial Data'!AY35/('Serial Data'!AY35+'Serial Data'!AZ35+'Serial Data'!BA35) ->  | BE35: ='Serial Data'!AZ35/('Serial Data'!AY35+'Serial Data'!AZ35+'Serial Data'!BA35) ->  | BF35: =IF('Serial Data'!AY35+'Serial Data'!AZ35+'Serial Data'!BA35<>0,(BD35+(BE35*0.5)),NA()) ->  | BG35: =IF('Serial Data'!AY35+'Serial Data'!AZ35+'Serial Data'!BA35<>0,(BE35*0.866*Templates!K2),NA()) ->  | BI35: ='Serial Data'!BF35/('Serial Data'!BD35+'Serial Data'!BE35+'Serial Data'!BF35) ->  | BJ35: ='Serial Data'!BD35/('Serial Data'!BD35+'Serial Data'!BE35+'Serial Data'!BF35) ->  | BK35: ='Serial Data'!BE35/('Serial Data'!BD35+'Serial Data'!BE35+'Serial Data'!BF35) ->  | BL35: =IF('Serial Data'!BD35+'Serial Data'!BE35+'Serial Data'!BF35<>0,(BJ35+(BK35*0.5)),NA()) ->  | BM35: =IF('Serial Data'!BD35+'Serial Data'!BE35+'Serial Data'!BF35<>0,(BK35*0.866*Templates!K2),NA()) -> 
A36: ='Single Data'!N37/('Single Data'!L37+'Single Data'!M37+'Single Data'!N37) ->  | B36: ='Single Data'!L37/('Single Data'!L37+'Single Data'!M37+'Single Data'!N37) ->  | C36: ='Single Data'!M37/('Single Data'!L37+'Single Data'!M37+'Single Data'!N37) ->  | D36: =IF('Single Data'!L37+'Single Data'!M37+'Single Data'!N37<>0,(B36+(C36*0.5)),NA()) ->  | E36: =IF('Single Data'!L37+'Single Data'!M37+'Single Data'!N37<>0,(C36*0.866*Templates!K2),NA()) ->  | G36: ='Serial Data'!M36/('Serial Data'!K36+'Serial Data'!L36+'Serial Data'!M36) ->  | H36: ='Serial Data'!K36/('Serial Data'!K36+'Serial Data'!L36+'Serial Data'!M36) ->  | I36: ='Serial Data'!L36/('Serial Data'!K36+'Serial Data'!L36+'Serial Data'!M36) ->  | J36: =IF('Serial Data'!K36+'Serial Data'!L36+'Serial Data'!M36<>0,(H36+(I36*0.5)),NA()) ->  | K36: =IF('Serial Data'!K36+'Serial Data'!L36+'Serial Data'!M36<>0,(I36*0.866*Templates!K2),NA()) ->  | M36: ='Serial Data'!R36/('Serial Data'!P36+'Serial Data'!Q36+'Serial Data'!R36) ->  | N36: ='Serial Data'!P36/('Serial Data'!P36+'Serial Data'!Q36+'Serial Data'!R36) ->  | O36: ='Serial Data'!Q36/('Serial Data'!P36+'Serial Data'!Q36+'Serial Data'!R36) ->  | P36: =IF('Serial Data'!P36+'Serial Data'!Q36+'Serial Data'!R36<>0,(N36+(O36*0.5)),NA()) ->  | Q36: =IF('Serial Data'!P36+'Serial Data'!Q36+'Serial Data'!R36<>0,(O36*0.866*Templates!K2),NA()) ->  | S36: ='Serial Data'!W36/('Serial Data'!U36+'Serial Data'!V36+'Serial Data'!W36) ->  | T36: ='Serial Data'!U36/('Serial Data'!U36+'Serial Data'!V36+'Serial Data'!W36) ->  | U36: ='Serial Data'!V36/('Serial Data'!U36+'Serial Data'!V36+'Serial Data'!W36) ->  | V36: =IF('Serial Data'!V36+'Serial Data'!W36+'Serial Data'!U36<>0,(T36+(U36*0.5)),NA()) ->  | W36: =IF('Serial Data'!V36+'Serial Data'!W36+'Serial Data'!U36<>0,(U36*0.866*Templates!K2),NA()) ->  | Y36: ='Serial Data'!AB36/('Serial Data'!AA36+'Serial Data'!AB36+'Serial Data'!Z36) ->  | Z36: ='Serial Data'!Z36/('Serial Data'!AA36+'Serial Data'!AB36+'Serial Data'!Z36) ->  | AA36: ='Serial Data'!AA36/('Serial Data'!AA36+'Serial Data'!AB36+'Serial Data'!Z36) ->  | AB36: =IF('Serial Data'!AB36+'Serial Data'!AA36+'Serial Data'!Z36<>0,(Z36+(AA36*0.5)),NA()) ->  | AC36: =IF('Serial Data'!AB36+'Serial Data'!AA36+'Serial Data'!Z36<>0,(AA36*0.866*Templates!K2),NA()) ->  | AE36: ='Serial Data'!AG36/('Serial Data'!AG36+'Serial Data'!AE36+'Serial Data'!AF36) ->  | AF36: ='Serial Data'!AE36/('Serial Data'!AG36+'Serial Data'!AE36+'Serial Data'!AF36) ->  | AG36: ='Serial Data'!AF36/('Serial Data'!AG36+'Serial Data'!AE36+'Serial Data'!AF36) ->  | AH36: =IF('Serial Data'!AE36+'Serial Data'!AF36+'Serial Data'!AG36<>0,(AF36+(AG36*0.5)),NA()) ->  | AI36: =IF('Serial Data'!AE36+'Serial Data'!AF36+'Serial Data'!AG36<>0,(AG36*0.866*Templates!K2),NA()) ->  | AK36: ='Serial Data'!AL36/('Serial Data'!AJ36+'Serial Data'!AK36+'Serial Data'!AL36) ->  | AL36: ='Serial Data'!AJ36/('Serial Data'!AJ36+'Serial Data'!AK36+'Serial Data'!AL36) ->  | AM36: ='Serial Data'!AK36/('Serial Data'!AJ36+'Serial Data'!AK36+'Serial Data'!AL36) ->  | AN36: =IF('Serial Data'!AJ36+'Serial Data'!AK36+'Serial Data'!AL36<>0,(AL36+(AM36*0.5)),NA()) ->  | AO36: =IF('Serial Data'!AJ36+'Serial Data'!AK36+'Serial Data'!AL36<>0,(AM36*0.866*Templates!K2),NA()) ->  | AQ36: ='Serial Data'!AQ36/('Serial Data'!AO36+'Serial Data'!AP36+'Serial Data'!AQ36) ->  | AR36: ='Serial Data'!AO36/('Serial Data'!AO36+'Serial Data'!AP36+'Serial Data'!AQ36) ->  | AS36: ='Serial Data'!AP36/('Serial Data'!AO36+'Serial Data'!AP36+'Serial Data'!AQ36) ->  | AT36: =IF('Serial Data'!AO36+'Serial Data'!AP36+'Serial Data'!AQ36<>0,(AR36+(AS36*0.5)),NA()) ->  | AU36: =IF('Serial Data'!AO36+'Serial Data'!AP36+'Serial Data'!AQ36<>0,(AS36*0.866*Templates!K2),NA()) ->  | AW36: ='Serial Data'!AV36/('Serial Data'!AT36+'Serial Data'!AU36+'Serial Data'!AV36) ->  | AX36: ='Serial Data'!AT36/('Serial Data'!AT36+'Serial Data'!AU36+'Serial Data'!AV36) ->  | AY36: ='Serial Data'!AU36/('Serial Data'!AT36+'Serial Data'!AU36+'Serial Data'!AV36) ->  | AZ36: =IF('Serial Data'!AT36+'Serial Data'!AU36+'Serial Data'!AV36<>0,(AX36+(AY36*0.5)),NA()) ->  | BA36: =IF('Serial Data'!AT36+'Serial Data'!AU36+'Serial Data'!AV36<>0,(AY36*0.866*Templates!K2),NA()) ->  | BC36: ='Serial Data'!BA36/('Serial Data'!AY36+'Serial Data'!AZ36+'Serial Data'!BA36) ->  | BD36: ='Serial Data'!AY36/('Serial Data'!AY36+'Serial Data'!AZ36+'Serial Data'!BA36) ->  | BE36: ='Serial Data'!AZ36/('Serial Data'!AY36+'Serial Data'!AZ36+'Serial Data'!BA36) ->  | BF36: =IF('Serial Data'!AY36+'Serial Data'!AZ36+'Serial Data'!BA36<>0,(BD36+(BE36*0.5)),NA()) ->  | BG36: =IF('Serial Data'!AY36+'Serial Data'!AZ36+'Serial Data'!BA36<>0,(BE36*0.866*Templates!K2),NA()) ->  | BI36: ='Serial Data'!BF36/('Serial Data'!BD36+'Serial Data'!BE36+'Serial Data'!BF36) ->  | BJ36: ='Serial Data'!BD36/('Serial Data'!BD36+'Serial Data'!BE36+'Serial Data'!BF36) ->  | BK36: ='Serial Data'!BE36/('Serial Data'!BD36+'Serial Data'!BE36+'Serial Data'!BF36) ->  | BL36: =IF('Serial Data'!BD36+'Serial Data'!BE36+'Serial Data'!BF36<>0,(BJ36+(BK36*0.5)),NA()) ->  | BM36: =IF('Serial Data'!BD36+'Serial Data'!BE36+'Serial Data'!BF36<>0,(BK36*0.866*Templates!K2),NA()) -> 
A37: ='Single Data'!N38/('Single Data'!L38+'Single Data'!M38+'Single Data'!N38) ->  | B37: ='Single Data'!L38/('Single Data'!L38+'Single Data'!M38+'Single Data'!N38) ->  | C37: ='Single Data'!M38/('Single Data'!L38+'Single Data'!M38+'Single Data'!N38) ->  | D37: =IF('Single Data'!L38+'Single Data'!M38+'Single Data'!N38<>0,(B37+(C37*0.5)),NA()) ->  | E37: =IF('Single Data'!L38+'Single Data'!M38+'Single Data'!N38<>0,(C37*0.866*Templates!K2),NA()) ->  | G37: ='Serial Data'!M37/('Serial Data'!K37+'Serial Data'!L37+'Serial Data'!M37) ->  | H37: ='Serial Data'!K37/('Serial Data'!K37+'Serial Data'!L37+'Serial Data'!M37) ->  | I37: ='Serial Data'!L37/('Serial Data'!K37+'Serial Data'!L37+'Serial Data'!M37) ->  | J37: =IF('Serial Data'!K37+'Serial Data'!L37+'Serial Data'!M37<>0,(H37+(I37*0.5)),NA()) ->  | K37: =IF('Serial Data'!K37+'Serial Data'!L37+'Serial Data'!M37<>0,(I37*0.866*Templates!K2),NA()) ->  | M37: ='Serial Data'!R37/('Serial Data'!P37+'Serial Data'!Q37+'Serial Data'!R37) ->  | N37: ='Serial Data'!P37/('Serial Data'!P37+'Serial Data'!Q37+'Serial Data'!R37) ->  | O37: ='Serial Data'!Q37/('Serial Data'!P37+'Serial Data'!Q37+'Serial Data'!R37) ->  | P37: =IF('Serial Data'!P37+'Serial Data'!Q37+'Serial Data'!R37<>0,(N37+(O37*0.5)),NA()) ->  | Q37: =IF('Serial Data'!P37+'Serial Data'!Q37+'Serial Data'!R37<>0,(O37*0.866*Templates!K2),NA()) ->  | S37: ='Serial Data'!W37/('Serial Data'!U37+'Serial Data'!V37+'Serial Data'!W37) ->  | T37: ='Serial Data'!U37/('Serial Data'!U37+'Serial Data'!V37+'Serial Data'!W37) ->  | U37: ='Serial Data'!V37/('Serial Data'!U37+'Serial Data'!V37+'Serial Data'!W37) ->  | V37: =IF('Serial Data'!V37+'Serial Data'!W37+'Serial Data'!U37<>0,(T37+(U37*0.5)),NA()) ->  | W37: =IF('Serial Data'!V37+'Serial Data'!W37+'Serial Data'!U37<>0,(U37*0.866*Templates!K2),NA()) ->  | Y37: ='Serial Data'!AB37/('Serial Data'!AA37+'Serial Data'!AB37+'Serial Data'!Z37) ->  | Z37: ='Serial Data'!Z37/('Serial Data'!AA37+'Serial Data'!AB37+'Serial Data'!Z37) ->  | AA37: ='Serial Data'!AA37/('Serial Data'!AA37+'Serial Data'!AB37+'Serial Data'!Z37) ->  | AB37: =IF('Serial Data'!AB37+'Serial Data'!AA37+'Serial Data'!Z37<>0,(Z37+(AA37*0.5)),NA()) ->  | AC37: =IF('Serial Data'!AB37+'Serial Data'!AA37+'Serial Data'!Z37<>0,(AA37*0.866*Templates!K2),NA()) ->  | AE37: ='Serial Data'!AG37/('Serial Data'!AG37+'Serial Data'!AE37+'Serial Data'!AF37) ->  | AF37: ='Serial Data'!AE37/('Serial Data'!AG37+'Serial Data'!AE37+'Serial Data'!AF37) ->  | AG37: ='Serial Data'!AF37/('Serial Data'!AG37+'Serial Data'!AE37+'Serial Data'!AF37) ->  | AH37: =IF('Serial Data'!AE37+'Serial Data'!AF37+'Serial Data'!AG37<>0,(AF37+(AG37*0.5)),NA()) ->  | AI37: =IF('Serial Data'!AE37+'Serial Data'!AF37+'Serial Data'!AG37<>0,(AG37*0.866*Templates!K2),NA()) ->  | AK37: ='Serial Data'!AL37/('Serial Data'!AJ37+'Serial Data'!AK37+'Serial Data'!AL37) ->  | AL37: ='Serial Data'!AJ37/('Serial Data'!AJ37+'Serial Data'!AK37+'Serial Data'!AL37) ->  | AM37: ='Serial Data'!AK37/('Serial Data'!AJ37+'Serial Data'!AK37+'Serial Data'!AL37) ->  | AN37: =IF('Serial Data'!AJ37+'Serial Data'!AK37+'Serial Data'!AL37<>0,(AL37+(AM37*0.5)),NA()) ->  | AO37: =IF('Serial Data'!AJ37+'Serial Data'!AK37+'Serial Data'!AL37<>0,(AM37*0.866*Templates!K2),NA()) ->  | AQ37: ='Serial Data'!AQ37/('Serial Data'!AO37+'Serial Data'!AP37+'Serial Data'!AQ37) ->  | AR37: ='Serial Data'!AO37/('Serial Data'!AO37+'Serial Data'!AP37+'Serial Data'!AQ37) ->  | AS37: ='Serial Data'!AP37/('Serial Data'!AO37+'Serial Data'!AP37+'Serial Data'!AQ37) ->  | AT37: =IF('Serial Data'!AO37+'Serial Data'!AP37+'Serial Data'!AQ37<>0,(AR37+(AS37*0.5)),NA()) ->  | AU37: =IF('Serial Data'!AO37+'Serial Data'!AP37+'Serial Data'!AQ37<>0,(AS37*0.866*Templates!K2),NA()) ->  | AW37: ='Serial Data'!AV37/('Serial Data'!AT37+'Serial Data'!AU37+'Serial Data'!AV37) ->  | AX37: ='Serial Data'!AT37/('Serial Data'!AT37+'Serial Data'!AU37+'Serial Data'!AV37) ->  | AY37: ='Serial Data'!AU37/('Serial Data'!AT37+'Serial Data'!AU37+'Serial Data'!AV37) ->  | AZ37: =IF('Serial Data'!AT37+'Serial Data'!AU37+'Serial Data'!AV37<>0,(AX37+(AY37*0.5)),NA()) ->  | BA37: =IF('Serial Data'!AT37+'Serial Data'!AU37+'Serial Data'!AV37<>0,(AY37*0.866*Templates!K2),NA()) ->  | BC37: ='Serial Data'!BA37/('Serial Data'!AY37+'Serial Data'!AZ37+'Serial Data'!BA37) ->  | BD37: ='Serial Data'!AY37/('Serial Data'!AY37+'Serial Data'!AZ37+'Serial Data'!BA37) ->  | BE37: ='Serial Data'!AZ37/('Serial Data'!AY37+'Serial Data'!AZ37+'Serial Data'!BA37) ->  | BF37: =IF('Serial Data'!AY37+'Serial Data'!AZ37+'Serial Data'!BA37<>0,(BD37+(BE37*0.5)),NA()) ->  | BG37: =IF('Serial Data'!AY37+'Serial Data'!AZ37+'Serial Data'!BA37<>0,(BE37*0.866*Templates!K2),NA()) ->  | BI37: ='Serial Data'!BF37/('Serial Data'!BD37+'Serial Data'!BE37+'Serial Data'!BF37) ->  | BJ37: ='Serial Data'!BD37/('Serial Data'!BD37+'Serial Data'!BE37+'Serial Data'!BF37) ->  | BK37: ='Serial Data'!BE37/('Serial Data'!BD37+'Serial Data'!BE37+'Serial Data'!BF37) ->  | BL37: =IF('Serial Data'!BD37+'Serial Data'!BE37+'Serial Data'!BF37<>0,(BJ37+(BK37*0.5)),NA()) ->  | BM37: =IF('Serial Data'!BD37+'Serial Data'!BE37+'Serial Data'!BF37<>0,(BK37*0.866*Templates!K2),NA()) -> 
A38: ='Single Data'!N39/('Single Data'!L39+'Single Data'!M39+'Single Data'!N39) ->  | B38: ='Single Data'!L39/('Single Data'!L39+'Single Data'!M39+'Single Data'!N39) ->  | C38: ='Single Data'!M39/('Single Data'!L39+'Single Data'!M39+'Single Data'!N39) ->  | D38: =IF('Single Data'!L39+'Single Data'!M39+'Single Data'!N39<>0,(B38+(C38*0.5)),NA()) ->  | E38: =IF('Single Data'!L39+'Single Data'!M39+'Single Data'!N39<>0,(C38*0.866*Templates!K2),NA()) ->  | G38: ='Serial Data'!M38/('Serial Data'!K38+'Serial Data'!L38+'Serial Data'!M38) ->  | H38: ='Serial Data'!K38/('Serial Data'!K38+'Serial Data'!L38+'Serial Data'!M38) ->  | I38: ='Serial Data'!L38/('Serial Data'!K38+'Serial Data'!L38+'Serial Data'!M38) ->  | J38: =IF('Serial Data'!K38+'Serial Data'!L38+'Serial Data'!M38<>0,(H38+(I38*0.5)),NA()) ->  | K38: =IF('Serial Data'!K38+'Serial Data'!L38+'Serial Data'!M38<>0,(I38*0.866*Templates!K2),NA()) ->  | M38: ='Serial Data'!R38/('Serial Data'!P38+'Serial Data'!Q38+'Serial Data'!R38) ->  | N38: ='Serial Data'!P38/('Serial Data'!P38+'Serial Data'!Q38+'Serial Data'!R38) ->  | O38: ='Serial Data'!Q38/('Serial Data'!P38+'Serial Data'!Q38+'Serial Data'!R38) ->  | P38: =IF('Serial Data'!P38+'Serial Data'!Q38+'Serial Data'!R38<>0,(N38+(O38*0.5)),NA()) ->  | Q38: =IF('Serial Data'!P38+'Serial Data'!Q38+'Serial Data'!R38<>0,(O38*0.866*Templates!K2),NA()) ->  | S38: ='Serial Data'!W38/('Serial Data'!U38+'Serial Data'!V38+'Serial Data'!W38) ->  | T38: ='Serial Data'!U38/('Serial Data'!U38+'Serial Data'!V38+'Serial Data'!W38) ->  | U38: ='Serial Data'!V38/('Serial Data'!U38+'Serial Data'!V38+'Serial Data'!W38) ->  | V38: =IF('Serial Data'!V38+'Serial Data'!W38+'Serial Data'!U38<>0,(T38+(U38*0.5)),NA()) ->  | W38: =IF('Serial Data'!V38+'Serial Data'!W38+'Serial Data'!U38<>0,(U38*0.866*Templates!K2),NA()) ->  | Y38: ='Serial Data'!AB38/('Serial Data'!AA38+'Serial Data'!AB38+'Serial Data'!Z38) ->  | Z38: ='Serial Data'!Z38/('Serial Data'!AA38+'Serial Data'!AB38+'Serial Data'!Z38) ->  | AA38: ='Serial Data'!AA38/('Serial Data'!AA38+'Serial Data'!AB38+'Serial Data'!Z38) ->  | AB38: =IF('Serial Data'!AB38+'Serial Data'!AA38+'Serial Data'!Z38<>0,(Z38+(AA38*0.5)),NA()) ->  | AC38: =IF('Serial Data'!AB38+'Serial Data'!AA38+'Serial Data'!Z38<>0,(AA38*0.866*Templates!K2),NA()) ->  | AE38: ='Serial Data'!AG38/('Serial Data'!AG38+'Serial Data'!AE38+'Serial Data'!AF38) ->  | AF38: ='Serial Data'!AE38/('Serial Data'!AG38+'Serial Data'!AE38+'Serial Data'!AF38) ->  | AG38: ='Serial Data'!AF38/('Serial Data'!AG38+'Serial Data'!AE38+'Serial Data'!AF38) ->  | AH38: =IF('Serial Data'!AE38+'Serial Data'!AF38+'Serial Data'!AG38<>0,(AF38+(AG38*0.5)),NA()) ->  | AI38: =IF('Serial Data'!AE38+'Serial Data'!AF38+'Serial Data'!AG38<>0,(AG38*0.866*Templates!K2),NA()) ->  | AK38: ='Serial Data'!AL38/('Serial Data'!AJ38+'Serial Data'!AK38+'Serial Data'!AL38) ->  | AL38: ='Serial Data'!AJ38/('Serial Data'!AJ38+'Serial Data'!AK38+'Serial Data'!AL38) ->  | AM38: ='Serial Data'!AK38/('Serial Data'!AJ38+'Serial Data'!AK38+'Serial Data'!AL38) ->  | AN38: =IF('Serial Data'!AJ38+'Serial Data'!AK38+'Serial Data'!AL38<>0,(AL38+(AM38*0.5)),NA()) ->  | AO38: =IF('Serial Data'!AJ38+'Serial Data'!AK38+'Serial Data'!AL38<>0,(AM38*0.866*Templates!K2),NA()) ->  | AQ38: ='Serial Data'!AQ38/('Serial Data'!AO38+'Serial Data'!AP38+'Serial Data'!AQ38) ->  | AR38: ='Serial Data'!AO38/('Serial Data'!AO38+'Serial Data'!AP38+'Serial Data'!AQ38) ->  | AS38: ='Serial Data'!AP38/('Serial Data'!AO38+'Serial Data'!AP38+'Serial Data'!AQ38) ->  | AT38: =IF('Serial Data'!AO38+'Serial Data'!AP38+'Serial Data'!AQ38<>0,(AR38+(AS38*0.5)),NA()) ->  | AU38: =IF('Serial Data'!AO38+'Serial Data'!AP38+'Serial Data'!AQ38<>0,(AS38*0.866*Templates!K2),NA()) ->  | AW38: ='Serial Data'!AV38/('Serial Data'!AT38+'Serial Data'!AU38+'Serial Data'!AV38) ->  | AX38: ='Serial Data'!AT38/('Serial Data'!AT38+'Serial Data'!AU38+'Serial Data'!AV38) ->  | AY38: ='Serial Data'!AU38/('Serial Data'!AT38+'Serial Data'!AU38+'Serial Data'!AV38) ->  | AZ38: =IF('Serial Data'!AT38+'Serial Data'!AU38+'Serial Data'!AV38<>0,(AX38+(AY38*0.5)),NA()) ->  | BA38: =IF('Serial Data'!AT38+'Serial Data'!AU38+'Serial Data'!AV38<>0,(AY38*0.866*Templates!K2),NA()) ->  | BC38: ='Serial Data'!BA38/('Serial Data'!AY38+'Serial Data'!AZ38+'Serial Data'!BA38) ->  | BD38: ='Serial Data'!AY38/('Serial Data'!AY38+'Serial Data'!AZ38+'Serial Data'!BA38) ->  | BE38: ='Serial Data'!AZ38/('Serial Data'!AY38+'Serial Data'!AZ38+'Serial Data'!BA38) ->  | BF38: =IF('Serial Data'!AY38+'Serial Data'!AZ38+'Serial Data'!BA38<>0,(BD38+(BE38*0.5)),NA()) ->  | BG38: =IF('Serial Data'!AY38+'Serial Data'!AZ38+'Serial Data'!BA38<>0,(BE38*0.866*Templates!K2),NA()) ->  | BI38: ='Serial Data'!BF38/('Serial Data'!BD38+'Serial Data'!BE38+'Serial Data'!BF38) ->  | BJ38: ='Serial Data'!BD38/('Serial Data'!BD38+'Serial Data'!BE38+'Serial Data'!BF38) ->  | BK38: ='Serial Data'!BE38/('Serial Data'!BD38+'Serial Data'!BE38+'Serial Data'!BF38) ->  | BL38: =IF('Serial Data'!BD38+'Serial Data'!BE38+'Serial Data'!BF38<>0,(BJ38+(BK38*0.5)),NA()) ->  | BM38: =IF('Serial Data'!BD38+'Serial Data'!BE38+'Serial Data'!BF38<>0,(BK38*0.866*Templates!K2),NA()) -> 
A39: ='Single Data'!N40/('Single Data'!L40+'Single Data'!M40+'Single Data'!N40) ->  | B39: ='Single Data'!L40/('Single Data'!L40+'Single Data'!M40+'Single Data'!N40) ->  | C39: ='Single Data'!M40/('Single Data'!L40+'Single Data'!M40+'Single Data'!N40) ->  | D39: =IF('Single Data'!L40+'Single Data'!M40+'Single Data'!N40<>0,(B39+(C39*0.5)),NA()) ->  | E39: =IF('Single Data'!L40+'Single Data'!M40+'Single Data'!N40<>0,(C39*0.866*Templates!K2),NA()) ->  | G39: ='Serial Data'!M39/('Serial Data'!K39+'Serial Data'!L39+'Serial Data'!M39) ->  | H39: ='Serial Data'!K39/('Serial Data'!K39+'Serial Data'!L39+'Serial Data'!M39) ->  | I39: ='Serial Data'!L39/('Serial Data'!K39+'Serial Data'!L39+'Serial Data'!M39) ->  | J39: =IF('Serial Data'!K39+'Serial Data'!L39+'Serial Data'!M39<>0,(H39+(I39*0.5)),NA()) ->  | K39: =IF('Serial Data'!K39+'Serial Data'!L39+'Serial Data'!M39<>0,(I39*0.866*Templates!K2),NA()) ->  | M39: ='Serial Data'!R39/('Serial Data'!P39+'Serial Data'!Q39+'Serial Data'!R39) ->  | N39: ='Serial Data'!P39/('Serial Data'!P39+'Serial Data'!Q39+'Serial Data'!R39) ->  | O39: ='Serial Data'!Q39/('Serial Data'!P39+'Serial Data'!Q39+'Serial Data'!R39) ->  | P39: =IF('Serial Data'!P39+'Serial Data'!Q39+'Serial Data'!R39<>0,(N39+(O39*0.5)),NA()) ->  | Q39: =IF('Serial Data'!P39+'Serial Data'!Q39+'Serial Data'!R39<>0,(O39*0.866*Templates!K2),NA()) ->  | S39: ='Serial Data'!W39/('Serial Data'!U39+'Serial Data'!V39+'Serial Data'!W39) ->  | T39: ='Serial Data'!U39/('Serial Data'!U39+'Serial Data'!V39+'Serial Data'!W39) ->  | U39: ='Serial Data'!V39/('Serial Data'!U39+'Serial Data'!V39+'Serial Data'!W39) ->  | V39: =IF('Serial Data'!V39+'Serial Data'!W39+'Serial Data'!U39<>0,(T39+(U39*0.5)),NA()) ->  | W39: =IF('Serial Data'!V39+'Serial Data'!W39+'Serial Data'!U39<>0,(U39*0.866*Templates!K2),NA()) ->  | Y39: ='Serial Data'!AB39/('Serial Data'!AA39+'Serial Data'!AB39+'Serial Data'!Z39) ->  | Z39: ='Serial Data'!Z39/('Serial Data'!AA39+'Serial Data'!AB39+'Serial Data'!Z39) ->  | AA39: ='Serial Data'!AA39/('Serial Data'!AA39+'Serial Data'!AB39+'Serial Data'!Z39) ->  | AB39: =IF('Serial Data'!AB39+'Serial Data'!AA39+'Serial Data'!Z39<>0,(Z39+(AA39*0.5)),NA()) ->  | AC39: =IF('Serial Data'!AB39+'Serial Data'!AA39+'Serial Data'!Z39<>0,(AA39*0.866*Templates!K2),NA()) ->  | AE39: ='Serial Data'!AG39/('Serial Data'!AG39+'Serial Data'!AE39+'Serial Data'!AF39) ->  | AF39: ='Serial Data'!AE39/('Serial Data'!AG39+'Serial Data'!AE39+'Serial Data'!AF39) ->  | AG39: ='Serial Data'!AF39/('Serial Data'!AG39+'Serial Data'!AE39+'Serial Data'!AF39) ->  | AH39: =IF('Serial Data'!AE39+'Serial Data'!AF39+'Serial Data'!AG39<>0,(AF39+(AG39*0.5)),NA()) ->  | AI39: =IF('Serial Data'!AE39+'Serial Data'!AF39+'Serial Data'!AG39<>0,(AG39*0.866*Templates!K2),NA()) ->  | AK39: ='Serial Data'!AL39/('Serial Data'!AJ39+'Serial Data'!AK39+'Serial Data'!AL39) ->  | AL39: ='Serial Data'!AJ39/('Serial Data'!AJ39+'Serial Data'!AK39+'Serial Data'!AL39) ->  | AM39: ='Serial Data'!AK39/('Serial Data'!AJ39+'Serial Data'!AK39+'Serial Data'!AL39) ->  | AN39: =IF('Serial Data'!AJ39+'Serial Data'!AK39+'Serial Data'!AL39<>0,(AL39+(AM39*0.5)),NA()) ->  | AO39: =IF('Serial Data'!AJ39+'Serial Data'!AK39+'Serial Data'!AL39<>0,(AM39*0.866*Templates!K2),NA()) ->  | AQ39: ='Serial Data'!AQ39/('Serial Data'!AO39+'Serial Data'!AP39+'Serial Data'!AQ39) ->  | AR39: ='Serial Data'!AO39/('Serial Data'!AO39+'Serial Data'!AP39+'Serial Data'!AQ39) ->  | AS39: ='Serial Data'!AP39/('Serial Data'!AO39+'Serial Data'!AP39+'Serial Data'!AQ39) ->  | AT39: =IF('Serial Data'!AO39+'Serial Data'!AP39+'Serial Data'!AQ39<>0,(AR39+(AS39*0.5)),NA()) ->  | AU39: =IF('Serial Data'!AO39+'Serial Data'!AP39+'Serial Data'!AQ39<>0,(AS39*0.866*Templates!K2),NA()) ->  | AW39: ='Serial Data'!AV39/('Serial Data'!AT39+'Serial Data'!AU39+'Serial Data'!AV39) ->  | AX39: ='Serial Data'!AT39/('Serial Data'!AT39+'Serial Data'!AU39+'Serial Data'!AV39) ->  | AY39: ='Serial Data'!AU39/('Serial Data'!AT39+'Serial Data'!AU39+'Serial Data'!AV39) ->  | AZ39: =IF('Serial Data'!AT39+'Serial Data'!AU39+'Serial Data'!AV39<>0,(AX39+(AY39*0.5)),NA()) ->  | BA39: =IF('Serial Data'!AT39+'Serial Data'!AU39+'Serial Data'!AV39<>0,(AY39*0.866*Templates!K2),NA()) ->  | BC39: ='Serial Data'!BA39/('Serial Data'!AY39+'Serial Data'!AZ39+'Serial Data'!BA39) ->  | BD39: ='Serial Data'!AY39/('Serial Data'!AY39+'Serial Data'!AZ39+'Serial Data'!BA39) ->  | BE39: ='Serial Data'!AZ39/('Serial Data'!AY39+'Serial Data'!AZ39+'Serial Data'!BA39) ->  | BF39: =IF('Serial Data'!AY39+'Serial Data'!AZ39+'Serial Data'!BA39<>0,(BD39+(BE39*0.5)),NA()) ->  | BG39: =IF('Serial Data'!AY39+'Serial Data'!AZ39+'Serial Data'!BA39<>0,(BE39*0.866*Templates!K2),NA()) ->  | BI39: ='Serial Data'!BF39/('Serial Data'!BD39+'Serial Data'!BE39+'Serial Data'!BF39) ->  | BJ39: ='Serial Data'!BD39/('Serial Data'!BD39+'Serial Data'!BE39+'Serial Data'!BF39) ->  | BK39: ='Serial Data'!BE39/('Serial Data'!BD39+'Serial Data'!BE39+'Serial Data'!BF39) ->  | BL39: =IF('Serial Data'!BD39+'Serial Data'!BE39+'Serial Data'!BF39<>0,(BJ39+(BK39*0.5)),NA()) ->  | BM39: =IF('Serial Data'!BD39+'Serial Data'!BE39+'Serial Data'!BF39<>0,(BK39*0.866*Templates!K2),NA()) -> 
A40: ='Single Data'!N41/('Single Data'!L41+'Single Data'!M41+'Single Data'!N41) ->  | B40: ='Single Data'!L41/('Single Data'!L41+'Single Data'!M41+'Single Data'!N41) ->  | C40: ='Single Data'!M41/('Single Data'!L41+'Single Data'!M41+'Single Data'!N41) ->  | D40: =IF('Single Data'!L41+'Single Data'!M41+'Single Data'!N41<>0,(B40+(C40*0.5)),NA()) ->  | E40: =IF('Single Data'!L41+'Single Data'!M41+'Single Data'!N41<>0,(C40*0.866*Templates!K2),NA()) ->  | G40: ='Serial Data'!M40/('Serial Data'!K40+'Serial Data'!L40+'Serial Data'!M40) ->  | H40: ='Serial Data'!K40/('Serial Data'!K40+'Serial Data'!L40+'Serial Data'!M40) ->  | I40: ='Serial Data'!L40/('Serial Data'!K40+'Serial Data'!L40+'Serial Data'!M40) ->  | J40: =IF('Serial Data'!K40+'Serial Data'!L40+'Serial Data'!M40<>0,(H40+(I40*0.5)),NA()) ->  | K40: =IF('Serial Data'!K40+'Serial Data'!L40+'Serial Data'!M40<>0,(I40*0.866*Templates!K2),NA()) ->  | M40: ='Serial Data'!R40/('Serial Data'!P40+'Serial Data'!Q40+'Serial Data'!R40) ->  | N40: ='Serial Data'!P40/('Serial Data'!P40+'Serial Data'!Q40+'Serial Data'!R40) ->  | O40: ='Serial Data'!Q40/('Serial Data'!P40+'Serial Data'!Q40+'Serial Data'!R40) ->  | P40: =IF('Serial Data'!P40+'Serial Data'!Q40+'Serial Data'!R40<>0,(N40+(O40*0.5)),NA()) ->  | Q40: =IF('Serial Data'!P40+'Serial Data'!Q40+'Serial Data'!R40<>0,(O40*0.866*Templates!K2),NA()) ->  | S40: ='Serial Data'!W40/('Serial Data'!U40+'Serial Data'!V40+'Serial Data'!W40) ->  | T40: ='Serial Data'!U40/('Serial Data'!U40+'Serial Data'!V40+'Serial Data'!W40) ->  | U40: ='Serial Data'!V40/('Serial Data'!U40+'Serial Data'!V40+'Serial Data'!W40) ->  | V40: =IF('Serial Data'!V40+'Serial Data'!W40+'Serial Data'!U40<>0,(T40+(U40*0.5)),NA()) ->  | W40: =IF('Serial Data'!V40+'Serial Data'!W40+'Serial Data'!U40<>0,(U40*0.866*Templates!K2),NA()) ->  | Y40: ='Serial Data'!AB40/('Serial Data'!AA40+'Serial Data'!AB40+'Serial Data'!Z40) ->  | Z40: ='Serial Data'!Z40/('Serial Data'!AA40+'Serial Data'!AB40+'Serial Data'!Z40) ->  | AA40: ='Serial Data'!AA40/('Serial Data'!AA40+'Serial Data'!AB40+'Serial Data'!Z40) ->  | AB40: =IF('Serial Data'!AB40+'Serial Data'!AA40+'Serial Data'!Z40<>0,(Z40+(AA40*0.5)),NA()) ->  | AC40: =IF('Serial Data'!AB40+'Serial Data'!AA40+'Serial Data'!Z40<>0,(AA40*0.866*Templates!K2),NA()) ->  | AE40: ='Serial Data'!AG40/('Serial Data'!AG40+'Serial Data'!AE40+'Serial Data'!AF40) ->  | AF40: ='Serial Data'!AE40/('Serial Data'!AG40+'Serial Data'!AE40+'Serial Data'!AF40) ->  | AG40: ='Serial Data'!AF40/('Serial Data'!AG40+'Serial Data'!AE40+'Serial Data'!AF40) ->  | AH40: =IF('Serial Data'!AE40+'Serial Data'!AF40+'Serial Data'!AG40<>0,(AF40+(AG40*0.5)),NA()) ->  | AI40: =IF('Serial Data'!AE40+'Serial Data'!AF40+'Serial Data'!AG40<>0,(AG40*0.866*Templates!K2),NA()) ->  | AK40: ='Serial Data'!AL40/('Serial Data'!AJ40+'Serial Data'!AK40+'Serial Data'!AL40) ->  | AL40: ='Serial Data'!AJ40/('Serial Data'!AJ40+'Serial Data'!AK40+'Serial Data'!AL40) ->  | AM40: ='Serial Data'!AK40/('Serial Data'!AJ40+'Serial Data'!AK40+'Serial Data'!AL40) ->  | AN40: =IF('Serial Data'!AJ40+'Serial Data'!AK40+'Serial Data'!AL40<>0,(AL40+(AM40*0.5)),NA()) ->  | AO40: =IF('Serial Data'!AJ40+'Serial Data'!AK40+'Serial Data'!AL40<>0,(AM40*0.866*Templates!K2),NA()) ->  | AQ40: ='Serial Data'!AQ40/('Serial Data'!AO40+'Serial Data'!AP40+'Serial Data'!AQ40) ->  | AR40: ='Serial Data'!AO40/('Serial Data'!AO40+'Serial Data'!AP40+'Serial Data'!AQ40) ->  | AS40: ='Serial Data'!AP40/('Serial Data'!AO40+'Serial Data'!AP40+'Serial Data'!AQ40) ->  | AT40: =IF('Serial Data'!AO40+'Serial Data'!AP40+'Serial Data'!AQ40<>0,(AR40+(AS40*0.5)),NA()) ->  | AU40: =IF('Serial Data'!AO40+'Serial Data'!AP40+'Serial Data'!AQ40<>0,(AS40*0.866*Templates!K2),NA()) ->  | AW40: ='Serial Data'!AV40/('Serial Data'!AT40+'Serial Data'!AU40+'Serial Data'!AV40) ->  | AX40: ='Serial Data'!AT40/('Serial Data'!AT40+'Serial Data'!AU40+'Serial Data'!AV40) ->  | AY40: ='Serial Data'!AU40/('Serial Data'!AT40+'Serial Data'!AU40+'Serial Data'!AV40) ->  | AZ40: =IF('Serial Data'!AT40+'Serial Data'!AU40+'Serial Data'!AV40<>0,(AX40+(AY40*0.5)),NA()) ->  | BA40: =IF('Serial Data'!AT40+'Serial Data'!AU40+'Serial Data'!AV40<>0,(AY40*0.866*Templates!K2),NA()) ->  | BC40: ='Serial Data'!BA40/('Serial Data'!AY40+'Serial Data'!AZ40+'Serial Data'!BA40) ->  | BD40: ='Serial Data'!AY40/('Serial Data'!AY40+'Serial Data'!AZ40+'Serial Data'!BA40) ->  | BE40: ='Serial Data'!AZ40/('Serial Data'!AY40+'Serial Data'!AZ40+'Serial Data'!BA40) ->  | BF40: =IF('Serial Data'!AY40+'Serial Data'!AZ40+'Serial Data'!BA40<>0,(BD40+(BE40*0.5)),NA()) ->  | BG40: =IF('Serial Data'!AY40+'Serial Data'!AZ40+'Serial Data'!BA40<>0,(BE40*0.866*Templates!K2),NA()) ->  | BI40: ='Serial Data'!BF40/('Serial Data'!BD40+'Serial Data'!BE40+'Serial Data'!BF40) ->  | BJ40: ='Serial Data'!BD40/('Serial Data'!BD40+'Serial Data'!BE40+'Serial Data'!BF40) ->  | BK40: ='Serial Data'!BE40/('Serial Data'!BD40+'Serial Data'!BE40+'Serial Data'!BF40) ->  | BL40: =IF('Serial Data'!BD40+'Serial Data'!BE40+'Serial Data'!BF40<>0,(BJ40+(BK40*0.5)),NA()) ->  | BM40: =IF('Serial Data'!BD40+'Serial Data'!BE40+'Serial Data'!BF40<>0,(BK40*0.866*Templates!K2),NA()) -> 
A41: ='Single Data'!N42/('Single Data'!L42+'Single Data'!M42+'Single Data'!N42) ->  | B41: ='Single Data'!L42/('Single Data'!L42+'Single Data'!M42+'Single Data'!N42) ->  | C41: ='Single Data'!M42/('Single Data'!L42+'Single Data'!M42+'Single Data'!N42) ->  | D41: =IF('Single Data'!L42+'Single Data'!M42+'Single Data'!N42<>0,(B41+(C41*0.5)),NA()) ->  | E41: =IF('Single Data'!L42+'Single Data'!M42+'Single Data'!N42<>0,(C41*0.866*Templates!K2),NA()) ->  | G41: ='Serial Data'!M41/('Serial Data'!K41+'Serial Data'!L41+'Serial Data'!M41) ->  | H41: ='Serial Data'!K41/('Serial Data'!K41+'Serial Data'!L41+'Serial Data'!M41) ->  | I41: ='Serial Data'!L41/('Serial Data'!K41+'Serial Data'!L41+'Serial Data'!M41) ->  | J41: =IF('Serial Data'!K41+'Serial Data'!L41+'Serial Data'!M41<>0,(H41+(I41*0.5)),NA()) ->  | K41: =IF('Serial Data'!K41+'Serial Data'!L41+'Serial Data'!M41<>0,(I41*0.866*Templates!K2),NA()) ->  | M41: ='Serial Data'!R41/('Serial Data'!P41+'Serial Data'!Q41+'Serial Data'!R41) ->  | N41: ='Serial Data'!P41/('Serial Data'!P41+'Serial Data'!Q41+'Serial Data'!R41) ->  | O41: ='Serial Data'!Q41/('Serial Data'!P41+'Serial Data'!Q41+'Serial Data'!R41) ->  | P41: =IF('Serial Data'!P41+'Serial Data'!Q41+'Serial Data'!R41<>0,(N41+(O41*0.5)),NA()) ->  | Q41: =IF('Serial Data'!P41+'Serial Data'!Q41+'Serial Data'!R41<>0,(O41*0.866*Templates!K2),NA()) ->  | S41: ='Serial Data'!W41/('Serial Data'!U41+'Serial Data'!V41+'Serial Data'!W41) ->  | T41: ='Serial Data'!U41/('Serial Data'!U41+'Serial Data'!V41+'Serial Data'!W41) ->  | U41: ='Serial Data'!V41/('Serial Data'!U41+'Serial Data'!V41+'Serial Data'!W41) ->  | V41: =IF('Serial Data'!V41+'Serial Data'!W41+'Serial Data'!U41<>0,(T41+(U41*0.5)),NA()) ->  | W41: =IF('Serial Data'!V41+'Serial Data'!W41+'Serial Data'!U41<>0,(U41*0.866*Templates!K2),NA()) ->  | Y41: ='Serial Data'!AB41/('Serial Data'!AA41+'Serial Data'!AB41+'Serial Data'!Z41) ->  | Z41: ='Serial Data'!Z41/('Serial Data'!AA41+'Serial Data'!AB41+'Serial Data'!Z41) ->  | AA41: ='Serial Data'!AA41/('Serial Data'!AA41+'Serial Data'!AB41+'Serial Data'!Z41) ->  | AB41: =IF('Serial Data'!AB41+'Serial Data'!AA41+'Serial Data'!Z41<>0,(Z41+(AA41*0.5)),NA()) ->  | AC41: =IF('Serial Data'!AB41+'Serial Data'!AA41+'Serial Data'!Z41<>0,(AA41*0.866*Templates!K2),NA()) ->  | AE41: ='Serial Data'!AG41/('Serial Data'!AG41+'Serial Data'!AE41+'Serial Data'!AF41) ->  | AF41: ='Serial Data'!AE41/('Serial Data'!AG41+'Serial Data'!AE41+'Serial Data'!AF41) ->  | AG41: ='Serial Data'!AF41/('Serial Data'!AG41+'Serial Data'!AE41+'Serial Data'!AF41) ->  | AH41: =IF('Serial Data'!AE41+'Serial Data'!AF41+'Serial Data'!AG41<>0,(AF41+(AG41*0.5)),NA()) ->  | AI41: =IF('Serial Data'!AE41+'Serial Data'!AF41+'Serial Data'!AG41<>0,(AG41*0.866*Templates!K2),NA()) ->  | AK41: ='Serial Data'!AL41/('Serial Data'!AJ41+'Serial Data'!AK41+'Serial Data'!AL41) ->  | AL41: ='Serial Data'!AJ41/('Serial Data'!AJ41+'Serial Data'!AK41+'Serial Data'!AL41) ->  | AM41: ='Serial Data'!AK41/('Serial Data'!AJ41+'Serial Data'!AK41+'Serial Data'!AL41) ->  | AN41: =IF('Serial Data'!AJ41+'Serial Data'!AK41+'Serial Data'!AL41<>0,(AL41+(AM41*0.5)),NA()) ->  | AO41: =IF('Serial Data'!AJ41+'Serial Data'!AK41+'Serial Data'!AL41<>0,(AM41*0.866*Templates!K2),NA()) ->  | AQ41: ='Serial Data'!AQ41/('Serial Data'!AO41+'Serial Data'!AP41+'Serial Data'!AQ41) ->  | AR41: ='Serial Data'!AO41/('Serial Data'!AO41+'Serial Data'!AP41+'Serial Data'!AQ41) ->  | AS41: ='Serial Data'!AP41/('Serial Data'!AO41+'Serial Data'!AP41+'Serial Data'!AQ41) ->  | AT41: =IF('Serial Data'!AO41+'Serial Data'!AP41+'Serial Data'!AQ41<>0,(AR41+(AS41*0.5)),NA()) ->  | AU41: =IF('Serial Data'!AO41+'Serial Data'!AP41+'Serial Data'!AQ41<>0,(AS41*0.866*Templates!K2),NA()) ->  | AW41: ='Serial Data'!AV41/('Serial Data'!AT41+'Serial Data'!AU41+'Serial Data'!AV41) ->  | AX41: ='Serial Data'!AT41/('Serial Data'!AT41+'Serial Data'!AU41+'Serial Data'!AV41) ->  | AY41: ='Serial Data'!AU41/('Serial Data'!AT41+'Serial Data'!AU41+'Serial Data'!AV41) ->  | AZ41: =IF('Serial Data'!AT41+'Serial Data'!AU41+'Serial Data'!AV41<>0,(AX41+(AY41*0.5)),NA()) ->  | BA41: =IF('Serial Data'!AT41+'Serial Data'!AU41+'Serial Data'!AV41<>0,(AY41*0.866*Templates!K2),NA()) ->  | BC41: ='Serial Data'!BA41/('Serial Data'!AY41+'Serial Data'!AZ41+'Serial Data'!BA41) ->  | BD41: ='Serial Data'!AY41/('Serial Data'!AY41+'Serial Data'!AZ41+'Serial Data'!BA41) ->  | BE41: ='Serial Data'!AZ41/('Serial Data'!AY41+'Serial Data'!AZ41+'Serial Data'!BA41) ->  | BF41: =IF('Serial Data'!AY41+'Serial Data'!AZ41+'Serial Data'!BA41<>0,(BD41+(BE41*0.5)),NA()) ->  | BG41: =IF('Serial Data'!AY41+'Serial Data'!AZ41+'Serial Data'!BA41<>0,(BE41*0.866*Templates!K2),NA()) ->  | BI41: ='Serial Data'!BF41/('Serial Data'!BD41+'Serial Data'!BE41+'Serial Data'!BF41) ->  | BJ41: ='Serial Data'!BD41/('Serial Data'!BD41+'Serial Data'!BE41+'Serial Data'!BF41) ->  | BK41: ='Serial Data'!BE41/('Serial Data'!BD41+'Serial Data'!BE41+'Serial Data'!BF41) ->  | BL41: =IF('Serial Data'!BD41+'Serial Data'!BE41+'Serial Data'!BF41<>0,(BJ41+(BK41*0.5)),NA()) ->  | BM41: =IF('Serial Data'!BD41+'Serial Data'!BE41+'Serial Data'!BF41<>0,(BK41*0.866*Templates!K2),NA()) -> 
A42: ='Single Data'!N43/('Single Data'!L43+'Single Data'!M43+'Single Data'!N43) ->  | B42: ='Single Data'!L43/('Single Data'!L43+'Single Data'!M43+'Single Data'!N43) ->  | C42: ='Single Data'!M43/('Single Data'!L43+'Single Data'!M43+'Single Data'!N43) ->  | D42: =IF('Single Data'!L43+'Single Data'!M43+'Single Data'!N43<>0,(B42+(C42*0.5)),NA()) ->  | E42: =IF('Single Data'!L43+'Single Data'!M43+'Single Data'!N43<>0,(C42*0.866*Templates!K2),NA()) ->  | G42: ='Serial Data'!M42/('Serial Data'!K42+'Serial Data'!L42+'Serial Data'!M42) ->  | H42: ='Serial Data'!K42/('Serial Data'!K42+'Serial Data'!L42+'Serial Data'!M42) ->  | I42: ='Serial Data'!L42/('Serial Data'!K42+'Serial Data'!L42+'Serial Data'!M42) ->  | J42: =IF('Serial Data'!K42+'Serial Data'!L42+'Serial Data'!M42<>0,(H42+(I42*0.5)),NA()) ->  | K42: =IF('Serial Data'!K42+'Serial Data'!L42+'Serial Data'!M42<>0,(I42*0.866*Templates!K2),NA()) ->  | M42: ='Serial Data'!R42/('Serial Data'!P42+'Serial Data'!Q42+'Serial Data'!R42) ->  | N42: ='Serial Data'!P42/('Serial Data'!P42+'Serial Data'!Q42+'Serial Data'!R42) ->  | O42: ='Serial Data'!Q42/('Serial Data'!P42+'Serial Data'!Q42+'Serial Data'!R42) ->  | P42: =IF('Serial Data'!P42+'Serial Data'!Q42+'Serial Data'!R42<>0,(N42+(O42*0.5)),NA()) ->  | Q42: =IF('Serial Data'!P42+'Serial Data'!Q42+'Serial Data'!R42<>0,(O42*0.866*Templates!K2),NA()) ->  | S42: ='Serial Data'!W42/('Serial Data'!U42+'Serial Data'!V42+'Serial Data'!W42) ->  | T42: ='Serial Data'!U42/('Serial Data'!U42+'Serial Data'!V42+'Serial Data'!W42) ->  | U42: ='Serial Data'!V42/('Serial Data'!U42+'Serial Data'!V42+'Serial Data'!W42) ->  | V42: =IF('Serial Data'!V42+'Serial Data'!W42+'Serial Data'!U42<>0,(T42+(U42*0.5)),NA()) ->  | W42: =IF('Serial Data'!V42+'Serial Data'!W42+'Serial Data'!U42<>0,(U42*0.866*Templates!K2),NA()) ->  | Y42: ='Serial Data'!AB42/('Serial Data'!AA42+'Serial Data'!AB42+'Serial Data'!Z42) ->  | Z42: ='Serial Data'!Z42/('Serial Data'!AA42+'Serial Data'!AB42+'Serial Data'!Z42) ->  | AA42: ='Serial Data'!AA42/('Serial Data'!AA42+'Serial Data'!AB42+'Serial Data'!Z42) ->  | AB42: =IF('Serial Data'!AB42+'Serial Data'!AA42+'Serial Data'!Z42<>0,(Z42+(AA42*0.5)),NA()) ->  | AC42: =IF('Serial Data'!AB42+'Serial Data'!AA42+'Serial Data'!Z42<>0,(AA42*0.866*Templates!K2),NA()) ->  | AE42: ='Serial Data'!AG42/('Serial Data'!AG42+'Serial Data'!AE42+'Serial Data'!AF42) ->  | AF42: ='Serial Data'!AE42/('Serial Data'!AG42+'Serial Data'!AE42+'Serial Data'!AF42) ->  | AG42: ='Serial Data'!AF42/('Serial Data'!AG42+'Serial Data'!AE42+'Serial Data'!AF42) ->  | AH42: =IF('Serial Data'!AE42+'Serial Data'!AF42+'Serial Data'!AG42<>0,(AF42+(AG42*0.5)),NA()) ->  | AI42: =IF('Serial Data'!AE42+'Serial Data'!AF42+'Serial Data'!AG42<>0,(AG42*0.866*Templates!K2),NA()) ->  | AK42: ='Serial Data'!AL42/('Serial Data'!AJ42+'Serial Data'!AK42+'Serial Data'!AL42) ->  | AL42: ='Serial Data'!AJ42/('Serial Data'!AJ42+'Serial Data'!AK42+'Serial Data'!AL42) ->  | AM42: ='Serial Data'!AK42/('Serial Data'!AJ42+'Serial Data'!AK42+'Serial Data'!AL42) ->  | AN42: =IF('Serial Data'!AJ42+'Serial Data'!AK42+'Serial Data'!AL42<>0,(AL42+(AM42*0.5)),NA()) ->  | AO42: =IF('Serial Data'!AJ42+'Serial Data'!AK42+'Serial Data'!AL42<>0,(AM42*0.866*Templates!K2),NA()) ->  | AQ42: ='Serial Data'!AQ42/('Serial Data'!AO42+'Serial Data'!AP42+'Serial Data'!AQ42) ->  | AR42: ='Serial Data'!AO42/('Serial Data'!AO42+'Serial Data'!AP42+'Serial Data'!AQ42) ->  | AS42: ='Serial Data'!AP42/('Serial Data'!AO42+'Serial Data'!AP42+'Serial Data'!AQ42) ->  | AT42: =IF('Serial Data'!AO42+'Serial Data'!AP42+'Serial Data'!AQ42<>0,(AR42+(AS42*0.5)),NA()) ->  | AU42: =IF('Serial Data'!AO42+'Serial Data'!AP42+'Serial Data'!AQ42<>0,(AS42*0.866*Templates!K2),NA()) ->  | AW42: ='Serial Data'!AV42/('Serial Data'!AT42+'Serial Data'!AU42+'Serial Data'!AV42) ->  | AX42: ='Serial Data'!AT42/('Serial Data'!AT42+'Serial Data'!AU42+'Serial Data'!AV42) ->  | AY42: ='Serial Data'!AU42/('Serial Data'!AT42+'Serial Data'!AU42+'Serial Data'!AV42) ->  | AZ42: =IF('Serial Data'!AT42+'Serial Data'!AU42+'Serial Data'!AV42<>0,(AX42+(AY42*0.5)),NA()) ->  | BA42: =IF('Serial Data'!AT42+'Serial Data'!AU42+'Serial Data'!AV42<>0,(AY42*0.866*Templates!K2),NA()) ->  | BC42: ='Serial Data'!BA42/('Serial Data'!AY42+'Serial Data'!AZ42+'Serial Data'!BA42) ->  | BD42: ='Serial Data'!AY42/('Serial Data'!AY42+'Serial Data'!AZ42+'Serial Data'!BA42) ->  | BE42: ='Serial Data'!AZ42/('Serial Data'!AY42+'Serial Data'!AZ42+'Serial Data'!BA42) ->  | BF42: =IF('Serial Data'!AY42+'Serial Data'!AZ42+'Serial Data'!BA42<>0,(BD42+(BE42*0.5)),NA()) ->  | BG42: =IF('Serial Data'!AY42+'Serial Data'!AZ42+'Serial Data'!BA42<>0,(BE42*0.866*Templates!K2),NA()) ->  | BI42: ='Serial Data'!BF42/('Serial Data'!BD42+'Serial Data'!BE42+'Serial Data'!BF42) ->  | BJ42: ='Serial Data'!BD42/('Serial Data'!BD42+'Serial Data'!BE42+'Serial Data'!BF42) ->  | BK42: ='Serial Data'!BE42/('Serial Data'!BD42+'Serial Data'!BE42+'Serial Data'!BF42) ->  | BL42: =IF('Serial Data'!BD42+'Serial Data'!BE42+'Serial Data'!BF42<>0,(BJ42+(BK42*0.5)),NA()) ->  | BM42: =IF('Serial Data'!BD42+'Serial Data'!BE42+'Serial Data'!BF42<>0,(BK42*0.866*Templates!K2),NA()) -> 
A43: ='Single Data'!N44/('Single Data'!L44+'Single Data'!M44+'Single Data'!N44) ->  | B43: ='Single Data'!L44/('Single Data'!L44+'Single Data'!M44+'Single Data'!N44) ->  | C43: ='Single Data'!M44/('Single Data'!L44+'Single Data'!M44+'Single Data'!N44) ->  | D43: =IF('Single Data'!L44+'Single Data'!M44+'Single Data'!N44<>0,(B43+(C43*0.5)),NA()) ->  | E43: =IF('Single Data'!L44+'Single Data'!M44+'Single Data'!N44<>0,(C43*0.866*Templates!K2),NA()) ->  | G43: ='Serial Data'!M43/('Serial Data'!K43+'Serial Data'!L43+'Serial Data'!M43) ->  | H43: ='Serial Data'!K43/('Serial Data'!K43+'Serial Data'!L43+'Serial Data'!M43) ->  | I43: ='Serial Data'!L43/('Serial Data'!K43+'Serial Data'!L43+'Serial Data'!M43) ->  | J43: =IF('Serial Data'!K43+'Serial Data'!L43+'Serial Data'!M43<>0,(H43+(I43*0.5)),NA()) ->  | K43: =IF('Serial Data'!K43+'Serial Data'!L43+'Serial Data'!M43<>0,(I43*0.866*Templates!K2),NA()) ->  | M43: ='Serial Data'!R43/('Serial Data'!P43+'Serial Data'!Q43+'Serial Data'!R43) ->  | N43: ='Serial Data'!P43/('Serial Data'!P43+'Serial Data'!Q43+'Serial Data'!R43) ->  | O43: ='Serial Data'!Q43/('Serial Data'!P43+'Serial Data'!Q43+'Serial Data'!R43) ->  | P43: =IF('Serial Data'!P43+'Serial Data'!Q43+'Serial Data'!R43<>0,(N43+(O43*0.5)),NA()) ->  | Q43: =IF('Serial Data'!P43+'Serial Data'!Q43+'Serial Data'!R43<>0,(O43*0.866*Templates!K2),NA()) ->  | S43: ='Serial Data'!W43/('Serial Data'!U43+'Serial Data'!V43+'Serial Data'!W43) ->  | T43: ='Serial Data'!U43/('Serial Data'!U43+'Serial Data'!V43+'Serial Data'!W43) ->  | U43: ='Serial Data'!V43/('Serial Data'!U43+'Serial Data'!V43+'Serial Data'!W43) ->  | V43: =IF('Serial Data'!V43+'Serial Data'!W43+'Serial Data'!U43<>0,(T43+(U43*0.5)),NA()) ->  | W43: =IF('Serial Data'!V43+'Serial Data'!W43+'Serial Data'!U43<>0,(U43*0.866*Templates!K2),NA()) ->  | Y43: ='Serial Data'!AB43/('Serial Data'!AA43+'Serial Data'!AB43+'Serial Data'!Z43) ->  | Z43: ='Serial Data'!Z43/('Serial Data'!AA43+'Serial Data'!AB43+'Serial Data'!Z43) ->  | AA43: ='Serial Data'!AA43/('Serial Data'!AA43+'Serial Data'!AB43+'Serial Data'!Z43) ->  | AB43: =IF('Serial Data'!AB43+'Serial Data'!AA43+'Serial Data'!Z43<>0,(Z43+(AA43*0.5)),NA()) ->  | AC43: =IF('Serial Data'!AB43+'Serial Data'!AA43+'Serial Data'!Z43<>0,(AA43*0.866*Templates!K2),NA()) ->  | AE43: ='Serial Data'!AG43/('Serial Data'!AG43+'Serial Data'!AE43+'Serial Data'!AF43) ->  | AF43: ='Serial Data'!AE43/('Serial Data'!AG43+'Serial Data'!AE43+'Serial Data'!AF43) ->  | AG43: ='Serial Data'!AF43/('Serial Data'!AG43+'Serial Data'!AE43+'Serial Data'!AF43) ->  | AH43: =IF('Serial Data'!AE43+'Serial Data'!AF43+'Serial Data'!AG43<>0,(AF43+(AG43*0.5)),NA()) ->  | AI43: =IF('Serial Data'!AE43+'Serial Data'!AF43+'Serial Data'!AG43<>0,(AG43*0.866*Templates!K2),NA()) ->  | AK43: ='Serial Data'!AL43/('Serial Data'!AJ43+'Serial Data'!AK43+'Serial Data'!AL43) ->  | AL43: ='Serial Data'!AJ43/('Serial Data'!AJ43+'Serial Data'!AK43+'Serial Data'!AL43) ->  | AM43: ='Serial Data'!AK43/('Serial Data'!AJ43+'Serial Data'!AK43+'Serial Data'!AL43) ->  | AN43: =IF('Serial Data'!AJ43+'Serial Data'!AK43+'Serial Data'!AL43<>0,(AL43+(AM43*0.5)),NA()) ->  | AO43: =IF('Serial Data'!AJ43+'Serial Data'!AK43+'Serial Data'!AL43<>0,(AM43*0.866*Templates!K2),NA()) ->  | AQ43: ='Serial Data'!AQ43/('Serial Data'!AO43+'Serial Data'!AP43+'Serial Data'!AQ43) ->  | AR43: ='Serial Data'!AO43/('Serial Data'!AO43+'Serial Data'!AP43+'Serial Data'!AQ43) ->  | AS43: ='Serial Data'!AP43/('Serial Data'!AO43+'Serial Data'!AP43+'Serial Data'!AQ43) ->  | AT43: =IF('Serial Data'!AO43+'Serial Data'!AP43+'Serial Data'!AQ43<>0,(AR43+(AS43*0.5)),NA()) ->  | AU43: =IF('Serial Data'!AO43+'Serial Data'!AP43+'Serial Data'!AQ43<>0,(AS43*0.866*Templates!K2),NA()) ->  | AW43: ='Serial Data'!AV43/('Serial Data'!AT43+'Serial Data'!AU43+'Serial Data'!AV43) ->  | AX43: ='Serial Data'!AT43/('Serial Data'!AT43+'Serial Data'!AU43+'Serial Data'!AV43) ->  | AY43: ='Serial Data'!AU43/('Serial Data'!AT43+'Serial Data'!AU43+'Serial Data'!AV43) ->  | AZ43: =IF('Serial Data'!AT43+'Serial Data'!AU43+'Serial Data'!AV43<>0,(AX43+(AY43*0.5)),NA()) ->  | BA43: =IF('Serial Data'!AT43+'Serial Data'!AU43+'Serial Data'!AV43<>0,(AY43*0.866*Templates!K2),NA()) ->  | BC43: ='Serial Data'!BA43/('Serial Data'!AY43+'Serial Data'!AZ43+'Serial Data'!BA43) ->  | BD43: ='Serial Data'!AY43/('Serial Data'!AY43+'Serial Data'!AZ43+'Serial Data'!BA43) ->  | BE43: ='Serial Data'!AZ43/('Serial Data'!AY43+'Serial Data'!AZ43+'Serial Data'!BA43) ->  | BF43: =IF('Serial Data'!AY43+'Serial Data'!AZ43+'Serial Data'!BA43<>0,(BD43+(BE43*0.5)),NA()) ->  | BG43: =IF('Serial Data'!AY43+'Serial Data'!AZ43+'Serial Data'!BA43<>0,(BE43*0.866*Templates!K2),NA()) ->  | BI43: ='Serial Data'!BF43/('Serial Data'!BD43+'Serial Data'!BE43+'Serial Data'!BF43) ->  | BJ43: ='Serial Data'!BD43/('Serial Data'!BD43+'Serial Data'!BE43+'Serial Data'!BF43) ->  | BK43: ='Serial Data'!BE43/('Serial Data'!BD43+'Serial Data'!BE43+'Serial Data'!BF43) ->  | BL43: =IF('Serial Data'!BD43+'Serial Data'!BE43+'Serial Data'!BF43<>0,(BJ43+(BK43*0.5)),NA()) ->  | BM43: =IF('Serial Data'!BD43+'Serial Data'!BE43+'Serial Data'!BF43<>0,(BK43*0.866*Templates!K2),NA()) -> 
A44: ='Single Data'!N45/('Single Data'!L45+'Single Data'!M45+'Single Data'!N45) ->  | B44: ='Single Data'!L45/('Single Data'!L45+'Single Data'!M45+'Single Data'!N45) ->  | C44: ='Single Data'!M45/('Single Data'!L45+'Single Data'!M45+'Single Data'!N45) ->  | D44: =IF('Single Data'!L45+'Single Data'!M45+'Single Data'!N45<>0,(B44+(C44*0.5)),NA()) ->  | E44: =IF('Single Data'!L45+'Single Data'!M45+'Single Data'!N45<>0,(C44*0.866*Templates!K2),NA()) ->  | G44: ='Serial Data'!M44/('Serial Data'!K44+'Serial Data'!L44+'Serial Data'!M44) ->  | H44: ='Serial Data'!K44/('Serial Data'!K44+'Serial Data'!L44+'Serial Data'!M44) ->  | I44: ='Serial Data'!L44/('Serial Data'!K44+'Serial Data'!L44+'Serial Data'!M44) ->  | J44: =IF('Serial Data'!K44+'Serial Data'!L44+'Serial Data'!M44<>0,(H44+(I44*0.5)),NA()) ->  | K44: =IF('Serial Data'!K44+'Serial Data'!L44+'Serial Data'!M44<>0,(I44*0.866*Templates!K2),NA()) ->  | M44: ='Serial Data'!R44/('Serial Data'!P44+'Serial Data'!Q44+'Serial Data'!R44) ->  | N44: ='Serial Data'!P44/('Serial Data'!P44+'Serial Data'!Q44+'Serial Data'!R44) ->  | O44: ='Serial Data'!Q44/('Serial Data'!P44+'Serial Data'!Q44+'Serial Data'!R44) ->  | P44: =IF('Serial Data'!P44+'Serial Data'!Q44+'Serial Data'!R44<>0,(N44+(O44*0.5)),NA()) ->  | Q44: =IF('Serial Data'!P44+'Serial Data'!Q44+'Serial Data'!R44<>0,(O44*0.866*Templates!K2),NA()) ->  | S44: ='Serial Data'!W44/('Serial Data'!U44+'Serial Data'!V44+'Serial Data'!W44) ->  | T44: ='Serial Data'!U44/('Serial Data'!U44+'Serial Data'!V44+'Serial Data'!W44) ->  | U44: ='Serial Data'!V44/('Serial Data'!U44+'Serial Data'!V44+'Serial Data'!W44) ->  | V44: =IF('Serial Data'!V44+'Serial Data'!W44+'Serial Data'!U44<>0,(T44+(U44*0.5)),NA()) ->  | W44: =IF('Serial Data'!V44+'Serial Data'!W44+'Serial Data'!U44<>0,(U44*0.866*Templates!K2),NA()) ->  | Y44: ='Serial Data'!AB44/('Serial Data'!AA44+'Serial Data'!AB44+'Serial Data'!Z44) ->  | Z44: ='Serial Data'!Z44/('Serial Data'!AA44+'Serial Data'!AB44+'Serial Data'!Z44) ->  | AA44: ='Serial Data'!AA44/('Serial Data'!AA44+'Serial Data'!AB44+'Serial Data'!Z44) ->  | AB44: =IF('Serial Data'!AB44+'Serial Data'!AA44+'Serial Data'!Z44<>0,(Z44+(AA44*0.5)),NA()) ->  | AC44: =IF('Serial Data'!AB44+'Serial Data'!AA44+'Serial Data'!Z44<>0,(AA44*0.866*Templates!K2),NA()) ->  | AE44: ='Serial Data'!AG44/('Serial Data'!AG44+'Serial Data'!AE44+'Serial Data'!AF44) ->  | AF44: ='Serial Data'!AE44/('Serial Data'!AG44+'Serial Data'!AE44+'Serial Data'!AF44) ->  | AG44: ='Serial Data'!AF44/('Serial Data'!AG44+'Serial Data'!AE44+'Serial Data'!AF44) ->  | AH44: =IF('Serial Data'!AE44+'Serial Data'!AF44+'Serial Data'!AG44<>0,(AF44+(AG44*0.5)),NA()) ->  | AI44: =IF('Serial Data'!AE44+'Serial Data'!AF44+'Serial Data'!AG44<>0,(AG44*0.866*Templates!K2),NA()) ->  | AK44: ='Serial Data'!AL44/('Serial Data'!AJ44+'Serial Data'!AK44+'Serial Data'!AL44) ->  | AL44: ='Serial Data'!AJ44/('Serial Data'!AJ44+'Serial Data'!AK44+'Serial Data'!AL44) ->  | AM44: ='Serial Data'!AK44/('Serial Data'!AJ44+'Serial Data'!AK44+'Serial Data'!AL44) ->  | AN44: =IF('Serial Data'!AJ44+'Serial Data'!AK44+'Serial Data'!AL44<>0,(AL44+(AM44*0.5)),NA()) ->  | AO44: =IF('Serial Data'!AJ44+'Serial Data'!AK44+'Serial Data'!AL44<>0,(AM44*0.866*Templates!K2),NA()) ->  | AQ44: ='Serial Data'!AQ44/('Serial Data'!AO44+'Serial Data'!AP44+'Serial Data'!AQ44) ->  | AR44: ='Serial Data'!AO44/('Serial Data'!AO44+'Serial Data'!AP44+'Serial Data'!AQ44) ->  | AS44: ='Serial Data'!AP44/('Serial Data'!AO44+'Serial Data'!AP44+'Serial Data'!AQ44) ->  | AT44: =IF('Serial Data'!AO44+'Serial Data'!AP44+'Serial Data'!AQ44<>0,(AR44+(AS44*0.5)),NA()) ->  | AU44: =IF('Serial Data'!AO44+'Serial Data'!AP44+'Serial Data'!AQ44<>0,(AS44*0.866*Templates!K2),NA()) ->  | AW44: ='Serial Data'!AV44/('Serial Data'!AT44+'Serial Data'!AU44+'Serial Data'!AV44) ->  | AX44: ='Serial Data'!AT44/('Serial Data'!AT44+'Serial Data'!AU44+'Serial Data'!AV44) ->  | AY44: ='Serial Data'!AU44/('Serial Data'!AT44+'Serial Data'!AU44+'Serial Data'!AV44) ->  | AZ44: =IF('Serial Data'!AT44+'Serial Data'!AU44+'Serial Data'!AV44<>0,(AX44+(AY44*0.5)),NA()) ->  | BA44: =IF('Serial Data'!AT44+'Serial Data'!AU44+'Serial Data'!AV44<>0,(AY44*0.866*Templates!K2),NA()) ->  | BC44: ='Serial Data'!BA44/('Serial Data'!AY44+'Serial Data'!AZ44+'Serial Data'!BA44) ->  | BD44: ='Serial Data'!AY44/('Serial Data'!AY44+'Serial Data'!AZ44+'Serial Data'!BA44) ->  | BE44: ='Serial Data'!AZ44/('Serial Data'!AY44+'Serial Data'!AZ44+'Serial Data'!BA44) ->  | BF44: =IF('Serial Data'!AY44+'Serial Data'!AZ44+'Serial Data'!BA44<>0,(BD44+(BE44*0.5)),NA()) ->  | BG44: =IF('Serial Data'!AY44+'Serial Data'!AZ44+'Serial Data'!BA44<>0,(BE44*0.866*Templates!K2),NA()) ->  | BI44: ='Serial Data'!BF44/('Serial Data'!BD44+'Serial Data'!BE44+'Serial Data'!BF44) ->  | BJ44: ='Serial Data'!BD44/('Serial Data'!BD44+'Serial Data'!BE44+'Serial Data'!BF44) ->  | BK44: ='Serial Data'!BE44/('Serial Data'!BD44+'Serial Data'!BE44+'Serial Data'!BF44) ->  | BL44: =IF('Serial Data'!BD44+'Serial Data'!BE44+'Serial Data'!BF44<>0,(BJ44+(BK44*0.5)),NA()) ->  | BM44: =IF('Serial Data'!BD44+'Serial Data'!BE44+'Serial Data'!BF44<>0,(BK44*0.866*Templates!K2),NA()) -> 
A45: ='Single Data'!N46/('Single Data'!L46+'Single Data'!M46+'Single Data'!N46) ->  | B45: ='Single Data'!L46/('Single Data'!L46+'Single Data'!M46+'Single Data'!N46) ->  | C45: ='Single Data'!M46/('Single Data'!L46+'Single Data'!M46+'Single Data'!N46) ->  | D45: =IF('Single Data'!L46+'Single Data'!M46+'Single Data'!N46<>0,(B45+(C45*0.5)),NA()) ->  | E45: =IF('Single Data'!L46+'Single Data'!M46+'Single Data'!N46<>0,(C45*0.866*Templates!K2),NA()) ->  | G45: ='Serial Data'!M45/('Serial Data'!K45+'Serial Data'!L45+'Serial Data'!M45) ->  | H45: ='Serial Data'!K45/('Serial Data'!K45+'Serial Data'!L45+'Serial Data'!M45) ->  | I45: ='Serial Data'!L45/('Serial Data'!K45+'Serial Data'!L45+'Serial Data'!M45) ->  | J45: =IF('Serial Data'!K45+'Serial Data'!L45+'Serial Data'!M45<>0,(H45+(I45*0.5)),NA()) ->  | K45: =IF('Serial Data'!K45+'Serial Data'!L45+'Serial Data'!M45<>0,(I45*0.866*Templates!K2),NA()) ->  | M45: ='Serial Data'!R45/('Serial Data'!P45+'Serial Data'!Q45+'Serial Data'!R45) ->  | N45: ='Serial Data'!P45/('Serial Data'!P45+'Serial Data'!Q45+'Serial Data'!R45) ->  | O45: ='Serial Data'!Q45/('Serial Data'!P45+'Serial Data'!Q45+'Serial Data'!R45) ->  | P45: =IF('Serial Data'!P45+'Serial Data'!Q45+'Serial Data'!R45<>0,(N45+(O45*0.5)),NA()) ->  | Q45: =IF('Serial Data'!P45+'Serial Data'!Q45+'Serial Data'!R45<>0,(O45*0.866*Templates!K2),NA()) ->  | S45: ='Serial Data'!W45/('Serial Data'!U45+'Serial Data'!V45+'Serial Data'!W45) ->  | T45: ='Serial Data'!U45/('Serial Data'!U45+'Serial Data'!V45+'Serial Data'!W45) ->  | U45: ='Serial Data'!V45/('Serial Data'!U45+'Serial Data'!V45+'Serial Data'!W45) ->  | V45: =IF('Serial Data'!V45+'Serial Data'!W45+'Serial Data'!U45<>0,(T45+(U45*0.5)),NA()) ->  | W45: =IF('Serial Data'!V45+'Serial Data'!W45+'Serial Data'!U45<>0,(U45*0.866*Templates!K2),NA()) ->  | Y45: ='Serial Data'!AB45/('Serial Data'!AA45+'Serial Data'!AB45+'Serial Data'!Z45) ->  | Z45: ='Serial Data'!Z45/('Serial Data'!AA45+'Serial Data'!AB45+'Serial Data'!Z45) ->  | AA45: ='Serial Data'!AA45/('Serial Data'!AA45+'Serial Data'!AB45+'Serial Data'!Z45) ->  | AB45: =IF('Serial Data'!AB45+'Serial Data'!AA45+'Serial Data'!Z45<>0,(Z45+(AA45*0.5)),NA()) ->  | AC45: =IF('Serial Data'!AB45+'Serial Data'!AA45+'Serial Data'!Z45<>0,(AA45*0.866*Templates!K2),NA()) ->  | AE45: ='Serial Data'!AG45/('Serial Data'!AG45+'Serial Data'!AE45+'Serial Data'!AF45) ->  | AF45: ='Serial Data'!AE45/('Serial Data'!AG45+'Serial Data'!AE45+'Serial Data'!AF45) ->  | AG45: ='Serial Data'!AF45/('Serial Data'!AG45+'Serial Data'!AE45+'Serial Data'!AF45) ->  | AH45: =IF('Serial Data'!AE45+'Serial Data'!AF45+'Serial Data'!AG45<>0,(AF45+(AG45*0.5)),NA()) ->  | AI45: =IF('Serial Data'!AE45+'Serial Data'!AF45+'Serial Data'!AG45<>0,(AG45*0.866*Templates!K2),NA()) ->  | AK45: ='Serial Data'!AL45/('Serial Data'!AJ45+'Serial Data'!AK45+'Serial Data'!AL45) ->  | AL45: ='Serial Data'!AJ45/('Serial Data'!AJ45+'Serial Data'!AK45+'Serial Data'!AL45) ->  | AM45: ='Serial Data'!AK45/('Serial Data'!AJ45+'Serial Data'!AK45+'Serial Data'!AL45) ->  | AN45: =IF('Serial Data'!AJ45+'Serial Data'!AK45+'Serial Data'!AL45<>0,(AL45+(AM45*0.5)),NA()) ->  | AO45: =IF('Serial Data'!AJ45+'Serial Data'!AK45+'Serial Data'!AL45<>0,(AM45*0.866*Templates!K2),NA()) ->  | AQ45: ='Serial Data'!AQ45/('Serial Data'!AO45+'Serial Data'!AP45+'Serial Data'!AQ45) ->  | AR45: ='Serial Data'!AO45/('Serial Data'!AO45+'Serial Data'!AP45+'Serial Data'!AQ45) ->  | AS45: ='Serial Data'!AP45/('Serial Data'!AO45+'Serial Data'!AP45+'Serial Data'!AQ45) ->  | AT45: =IF('Serial Data'!AO45+'Serial Data'!AP45+'Serial Data'!AQ45<>0,(AR45+(AS45*0.5)),NA()) ->  | AU45: =IF('Serial Data'!AO45+'Serial Data'!AP45+'Serial Data'!AQ45<>0,(AS45*0.866*Templates!K2),NA()) ->  | AW45: ='Serial Data'!AV45/('Serial Data'!AT45+'Serial Data'!AU45+'Serial Data'!AV45) ->  | AX45: ='Serial Data'!AT45/('Serial Data'!AT45+'Serial Data'!AU45+'Serial Data'!AV45) ->  | AY45: ='Serial Data'!AU45/('Serial Data'!AT45+'Serial Data'!AU45+'Serial Data'!AV45) ->  | AZ45: =IF('Serial Data'!AT45+'Serial Data'!AU45+'Serial Data'!AV45<>0,(AX45+(AY45*0.5)),NA()) ->  | BA45: =IF('Serial Data'!AT45+'Serial Data'!AU45+'Serial Data'!AV45<>0,(AY45*0.866*Templates!K2),NA()) ->  | BC45: ='Serial Data'!BA45/('Serial Data'!AY45+'Serial Data'!AZ45+'Serial Data'!BA45) ->  | BD45: ='Serial Data'!AY45/('Serial Data'!AY45+'Serial Data'!AZ45+'Serial Data'!BA45) ->  | BE45: ='Serial Data'!AZ45/('Serial Data'!AY45+'Serial Data'!AZ45+'Serial Data'!BA45) ->  | BF45: =IF('Serial Data'!AY45+'Serial Data'!AZ45+'Serial Data'!BA45<>0,(BD45+(BE45*0.5)),NA()) ->  | BG45: =IF('Serial Data'!AY45+'Serial Data'!AZ45+'Serial Data'!BA45<>0,(BE45*0.866*Templates!K2),NA()) ->  | BI45: ='Serial Data'!BF45/('Serial Data'!BD45+'Serial Data'!BE45+'Serial Data'!BF45) ->  | BJ45: ='Serial Data'!BD45/('Serial Data'!BD45+'Serial Data'!BE45+'Serial Data'!BF45) ->  | BK45: ='Serial Data'!BE45/('Serial Data'!BD45+'Serial Data'!BE45+'Serial Data'!BF45) ->  | BL45: =IF('Serial Data'!BD45+'Serial Data'!BE45+'Serial Data'!BF45<>0,(BJ45+(BK45*0.5)),NA()) ->  | BM45: =IF('Serial Data'!BD45+'Serial Data'!BE45+'Serial Data'!BF45<>0,(BK45*0.866*Templates!K2),NA()) -> 
A46: ='Single Data'!N47/('Single Data'!L47+'Single Data'!M47+'Single Data'!N47) ->  | B46: ='Single Data'!L47/('Single Data'!L47+'Single Data'!M47+'Single Data'!N47) ->  | C46: ='Single Data'!M47/('Single Data'!L47+'Single Data'!M47+'Single Data'!N47) ->  | D46: =IF('Single Data'!L47+'Single Data'!M47+'Single Data'!N47<>0,(B46+(C46*0.5)),NA()) ->  | E46: =IF('Single Data'!L47+'Single Data'!M47+'Single Data'!N47<>0,(C46*0.866*Templates!K2),NA()) ->  | G46: ='Serial Data'!M46/('Serial Data'!K46+'Serial Data'!L46+'Serial Data'!M46) ->  | H46: ='Serial Data'!K46/('Serial Data'!K46+'Serial Data'!L46+'Serial Data'!M46) ->  | I46: ='Serial Data'!L46/('Serial Data'!K46+'Serial Data'!L46+'Serial Data'!M46) ->  | J46: =IF('Serial Data'!K46+'Serial Data'!L46+'Serial Data'!M46<>0,(H46+(I46*0.5)),NA()) ->  | K46: =IF('Serial Data'!K46+'Serial Data'!L46+'Serial Data'!M46<>0,(I46*0.866*Templates!K2),NA()) ->  | M46: ='Serial Data'!R46/('Serial Data'!P46+'Serial Data'!Q46+'Serial Data'!R46) ->  | N46: ='Serial Data'!P46/('Serial Data'!P46+'Serial Data'!Q46+'Serial Data'!R46) ->  | O46: ='Serial Data'!Q46/('Serial Data'!P46+'Serial Data'!Q46+'Serial Data'!R46) ->  | P46: =IF('Serial Data'!P46+'Serial Data'!Q46+'Serial Data'!R46<>0,(N46+(O46*0.5)),NA()) ->  | Q46: =IF('Serial Data'!P46+'Serial Data'!Q46+'Serial Data'!R46<>0,(O46*0.866*Templates!K2),NA()) ->  | S46: ='Serial Data'!W46/('Serial Data'!U46+'Serial Data'!V46+'Serial Data'!W46) ->  | T46: ='Serial Data'!U46/('Serial Data'!U46+'Serial Data'!V46+'Serial Data'!W46) ->  | U46: ='Serial Data'!V46/('Serial Data'!U46+'Serial Data'!V46+'Serial Data'!W46) ->  | V46: =IF('Serial Data'!V46+'Serial Data'!W46+'Serial Data'!U46<>0,(T46+(U46*0.5)),NA()) ->  | W46: =IF('Serial Data'!V46+'Serial Data'!W46+'Serial Data'!U46<>0,(U46*0.866*Templates!K2),NA()) ->  | Y46: ='Serial Data'!AB46/('Serial Data'!AA46+'Serial Data'!AB46+'Serial Data'!Z46) ->  | Z46: ='Serial Data'!Z46/('Serial Data'!AA46+'Serial Data'!AB46+'Serial Data'!Z46) ->  | AA46: ='Serial Data'!AA46/('Serial Data'!AA46+'Serial Data'!AB46+'Serial Data'!Z46) ->  | AB46: =IF('Serial Data'!AB46+'Serial Data'!AA46+'Serial Data'!Z46<>0,(Z46+(AA46*0.5)),NA()) ->  | AC46: =IF('Serial Data'!AB46+'Serial Data'!AA46+'Serial Data'!Z46<>0,(AA46*0.866*Templates!K2),NA()) ->  | AE46: ='Serial Data'!AG46/('Serial Data'!AG46+'Serial Data'!AE46+'Serial Data'!AF46) ->  | AF46: ='Serial Data'!AE46/('Serial Data'!AG46+'Serial Data'!AE46+'Serial Data'!AF46) ->  | AG46: ='Serial Data'!AF46/('Serial Data'!AG46+'Serial Data'!AE46+'Serial Data'!AF46) ->  | AH46: =IF('Serial Data'!AE46+'Serial Data'!AF46+'Serial Data'!AG46<>0,(AF46+(AG46*0.5)),NA()) ->  | AI46: =IF('Serial Data'!AE46+'Serial Data'!AF46+'Serial Data'!AG46<>0,(AG46*0.866*Templates!K2),NA()) ->  | AK46: ='Serial Data'!AL46/('Serial Data'!AJ46+'Serial Data'!AK46+'Serial Data'!AL46) ->  | AL46: ='Serial Data'!AJ46/('Serial Data'!AJ46+'Serial Data'!AK46+'Serial Data'!AL46) ->  | AM46: ='Serial Data'!AK46/('Serial Data'!AJ46+'Serial Data'!AK46+'Serial Data'!AL46) ->  | AN46: =IF('Serial Data'!AJ46+'Serial Data'!AK46+'Serial Data'!AL46<>0,(AL46+(AM46*0.5)),NA()) ->  | AO46: =IF('Serial Data'!AJ46+'Serial Data'!AK46+'Serial Data'!AL46<>0,(AM46*0.866*Templates!K2),NA()) ->  | AQ46: ='Serial Data'!AQ46/('Serial Data'!AO46+'Serial Data'!AP46+'Serial Data'!AQ46) ->  | AR46: ='Serial Data'!AO46/('Serial Data'!AO46+'Serial Data'!AP46+'Serial Data'!AQ46) ->  | AS46: ='Serial Data'!AP46/('Serial Data'!AO46+'Serial Data'!AP46+'Serial Data'!AQ46) ->  | AT46: =IF('Serial Data'!AO46+'Serial Data'!AP46+'Serial Data'!AQ46<>0,(AR46+(AS46*0.5)),NA()) ->  | AU46: =IF('Serial Data'!AO46+'Serial Data'!AP46+'Serial Data'!AQ46<>0,(AS46*0.866*Templates!K2),NA()) ->  | AW46: ='Serial Data'!AV46/('Serial Data'!AT46+'Serial Data'!AU46+'Serial Data'!AV46) ->  | AX46: ='Serial Data'!AT46/('Serial Data'!AT46+'Serial Data'!AU46+'Serial Data'!AV46) ->  | AY46: ='Serial Data'!AU46/('Serial Data'!AT46+'Serial Data'!AU46+'Serial Data'!AV46) ->  | AZ46: =IF('Serial Data'!AT46+'Serial Data'!AU46+'Serial Data'!AV46<>0,(AX46+(AY46*0.5)),NA()) ->  | BA46: =IF('Serial Data'!AT46+'Serial Data'!AU46+'Serial Data'!AV46<>0,(AY46*0.866*Templates!K2),NA()) ->  | BC46: ='Serial Data'!BA46/('Serial Data'!AY46+'Serial Data'!AZ46+'Serial Data'!BA46) ->  | BD46: ='Serial Data'!AY46/('Serial Data'!AY46+'Serial Data'!AZ46+'Serial Data'!BA46) ->  | BE46: ='Serial Data'!AZ46/('Serial Data'!AY46+'Serial Data'!AZ46+'Serial Data'!BA46) ->  | BF46: =IF('Serial Data'!AY46+'Serial Data'!AZ46+'Serial Data'!BA46<>0,(BD46+(BE46*0.5)),NA()) ->  | BG46: =IF('Serial Data'!AY46+'Serial Data'!AZ46+'Serial Data'!BA46<>0,(BE46*0.866*Templates!K2),NA()) ->  | BI46: ='Serial Data'!BF46/('Serial Data'!BD46+'Serial Data'!BE46+'Serial Data'!BF46) ->  | BJ46: ='Serial Data'!BD46/('Serial Data'!BD46+'Serial Data'!BE46+'Serial Data'!BF46) ->  | BK46: ='Serial Data'!BE46/('Serial Data'!BD46+'Serial Data'!BE46+'Serial Data'!BF46) ->  | BL46: =IF('Serial Data'!BD46+'Serial Data'!BE46+'Serial Data'!BF46<>0,(BJ46+(BK46*0.5)),NA()) ->  | BM46: =IF('Serial Data'!BD46+'Serial Data'!BE46+'Serial Data'!BF46<>0,(BK46*0.866*Templates!K2),NA()) -> 
A47: ='Single Data'!N48/('Single Data'!L48+'Single Data'!M48+'Single Data'!N48) ->  | B47: ='Single Data'!L48/('Single Data'!L48+'Single Data'!M48+'Single Data'!N48) ->  | C47: ='Single Data'!M48/('Single Data'!L48+'Single Data'!M48+'Single Data'!N48) ->  | D47: =IF('Single Data'!L48+'Single Data'!M48+'Single Data'!N48<>0,(B47+(C47*0.5)),NA()) ->  | E47: =IF('Single Data'!L48+'Single Data'!M48+'Single Data'!N48<>0,(C47*0.866*Templates!K2),NA()) ->  | G47: ='Serial Data'!M47/('Serial Data'!K47+'Serial Data'!L47+'Serial Data'!M47) ->  | H47: ='Serial Data'!K47/('Serial Data'!K47+'Serial Data'!L47+'Serial Data'!M47) ->  | I47: ='Serial Data'!L47/('Serial Data'!K47+'Serial Data'!L47+'Serial Data'!M47) ->  | J47: =IF('Serial Data'!K47+'Serial Data'!L47+'Serial Data'!M47<>0,(H47+(I47*0.5)),NA()) ->  | K47: =IF('Serial Data'!K47+'Serial Data'!L47+'Serial Data'!M47<>0,(I47*0.866*Templates!K2),NA()) ->  | M47: ='Serial Data'!R47/('Serial Data'!P47+'Serial Data'!Q47+'Serial Data'!R47) ->  | N47: ='Serial Data'!P47/('Serial Data'!P47+'Serial Data'!Q47+'Serial Data'!R47) ->  | O47: ='Serial Data'!Q47/('Serial Data'!P47+'Serial Data'!Q47+'Serial Data'!R47) ->  | P47: =IF('Serial Data'!P47+'Serial Data'!Q47+'Serial Data'!R47<>0,(N47+(O47*0.5)),NA()) ->  | Q47: =IF('Serial Data'!P47+'Serial Data'!Q47+'Serial Data'!R47<>0,(O47*0.866*Templates!K2),NA()) ->  | S47: ='Serial Data'!W47/('Serial Data'!U47+'Serial Data'!V47+'Serial Data'!W47) ->  | T47: ='Serial Data'!U47/('Serial Data'!U47+'Serial Data'!V47+'Serial Data'!W47) ->  | U47: ='Serial Data'!V47/('Serial Data'!U47+'Serial Data'!V47+'Serial Data'!W47) ->  | V47: =IF('Serial Data'!V47+'Serial Data'!W47+'Serial Data'!U47<>0,(T47+(U47*0.5)),NA()) ->  | W47: =IF('Serial Data'!V47+'Serial Data'!W47+'Serial Data'!U47<>0,(U47*0.866*Templates!K2),NA()) ->  | Y47: ='Serial Data'!AB47/('Serial Data'!AA47+'Serial Data'!AB47+'Serial Data'!Z47) ->  | Z47: ='Serial Data'!Z47/('Serial Data'!AA47+'Serial Data'!AB47+'Serial Data'!Z47) ->  | AA47: ='Serial Data'!AA47/('Serial Data'!AA47+'Serial Data'!AB47+'Serial Data'!Z47) ->  | AB47: =IF('Serial Data'!AB47+'Serial Data'!AA47+'Serial Data'!Z47<>0,(Z47+(AA47*0.5)),NA()) ->  | AC47: =IF('Serial Data'!AB47+'Serial Data'!AA47+'Serial Data'!Z47<>0,(AA47*0.866*Templates!K2),NA()) ->  | AE47: ='Serial Data'!AG47/('Serial Data'!AG47+'Serial Data'!AE47+'Serial Data'!AF47) ->  | AF47: ='Serial Data'!AE47/('Serial Data'!AG47+'Serial Data'!AE47+'Serial Data'!AF47) ->  | AG47: ='Serial Data'!AF47/('Serial Data'!AG47+'Serial Data'!AE47+'Serial Data'!AF47) ->  | AH47: =IF('Serial Data'!AE47+'Serial Data'!AF47+'Serial Data'!AG47<>0,(AF47+(AG47*0.5)),NA()) ->  | AI47: =IF('Serial Data'!AE47+'Serial Data'!AF47+'Serial Data'!AG47<>0,(AG47*0.866*Templates!K2),NA()) ->  | AK47: ='Serial Data'!AL47/('Serial Data'!AJ47+'Serial Data'!AK47+'Serial Data'!AL47) ->  | AL47: ='Serial Data'!AJ47/('Serial Data'!AJ47+'Serial Data'!AK47+'Serial Data'!AL47) ->  | AM47: ='Serial Data'!AK47/('Serial Data'!AJ47+'Serial Data'!AK47+'Serial Data'!AL47) ->  | AN47: =IF('Serial Data'!AJ47+'Serial Data'!AK47+'Serial Data'!AL47<>0,(AL47+(AM47*0.5)),NA()) ->  | AO47: =IF('Serial Data'!AJ47+'Serial Data'!AK47+'Serial Data'!AL47<>0,(AM47*0.866*Templates!K2),NA()) ->  | AQ47: ='Serial Data'!AQ47/('Serial Data'!AO47+'Serial Data'!AP47+'Serial Data'!AQ47) ->  | AR47: ='Serial Data'!AO47/('Serial Data'!AO47+'Serial Data'!AP47+'Serial Data'!AQ47) ->  | AS47: ='Serial Data'!AP47/('Serial Data'!AO47+'Serial Data'!AP47+'Serial Data'!AQ47) ->  | AT47: =IF('Serial Data'!AO47+'Serial Data'!AP47+'Serial Data'!AQ47<>0,(AR47+(AS47*0.5)),NA()) ->  | AU47: =IF('Serial Data'!AO47+'Serial Data'!AP47+'Serial Data'!AQ47<>0,(AS47*0.866*Templates!K2),NA()) ->  | AW47: ='Serial Data'!AV47/('Serial Data'!AT47+'Serial Data'!AU47+'Serial Data'!AV47) ->  | AX47: ='Serial Data'!AT47/('Serial Data'!AT47+'Serial Data'!AU47+'Serial Data'!AV47) ->  | AY47: ='Serial Data'!AU47/('Serial Data'!AT47+'Serial Data'!AU47+'Serial Data'!AV47) ->  | AZ47: =IF('Serial Data'!AT47+'Serial Data'!AU47+'Serial Data'!AV47<>0,(AX47+(AY47*0.5)),NA()) ->  | BA47: =IF('Serial Data'!AT47+'Serial Data'!AU47+'Serial Data'!AV47<>0,(AY47*0.866*Templates!K2),NA()) ->  | BC47: ='Serial Data'!BA47/('Serial Data'!AY47+'Serial Data'!AZ47+'Serial Data'!BA47) ->  | BD47: ='Serial Data'!AY47/('Serial Data'!AY47+'Serial Data'!AZ47+'Serial Data'!BA47) ->  | BE47: ='Serial Data'!AZ47/('Serial Data'!AY47+'Serial Data'!AZ47+'Serial Data'!BA47) ->  | BF47: =IF('Serial Data'!AY47+'Serial Data'!AZ47+'Serial Data'!BA47<>0,(BD47+(BE47*0.5)),NA()) ->  | BG47: =IF('Serial Data'!AY47+'Serial Data'!AZ47+'Serial Data'!BA47<>0,(BE47*0.866*Templates!K2),NA()) ->  | BI47: ='Serial Data'!BF47/('Serial Data'!BD47+'Serial Data'!BE47+'Serial Data'!BF47) ->  | BJ47: ='Serial Data'!BD47/('Serial Data'!BD47+'Serial Data'!BE47+'Serial Data'!BF47) ->  | BK47: ='Serial Data'!BE47/('Serial Data'!BD47+'Serial Data'!BE47+'Serial Data'!BF47) ->  | BL47: =IF('Serial Data'!BD47+'Serial Data'!BE47+'Serial Data'!BF47<>0,(BJ47+(BK47*0.5)),NA()) ->  | BM47: =IF('Serial Data'!BD47+'Serial Data'!BE47+'Serial Data'!BF47<>0,(BK47*0.866*Templates!K2),NA()) -> 
A48: ='Single Data'!N49/('Single Data'!L49+'Single Data'!M49+'Single Data'!N49) ->  | B48: ='Single Data'!L49/('Single Data'!L49+'Single Data'!M49+'Single Data'!N49) ->  | C48: ='Single Data'!M49/('Single Data'!L49+'Single Data'!M49+'Single Data'!N49) ->  | D48: =IF('Single Data'!L49+'Single Data'!M49+'Single Data'!N49<>0,(B48+(C48*0.5)),NA()) ->  | E48: =IF('Single Data'!L49+'Single Data'!M49+'Single Data'!N49<>0,(C48*0.866*Templates!K2),NA()) ->  | G48: ='Serial Data'!M48/('Serial Data'!K48+'Serial Data'!L48+'Serial Data'!M48) ->  | H48: ='Serial Data'!K48/('Serial Data'!K48+'Serial Data'!L48+'Serial Data'!M48) ->  | I48: ='Serial Data'!L48/('Serial Data'!K48+'Serial Data'!L48+'Serial Data'!M48) ->  | J48: =IF('Serial Data'!K48+'Serial Data'!L48+'Serial Data'!M48<>0,(H48+(I48*0.5)),NA()) ->  | K48: =IF('Serial Data'!K48+'Serial Data'!L48+'Serial Data'!M48<>0,(I48*0.866*Templates!K2),NA()) ->  | M48: ='Serial Data'!R48/('Serial Data'!P48+'Serial Data'!Q48+'Serial Data'!R48) ->  | N48: ='Serial Data'!P48/('Serial Data'!P48+'Serial Data'!Q48+'Serial Data'!R48) ->  | O48: ='Serial Data'!Q48/('Serial Data'!P48+'Serial Data'!Q48+'Serial Data'!R48) ->  | P48: =IF('Serial Data'!P48+'Serial Data'!Q48+'Serial Data'!R48<>0,(N48+(O48*0.5)),NA()) ->  | Q48: =IF('Serial Data'!P48+'Serial Data'!Q48+'Serial Data'!R48<>0,(O48*0.866*Templates!K2),NA()) ->  | S48: ='Serial Data'!W48/('Serial Data'!U48+'Serial Data'!V48+'Serial Data'!W48) ->  | T48: ='Serial Data'!U48/('Serial Data'!U48+'Serial Data'!V48+'Serial Data'!W48) ->  | U48: ='Serial Data'!V48/('Serial Data'!U48+'Serial Data'!V48+'Serial Data'!W48) ->  | V48: =IF('Serial Data'!V48+'Serial Data'!W48+'Serial Data'!U48<>0,(T48+(U48*0.5)),NA()) ->  | W48: =IF('Serial Data'!V48+'Serial Data'!W48+'Serial Data'!U48<>0,(U48*0.866*Templates!K2),NA()) ->  | Y48: ='Serial Data'!AB48/('Serial Data'!AA48+'Serial Data'!AB48+'Serial Data'!Z48) ->  | Z48: ='Serial Data'!Z48/('Serial Data'!AA48+'Serial Data'!AB48+'Serial Data'!Z48) ->  | AA48: ='Serial Data'!AA48/('Serial Data'!AA48+'Serial Data'!AB48+'Serial Data'!Z48) ->  | AB48: =IF('Serial Data'!AB48+'Serial Data'!AA48+'Serial Data'!Z48<>0,(Z48+(AA48*0.5)),NA()) ->  | AC48: =IF('Serial Data'!AB48+'Serial Data'!AA48+'Serial Data'!Z48<>0,(AA48*0.866*Templates!K2),NA()) ->  | AE48: ='Serial Data'!AG48/('Serial Data'!AG48+'Serial Data'!AE48+'Serial Data'!AF48) ->  | AF48: ='Serial Data'!AE48/('Serial Data'!AG48+'Serial Data'!AE48+'Serial Data'!AF48) ->  | AG48: ='Serial Data'!AF48/('Serial Data'!AG48+'Serial Data'!AE48+'Serial Data'!AF48) ->  | AH48: =IF('Serial Data'!AE48+'Serial Data'!AF48+'Serial Data'!AG48<>0,(AF48+(AG48*0.5)),NA()) ->  | AI48: =IF('Serial Data'!AE48+'Serial Data'!AF48+'Serial Data'!AG48<>0,(AG48*0.866*Templates!K2),NA()) ->  | AK48: ='Serial Data'!AL48/('Serial Data'!AJ48+'Serial Data'!AK48+'Serial Data'!AL48) ->  | AL48: ='Serial Data'!AJ48/('Serial Data'!AJ48+'Serial Data'!AK48+'Serial Data'!AL48) ->  | AM48: ='Serial Data'!AK48/('Serial Data'!AJ48+'Serial Data'!AK48+'Serial Data'!AL48) ->  | AN48: =IF('Serial Data'!AJ48+'Serial Data'!AK48+'Serial Data'!AL48<>0,(AL48+(AM48*0.5)),NA()) ->  | AO48: =IF('Serial Data'!AJ48+'Serial Data'!AK48+'Serial Data'!AL48<>0,(AM48*0.866*Templates!K2),NA()) ->  | AQ48: ='Serial Data'!AQ48/('Serial Data'!AO48+'Serial Data'!AP48+'Serial Data'!AQ48) ->  | AR48: ='Serial Data'!AO48/('Serial Data'!AO48+'Serial Data'!AP48+'Serial Data'!AQ48) ->  | AS48: ='Serial Data'!AP48/('Serial Data'!AO48+'Serial Data'!AP48+'Serial Data'!AQ48) ->  | AT48: =IF('Serial Data'!AO48+'Serial Data'!AP48+'Serial Data'!AQ48<>0,(AR48+(AS48*0.5)),NA()) ->  | AU48: =IF('Serial Data'!AO48+'Serial Data'!AP48+'Serial Data'!AQ48<>0,(AS48*0.866*Templates!K2),NA()) ->  | AW48: ='Serial Data'!AV48/('Serial Data'!AT48+'Serial Data'!AU48+'Serial Data'!AV48) ->  | AX48: ='Serial Data'!AT48/('Serial Data'!AT48+'Serial Data'!AU48+'Serial Data'!AV48) ->  | AY48: ='Serial Data'!AU48/('Serial Data'!AT48+'Serial Data'!AU48+'Serial Data'!AV48) ->  | AZ48: =IF('Serial Data'!AT48+'Serial Data'!AU48+'Serial Data'!AV48<>0,(AX48+(AY48*0.5)),NA()) ->  | BA48: =IF('Serial Data'!AT48+'Serial Data'!AU48+'Serial Data'!AV48<>0,(AY48*0.866*Templates!K2),NA()) ->  | BC48: ='Serial Data'!BA48/('Serial Data'!AY48+'Serial Data'!AZ48+'Serial Data'!BA48) ->  | BD48: ='Serial Data'!AY48/('Serial Data'!AY48+'Serial Data'!AZ48+'Serial Data'!BA48) ->  | BE48: ='Serial Data'!AZ48/('Serial Data'!AY48+'Serial Data'!AZ48+'Serial Data'!BA48) ->  | BF48: =IF('Serial Data'!AY48+'Serial Data'!AZ48+'Serial Data'!BA48<>0,(BD48+(BE48*0.5)),NA()) ->  | BG48: =IF('Serial Data'!AY48+'Serial Data'!AZ48+'Serial Data'!BA48<>0,(BE48*0.866*Templates!K2),NA()) ->  | BI48: ='Serial Data'!BF48/('Serial Data'!BD48+'Serial Data'!BE48+'Serial Data'!BF48) ->  | BJ48: ='Serial Data'!BD48/('Serial Data'!BD48+'Serial Data'!BE48+'Serial Data'!BF48) ->  | BK48: ='Serial Data'!BE48/('Serial Data'!BD48+'Serial Data'!BE48+'Serial Data'!BF48) ->  | BL48: =IF('Serial Data'!BD48+'Serial Data'!BE48+'Serial Data'!BF48<>0,(BJ48+(BK48*0.5)),NA()) ->  | BM48: =IF('Serial Data'!BD48+'Serial Data'!BE48+'Serial Data'!BF48<>0,(BK48*0.866*Templates!K2),NA()) -> 
A49: ='Single Data'!N50/('Single Data'!L50+'Single Data'!M50+'Single Data'!N50) ->  | B49: ='Single Data'!L50/('Single Data'!L50+'Single Data'!M50+'Single Data'!N50) ->  | C49: ='Single Data'!M50/('Single Data'!L50+'Single Data'!M50+'Single Data'!N50) ->  | D49: =IF('Single Data'!L50+'Single Data'!M50+'Single Data'!N50<>0,(B49+(C49*0.5)),NA()) ->  | E49: =IF('Single Data'!L50+'Single Data'!M50+'Single Data'!N50<>0,(C49*0.866*Templates!K2),NA()) ->  | G49: ='Serial Data'!M49/('Serial Data'!K49+'Serial Data'!L49+'Serial Data'!M49) ->  | H49: ='Serial Data'!K49/('Serial Data'!K49+'Serial Data'!L49+'Serial Data'!M49) ->  | I49: ='Serial Data'!L49/('Serial Data'!K49+'Serial Data'!L49+'Serial Data'!M49) ->  | J49: =IF('Serial Data'!K49+'Serial Data'!L49+'Serial Data'!M49<>0,(H49+(I49*0.5)),NA()) ->  | K49: =IF('Serial Data'!K49+'Serial Data'!L49+'Serial Data'!M49<>0,(I49*0.866*Templates!K2),NA()) ->  | M49: ='Serial Data'!R49/('Serial Data'!P49+'Serial Data'!Q49+'Serial Data'!R49) ->  | N49: ='Serial Data'!P49/('Serial Data'!P49+'Serial Data'!Q49+'Serial Data'!R49) ->  | O49: ='Serial Data'!Q49/('Serial Data'!P49+'Serial Data'!Q49+'Serial Data'!R49) ->  | P49: =IF('Serial Data'!P49+'Serial Data'!Q49+'Serial Data'!R49<>0,(N49+(O49*0.5)),NA()) ->  | Q49: =IF('Serial Data'!P49+'Serial Data'!Q49+'Serial Data'!R49<>0,(O49*0.866*Templates!K2),NA()) ->  | S49: ='Serial Data'!W49/('Serial Data'!U49+'Serial Data'!V49+'Serial Data'!W49) ->  | T49: ='Serial Data'!U49/('Serial Data'!U49+'Serial Data'!V49+'Serial Data'!W49) ->  | U49: ='Serial Data'!V49/('Serial Data'!U49+'Serial Data'!V49+'Serial Data'!W49) ->  | V49: =IF('Serial Data'!V49+'Serial Data'!W49+'Serial Data'!U49<>0,(T49+(U49*0.5)),NA()) ->  | W49: =IF('Serial Data'!V49+'Serial Data'!W49+'Serial Data'!U49<>0,(U49*0.866*Templates!K2),NA()) ->  | Y49: ='Serial Data'!AB49/('Serial Data'!AA49+'Serial Data'!AB49+'Serial Data'!Z49) ->  | Z49: ='Serial Data'!Z49/('Serial Data'!AA49+'Serial Data'!AB49+'Serial Data'!Z49) ->  | AA49: ='Serial Data'!AA49/('Serial Data'!AA49+'Serial Data'!AB49+'Serial Data'!Z49) ->  | AB49: =IF('Serial Data'!AB49+'Serial Data'!AA49+'Serial Data'!Z49<>0,(Z49+(AA49*0.5)),NA()) ->  | AC49: =IF('Serial Data'!AB49+'Serial Data'!AA49+'Serial Data'!Z49<>0,(AA49*0.866*Templates!K2),NA()) ->  | AE49: ='Serial Data'!AG49/('Serial Data'!AG49+'Serial Data'!AE49+'Serial Data'!AF49) ->  | AF49: ='Serial Data'!AE49/('Serial Data'!AG49+'Serial Data'!AE49+'Serial Data'!AF49) ->  | AG49: ='Serial Data'!AF49/('Serial Data'!AG49+'Serial Data'!AE49+'Serial Data'!AF49) ->  | AH49: =IF('Serial Data'!AE49+'Serial Data'!AF49+'Serial Data'!AG49<>0,(AF49+(AG49*0.5)),NA()) ->  | AI49: =IF('Serial Data'!AE49+'Serial Data'!AF49+'Serial Data'!AG49<>0,(AG49*0.866*Templates!K2),NA()) ->  | AK49: ='Serial Data'!AL49/('Serial Data'!AJ49+'Serial Data'!AK49+'Serial Data'!AL49) ->  | AL49: ='Serial Data'!AJ49/('Serial Data'!AJ49+'Serial Data'!AK49+'Serial Data'!AL49) ->  | AM49: ='Serial Data'!AK49/('Serial Data'!AJ49+'Serial Data'!AK49+'Serial Data'!AL49) ->  | AN49: =IF('Serial Data'!AJ49+'Serial Data'!AK49+'Serial Data'!AL49<>0,(AL49+(AM49*0.5)),NA()) ->  | AO49: =IF('Serial Data'!AJ49+'Serial Data'!AK49+'Serial Data'!AL49<>0,(AM49*0.866*Templates!K2),NA()) ->  | AQ49: ='Serial Data'!AQ49/('Serial Data'!AO49+'Serial Data'!AP49+'Serial Data'!AQ49) ->  | AR49: ='Serial Data'!AO49/('Serial Data'!AO49+'Serial Data'!AP49+'Serial Data'!AQ49) ->  | AS49: ='Serial Data'!AP49/('Serial Data'!AO49+'Serial Data'!AP49+'Serial Data'!AQ49) ->  | AT49: =IF('Serial Data'!AO49+'Serial Data'!AP49+'Serial Data'!AQ49<>0,(AR49+(AS49*0.5)),NA()) ->  | AU49: =IF('Serial Data'!AO49+'Serial Data'!AP49+'Serial Data'!AQ49<>0,(AS49*0.866*Templates!K2),NA()) ->  | AW49: ='Serial Data'!AV49/('Serial Data'!AT49+'Serial Data'!AU49+'Serial Data'!AV49) ->  | AX49: ='Serial Data'!AT49/('Serial Data'!AT49+'Serial Data'!AU49+'Serial Data'!AV49) ->  | AY49: ='Serial Data'!AU49/('Serial Data'!AT49+'Serial Data'!AU49+'Serial Data'!AV49) ->  | AZ49: =IF('Serial Data'!AT49+'Serial Data'!AU49+'Serial Data'!AV49<>0,(AX49+(AY49*0.5)),NA()) ->  | BA49: =IF('Serial Data'!AT49+'Serial Data'!AU49+'Serial Data'!AV49<>0,(AY49*0.866*Templates!K2),NA()) ->  | BC49: ='Serial Data'!BA49/('Serial Data'!AY49+'Serial Data'!AZ49+'Serial Data'!BA49) ->  | BD49: ='Serial Data'!AY49/('Serial Data'!AY49+'Serial Data'!AZ49+'Serial Data'!BA49) ->  | BE49: ='Serial Data'!AZ49/('Serial Data'!AY49+'Serial Data'!AZ49+'Serial Data'!BA49) ->  | BF49: =IF('Serial Data'!AY49+'Serial Data'!AZ49+'Serial Data'!BA49<>0,(BD49+(BE49*0.5)),NA()) ->  | BG49: =IF('Serial Data'!AY49+'Serial Data'!AZ49+'Serial Data'!BA49<>0,(BE49*0.866*Templates!K2),NA()) ->  | BI49: ='Serial Data'!BF49/('Serial Data'!BD49+'Serial Data'!BE49+'Serial Data'!BF49) ->  | BJ49: ='Serial Data'!BD49/('Serial Data'!BD49+'Serial Data'!BE49+'Serial Data'!BF49) ->  | BK49: ='Serial Data'!BE49/('Serial Data'!BD49+'Serial Data'!BE49+'Serial Data'!BF49) ->  | BL49: =IF('Serial Data'!BD49+'Serial Data'!BE49+'Serial Data'!BF49<>0,(BJ49+(BK49*0.5)),NA()) ->  | BM49: =IF('Serial Data'!BD49+'Serial Data'!BE49+'Serial Data'!BF49<>0,(BK49*0.866*Templates!K2),NA()) -> 
